Workbook

Sheet Datos (hidden)
A1: 1 | B1: 2 | C1: 3 | D1: 4 | E1: 5 | F1: 6 | G1: 7 | H1: 8 | I1: 9 | J1: 10 | K1: 11 | L1: 12 | M1: 13 | N1: 14 | O1: 15 | P1: 16 | Q1: 17 | R1: 18 | S1: 19 | T1: 20 | U1: 21 | V1: 22 | W1: 23 | X1: 24 | Y1: 25 | Z1: 26 | AA1: 27 | AB1: 28 | AC1: 29 | AD1: 30 | AE1: 31 | AF1: 32
B2: t correlativo global | C2: 3196800 | G2: Mes | H2: T° exterior | I2: Qsol_dif [W/m2] | J2: Qsol_dir [W/m2] | K2: Qgen Pers [W/m2] | L2: Qgen Ilum [W/m2] | M2: Qgen Equip [W/m2] | N2: TsolH | O2: TsolN | P2: TsolNE | Q2: TsolE | R2: TsolSE | S2: TsolS | T2: TsolSO | U2: TsolO | V2: TsolNO | W2: Clima [0, 1 o 2] | X2: N [RAH] | Y2: G total [W/m2] | Z2: TmaxD | AA2: TminD | AB2: TmaxN | AC2: TminN | AD2: Tsuelo | AE2: Infil RAH | AF2: Cat. Mes
B3: h sol | C3: 17 | G3: =+IF(C2<86400*(C11+1),QUOTIENT(C2,C5)+1,QUOTIENT(C2-86400,C5)+1) -> 13 | H3: =INDIRECT(H36&35+32*($G$3-1)) -> 0 | I3: =INDIRECT(I36&35+32*($G$3-1)) -> 0 | J3: 0 | K3: 0 | L3: 0 | M3: 0 | N3: 0 | O3: 0 | P3: 0 | Q3: 0 | R3: 0 | S3: 0 | T3: 0 | U3: 0 | V3: 0 | W3: 0 | X3: 0 | Y3: 0 | Z3: =INDIRECT("E"&13+32*($G$3-1)) -> 0 | AA3: =INDIRECT("E"&15+32*($G$3-1)) -> 0 | AB3: =INDIRECT("E"&17+32*($G$3-1)) -> 0 | AC3: =INDIRECT("E"&19+32*($G$3-1)) -> 0 | AD3: =INDIRECT("E"&21+32*($G$3-1)) -> 0 | AE3: =INDIRECT("E"&23+32*($G$3-1)) -> 0 | AF3: =INDIRECT("E"&25+32*($G$3-1)) -> 0
B4: Columna tiempo | C4: G
B5: t correlativo max mensual | C5: =IF(C2<86400*(C11+1),(C11+1)*86400,C11*86400) -> 259200
B6: t residual diario | C6: =$C$2-QUOTIENT($C$2,86400)*86400 -> 0
B7: Absortividad solar | C7: 0.6
B8: t residual horario | C8: =$C$6-QUOTIENT($C$6,3600)*3600 -> 0 | I8: Rad Ventanas: Sol Incidente*FS*FAV*FAR [W]
E9: Mes | F9: Tiempo [hrs] | G9: Tiempo [s] | H9: T° exterior | I9: Difuso | J9: Directo | K9: Qgen Pers [W/m2] | L9: Qgen Ilum [W/m2] | M9: Qgen Equip [W/m2] | N9: TsolH | O9: TsolN | P9: TsolNE | Q9: TsolE | R9: TsolSE | S9: TsolS | T9: TsolSO | U9: TsolO | V9: TsolNO | W9: Clima [0, 1 o 2] | X9: N [RAH] | Y9: G total [W/m2]
B10: Fila inicial intervalo | C10: =TRUNC($C$6/3600,0)+10+32*(E11-1) -> 10 | E10: Enero | F10: 0 | G10: 0 | H10: 15.8483871 | I10: 0 | J10: 0 | K10: 3.153846154 | L10: 0 | M10: 0 | N10: 12.14250474 | O10: 15.8483871 | P10: 15.8483871 | Q10: 15.8483871 | R10: 15.8483871 | S10: 15.8483871 | T10: 15.8483871 | U10: 15.8483871 | V10: 15.8483871 | W10: 0 | X10: 0.6672581958 | Y10: 0
B11: dias por mes | C11: 3 | E11: 1 | F11: 1 | G11: 3600 | H11: 14.88387097 | I11: 0 | J11: 0 | K11: 3.153846154 | L11: 0 | M11: 0 | N11: 11.17798861 | O11: 14.88387097 | P11: 14.88387097 | Q11: 14.88387097 | R11: 14.88387097 | S11: 14.88387097 | T11: 14.88387097 | U11: 14.88387097 | V11: 14.88387097 | W11: 0 | X11: 0.6672581958 | Y11: 0
E12: Tmax Dia | F12: 2 | G12: 7200 | H12: 13.78064516 | I12: 0 | J12: 0 | K12: 3.153846154 | L12: 0 | M12: 0 | N12: 10.07476281 | O12: 13.78064516 | P12: 13.78064516 | Q12: 13.78064516 | R12: 13.78064516 | S12: 13.78064516 | T12: 13.78064516 | U12: 13.78064516 | V12: 13.78064516 | W12: 0 | X12: 0.6672581958 | Y12: 0
E13: 26.4788871 | F13: 3 | G13: 10800 | H13: 12.67419355 | I13: 0 | J13: 0 | K13: 3.153846154 | L13: 0 | M13: 0 | N13: 8.968311195 | O13: 12.67419355 | P13: 12.67419355 | Q13: 12.67419355 | R13: 12.67419355 | S13: 12.67419355 | T13: 12.67419355 | U13: 12.67419355 | V13: 12.67419355 | W13: 0 | X13: 0.6672581958 | Y13: 0
E14: Tmin Dia | F14: 4 | G14: 14400 | H14: 12.14193548 | I14: 0 | J14: 0 | K14: 3.153846154 | L14: 0 | M14: 0 | N14: 8.436053131 | O14: 12.14193548 | P14: 12.14193548 | Q14: 12.14193548 | R14: 12.14193548 | S14: 12.14193548 | T14: 12.14193548 | U14: 12.14193548 | V14: 12.14193548 | W14: 0 | X14: 0.6672581958 | Y14: 0
E15: 21.4788871 | F15: 5 | G15: 18000 | H15: 11.81935484 | I15: 120.6986765 | J15: 0 | K15: 3.153846154 | L15: 0 | M15: 0 | N15: 9.6181109 | O15: 12.34882143 | P15: 12.58248183 | Q15: 12.71805362 | R15: 12.56574352 | S15: 12.3251499 | T15: 12.56574352 | U15: 12.71805362 | V15: 12.58248183 | W15: 0 | X15: 0.6672581958 | Y15: 36.54121864
E16: Tmax Noche | F16: 6 | G16: 21600 | H16: 12.87096774 | I16: 402.085956 | J16: 0 | K16: 2.523076923 | L16: 0 | M16: 0 | N16: 17.24246258 | O16: 15.7133127 | P16: 16.96767595 | Q16: 17.69546839 | R16: 16.8778194 | S16: 15.58623635 | T16: 16.8778194 | U16: 17.69546839 | V16: 16.96767595 | W16: 0 | X16: 0.6672581958 | Y16: 196.1648746
E17: 26.4788871 | F17: 7 | G17: 25200 | H17: 15.17419355 | I17: 592.3942727 | J17: 0 | K17: 3.027692308 | L17: 0 | M17: 0 | N17: 26.29553026 | O17: 20.3917376 | P17: 22.69430665 | Q17: 24.03027718 | R17: 22.52936169 | S17: 20.15847019 | T17: 22.52936169 | U17: 24.03027718 | V17: 22.69430665 | W17: 0 | X17: 0.6672581958 | Y17: 360.0896057
E18: Tmin Noche | F18: 8 | G18: 28800 | H18: 17.8483871 | I18: 704.3130564 | J18: 0 | K18: 1.513846154 | L18: 0 | M18: 0 | N18: 35.97636517 | O18: 25.53149531 | P18: 28.92214942 | Q18: 30.88943635 | R18: 28.67925928 | S18: 25.18799678 | T18: 28.67925928 | U18: 30.88943635 | V18: 28.92214942 | W18: 0 | X18: 0.6672581958 | Y18: 530.2508961
E19: 19.4788871 | F19: 9 | G19: 32400 | H19: 20.7 | I19: 790.9855071 | J19: 822.7296745 | K19: 0.9461538462 | L19: 0 | M19: 0 | N19: 45.15793801 | O19: 30.61055522 | P19: 34.98421025 | Q19: 37.52184283 | R19: 34.67090266 | S19: 30.16747138 | T19: 34.67090266 | U19: 37.52184283 | V19: 34.98421025 | W19: 0 | X19: 3.667258196 | Y19: 683.9784946
E20: Tsuelo | F20: 10 | G20: 36000 | H20: 23.45806452 | I20: 959.7913695 | J20: 908.346383 | K20: 0.9461538462 | L20: 0 | M20: 0 | N20: 51.81005693 | O20: 34.73889695 | P20: 39.71727287 | Q20: 42.60576975 | R20: 39.36064598 | S20: 34.23455037 | T20: 39.36064598 | U20: 42.60576975 | V20: 39.71727287 | W20: 0 | X20: 3.667258196 | Y20: 778.5483871
E21: 19.9172043 | F21: 11 | G21: 39600 | H21: 25.39354839 | I21: 970.3272407 | J21: 1031.290032 | K21: 0.9461538462 | L21: 0 | M21: 0 | N21: 56.75518659 | O21: 37.73344385 | P21: 43.17919785 | Q21: 46.33887156 | R21: 42.78909025 | S21: 37.18174838 | T21: 42.78909025 | U21: 46.33887156 | V21: 43.17919785 | W21: 0 | X21: 0.6672581958 | Y21: 851.6397849
E22: Infil RAH | F22: 12 | G22: 43200 | H22: 26.87741935 | I22: 969.7308707 | J22: 954.70707 | K22: 0.9461538462 | L22: 0 | M22: 0 | N22: 56.43076112 | O22: 38.58099412 | P22: 43.74593165 | Q22: 46.7426732 | R22: 43.37594039 | S22: 38.05774746 | T22: 43.37594039 | U22: 46.7426732 | V22: 43.74593165 | W22: 0 | X22: 0.6672581958 | Y22: 807.7240143
E23: 0.1349533427 | F23: 13 | G23: 46800 | H23: 28.16451613 | I23: 991.8959584 | J23: 877.1674095 | K23: 0.9461538462 | L23: 0 | M23: 0 | N23: 56.14053342 | O23: 39.31304683 | P23: 44.2330363 | Q23: 47.08765686 | R23: 43.88059194 | S23: 38.81461523 | T23: 43.88059194 | U23: 47.08765686 | V23: 44.2330363 | W23: 0 | X23: 0.6672581958 | Y23: 769.4175627
E24: Cat Mes | F24: 14 | G24: 50400 | H24: 28.86129032 | I24: 841.4119099 | J24: 848.6546459 | K24: 0.9461538462 | L24: 0 | M24: 0 | N24: 54.49069155 | O24: 39.18407126 | P24: 43.73964677 | Q24: 46.3828312 | R24: 43.41330727 | S24: 38.72255751 | T24: 43.41330727 | U24: 46.3828312 | V24: 43.73964677 | W24: 0 | X24: 0.6672581958 | Y24: 712.4283154
E25: v | F25: 15 | G25: 54000 | H25: 28.52580645 | I25: 747.4504917 | J25: 589.9224899 | K25: 0.9461538462 | L25: 0 | M25: 0 | N25: 47.02201139 | O25: 36.33848986 | P25: 39.78632717 | Q25: 41.78679228 | R25: 39.53934071 | S25: 35.98919825 | T25: 39.53934071 | U25: 41.78679228 | V25: 39.78632717 | W25: 0 | X25: 0.6672581958 | Y25: 539.1935484
F26: 16 | G26: 57600 | H26: 27.13548387 | I26: 575.0664089 | J26: 0 | K26: 1.135384615 | L26: 0 | M26: 0 | N26: 39.19804976 | O26: 32.68423667 | P26: 35.13297239 | Q26: 36.55375009 | R26: 34.95755675 | S26: 32.43616149 | T26: 34.95755675 | U26: 36.55375009 | V26: 35.13297239 | W26: 0 | X26: 3.667258196 | Y26: 382.9480287
F27: 17 | G27: 61200 | H27: 25.28387097 | I27: 389.0320777 | J27: 0 | K27: 1.892307692 | L27: 0 | M27: 0 | N27: 29.41074215 | O27: 28.0401354 | P27: 29.25651022 | Q27: 29.96226144 | R27: 29.16937498 | S27: 27.91690757 | T27: 29.16937498 | U27: 29.96226144 | V27: 29.25651022 | W27: 0 | X27: 3.667258196 | Y27: 190.2240143
F28: 18 | G28: 64800 | H28: 22.9 | I28: 106.153873 | J28: 0 | K28: 1.892307692 | L28: 0 | M28: 0 | N28: 20.50320472 | O28: 23.36065412 | P28: 23.56394668 | Q28: 23.68189879 | R28: 23.54938378 | S28: 23.34005906 | T28: 23.54938378 | U28: 23.68189879 | V28: 23.56394668 | W28: 0 | X28: 0.6672581958 | Y28: 31.7921147
F29: 19 | G29: 68400 | H29: 20.94193548 | I29: 0 | J29: 0 | K29: 2.838461538 | L29: 1.5 | M29: 0 | N29: 17.23605313 | O29: 20.94193548 | P29: 20.94193548 | Q29: 20.94193548 | R29: 20.94193548 | S29: 20.94193548 | T29: 20.94193548 | U29: 20.94193548 | V29: 20.94193548 | W29: 0 | X29: 0.6672581958 | Y29: 0
F30: 20 | G30: 72000 | H30: 19.57419355 | I30: 0 | J30: 0 | K30: 3.406153846 | L30: 1.5 | M30: 0 | N30: 15.8683112 | O30: 19.57419355 | P30: 19.57419355 | Q30: 19.57419355 | R30: 19.57419355 | S30: 19.57419355 | T30: 19.57419355 | U30: 19.57419355 | V30: 19.57419355 | W30: 0 | X30: 0.6672581958 | Y30: 0
F31: 21 | G31: 75600 | H31: 18.77419355 | I31: 0 | J31: 0 | K31: 3.784615385 | L31: 1.5 | M31: 0 | N31: 15.0683112 | O31: 18.77419355 | P31: 18.77419355 | Q31: 18.77419355 | R31: 18.77419355 | S31: 18.77419355 | T31: 18.77419355 | U31: 18.77419355 | V31: 18.77419355 | W31: 0 | X31: 3.667258196 | Y31: 0
F32: 22 | G32: 79200 | H32: 17.73870968 | I32: 0 | J32: 0 | K32: 3.153846154 | L32: 0 | M32: 0 | N32: 14.03282732 | O32: 17.73870968 | P32: 17.73870968 | Q32: 17.73870968 | R32: 17.73870968 | S32: 17.73870968 | T32: 17.73870968 | U32: 17.73870968 | V32: 17.73870968 | W32: 0 | X32: 3.667258196 | Y32: 0
F33: 23 | G33: 82800 | H33: 16.64193548 | I33: 0 | J33: 0 | K33: 3.153846154 | L33: 0 | M33: 0 | N33: 12.93605313 | O33: 16.64193548 | P33: 16.64193548 | Q33: 16.64193548 | R33: 16.64193548 | S33: 16.64193548 | T33: 16.64193548 | U33: 16.64193548 | V33: 16.64193548 | W33: 0 | X33: 0.6672581958 | Y33: 0
F34: 24 | G34: 86400 | H34: 15.8483871 | I34: 0 | J34: 0 | K34: 3.153846154 | L34: 0 | M34: 0 | N34: 15.8483871 | O34: 15.8483871 | P34: 15.8483871 | Q34: 15.8483871 | R34: 15.8483871 | S34: 15.8483871 | T34: 15.8483871 | U34: 15.8483871 | V34: 15.8483871 | W34: 0 | X34: 0.6672581958 | Y34: 0
G35: Valor Variable | H35: =+INDIRECT(H36&$C10)+((INDIRECT(H36&$C10+1)-INDIRECT(H36&$C10))/(INDIRECT($C$4&$C10+1)-INDIRECT($C$4&$C10)))*($C$6-INDIRECT($C$4&$C10)) -> 15.8483871 | I35: =+INDIRECT(I36&$C10)+((INDIRECT(I36&$C10+1)-INDIRECT(I36&$C10))/(INDIRECT($C$4&$C10+1)-INDIRECT($C$4&$C10)))*($C$6-INDIRECT($C$4&$C10)) -> 0 | J35: 0 | K35: 3.153846154 | L35: 0 | M35: =+INDIRECT(M36&$C10)+((INDIRECT(M36&$C10+1)-INDIRECT(M36&$C10))/(INDIRECT($C$4&$C10+1)-INDIRECT($C$4&$C10)))*($C$6-INDIRECT($C$4&$C10)) -> 0 | N35: =+INDIRECT(N36&$C10)+((INDIRECT(N36&$C10+1)-INDIRECT(N36&$C10))/(INDIRECT($C$4&$C10+1)-INDIRECT($C$4&$C10)))*($C$6-INDIRECT($C$4&$C10)) -> 12.14250474 | O35: 15.8483871 | P35: 15.8483871 | Q35: 15.8483871 | R35: 15.8483871 | S35: 15.8483871 | T35: 15.8483871 | U35: 15.8483871 | V35: 15.8483871 | W35: =+INDIRECT(W36&$C10) -> 0 | X35: 0.6672581958 | Y35: 0
H36: =MID(ADDRESS(ROW(),COLUMN()),2,1) -> H | I36: =MID(ADDRESS(ROW(),COLUMN()),2,1) -> I | J36: J | K36: K | L36: L | M36: M | N36: N | O36: O | P36: P | Q36: Q | R36: R | S36: S | T36: T | U36: U | V36: V | W36: W | X36: X | Y36: Y
G37: Aext | H37: =+MAX(H10:H33)-MIN(H10:H33) -> 17.04193548 | I37: °C
G38: Text_media | H38: =+AVERAGE(H10:H33) -> 19.9172043 | I38: °C
G39: Sol Peak | H39: =+MAX(I10:I34) -> 991.8959584
I40: Rad Ventanas: Sol Incidente*FS*FAV*FAR [W]
E41: Mes | F41: Tiempo [hrs] | G41: Tiempo [s] | H41: T° exterior | I41: Difuso | J41: Directo | K41: Qgen Pers [W/m2] | L41: Qgen Ilum [W/m2] | M41: Qgen Equip [W/m2] | N41: TsolH | O41: TsolN | P41: TsolNE | Q41: TsolE | R41: TsolSE | S41: TsolS | T41: TsolSO | U41: TsolO | V41: TsolNO | W41: Clima [0, 1 o 2] | X41: N [RAH] | Y41: G total [W/m2]
B42: Fila inicial intervalo | C42: =TRUNC($C$6/3600,0)+10+32*(E43-1) -> 42 | E42: Febrero | F42: 0 | G42: 0 | H42: 14.90125446 | I42: 0 | J42: 0 | K42: 3.153846154 | L42: 0 | M42: 0 | N42: 11.19537211 | O42: 14.90125446 | P42: 14.90125446 | Q42: 14.90125446 | R42: 14.90125446 | S42: 14.90125446 | T42: 14.90125446 | U42: 14.90125446 | V42: 14.90125446 | W42: 0 | X42: 0.6672581958 | Y42: 0
E43: 2 | F43: 1 | G43: 3600 | H43: 14.00746875 | I43: 0 | J43: 0 | K43: 3.153846154 | L43: 0 | M43: 0 | N43: 10.3015864 | O43: 14.00746875 | P43: 14.00746875 | Q43: 14.00746875 | R43: 14.00746875 | S43: 14.00746875 | T43: 14.00746875 | U43: 14.00746875 | V43: 14.00746875 | W43: 0 | X43: 0.6672581958 | Y43: 0
E44: Tmax Dia | F44: 2 | G44: 7200 | H44: 13.08596875 | I44: 0 | J44: 0 | K44: 3.153846154 | L44: 0 | M44: 0 | N44: 9.380086397 | O44: 13.08596875 | P44: 13.08596875 | Q44: 13.08596875 | R44: 13.08596875 | S44: 13.08596875 | T44: 13.08596875 | U44: 13.08596875 | V44: 13.08596875 | W44: 0 | X44: 0.6672581958 | Y44: 0
E45: 26.2996808 | F45: 3 | G45: 10800 | H45: 12.42429018 | I45: 0 | J45: 0 | K45: 3.153846154 | L45: 0 | M45: 0 | N45: 8.718407826 | O45: 12.42429018 | P45: 12.42429018 | Q45: 12.42429018 | R45: 12.42429018 | S45: 12.42429018 | T45: 12.42429018 | U45: 12.42429018 | V45: 12.42429018 | W45: 0 | X45: 0.6672581958 | Y45: 0
E46: Tmin Dia | F46: 4 | G46: 14400 | H46: 11.88732589 | I46: 0 | J46: 0 | K46: 3.153846154 | L46: 0 | M46: 0 | N46: 8.18144354 | O46: 11.88732589 | P46: 11.88732589 | Q46: 11.88732589 | R46: 11.88732589 | S46: 11.88732589 | T46: 11.88732589 | U46: 11.88732589 | V46: 11.88732589 | W46: 0 | X46: 0.6672581958 | Y46: 0
E47: 21.2996808 | F47: 5 | G47: 18000 | H47: 11.65175446 | I47: 43.68765768 | J47: 0 | K47: 3.153846154 | L47: 0 | M47: 0 | N47: 8.458944007 | O47: 11.89599511 | P47: 11.9551347 | Q47: 11.96504465 | R47: 11.8861193 | S47: 11.79839259 | T47: 11.8861193 | U47: 11.96504465 | V47: 11.9551347 | W47: 0 | X47: 0.6672581958 | Y47: 12.46031746
E48: Tmax Noche | F48: 6 | G48: 21600 | H48: 12.37925446 | I48: 330.3535223 | J48: 0 | K48: 2.523076923 | L48: 0 | M48: 0 | N48: 14.78244074 | O48: 15.28739047 | P48: 15.99155657 | Q48: 16.10955278 | R48: 15.16980076 | S48: 14.12525226 | T48: 15.16980076 | U48: 16.10955278 | V48: 15.99155657 | W48: 0 | X48: 0.6672581958 | Y48: 148.3630952
E49: 26.2996808 | F49: 7 | G49: 25200 | H49: 14.29500446 | I49: 503.7836193 | J49: 0 | K49: 3.027692308 | L49: 0 | M49: 0 | N49: 23.62588682 | O49: 20.50097253 | P49: 22.00366441 | Q49: 22.25546856 | R49: 20.25003586 | S49: 18.02096726 | T49: 20.25003586 | U49: 22.25546856 | V49: 22.00366441 | W49: 0 | X49: 0.6672581958 | Y49: 316.6071429
E50: Tmin Noche | F50: 8 | G50: 28800 | H50: 16.61607589 | I50: 709.6034743 | J50: 557.4756255 | K50: 1.513846154 | L50: 0 | M50: 0 | N50: 32.06174583 | O50: 25.73290239 | P50: 27.94041957 | Q50: 28.3103304 | R50: 25.36426594 | S50: 22.08967098 | T50: 25.36426594 | U50: 28.3103304 | V50: 27.94041957 | W50: 0 | X50: 0.6672581958 | Y50: 465.109127
E51: 19.2996808 | F51: 9 | G51: 32400 | H51: 19.37018304 | I51: 807.0295186 | J51: 771.1294039 | K51: 0.9461538462 | L51: 0 | M51: 0 | N51: 40.2120948 | O51: 31.05581438 | P51: 33.88533319 | Q51: 34.35947203 | R51: 30.583309 | S51: 26.38604698 | T51: 30.583309 | U51: 34.35947203 | V51: 33.88533319 | W51: 0 | X51: 0.6672581958 | Y51: 596.1607143
E52: Tsuelo | F52: 10 | G52: 36000 | H52: 22.09657589 | I52: 847.6726124 | J52: 941.1576478 | K52: 0.9461538462 | L52: 0 | M52: 0 | N52: 46.82206609 | O52: 35.63093001 | P52: 38.90809222 | Q52: 39.45724209 | R52: 35.08367201 | S52: 30.22238307 | T52: 35.08367201 | U52: 39.45724209 | V52: 38.90809222 | W52: 0 | X52: 3.667258196 | Y52: 690.4761905
E53: 19.21443452 | F53: 11 | G53: 39600 | H53: 24.71557589 | I53: 965.2734777 | J53: 1012.031428 | K53: 0.9461538462 | L53: 0 | M53: 0 | N53: 52.18085367 | O53: 39.55416726 | P53: 43.14713303 | Q53: 43.74920169 | R53: 38.95417278 | S53: 33.62442601 | T53: 38.95417278 | U53: 43.74920169 | V53: 43.14713303 | W53: 0 | X53: 3.667258196 | Y53: 757.0138889
E54: Infil RAH | F54: 12 | G54: 43200 | H54: 26.32993304 | I54: 970.3355237 | J54: 1004.0351 | K54: 0.9461538462 | L54: 0 | M54: 0 | N54: 53.69022715 | O54: 41.11854842 | P54: 44.69941316 | Q54: 45.29945408 | R54: 40.5205747 | S54: 35.20877838 | T54: 40.5205747 | U54: 45.29945408 | V54: 44.69941316 | W54: 0 | X54: 0.6672581958 | Y54: 754.4642857
E55: 0.1349533427 | F55: 13 | G55: 46800 | H55: 27.32071875 | I55: 922.4294943 | J55: 944.639593 | K55: 0.9461538462 | L55: 0 | M55: 0 | N55: 52.94898672 | O55: 41.2848275 | P55: 44.66604903 | Q55: 45.23263599 | R55: 40.72019249 | S55: 35.70454366 | T55: 40.72019249 | U55: 45.23263599 | V55: 44.66604903 | W55: 0 | X55: 0.6672581958 | Y55: 712.4007937
E56: Cat Mes | F56: 14 | G56: 50400 | H56: 27.79532589 | I56: 870.1950489 | J56: 745.1767657 | K56: 0.9461538462 | L56: 0 | M56: 0 | N56: 48.81697622 | O56: 39.56651925 | P56: 42.41675575 | Q56: 42.89436622 | R56: 39.09055419 | S56: 34.86255989 | T56: 39.09055419 | U56: 42.89436622 | V56: 42.41675575 | W56: 0 | X56: 0.6672581958 | Y56: 600.5257937
E57: v | F57: 15 | G57: 54000 | H57: 27.42118304 | I57: 738.9853499 | J57: 554.3985576 | K57: 0.9461538462 | L57: 0 | M57: 0 | N57: 43.13196735 | O57: 36.66421349 | P57: 38.90228928 | Q57: 39.27732076 | R57: 36.29047402 | S57: 32.97054894 | T57: 36.29047402 | U57: 39.27732076 | V57: 38.90228928 | W57: 0 | X57: 0.6672581958 | Y57: 471.547619
F58: 16 | G58: 57600 | H58: 26.07704018 | I58: 459.3256503 | J58: 416.0924543 | K58: 1.135384615 | L58: 0 | M58: 0 | N58: 35.88259573 | O58: 32.50896973 | P58: 34.06637515 | Q58: 34.32734758 | R58: 32.24889637 | S58: 29.93866659 | T58: 32.24889637 | U58: 34.32734758 | V58: 34.06637515 | W58: 0 | X58: 3.667258196 | Y58: 328.1349206
F59: 17 | G59: 61200 | H59: 24.32757589 | I59: 325.0347059 | J59: 0 | K59: 1.892307692 | L59: 0 | M59: 0 | N59: 26.49832753 | O59: 27.12506466 | P59: 27.80243902 | Q59: 27.91594578 | R59: 27.01194895 | S59: 26.00714288 | T59: 27.01194895 | U59: 27.91594578 | V59: 27.80243902 | W59: 0 | X59: 3.667258196 | Y59: 142.718254
F60: 18 | G60: 64800 | H60: 22.43954018 | I60: 37.04830752 | J60: 0 | K60: 1.892307692 | L60: 1.5 | M60: 0 | N60: 19.16380488 | O60: 22.64430562 | P60: 22.69388683 | Q60: 22.70219509 | R60: 22.63602599 | S60: 22.56247804 | T60: 22.63602599 | U60: 22.70219509 | V60: 22.69388683 | W60: 0 | X60: 3.667258196 | Y60: 10.44642857
F61: 19 | G61: 68400 | H61: 20.69700446 | I61: 0 | J61: 0 | K61: 2.838461538 | L61: 1.5 | M61: 0 | N61: 16.99112211 | O61: 20.69700446 | P61: 20.69700446 | Q61: 20.69700446 | R61: 20.69700446 | S61: 20.69700446 | T61: 20.69700446 | U61: 20.69700446 | V61: 20.69700446 | W61: 0 | X61: 0.6672581958 | Y61: 0
F62: 20 | G62: 72000 | H62: 19.39443304 | I62: 0 | J62: 0 | K62: 3.406153846 | L62: 1.5 | M62: 0 | N62: 15.68855068 | O62: 19.39443304 | P62: 19.39443304 | Q62: 19.39443304 | R62: 19.39443304 | S62: 19.39443304 | T62: 19.39443304 | U62: 19.39443304 | V62: 19.39443304 | W62: 0 | X62: 0.6672581958 | Y62: 0
F63: 21 | G63: 75600 | H63: 18.62536161 | I63: 0 | J63: 0 | K63: 3.784615385 | L63: 1.5 | M63: 0 | N63: 14.91947925 | O63: 18.62536161 | P63: 18.62536161 | Q63: 18.62536161 | R63: 18.62536161 | S63: 18.62536161 | T63: 18.62536161 | U63: 18.62536161 | V63: 18.62536161 | W63: 0 | X63: 0.6672581958 | Y63: 0
F64: 22 | G64: 79200 | H64: 17.29854018 | I64: 0 | J64: 0 | K64: 3.153846154 | L64: 0 | M64: 0 | N64: 13.59265783 | O64: 17.29854018 | P64: 17.29854018 | Q64: 17.29854018 | R64: 17.29854018 | S64: 17.29854018 | T64: 17.29854018 | U64: 17.29854018 | V64: 17.29854018 | W64: 0 | X64: 3.667258196 | Y64: 0
F65: 23 | G65: 82800 | H65: 15.98904018 | I65: 0 | J65: 0 | K65: 3.153846154 | L65: 0 | M65: 0 | N65: 12.28315783 | O65: 15.98904018 | P65: 15.98904018 | Q65: 15.98904018 | R65: 15.98904018 | S65: 15.98904018 | T65: 15.98904018 | U65: 15.98904018 | V65: 15.98904018 | W65: 0 | X65: 3.667258196 | Y65: 0
F66: 24 | G66: 86400 | H66: 14.90125446 | I66: 0 | J66: 0 | K66: 3.153846154 | L66: 0 | M66: 0 | N66: 11.19537211 | O66: 14.90125446 | P66: 14.90125446 | Q66: 14.90125446 | R66: 14.90125446 | S66: 14.90125446 | T66: 14.90125446 | U66: 14.90125446 | V66: 14.90125446 | W66: 0 | X66: 0.6672581958 | Y66: 0
G67: Valor Variable | H67: =+INDIRECT(H68&$C42)+((INDIRECT(H68&$C42+1)-INDIRECT(H68&$C42))/(INDIRECT($C$4&$C42+1)-INDIRECT($C$4&$C42)))*($C$6-INDIRECT($C$4&$C42)) -> 14.90125446 | I67: =+INDIRECT(I68&$C42)+((INDIRECT(I68&$C42+1)-INDIRECT(I68&$C42))/(INDIRECT($C$4&$C42+1)-INDIRECT($C$4&$C42)))*($C$6-INDIRECT($C$4&$C42)) -> 0 | J67: 0 | K67: 3.153846154 | L67: 0 | M67: 0 | N67: 11.19537211 | O67: 14.90125446 | P67: 14.90125446 | Q67: 14.90125446 | R67: 14.90125446 | S67: 14.90125446 | T67: 14.90125446 | U67: 14.90125446 | V67: 14.90125446 | W67: =+INDIRECT(W68&$C42) -> 0 | X67: 0.6672581958 | Y67: 0
H68: =MID(ADDRESS(ROW(),COLUMN()),2,1) -> H | I68: =MID(ADDRESS(ROW(),COLUMN()),2,1) -> I | J68: J | K68: K | L68: L | M68: M | N68: N | O68: O | P68: P | Q68: Q | R68: R | S68: S | T68: T | U68: U | V68: V | W68: W | X68: X | Y68: Y
I72: Rad Ventanas: Sol Incidente*FS*FAV*FAR [W]
E73: Mes | F73: Tiempo [hrs] | G73: Tiempo [s] | H73: T° exterior | I73: Difuso | J73: Directo | K73: Qgen Pers [W/m2] | L73: Qgen Ilum [W/m2] | M73: Qgen Equip [W/m2] | N73: TsolH | O73: TsolN | P73: TsolNE | Q73: TsolE | R73: TsolSE | S73: TsolS | T73: TsolSO | U73: TsolO | V73: TsolNO | W73: Clima [0, 1 o 2] | X73: N [RAH] | Y73: G total [W/m2]
B74: Fila inicial intervalo | C74: =TRUNC($C$6/3600,0)+10+32*(E75-1) -> 74 | E74: Marzo | F74: 0 | G74: 0 | H74: 12.9483871 | I74: 0 | J74: 0 | K74: 3.153846154 | L74: 0 | M74: 0 | N74: 9.242504744 | O74: 12.9483871 | P74: 12.9483871 | Q74: 12.9483871 | R74: 12.9483871 | S74: 12.9483871 | T74: 12.9483871 | U74: 12.9483871 | V74: 12.9483871 | W74: 0 | X74: 0.6672581958 | Y74: 0
E75: 3 | F75: 1 | G75: 3600 | H75: 12.13870968 | I75: 0 | J75: 0 | K75: 3.153846154 | L75: 0 | M75: 0 | N75: 8.432827324 | O75: 12.13870968 | P75: 12.13870968 | Q75: 12.13870968 | R75: 12.13870968 | S75: 12.13870968 | T75: 12.13870968 | U75: 12.13870968 | V75: 12.13870968 | W75: 0 | X75: 0.6672581958 | Y75: 0
E76: Tmax Dia | F76: 2 | G76: 7200 | H76: 10.99354839 | I76: 0 | J76: 0 | K76: 3.153846154 | L76: 0 | M76: 0 | N76: 7.287666034 | O76: 10.99354839 | P76: 10.99354839 | Q76: 10.99354839 | R76: 10.99354839 | S76: 10.99354839 | T76: 10.99354839 | U76: 10.99354839 | V76: 10.99354839 | W76: 0 | X76: 0.6672581958 | Y76: 0
E77: 25.78963306 | F77: 3 | G77: 10800 | H77: 10.20967742 | I77: 0 | J77: 0 | K77: 3.153846154 | L77: 0 | M77: 0 | N77: 6.503795066 | O77: 10.20967742 | P77: 10.20967742 | Q77: 10.20967742 | R77: 10.20967742 | S77: 10.20967742 | T77: 10.20967742 | U77: 10.20967742 | V77: 10.20967742 | W77: 0 | X77: 0.6672581958 | Y77: 0
E78: Tmin Dia | F78: 4 | G78: 14400 | H78: 9.516129032 | I78: 0 | J78: 0 | K78: 3.153846154 | L78: 0 | M78: 0 | N78: 5.810246679 | O78: 9.516129032 | P78: 9.516129032 | Q78: 9.516129032 | R78: 9.516129032 | S78: 9.516129032 | T78: 9.516129032 | U78: 9.516129032 | V78: 9.516129032 | W78: 0 | X78: 0.6672581958 | Y78: 0
E79: 20.78963306 | F79: 5 | G79: 18000 | H79: 9.641935484 | I79: 2.021031915 | J79: 0 | K79: 3.153846154 | L79: 0 | M79: 0 | N79: 5.958928948 | O79: 9.6578476 | P79: 9.658267615 | Q79: 9.656296124 | R79: 9.651502906 | S79: 9.648280856 | T79: 9.651502906 | U79: 9.656296124 | V79: 9.658267615 | W79: 0 | X79: 0.6672581958 | Y79: 0.5555555556
E80: Tmax Noche | F80: 6 | G80: 21600 | H80: 10.51612903 | I80: 164.8631936 | J80: 0 | K80: 2.523076923 | L80: 0 | M80: 0 | N80: 9.071262914 | O80: 12.08886205 | P80: 12.13037583 | Q80: 11.93551614 | R80: 11.46176064 | S80: 11.14329739 | T80: 11.46176064 | U80: 11.93551614 | V80: 12.13037583 | W80: 0 | X80: 0.6672581958 | Y80: 54.91039427
E81: 25.78963306 | F81: 7 | G81: 25200 | H81: 12.51935484 | I81: 424.019122 | J81: 259.6517575 | K81: 3.027692308 | L81: 0 | M81: 0 | N81: 17.87487877 | O81: 18.82234931 | P81: 18.98872282 | Q81: 18.20778958 | R81: 16.30913401 | S81: 15.03283847 | T81: 16.30913401 | U81: 18.20778958 | V81: 18.98872282 | W81: 0 | X81: 0.6672581958 | Y81: 220.062724
E82: Tmin Noche | F82: 8 | G82: 28800 | H82: 15.3516129 | I82: 599.9814253 | J82: 514.7114254 | K82: 1.513846154 | L82: 0 | M82: 0 | N82: 26.92935906 | O82: 25.98270294 | P82: 26.26332063 | Q82: 24.94614168 | R82: 21.74373077 | S82: 19.59103765 | T82: 21.74373077 | U82: 24.94614168 | V82: 26.26332063 | W82: 0 | X82: 0.6672581958 | Y82: 371.1738351
E83: 18.78963306 | F83: 9 | G83: 32400 | H83: 18.2483871 | I83: 716.1079312 | J83: 725.7267726 | K83: 0.9461538462 | L83: 0 | M83: 0 | N83: 34.6459203 | O83: 32.23205732 | P83: 32.60116954 | Q83: 30.86861004 | R83: 26.65629898 | S83: 23.82474074 | T83: 26.65629898 | U83: 30.86861004 | V83: 32.60116954 | W83: 0 | X83: 0.6672581958 | Y83: 488.2258065
E84: Tsuelo | F84: 10 | G84: 36000 | H84: 21.39677419 | I84: 819.1805589 | J84: 984.6058227 | K84: 0.9461538462 | L84: 0 | M84: 0 | N84: 43.26863799 | O84: 39.18831644 | P84: 39.65794105 | Q84: 37.45359091 | R84: 32.0942318 | S84: 28.49161624 | T84: 32.0942318 | U84: 37.45359091 | V84: 39.65794105 | W84: 0 | X84: 3.667258196 | Y84: 621.1738351
E85: 17.21424731 | F85: 11 | G85: 39600 | H85: 22.93548387 | I85: 903.9976359 | J85: 973.7437647 | K85: 0.9461538462 | L85: 0 | M85: 0 | N85: 45.57036686 | O85: 41.25777218 | P85: 41.74140634 | Q85: 39.47129741 | R85: 33.95206129 | S85: 30.24197477 | T85: 33.95206129 | U85: 39.47129741 | V85: 41.74140634 | W85: 0 | X85: 3.667258196 | Y85: 639.7043011
E86: Infil RAH | F86: 12 | G86: 43200 | H86: 24.27419355 | I86: 816.1655768 | J86: 948.7522002 | K86: 0.9461538462 | L86: 0 | M86: 0 | N86: 45.51328273 | O86: 41.62558613 | P86: 42.08359258 | Q86: 39.93377643 | R86: 34.70700393 | S86: 31.19351442 | T86: 34.70700393 | U86: 39.93377643 | V86: 42.08359258 | W86: 0 | X86: 3.667258196 | Y86: 605.8064516
E87: 0.1349533427 | F87: 13 | G87: 46800 | H87: 25.43548387 | I87: 904.693401 | J87: 784.2979921 | K87: 0.9461538462 | L87: 0 | M87: 0 | N87: 44.91202825 | O87: 41.56087358 | P87: 41.98651852 | Q87: 39.98860262 | R87: 35.13113984 | S87: 31.86590408 | T87: 35.13113984 | U87: 39.98860262 | V87: 41.98651852 | W87: 0 | X87: 3.667258196 | Y87: 563.0017921
E88: Cat Mes | F88: 14 | G88: 50400 | H88: 25.98064516 | I88: 816.2981035 | J88: 676.1631134 | K88: 0.9461538462 | L88: 0 | M88: 0 | N88: 42.66560194 | O88: 40.16424342 | P88: 40.53863293 | Q88: 38.7813026 | R88: 34.50876707 | S88: 31.63672533 | T88: 34.50876707 | U88: 38.7813026 | V88: 40.53863293 | W88: 0 | X88: 0.6672581958 | Y88: 495.2060932
E89: v | F89: 15 | G89: 54000 | H89: 25.96129032 | I89: 618.8333459 | J89: 450.0468563 | K89: 0.9461538462 | L89: 0 | M89: 0 | N89: 36.66827957 | O89: 35.98669336 | P89: 36.25132337 | Q89: 35.0091883 | R89: 31.98922891 | S89: 29.95918157 | T89: 31.98922891 | U89: 35.0091883 | V89: 36.25132337 | W89: 0 | X89: 0.6672581958 | Y89: 350.0268817
F90: 16 | G90: 57600 | H90: 24.69354839 | I90: 449.6299035 | J90: 178.6499466 | K90: 1.135384615 | L90: 0 | M90: 0 | N90: 28.98055028 | O90: 30.25329306 | P90: 30.40004778 | Q90: 29.71120227 | R90: 28.03643638 | S90: 26.91064175 | T90: 28.03643638 | U90: 29.71120227 | V90: 30.40004778 | W90: 0 | X90: 3.667258196 | Y90: 194.1129032
F91: 17 | G91: 61200 | H91: 22.76129032 | I91: 152.3725537 | J91: 12.25293133 | K91: 1.892307692 | L91: 0 | M91: 0 | N91: 20.9570525 | O91: 24.08404913 | P91: 24.1189646 | Q91: 23.95507642 | R91: 23.55662083 | S91: 23.28877494 | T91: 23.55662083 | U91: 23.95507642 | V91: 24.1189646 | W91: 0 | X91: 3.667258196 | Y91: 46.1827957
F92: 18 | G92: 64800 | H92: 20.45483871 | I92: 2.385480293 | J92: 0 | K92: 1.892307692 | L92: 1.5 | M92: 0 | N92: 16.77662872 | O92: 20.47408724 | P92: 20.47459532 | Q92: 20.47221045 | R92: 20.4664122 | S92: 20.46251456 | T92: 20.4664122 | U92: 20.47221045 | V92: 20.47459532 | W92: 0 | X92: 0.6672581958 | Y92: 0.6720430108
F93: 19 | G93: 68400 | H93: 18.31935484 | I93: 0 | J93: 0 | K93: 2.838461538 | L93: 1.5 | M93: 0 | N93: 14.61347249 | O93: 18.31935484 | P93: 18.31935484 | Q93: 18.31935484 | R93: 18.31935484 | S93: 18.31935484 | T93: 18.31935484 | U93: 18.31935484 | V93: 18.31935484 | W93: 0 | X93: 0.6672581958 | Y93: 0
F94: 20 | G94: 72000 | H94: 16.38387097 | I94: 0 | J94: 0 | K94: 3.406153846 | L94: 1.5 | M94: 0 | N94: 12.67798861 | O94: 16.38387097 | P94: 16.38387097 | Q94: 16.38387097 | R94: 16.38387097 | S94: 16.38387097 | T94: 16.38387097 | U94: 16.38387097 | V94: 16.38387097 | W94: 0 | X94: 0.6672581958 | Y94: 0
F95: 21 | G95: 75600 | H95: 15.06451613 | I95: 0 | J95: 0 | K95: 3.784615385 | L95: 1.5 | M95: 0 | N95: 11.35863378 | O95: 15.06451613 | P95: 15.06451613 | Q95: 15.06451613 | R95: 15.06451613 | S95: 15.06451613 | T95: 15.06451613 | U95: 15.06451613 | V95: 15.06451613 | W95: 0 | X95: 0.6672581958 | Y95: 0
F96: 22 | G96: 79200 | H96: 14.13225806 | I96: 0 | J96: 0 | K96: 3.153846154 | L96: 0 | M96: 0 | N96: 10.42637571 | O96: 14.13225806 | P96: 14.13225806 | Q96: 14.13225806 | R96: 14.13225806 | S96: 14.13225806 | T96: 14.13225806 | U96: 14.13225806 | V96: 14.13225806 | W96: 0 | X96: 0.6672581958 | Y96: 0
F97: 23 | G97: 82800 | H97: 13.26451613 | I97: 0 | J97: 0 | K97: 3.153846154 | L97: 0 | M97: 0 | N97: 9.558633776 | O97: 13.26451613 | P97: 13.26451613 | Q97: 13.26451613 | R97: 13.26451613 | S97: 13.26451613 | T97: 13.26451613 | U97: 13.26451613 | V97: 13.26451613 | W97: 0 | X97: 0.6672581958 | Y97: 0
F98: 24 | G98: 86400 | H98: 12.9483871 | I98: 0 | J98: 0 | K98: 3.153846154 | L98: 0 | M98: 0 | N98: 9.242504744 | O98: 12.9483871 | P98: 12.9483871 | Q98: 12.9483871 | R98: 12.9483871 | S98: 12.9483871 | T98: 12.9483871 | U98: 12.9483871 | V98: 12.9483871 | W98: 0 | X98: 0.6672581958 | Y98: 0
G99: Valor Variable | H99: =+INDIRECT(H100&$C74)+((INDIRECT(H100&$C74+1)-INDIRECT(H100&$C74))/(INDIRECT($C$4&$C74+1)-INDIRECT($C$4&$C74)))*($C$6-INDIRECT($C$4&$C74)) -> 12.9483871 | I99: =+INDIRECT(I100&$C74)+((INDIRECT(I100&$C74+1)-INDIRECT(I100&$C74))/(INDIRECT($C$4&$C74+1)-INDIRECT($C$4&$C74)))*($C$6-INDIRECT($C$4&$C74)) -> 0 | J99: 0 | K99: 3.153846154 | L99: 0 | M99: 0 | N99: 9.242504744 | O99: 12.9483871 | P99: 12.9483871 | Q99: 12.9483871 | R99: 12.9483871 | S99: 12.9483871 | T99: 12.9483871 | U99: 12.9483871 | V99: 12.9483871 | W99: =+INDIRECT(W100&$C74) -> 0 | X99: 0.6672581958 | Y99: 0
H100: =MID(ADDRESS(ROW(),COLUMN()),2,1) -> H | I100: =MID(ADDRESS(ROW(),COLUMN()),2,1) -> I | J100: J | K100: K | L100: L | M100: M | N100: N | O100: O | P100: P | Q100: Q | R100: R | S100: S | T100: T | U100: U | V100: V | W100: W | X100: X | Y100: Y
I104: Rad Ventanas: Sol Incidente*FS*FAV*FAR [W]
E105: Mes | F105: Tiempo [hrs] | G105: Tiempo [s] | H105: T° exterior | I105: Difuso | J105: Directo | K105: Qgen Pers [W/m2] | L105: Qgen Ilum [W/m2] | M105: Qgen Equip [W/m2] | N105: TsolH | O105: TsolN | P105: TsolNE | Q105: TsolE | R105: TsolSE | S105: TsolS | T105: TsolSO | U105: TsolO | V105: TsolNO | W105: Clima [0, 1 o 2] | X105: N [RAH] | Y105: G total [W/m2]
B106: Fila inicial intervalo | C106: =TRUNC($C$6/3600,0)+10+32*(E107-1) -> 106 | E106: Abril | F106: 0 | G106: 0 | H106: 9.786666667 | I106: 0 | J106: 0 | K106: 3.153846154 | L106: 0 | M106: 0 | N106: 6.080784314 | O106: 9.786666667 | P106: 9.786666667 | Q106: 9.786666667 | R106: 9.786666667 | S106: 9.786666667 | T106: 9.786666667 | U106: 9.786666667 | V106: 9.786666667 | W106: 0 | X106: 0.6672581958 | Y106: 0
E107: 4 | F107: 1 | G107: 3600 | H107: 9.196666667 | I107: 0 | J107: 0 | K107: 3.153846154 | L107: 0 | M107: 0 | N107: 5.490784314 | O107: 9.196666667 | P107: 9.196666667 | Q107: 9.196666667 | R107: 9.196666667 | S107: 9.196666667 | T107: 9.196666667 | U107: 9.196666667 | V107: 9.196666667 | W107: 0 | X107: 0.6672581958 | Y107: 0
E108: Tmax Dia | F108: 2 | G108: 7200 | H108: 8.276666667 | I108: 0 | J108: 0 | K108: 3.153846154 | L108: 0 | M108: 0 | N108: 4.570784314 | O108: 8.276666667 | P108: 8.276666667 | Q108: 8.276666667 | R108: 8.276666667 | S108: 8.276666667 | T108: 8.276666667 | U108: 8.276666667 | V108: 8.276666667 | W108: 0 | X108: 0.6672581958 | Y108: 0
E109: 24.93529167 | F109: 3 | G109: 10800 | H109: 7.586666667 | I109: 0 | J109: 0 | K109: 3.153846154 | L109: 0 | M109: 0 | N109: 3.880784314 | O109: 7.586666667 | P109: 7.586666667 | Q109: 7.586666667 | R109: 7.586666667 | S109: 7.586666667 | T109: 7.586666667 | U109: 7.586666667 | V109: 7.586666667 | W109: 0 | X109: 0.6672581958 | Y109: 0
E110: Tmin Dia | F110: 4 | G110: 14400 | H110: 6.843333333 | I110: 0 | J110: 0 | K110: 3.153846154 | L110: 0 | M110: 0 | N110: 3.13745098 | O110: 6.843333333 | P110: 6.843333333 | Q110: 6.843333333 | R110: 6.843333333 | S110: 6.843333333 | T110: 6.843333333 | U110: 6.843333333 | V110: 6.843333333 | W110: 0 | X110: 0.6672581958 | Y110: 0
E111: 19.93529167 | F111: 5 | G111: 18000 | H111: 6.513333333 | I111: 0 | J111: 0 | K111: 3.153846154 | L111: 0 | M111: 0 | N111: 2.80745098 | O111: 6.513333333 | P111: 6.513333333 | Q111: 6.513333333 | R111: 6.513333333 | S111: 6.513333333 | T111: 6.513333333 | U111: 6.513333333 | V111: 6.513333333 | W111: 0 | X111: 0.6672581958 | Y111: 0
E112: Tmax Noche | F112: 6 | G112: 21600 | H112: 7.47 | I112: 29.13488685 | J112: 0 | K112: 2.523076923 | L112: 0 | M112: 0 | N112: 4.098104575 | O112: 7.800015454 | P112: 7.760477681 | Q112: 7.686110702 | R112: 7.60087653 | S112: 7.574305342 | T112: 7.60087653 | U112: 7.686110702 | V112: 7.760477681 | W112: 0 | X112: 0.6672581958 | Y112: 8.111111111
E113: 24.93529167 | F113: 7 | G113: 25200 | H113: 9.556666667 | I113: 250.8818459 | J113: 102.3265395 | K113: 3.027692308 | L113: 0 | M113: 0 | N113: 10.04849673 | O113: 13.70446364 | P113: 13.20753341 | Q113: 12.27285254 | R113: 11.20158744 | S113: 10.86762765 | T113: 11.20158744 | U113: 12.27285254 | V113: 13.20753341 | W113: 0 | X113: 0.6672581958 | Y113: 101.9444444
E114: Tmin Noche | F114: 8 | G114: 28800 | H114: 12.55 | I114: 480.092266 | J114: 313.3437624 | K114: 1.513846154 | L114: 0 | M114: 0 | N114: 18.48932462 | O114: 22.08051479 | P114: 20.93870362 | Q114: 18.79105996 | R114: 16.32958272 | S114: 15.5622335 | T114: 16.32958272 | U114: 18.79105996 | V114: 20.93870362 | W114: 0 | X114: 0.6672581958 | Y114: 234.2407407
E115: 17.93529167 | F115: 9 | G115: 32400 | H115: 15.31666667 | I115: 631.8264828 | J115: 528.3351013 | K115: 0.9461538462 | L115: 0 | M115: 0 | N115: 25.89520697 | O115: 29.43123174 | P115: 27.74022465 | Q115: 24.55959309 | R115: 20.91417818 | S115: 19.77774424 | T115: 20.91417818 | U115: 24.55959309 | V115: 27.74022465 | W115: 0 | X115: 0.6672581958 | Y115: 346.9074074
E116: Tsuelo | F116: 10 | G116: 36000 | H116: 17.80666667 | I116: 738.9511138 | J116: 757.8055621 | K116: 0.9461538462 | L116: 0 | M116: 0 | N116: 32.72627451 | O116: 36.21067919 | P116: 34.00577131 | Q116: 29.8585388 | R116: 25.10527427 | S116: 23.62347555 | T116: 25.10527427 | U116: 29.8585388 | V116: 34.00577131 | W116: 0 | X116: 0.6672581958 | Y116: 452.3333333
E117: 13.86388889 | F117: 11 | G117: 39600 | H117: 19.30666667 | I117: 788.7303447 | J117: 824.4206396 | K117: 0.9461538462 | L117: 0 | M117: 0 | N117: 35.6945207 | O117: 39.1614663 | P117: 36.78274569 | Q117: 32.30858711 | R117: 27.18062303 | S117: 25.58201422 | T117: 27.18062303 | U117: 32.30858711 | V117: 36.78274569 | W117: 0 | X117: 0.6672581958 | Y117: 487.9907407
E118: Infil RAH | F118: 12 | G118: 43200 | H118: 20.41333333 | I118: 743.4360376 | J118: 783.0953913 | K118: 0.9461538462 | L118: 0 | M118: 0 | N118: 35.7298366 | O118: 39.20952175 | P118: 36.95762892 | Q118: 32.72202196 | R118: 27.86746886 | S118: 26.35409411 | T118: 27.86746886 | U118: 32.72202196 | V118: 36.95762892 | W118: 0 | X118: 3.667258196 | Y118: 461.9722222
E119: 0.1349533427 | F119: 13 | G119: 46800 | H119: 21.54666667 | I119: 770.9618297 | J119: 716.9805522 | K119: 0.9461538462 | L119: 0 | M119: 0 | N119: 36.26267974 | O119: 39.74950538 | P119: 37.5686993 | Q119: 33.46680009 | R119: 28.76549337 | S119: 27.29989215 | T119: 28.76549337 | U119: 33.46680009 | V119: 37.5686993 | W119: 0 | X119: 3.667258196 | Y119: 447.3888889
E120: Cat Mes | F120: 14 | G120: 50400 | H120: 21.47333333 | I120: 644.1172283 | J120: 545.7878625 | K120: 0.9461538462 | L120: 0 | M120: 0 | N120: 32.42818083 | O120: 35.95973089 | P120: 34.2241761 | Q120: 30.95975435 | R120: 27.21830504 | S120: 26.05193302 | T120: 27.21830504 | U120: 30.95975435 | V120: 34.2241761 | W120: 0 | X120: 3.667258196 | Y120: 356.0462963
E121: v | F121: 15 | G121: 54000 | H121: 21.32 | I121: 484.6114259 | J121: 244.0885379 | K121: 0.9461538462 | L121: 0 | M121: 0 | N121: 26.35954248 | O121: 29.96143206 | P121: 28.92613818 | Q121: 26.97884392 | R121: 24.74699298 | S121: 24.05122824 | T121: 24.74699298 | U121: 26.97884392 | V121: 28.92613818 | W121: 0 | X121: 3.667258196 | Y121: 212.3888889
F122: 16 | G122: 57600 | H122: 19.56333333 | I122: 281.5231194 | J122: 76.34193484 | K122: 1.135384615 | L122: 0 | M122: 0 | N122: 20.03991285 | O122: 23.69606111 | P122: 23.20093626 | Q122: 22.26965114 | R122: 21.20227801 | S122: 20.86953151 | T122: 21.20227801 | U122: 22.26965114 | V122: 23.20093626 | W122: 0 | X122: 0.6672581958 | Y122: 101.5740741
F123: 17 | G123: 61200 | H123: 18.29666667 | I123: 35.09196125 | J123: 1.028267779 | K123: 1.892307692 | L123: 1.5 | M123: 0 | N123: 14.99568627 | O123: 18.6967539 | P123: 18.64882112 | Q123: 18.55866389 | R123: 18.45533205 | S123: 18.42311903 | T123: 18.45533205 | U123: 18.55866389 | V123: 18.64882112 | W123: 0 | X123: 0.6672581958 | Y123: 9.833333333
F124: 18 | G124: 64800 | H124: 16.59333333 | I124: 0 | J124: 0 | K124: 1.892307692 | L124: 1.5 | M124: 0 | N124: 12.88745098 | O124: 16.59333333 | P124: 16.59333333 | Q124: 16.59333333 | R124: 16.59333333 | S124: 16.59333333 | T124: 16.59333333 | U124: 16.59333333 | V124: 16.59333333 | W124: 0 | X124: 0.6672581958 | Y124: 0
F125: 19 | G125: 68400 | H125: 14.66 | I125: 0 | J125: 0 | K125: 2.838461538 | L125: 1.5 | M125: 0 | N125: 10.95411765 | O125: 14.66 | P125: 14.66 | Q125: 14.66 | R125: 14.66 | S125: 14.66 | T125: 14.66 | U125: 14.66 | V125: 14.66 | W125: 0 | X125: 0.6672581958 | Y125: 0
F126: 20 | G126: 72000 | H126: 14.04666667 | I126: 0 | J126: 0 | K126: 3.406153846 | L126: 1.5 | M126: 0 | N126: 10.34078431 | O126: 14.04666667 | P126: 14.04666667 | Q126: 14.04666667 | R126: 14.04666667 | S126: 14.04666667 | T126: 14.04666667 | U126: 14.04666667 | V126: 14.04666667 | W126: 0 | X126: 0.6672581958 | Y126: 0
F127: 21 | G127: 75600 | H127: 12.65333333 | I127: 0 | J127: 0 | K127: 3.784615385 | L127: 1.5 | M127: 0 | N127: 8.94745098 | O127: 12.65333333 | P127: 12.65333333 | Q127: 12.65333333 | R127: 12.65333333 | S127: 12.65333333 | T127: 12.65333333 | U127: 12.65333333 | V127: 12.65333333 | W127: 0 | X127: 0.6672581958 | Y127: 0
F128: 22 | G128: 79200 | H128: 11.55666667 | I128: 0 | J128: 0 | K128: 3.153846154 | L128: 0 | M128: 0 | N128: 7.850784314 | O128: 11.55666667 | P128: 11.55666667 | Q128: 11.55666667 | R128: 11.55666667 | S128: 11.55666667 | T128: 11.55666667 | U128: 11.55666667 | V128: 11.55666667 | W128: 0 | X128: 0.6672581958 | Y128: 0
F129: 23 | G129: 82800 | H129: 10.4 | I129: 0 | J129: 0 | K129: 3.153846154 | L129: 0 | M129: 0 | N129: 6.694117647 | O129: 10.4 | P129: 10.4 | Q129: 10.4 | R129: 10.4 | S129: 10.4 | T129: 10.4 | U129: 10.4 | V129: 10.4 | W129: 0 | X129: 0.6672581958 | Y129: 0
F130: 24 | G130: 86400 | H130: 9.786666667 | I130: 0 | J130: 0 | K130: 3.153846154 | L130: 0 | M130: 0 | N130: 6.080784314 | O130: 9.786666667 | P130: 9.786666667 | Q130: 9.786666667 | R130: 9.786666667 | S130: 9.786666667 | T130: 9.786666667 | U130: 9.786666667 | V130: 9.786666667 | W130: 0 | X130: 0.6672581958 | Y130: 0
G131: Valor Variable | H131: =+INDIRECT(H132&$C106)+((INDIRECT(H132&$C106+1)-INDIRECT(H132&$C106))/(INDIRECT($C$4&$C106+1)-INDIRECT($C$4&$C106)))*($C$6-INDIRECT($C$4&$C106)) -> 9.786666667 | I131: =+INDIRECT(I132&$C106)+((INDIRECT(I132&$C106+1)-INDIRECT(I132&$C106))/(INDIRECT($C$4&$C106+1)-INDIRECT($C$4&$C106)))*($C$6-INDIRECT($C$4&$C106)) -> 0 | J131: 0 | K131: 3.153846154 | L131: 0 | M131: 0 | N131: 6.080784314 | O131: 9.786666667 | P131: 9.786666667 | Q131: 9.786666667 | R131: 9.786666667 | S131: 9.786666667 | T131: 9.786666667 | U131: 9.786666667 | V131: 9.786666667 | W131: =+INDIRECT(W132&$C106) -> 0 | X131: 0.6672581958 | Y131: 0
H132: =MID(ADDRESS(ROW(),COLUMN()),2,1) -> H | I132: =MID(ADDRESS(ROW(),COLUMN()),2,1) -> I | J132: J | K132: K | L132: L | M132: M | N132: N | O132: O | P132: P | Q132: Q | R132: R | S132: S | T132: T | U132: U | V132: V | W132: W | X132: X | Y132: Y
I136: Rad Ventanas: Sol Incidente*FS*FAV*FAR [W]
E137: Mes | F137: Tiempo [hrs] | G137: Tiempo [s] | H137: T° exterior | I137: Difuso | J137: Directo | K137: Qgen Pers [W/m2] | L137: Qgen Ilum [W/m2] | M137: Qgen Equip [W/m2] | N137: TsolH | O137: TsolN | P137: TsolNE | Q137: TsolE | R137: TsolSE | S137: TsolS | T137: TsolSO | U137: TsolO | V137: TsolNO | W137: Clima [0, 1 o 2] | X137: N [RAH] | Y137: G total [W/m2]
B138: Fila inicial intervalo | C138: =TRUNC($C$6/3600,0)+10+32*(E139-1) -> 138 | E138: Mayo | F138: 0 | G138: 0 | H138: 7.925806452 | I138: 0 | J138: 0 | K138: 3.153846154 | L138: 0 | M138: 0 | N138: 4.219924099 | O138: 7.925806452 | P138: 7.925806452 | Q138: 7.925806452 | R138: 7.925806452 | S138: 7.925806452 | T138: 7.925806452 | U138: 7.925806452 | V138: 7.925806452 | W138: 0 | X138: 0.5845448567 | Y138: 0
E139: 5 | F139: 1 | G139: 3600 | H139: 6.803225806 | I139: 0 | J139: 0 | K139: 3.153846154 | L139: 0 | M139: 0 | N139: 3.097343454 | O139: 6.803225806 | P139: 6.803225806 | Q139: 6.803225806 | R139: 6.803225806 | S139: 6.803225806 | T139: 6.803225806 | U139: 6.803225806 | V139: 6.803225806 | W139: 0 | X139: 0.5845448567 | Y139: 0
E140: Tmax Dia | F140: 2 | G140: 7200 | H140: 6.087096774 | I140: 0 | J140: 0 | K140: 3.153846154 | L140: 0 | M140: 0 | N140: 2.381214421 | O140: 6.087096774 | P140: 6.087096774 | Q140: 6.087096774 | R140: 6.087096774 | S140: 6.087096774 | T140: 6.087096774 | U140: 6.087096774 | V140: 6.087096774 | W140: 0 | X140: 0.5845448567 | Y140: 0
E141: 24.15190927 | F141: 3 | G141: 10800 | H141: 5.719354839 | I141: 0 | J141: 0 | K141: 3.153846154 | L141: 0 | M141: 0 | N141: 2.013472486 | O141: 5.719354839 | P141: 5.719354839 | Q141: 5.719354839 | R141: 5.719354839 | S141: 5.719354839 | T141: 5.719354839 | U141: 5.719354839 | V141: 5.719354839 | W141: 0 | X141: 0.5845448567 | Y141: 0
E142: Tmin Dia | F142: 4 | G142: 14400 | H142: 5.629032258 | I142: 0 | J142: 0 | K142: 3.153846154 | L142: 0 | M142: 0 | N142: 1.923149905 | O142: 5.629032258 | P142: 5.629032258 | Q142: 5.629032258 | R142: 5.629032258 | S142: 5.629032258 | T142: 5.629032258 | U142: 5.629032258 | V142: 5.629032258 | W142: 0 | X142: 0.5845448567 | Y142: 0
E143: 19.15190927 | F143: 5 | G143: 18000 | H143: 5.690322581 | I143: 0 | J143: 0 | K143: 3.153846154 | L143: 0 | M143: 0 | N143: 1.984440228 | O143: 5.690322581 | P143: 5.690322581 | Q143: 5.690322581 | R143: 5.690322581 | S143: 5.690322581 | T143: 5.690322581 | U143: 5.690322581 | V143: 5.690322581 | W143: 0 | X143: 0.5845448567 | Y143: 0
E144: Tmax Noche | F144: 6 | G144: 21600 | H144: 5.680645161 | I144: 2.915587024 | J144: 0 | K144: 2.523076923 | L144: 0 | M144: 0 | N144: 2.013873076 | O144: 5.730766705 | P144: 5.721518828 | Q144: 5.706856324 | R144: 5.695197873 | S144: 5.693543253 | T144: 5.695197873 | U144: 5.706856324 | V144: 5.721518828 | W144: 0 | X144: 0.5845448567 | Y144: 0.9498207885
E145: 24.15190927 | F145: 7 | G145: 25200 | H145: 7.04516129 | I145: 118.0150111 | J145: 23.2360589 | K145: 3.027692308 | L145: 0 | M145: 0 | N145: 4.918817204 | O145: 9.069409679 | P145: 8.695917598 | Q145: 8.103746066 | R145: 7.632898626 | S145: 7.566073831 | T145: 7.632898626 | U145: 8.103746066 | V145: 8.695917598 | W145: 0 | X145: 0.5845448567 | Y145: 38.36021505
E146: Tmin Noche | F146: 8 | G146: 28800 | H146: 9.038709677 | I146: 330.4552839 | J146: 198.847664 | K146: 1.513846154 | L146: 0 | M146: 0 | N146: 11.2831225 | O146: 16.66427701 | P146: 15.25729108 | Q146: 13.02651549 | R146: 11.25278116 | S146: 11.00104477 | T146: 11.25278116 | U146: 13.02651549 | V146: 15.25729108 | W146: 0 | X146: 0.5845448567 | Y146: 144.5071685
E147: 17.15190927 | F147: 9 | G147: 32400 | H147: 11.09677419 | I147: 502.7731034 | J147: 458.2577402 | K147: 0.9461538462 | L147: 0 | M147: 0 | N147: 18.22185326 | O147: 24.97713193 | P147: 22.41608076 | Q147: 18.35553525 | R147: 15.12691422 | S147: 14.66869375 | T147: 15.12691422 | U147: 18.35553525 | V147: 22.41608076 | W147: 0 | X147: 0.5845448567 | Y147: 263.0376344
E148: Tsuelo | F148: 10 | G148: 36000 | H148: 13.09032258 | I148: 621.2519579 | J148: 502.7908266 | K148: 0.9461538462 | L148: 0 | M148: 0 | N148: 22.04325322 | O148: 29.31315322 | P148: 26.31989468 | Q148: 21.57408457 | R148: 17.80059594 | S148: 17.26504539 | T148: 17.80059594 | U148: 21.57408457 | V148: 26.31989468 | W148: 0 | X148: 0.5845448567 | Y148: 307.4283154
E149: 10.79180108 | F149: 11 | G149: 39600 | H149: 14.64516129 | I149: 656.6365823 | J149: 648.702935 | K149: 0.9461538462 | L149: 0 | M149: 0 | N149: 25.65802235 | O149: 33.50788419 | P149: 30.02754172 | Q149: 24.50946025 | R149: 20.12192321 | S149: 19.49922414 | T149: 20.12192321 | U149: 24.50946025 | V149: 30.02754172 | W149: 0 | X149: 0.5845448567 | Y149: 357.4551971
E150: Infil RAH | F150: 12 | G150: 43200 | H150: 15.56451613 | I150: 654.6818137 | J150: 662.9548154 | K150: 0.9461538462 | L150: 0 | M150: 0 | N150: 26.71832174 | O150: 34.60786572 | P150: 31.094196 | Q150: 25.52327419 | R150: 21.09372272 | S150: 20.46506078 | T150: 21.09372272 | U150: 25.52327419 | V150: 31.094196 | W150: 0 | X150: 0.5845448567 | Y150: 360.8781362
E151: 0.2176666817 | F151: 13 | G151: 46800 | H151: 16.28064516 | I151: 601.0416388 | J151: 539.3092502 | K151: 0.9461538462 | L151: 0 | M151: 0 | N151: 25.42543749 | O151: 32.74935507 | P151: 29.71072959 | Q151: 24.89299021 | R151: 21.06230918 | S151: 20.51864163 | T151: 21.06230918 | U151: 24.89299021 | V151: 29.71072959 | W151: 0 | X151: 0.5845448567 | Y151: 312.0878136
E152: Cat Mes | F152: 14 | G152: 50400 | H152: 16.47096774 | I152: 453.1418606 | J152: 486.6968665 | K152: 0.9461538462 | L152: 0 | M152: 0 | N152: 23.36802657 | O152: 30.05910742 | P152: 27.55197312 | Q152: 23.57691278 | R152: 20.41626272 | S152: 19.96768899 | T152: 20.41626272 | U152: 23.57691278 | V152: 27.55197312 | W152: 0 | X152: 0.5845448567 | Y152: 257.5
E153: i | F153: 15 | G153: 54000 | H153: 16.76451613 | I153: 334.8617961 | J153: 251.2661446 | K153: 0.9461538462 | L153: 0 | M153: 0 | N153: 19.65646215 | O153: 25.21992601 | P153: 23.65982664 | Q153: 21.18628977 | R153: 19.21953109 | S153: 18.94039981 | T153: 19.21953109 | U153: 21.18628977 | V153: 23.65982664 | W153: 0 | X153: 0.5845448567 | Y153: 160.2329749
F154: 16 | G154: 57600 | H154: 15.85483871 | I154: 140.3126256 | J154: 36.00134856 | K154: 1.135384615 | L154: 0 | M154: 0 | N154: 14.12254902 | O154: 18.38408529 | P154: 17.91741649 | Q154: 17.17751331 | R154: 16.58920148 | S154: 16.50570561 | T154: 16.58920148 | U154: 17.17751331 | V154: 17.91741649 | W154: 0 | X154: 0.5845448567 | Y154: 47.93010753
F155: 17 | G155: 61200 | H155: 14.7 | I155: 2.352348622 | J155: 0.09695156704 | K155: 1.892307692 | L155: 1.5 | M155: 0 | N155: 11.02142104 | O155: 14.73499051 | P155: 14.72853445 | Q155: 14.71829836 | R155: 14.71015944 | S155: 14.70900433 | T155: 14.71015944 | U155: 14.71829836 | V155: 14.72853445 | W155: 0 | X155: 0.5845448567 | Y155: 0.6630824373
F156: 18 | G156: 64800 | H156: 13.65483871 | I156: 0 | J156: 0 | K156: 1.892307692 | L156: 1.5 | M156: 0 | N156: 9.948956357 | O156: 13.65483871 | P156: 13.65483871 | Q156: 13.65483871 | R156: 13.65483871 | S156: 13.65483871 | T156: 13.65483871 | U156: 13.65483871 | V156: 13.65483871 | W156: 0 | X156: 0.5845448567 | Y156: 0
F157: 19 | G157: 68400 | H157: 12.26774194 | I157: 0 | J157: 0 | K157: 2.838461538 | L157: 1.5 | M157: 0 | N157: 8.561859583 | O157: 12.26774194 | P157: 12.26774194 | Q157: 12.26774194 | R157: 12.26774194 | S157: 12.26774194 | T157: 12.26774194 | U157: 12.26774194 | V157: 12.26774194 | W157: 0 | X157: 0.5845448567 | Y157: 0
F158: 20 | G158: 72000 | H158: 10.41290323 | I158: 0 | J158: 0 | K158: 3.406153846 | L158: 1.5 | M158: 0 | N158: 6.707020873 | O158: 10.41290323 | P158: 10.41290323 | Q158: 10.41290323 | R158: 10.41290323 | S158: 10.41290323 | T158: 10.41290323 | U158: 10.41290323 | V158: 10.41290323 | W158: 0 | X158: 0.5845448567 | Y158: 0
F159: 21 | G159: 75600 | H159: 10.23225806 | I159: 0 | J159: 0 | K159: 3.784615385 | L159: 1.5 | M159: 0 | N159: 6.526375712 | O159: 10.23225806 | P159: 10.23225806 | Q159: 10.23225806 | R159: 10.23225806 | S159: 10.23225806 | T159: 10.23225806 | U159: 10.23225806 | V159: 10.23225806 | W159: 0 | X159: 0.5845448567 | Y159: 0
F160: 22 | G160: 79200 | H160: 9.6 | I160: 0 | J160: 0 | K160: 3.153846154 | L160: 0 | M160: 0 | N160: 5.894117647 | O160: 9.6 | P160: 9.6 | Q160: 9.6 | R160: 9.6 | S160: 9.6 | T160: 9.6 | U160: 9.6 | V160: 9.6 | W160: 0 | X160: 0.5845448567 | Y160: 0
F161: 23 | G161: 82800 | H161: 8.748387097 | I161: 0 | J161: 0 | K161: 3.153846154 | L161: 0 | M161: 0 | N161: 5.042504744 | O161: 8.748387097 | P161: 8.748387097 | Q161: 8.748387097 | R161: 8.748387097 | S161: 8.748387097 | T161: 8.748387097 | U161: 8.748387097 | V161: 8.748387097 | W161: 0 | X161: 0.5845448567 | Y161: 0
F162: 24 | G162: 86400 | H162: 7.925806452 | I162: 0 | J162: 0 | K162: 3.153846154 | L162: 0 | M162: 0 | N162: 4.219924099 | O162: 7.925806452 | P162: 7.925806452 | Q162: 7.925806452 | R162: 7.925806452 | S162: 7.925806452 | T162: 7.925806452 | U162: 7.925806452 | V162: 7.925806452 | W162: 0 | X162: 0.5845448567 | Y162: 0
G163: Valor Variable | H163: =+INDIRECT(H164&$C138)+((INDIRECT(H164&$C138+1)-INDIRECT(H164&$C138))/(INDIRECT($C$4&$C138+1)-INDIRECT($C$4&$C138)))*($C$6-INDIRECT($C$4&$C138)) -> 7.925806452 | I163: =+INDIRECT(I164&$C138)+((INDIRECT(I164&$C138+1)-INDIRECT(I164&$C138))/(INDIRECT($C$4&$C138+1)-INDIRECT($C$4&$C138)))*($C$6-INDIRECT($C$4&$C138)) -> 0 | J163: 0 | K163: 3.153846154 | L163: 0 | M163: 0 | N163: 4.219924099 | O163: 7.925806452 | P163: 7.925806452 | Q163: 7.925806452 | R163: 7.925806452 | S163: 7.925806452 | T163: 7.925806452 | U163: 7.925806452 | V163: 7.925806452 | W163: =+INDIRECT(W164&$C138) -> 0 | X163: 0.5845448567 | Y163: 0
H164: =MID(ADDRESS(ROW(),COLUMN()),2,1) -> H | I164: =MID(ADDRESS(ROW(),COLUMN()),2,1) -> I | J164: J | K164: K | L164: L | M164: M | N164: N | O164: O | P164: P | Q164: Q | R164: R | S164: S | T164: T | U164: U | V164: V | W164: W | X164: X | Y164: Y
I168: Rad Ventanas: Sol Incidente*FS*FAV*FAR [W]
E169: Mes | F169: Tiempo [hrs] | G169: Tiempo [s] | H169: T° exterior | I169: Difuso | J169: Directo | K169: Qgen Pers [W/m2] | L169: Qgen Ilum [W/m2] | M169: Qgen Equip [W/m2] | N169: TsolH | O169: TsolN | P169: TsolNE | Q169: TsolE | R169: TsolSE | S169: TsolS | T169: TsolSO | U169: TsolO | V169: TsolNO | W169: Clima [0, 1 o 2] | X169: N [RAH] | Y169: G total [W/m2]
B170: Fila inicial intervalo | C170: =TRUNC($C$6/3600,0)+10+32*(E171-1) -> 170 | E170: Junio | F170: 0 | G170: 0 | H170: 5.476666667 | I170: 0 | J170: 0 | K170: 3.153846154 | L170: 0 | M170: 0 | N170: 1.770784314 | O170: 5.476666667 | P170: 5.476666667 | Q170: 5.476666667 | R170: 5.476666667 | S170: 5.476666667 | T170: 5.476666667 | U170: 5.476666667 | V170: 5.476666667 | W170: 0 | X170: 0.5845448567 | Y170: 0
E171: 6 | F171: 1 | G171: 3600 | H171: 5.54 | I171: 0 | J171: 0 | K171: 3.153846154 | L171: 0 | M171: 0 | N171: 1.834117647 | O171: 5.54 | P171: 5.54 | Q171: 5.54 | R171: 5.54 | S171: 5.54 | T171: 5.54 | U171: 5.54 | V171: 5.54 | W171: 0 | X171: 0.5845448567 | Y171: 0
E172: Tmax Dia | F172: 2 | G172: 7200 | H172: 5.666666667 | I172: 0 | J172: 0 | K172: 3.153846154 | L172: 0 | M172: 0 | N172: 1.960784314 | O172: 5.666666667 | P172: 5.666666667 | Q172: 5.666666667 | R172: 5.666666667 | S172: 5.666666667 | T172: 5.666666667 | U172: 5.666666667 | V172: 5.666666667 | W172: 0 | X172: 0.5845448567 | Y172: 0
E173: 23.54713542 | F173: 3 | G173: 10800 | H173: 5.71 | I173: 0 | J173: 0 | K173: 3.153846154 | L173: 0 | M173: 0 | N173: 2.004117647 | O173: 5.71 | P173: 5.71 | Q173: 5.71 | R173: 5.71 | S173: 5.71 | T173: 5.71 | U173: 5.71 | V173: 5.71 | W173: 0 | X173: 0.5845448567 | Y173: 0
E174: Tmin Dia | F174: 4 | G174: 14400 | H174: 5.033333333 | I174: 0 | J174: 0 | K174: 3.153846154 | L174: 0 | M174: 0 | N174: 1.32745098 | O174: 5.033333333 | P174: 5.033333333 | Q174: 5.033333333 | R174: 5.033333333 | S174: 5.033333333 | T174: 5.033333333 | U174: 5.033333333 | V174: 5.033333333 | W174: 0 | X174: 0.5845448567 | Y174: 0
E175: 18.54713542 | F175: 5 | G175: 18000 | H175: 4.05 | I175: 0 | J175: 0 | K175: 3.153846154 | L175: 0 | M175: 0 | N175: 0.3441176471 | O175: 4.05 | P175: 4.05 | Q175: 4.05 | R175: 4.05 | S175: 4.05 | T175: 4.05 | U175: 4.05 | V175: 4.05 | W175: 0 | X175: 0.5845448567 | Y175: 0
E176: Tmax Noche | F176: 6 | G176: 21600 | H176: 5.173333333 | I176: 0 | J176: 0 | K176: 2.523076923 | L176: 0 | M176: 0 | N176: 1.46745098 | O176: 5.173333333 | P176: 5.173333333 | Q176: 5.173333333 | R176: 5.173333333 | S176: 5.173333333 | T176: 5.173333333 | U176: 5.173333333 | V176: 5.173333333 | W176: 0 | X176: 0.5845448567 | Y176: 0
E177: 23.54713542 | F177: 7 | G177: 25200 | H177: 6.06 | I177: 55.15429227 | J177: 0 | K177: 3.027692308 | L177: 1.5 | M177: 0 | N177: 3.011416122 | O177: 6.985450726 | P177: 6.798792186 | Q177: 6.505308566 | R177: 6.308280865 | S177: 6.291762964 | T177: 6.308280865 | U177: 6.505308566 | V177: 6.798792186 | W177: 0 | X177: 0.5845448567 | Y177: 15.96296296
E178: Tmin Noche | F178: 8 | G178: 28800 | H178: 8.006666667 | I178: 249.3069872 | J178: 109.5420116 | K178: 1.513846154 | L178: 0 | M178: 0 | N178: 8.24 | O178: 13.55292937 | P178: 12.43427738 | Q178: 10.67541847 | R178: 9.494623684 | S178: 9.39563125 | T178: 9.494623684 | U178: 10.67541847 | V178: 12.43427738 | W178: 0 | X178: 0.5845448567 | Y178: 95.66666667
E179: 17 | F179: 9 | G179: 32400 | H179: 8.863333333 | I179: 401.4520367 | J179: 253.9938052 | K179: 0.9461538462 | L179: 0 | M179: 0 | N179: 12.32444444 | O179: 18.9541818 | P179: 16.91891078 | Q179: 13.71884982 | R179: 11.57051645 | S179: 11.39041001 | T179: 11.57051645 | U179: 13.71884982 | V179: 16.91891078 | W179: 0 | X179: 0.5845448567 | Y179: 174.0555556
E180: Tsuelo | F180: 10 | G180: 36000 | H180: 10.68666667 | I180: 518.5393611 | J180: 365.9421495 | K180: 0.9461538462 | L180: 0 | M180: 0 | N180: 16.64009804 | O180: 24.28660527 | P180: 21.54356924 | Q180: 17.23068785 | R180: 14.33527207 | S180: 14.09253365 | T180: 14.33527207 | U180: 17.23068785 | V180: 21.54356924 | W180: 0 | X180: 0.5845448567 | Y180: 234.5833333
E181: 8.420138889 | F181: 11 | G181: 39600 | H181: 11.59 | I181: 563.8679042 | J181: 371.5090386 | K181: 0.9461538462 | L181: 0 | M181: 0 | N181: 18.10732026 | O181: 25.98387226 | P181: 23.08070399 | Q181: 18.51604634 | R181: 15.45160273 | S181: 15.1946938 | T181: 15.45160273 | U181: 18.51604634 | V181: 23.08070399 | W181: 0 | X181: 0.5845448567 | Y181: 248.2777778
E182: Infil RAH | F182: 12 | G182: 43200 | H182: 11.92 | I182: 551.748339 | J182: 370.5393224 | K182: 0.9461538462 | L182: 0 | M182: 0 | N182: 18.29205882 | O182: 26.1093498 | P182: 23.24743263 | Q182: 18.74763418 | R182: 15.72673324 | S182: 15.47347472 | T182: 15.72673324 | U182: 18.74763418 | V182: 23.24743263 | W182: 0 | X182: 0.5845448567 | Y182: 244.75
E183: 0.2176666817 | F183: 13 | G183: 46800 | H183: 12.20333333 | I183: 509.6379855 | J183: 311.6739595 | K183: 0.9461538462 | L183: 0 | M183: 0 | N183: 17.48154684 | O183: 24.8525914 | P183: 22.30130263 | Q183: 18.28990587 | R183: 15.59688919 | S183: 15.37111899 | T183: 15.59688919 | U183: 18.28990587 | V183: 22.30130263 | W183: 0 | X183: 0.5845448567 | Y183: 218.1851852
E184: Cat Mes | F184: 14 | G184: 50400 | H184: 13.19 | I184: 385.600741 | J184: 281.1817733 | K184: 0.9461538462 | L184: 0 | M184: 0 | N184: 16.76320261 | O184: 23.43866895 | P184: 21.37156636 | Q184: 18.12145658 | R184: 15.93952336 | S184: 15.75660006 | T184: 15.93952336 | U184: 18.12145658 | V184: 21.37156636 | W184: 0 | X184: 0.5845448567 | Y184: 176.7777778
E185: i | F185: 15 | G185: 54000 | H185: 13.11333333 | I185: 225.8210502 | J185: 56.24353775 | K185: 0.9461538462 | L185: 0 | M185: 0 | N185: 12.51932462 | O185: 17.49473057 | P185: 16.61102581 | Q185: 15.22157493 | R185: 14.28877905 | S185: 14.21057771 | T185: 14.28877905 | U185: 15.22157493 | V185: 16.61102581 | W185: 0 | X185: 0.5845448567 | Y185: 75.57407407
F186: 16 | G186: 57600 | H186: 13 | I186: 63.13129419 | J186: 6.644351522 | K186: 1.135384615 | L186: 1.5 | M186: 0 | N186: 10.06770153 | O186: 14.08917606 | P186: 13.86949498 | Q186: 13.52408995 | R186: 13.29220526 | S186: 13.27276511 | T186: 13.29220526 | U186: 13.52408995 | V186: 13.86949498 | W186: 0 | X186: 0.5845448567 | Y186: 18.78703704
F187: 17 | G187: 61200 | H187: 11.45333333 | I187: 0 | J187: 0 | K187: 1.892307692 | L187: 1.5 | M187: 0 | N187: 7.74745098 | O187: 11.45333333 | P187: 11.45333333 | Q187: 11.45333333 | R187: 11.45333333 | S187: 11.45333333 | T187: 11.45333333 | U187: 11.45333333 | V187: 11.45333333 | W187: 0 | X187: 0.5845448567 | Y187: 0
F188: 18 | G188: 64800 | H188: 10.83 | I188: 0 | J188: 0 | K188: 1.892307692 | L188: 1.5 | M188: 0 | N188: 7.124117647 | O188: 10.83 | P188: 10.83 | Q188: 10.83 | R188: 10.83 | S188: 10.83 | T188: 10.83 | U188: 10.83 | V188: 10.83 | W188: 0 | X188: 0.5845448567 | Y188: 0
F189: 19 | G189: 68400 | H189: 9.246666667 | I189: 0 | J189: 0 | K189: 2.838461538 | L189: 1.5 | M189: 0 | N189: 5.540784314 | O189: 9.246666667 | P189: 9.246666667 | Q189: 9.246666667 | R189: 9.246666667 | S189: 9.246666667 | T189: 9.246666667 | U189: 9.246666667 | V189: 9.246666667 | W189: 0 | X189: 0.5845448567 | Y189: 0
F190: 20 | G190: 72000 | H190: 7.673333333 | I190: 0 | J190: 0 | K190: 3.406153846 | L190: 1.5 | M190: 0 | N190: 3.96745098 | O190: 7.673333333 | P190: 7.673333333 | Q190: 7.673333333 | R190: 7.673333333 | S190: 7.673333333 | T190: 7.673333333 | U190: 7.673333333 | V190: 7.673333333 | W190: 0 | X190: 0.5845448567 | Y190: 0
F191: 21 | G191: 75600 | H191: 6.763333333 | I191: 0 | J191: 0 | K191: 3.784615385 | L191: 1.5 | M191: 0 | N191: 3.05745098 | O191: 6.763333333 | P191: 6.763333333 | Q191: 6.763333333 | R191: 6.763333333 | S191: 6.763333333 | T191: 6.763333333 | U191: 6.763333333 | V191: 6.763333333 | W191: 0 | X191: 0.5845448567 | Y191: 0
F192: 22 | G192: 79200 | H192: 5.796666667 | I192: 0 | J192: 0 | K192: 3.153846154 | L192: 0 | M192: 0 | N192: 2.090784314 | O192: 5.796666667 | P192: 5.796666667 | Q192: 5.796666667 | R192: 5.796666667 | S192: 5.796666667 | T192: 5.796666667 | U192: 5.796666667 | V192: 5.796666667 | W192: 0 | X192: 0.5845448567 | Y192: 0
F193: 23 | G193: 82800 | H193: 5.036666667 | I193: 0 | J193: 0 | K193: 3.153846154 | L193: 0 | M193: 0 | N193: 1.330784314 | O193: 5.036666667 | P193: 5.036666667 | Q193: 5.036666667 | R193: 5.036666667 | S193: 5.036666667 | T193: 5.036666667 | U193: 5.036666667 | V193: 5.036666667 | W193: 0 | X193: 0.5845448567 | Y193: 0
F194: 24 | G194: 86400 | H194: 5.476666667 | I194: 0 | J194: 0 | K194: 3.153846154 | L194: 0 | M194: 0 | N194: 1.770784314 | O194: 5.476666667 | P194: 5.476666667 | Q194: 5.476666667 | R194: 5.476666667 | S194: 5.476666667 | T194: 5.476666667 | U194: 5.476666667 | V194: 5.476666667 | W194: 0 | X194: 0.5845448567 | Y194: 0
G195: Valor Variable | H195: =+INDIRECT(H196&$C170)+((INDIRECT(H196&$C170+1)-INDIRECT(H196&$C170))/(INDIRECT($C$4&$C170+1)-INDIRECT($C$4&$C170)))*($C$6-INDIRECT($C$4&$C170)) -> 5.476666667 | I195: =+INDIRECT(I196&$C170)+((INDIRECT(I196&$C170+1)-INDIRECT(I196&$C170))/(INDIRECT($C$4&$C170+1)-INDIRECT($C$4&$C170)))*($C$6-INDIRECT($C$4&$C170)) -> 0 | J195: 0 | K195: 3.153846154 | L195: 0 | M195: 0 | N195: 1.770784314 | O195: 5.476666667 | P195: 5.476666667 | Q195: 5.476666667 | R195: 5.476666667 | S195: 5.476666667 | T195: 5.476666667 | U195: 5.476666667 | V195: 5.476666667 | W195: =+INDIRECT(W196&$C170) -> 0 | X195: 0.5845448567 | Y195: 0
H196: =MID(ADDRESS(ROW(),COLUMN()),2,1) -> H | I196: =MID(ADDRESS(ROW(),COLUMN()),2,1) -> I | J196: J | K196: K | L196: L | M196: M | N196: N | O196: O | P196: P | Q196: Q | R196: R | S196: S | T196: T | U196: U | V196: V | W196: W | X196: X | Y196: Y
I200: Rad Ventanas: Sol Incidente*FS*FAV*FAR [W]
E201: Mes | F201: Tiempo [hrs] | G201: Tiempo [s] | H201: T° exterior | I201: Difuso | J201: Directo | K201: Qgen Pers [W/m2] | L201: Qgen Ilum [W/m2] | M201: Qgen Equip [W/m2] | N201: TsolH | O201: TsolN | P201: TsolNE | Q201: TsolE | R201: TsolSE | S201: TsolS | T201: TsolSO | U201: TsolO | V201: TsolNO | W201: Clima [0, 1 o 2] | X201: N [RAH] | Y201: G total [W/m2]
B202: Fila inicial intervalo | C202: =TRUNC($C$6/3600,0)+10+32*(E203-1) -> 202 | E202: Julio | F202: 0 | G202: 0 | H202: 4.664516129 | I202: 0 | J202: 0 | K202: 3.153846154 | L202: 0 | M202: 0 | N202: 0.9586337761 | O202: 4.664516129 | P202: 4.664516129 | Q202: 4.664516129 | R202: 4.664516129 | S202: 4.664516129 | T202: 4.664516129 | U202: 4.664516129 | V202: 4.664516129 | W202: 0 | X202: 0.5845448567 | Y202: 0
E203: 7 | F203: 1 | G203: 3600 | H203: 4.058064516 | I203: 0 | J203: 0 | K203: 3.153846154 | L203: 0 | M203: 0 | N203: 0.3521821632 | O203: 4.058064516 | P203: 4.058064516 | Q203: 4.058064516 | R203: 4.058064516 | S203: 4.058064516 | T203: 4.058064516 | U203: 4.058064516 | V203: 4.058064516 | W203: 0 | X203: 0.5845448567 | Y203: 0
E204: Tmax Dia | F204: 2 | G204: 7200 | H204: 4.051612903 | I204: 0 | J204: 0 | K204: 3.153846154 | L204: 0 | M204: 0 | N204: 0.3457305503 | O204: 4.051612903 | P204: 4.051612903 | Q204: 4.051612903 | R204: 4.051612903 | S204: 4.051612903 | T204: 4.051612903 | U204: 4.051612903 | V204: 4.051612903 | W204: 0 | X204: 0.5845448567 | Y204: 0
E205: 23.47098387 | F205: 3 | G205: 10800 | H205: 3.612903226 | I205: 0 | J205: 0 | K205: 3.153846154 | L205: 0 | M205: 0 | N205: -0.09297912713 | O205: 3.612903226 | P205: 3.612903226 | Q205: 3.612903226 | R205: 3.612903226 | S205: 3.612903226 | T205: 3.612903226 | U205: 3.612903226 | V205: 3.612903226 | W205: 0 | X205: 0.5845448567 | Y205: 0
E206: Tmin Dia | F206: 4 | G206: 14400 | H206: 3.212903226 | I206: 0 | J206: 0 | K206: 3.153846154 | L206: 0 | M206: 0 | N206: -0.4929791271 | O206: 3.212903226 | P206: 3.212903226 | Q206: 3.212903226 | R206: 3.212903226 | S206: 3.212903226 | T206: 3.212903226 | U206: 3.212903226 | V206: 3.212903226 | W206: 0 | X206: 0.5845448567 | Y206: 0
E207: 18.47098387 | F207: 5 | G207: 18000 | H207: 3.303225806 | I207: 0 | J207: 0 | K207: 3.153846154 | L207: 0 | M207: 0 | N207: -0.4026565465 | O207: 3.303225806 | P207: 3.303225806 | Q207: 3.303225806 | R207: 3.303225806 | S207: 3.303225806 | T207: 3.303225806 | U207: 3.303225806 | V207: 3.303225806 | W207: 0 | X207: 0.5845448567 | Y207: 0
E208: Tmax Noche | F208: 6 | G208: 21600 | H208: 4.161290323 | I208: 0.3644483781 | J208: 0 | K208: 2.523076923 | L208: 0 | M208: 0 | N208: 0.4605734767 | O208: 4.16847473 | P208: 4.167046952 | Q208: 4.164805107 | R208: 4.163162302 | S208: 4.162981007 | T208: 4.163162302 | U208: 4.164805107 | V208: 4.167046952 | W208: 0 | X208: 0.5845448567 | Y208: 0.1254480287
E209: 23.47098387 | F209: 7 | G209: 25200 | H209: 5.206451613 | I209: 91.64220125 | J209: 14.61173895 | K209: 3.027692308 | L209: 0 | M209: 0 | N209: 2.677566941 | O209: 6.84347027 | P209: 6.518140655 | Q209: 6.007320433 | R209: 5.632995564 | S209: 5.591686078 | T209: 5.632995564 | U209: 6.007320433 | V209: 6.518140655 | W209: 0 | X209: 0.5845448567 | Y209: 28.58422939
E210: Tmin Noche | F210: 8 | G210: 28800 | H210: 6.425806452 | I210: 280.6915144 | J210: 83.91411404 | K210: 1.513846154 | L210: 0 | M210: 0 | N210: 6.744223066 | O210: 12.02297338 | P210: 10.91063165 | Q210: 9.16407486 | R210: 7.88421237 | S210: 7.742970186 | T210: 7.88421237 | U210: 9.16407486 | V210: 10.91063165 | W210: 0 | X210: 0.5845448567 | Y210: 97.73297491
E211: 17 | F211: 9 | G211: 32400 | H211: 8.212903226 | I211: 444.6270212 | J211: 244.7121658 | K211: 0.9461538462 | L211: 0 | M211: 0 | N211: 12.07854733 | O211: 18.74370569 | P211: 16.65088782 | Q211: 13.36482456 | R211: 10.95682436 | S211: 10.69108393 | T211: 10.95682436 | U211: 13.36482456 | V211: 16.65088782 | W211: 0 | X211: 0.5845448567 | Y211: 183.8799283
E212: Tsuelo | F212: 10 | G212: 36000 | H212: 9.648387097 | I212: 533.9831372 | J212: 393.4831023 | K212: 0.9461538462 | L212: 0 | M212: 0 | N212: 16.10195024 | O212: 23.77857792 | P212: 20.97044283 | Q212: 16.56121561 | R212: 13.33017008 | S212: 12.97360058 | T212: 13.33017008 | U212: 16.56121561 | V212: 20.97044283 | W212: 0 | X212: 0.5845448567 | Y212: 246.7293907
E213: 8.121505376 | F213: 11 | G213: 39600 | H213: 10.70645161 | I213: 544.0220334 | J213: 606.6628598 | K213: 0.9461538462 | L213: 0 | M213: 0 | N213: 19.55422728 | O213: 28.1666155 | P213: 24.6967049 | Q213: 19.24838288 | R213: 15.25589719 | S213: 14.81529721 | T213: 15.25589719 | U213: 19.24838288 | V213: 24.6967049 | W213: 0 | X213: 0.5845448567 | Y213: 304.874552
E214: Infil RAH | F214: 12 | G214: 43200 | H214: 11.90322581 | I214: 524.5074794 | J214: 485.4957038 | K214: 0.9461538462 | L214: 0 | M214: 0 | N214: 19.23640101 | O214: 27.25681866 | P214: 24.20555322 | Q214: 19.41457196 | R214: 15.90378019 | S214: 15.51633865 | T214: 15.90378019 | U214: 19.41457196 | V214: 24.20555322 | W214: 0 | X214: 0.5845448567 | Y214: 268.0913978
E215: 0.2176666817 | F215: 13 | G215: 46800 | H215: 12.95483871 | I215: 526.561643 | J215: 497.040356 | K215: 0.9461538462 | L215: 0 | M215: 0 | N215: 20.43449294 | O215: 28.51216085 | P215: 25.42040768 | Q215: 20.56585412 | R215: 17.00847709 | S215: 16.61589452 | T215: 17.00847709 | U215: 20.56585412 | V215: 25.42040768 | W215: 0 | X215: 0.5845448567 | Y215: 271.6487455
... 158 more rows

Sheet SA (hidden)
D2: Serie de Amplificacion
D3: Horiz | E3: N | F3: NE | G3: E | H3: SE | I3: S | J3: SO | K3: O | L3: NO | M3: Piso Vent | N3: Piso Terreno
C4: 1 | D4: =IF(Calculo!$C$6="Si",IF($B$26="v",H64,I64),IF($B$26="v",H36,I36)) -> 0 | E4: =IF(Calculo!$C$6="Si",IF($B$26="v",F64,G64),IF($B$26="v",F36,G36)) -> 0 | F4: =IF(Calculo!$C$6="Si",IF($B$26="v",F64,G64),IF($B$26="v",F36,G36)) -> 0 | G4: =IF(Calculo!$C$6="Si",IF($B$26="v",F64,G64),IF($B$26="v",F36,G36)) -> 0 | H4: =IF(Calculo!$C$6="Si",IF($B$26="v",F64,G64),IF($B$26="v",F36,G36)) -> 0 | I4: =IF(Calculo!$C$6="Si",IF($B$26="v",F64,G64),IF($B$26="v",F36,G36)) -> 0 | J4: =IF(Calculo!$C$6="Si",IF($B$26="v",F64,G64),IF($B$26="v",F36,G36)) -> 0 | K4: =IF(Calculo!$C$6="Si",IF($B$26="v",F64,G64),IF($B$26="v",F36,G36)) -> 0 | L4: =IF(Calculo!$C$6="Si",IF($B$26="v",F64,G64),IF($B$26="v",F36,G36)) -> 0 | M4: =IF(Calculo!$C$6="Si",IF($B$26="v",J64,K64),IF($B$26="v",J36,K36)) -> 0 | N4: =IF(Calculo!$C$6="Si",IF($B$26="v",L64,M64),IF($B$26="v",L36,M36)) -> 0
C5: 2 | D5: =IF(Calculo!$C$6="Si",IF($B$26="v",H65,I65),IF($B$26="v",H37,I37)) -> 76 | E5: =IF(Calculo!$C$6="Si",IF($B$26="v",F65,G65),IF($B$26="v",F37,G37)) -> 0 | F5: =IF(Calculo!$C$6="Si",IF($B$26="v",F65,G65),IF($B$26="v",F37,G37)) -> 0 | G5: =IF(Calculo!$C$6="Si",IF($B$26="v",F65,G65),IF($B$26="v",F37,G37)) -> 0 | H5: =IF(Calculo!$C$6="Si",IF($B$26="v",F65,G65),IF($B$26="v",F37,G37)) -> 0 | I5: =IF(Calculo!$C$6="Si",IF($B$26="v",F65,G65),IF($B$26="v",F37,G37)) -> 0 | J5: =IF(Calculo!$C$6="Si",IF($B$26="v",F65,G65),IF($B$26="v",F37,G37)) -> 0 | K5: =IF(Calculo!$C$6="Si",IF($B$26="v",F65,G65),IF($B$26="v",F37,G37)) -> 0 | L5: =IF(Calculo!$C$6="Si",IF($B$26="v",F65,G65),IF($B$26="v",F37,G37)) -> 0 | M5: =IF(Calculo!$C$6="Si",IF($B$26="v",J65,K65),IF($B$26="v",J37,K37)) -> 0 | N5: =IF(Calculo!$C$6="Si",IF($B$26="v",L65,M65),IF($B$26="v",L37,M37)) -> 0
C6: 3 | D6: =IF(Calculo!$C$6="Si",IF($B$26="v",H66,I66),IF($B$26="v",H38,I38)) -> 0 | E6: =IF(Calculo!$C$6="Si",IF($B$26="v",F66,G66),IF($B$26="v",F38,G38)) -> 0 | F6: =IF(Calculo!$C$6="Si",IF($B$26="v",F66,G66),IF($B$26="v",F38,G38)) -> 0 | G6: =IF(Calculo!$C$6="Si",IF($B$26="v",F66,G66),IF($B$26="v",F38,G38)) -> 0 | H6: =IF(Calculo!$C$6="Si",IF($B$26="v",F66,G66),IF($B$26="v",F38,G38)) -> 0 | I6: =IF(Calculo!$C$6="Si",IF($B$26="v",F66,G66),IF($B$26="v",F38,G38)) -> 0 | J6: =IF(Calculo!$C$6="Si",IF($B$26="v",F66,G66),IF($B$26="v",F38,G38)) -> 0 | K6: =IF(Calculo!$C$6="Si",IF($B$26="v",F66,G66),IF($B$26="v",F38,G38)) -> 0 | L6: =IF(Calculo!$C$6="Si",IF($B$26="v",F66,G66),IF($B$26="v",F38,G38)) -> 0 | M6: =IF(Calculo!$C$6="Si",IF($B$26="v",J66,K66),IF($B$26="v",J38,K38)) -> 0 | N6: =IF(Calculo!$C$6="Si",IF($B$26="v",L66,M66),IF($B$26="v",L38,M38)) -> 0
C7: 4 | D7: =IF(Calculo!$C$6="Si",IF($B$26="v",H67,I67),IF($B$26="v",H39,I39)) -> 0 | E7: =IF(Calculo!$C$6="Si",IF($B$26="v",F67,G67),IF($B$26="v",F39,G39)) -> 80 | F7: =IF(Calculo!$C$6="Si",IF($B$26="v",F67,G67),IF($B$26="v",F39,G39)) -> 80 | G7: =IF(Calculo!$C$6="Si",IF($B$26="v",F67,G67),IF($B$26="v",F39,G39)) -> 80 | H7: =IF(Calculo!$C$6="Si",IF($B$26="v",F67,G67),IF($B$26="v",F39,G39)) -> 80 | I7: =IF(Calculo!$C$6="Si",IF($B$26="v",F67,G67),IF($B$26="v",F39,G39)) -> 80 | J7: =IF(Calculo!$C$6="Si",IF($B$26="v",F67,G67),IF($B$26="v",F39,G39)) -> 80 | K7: =IF(Calculo!$C$6="Si",IF($B$26="v",F67,G67),IF($B$26="v",F39,G39)) -> 80 | L7: =IF(Calculo!$C$6="Si",IF($B$26="v",F67,G67),IF($B$26="v",F39,G39)) -> 80 | M7: =IF(Calculo!$C$6="Si",IF($B$26="v",J67,K67),IF($B$26="v",J39,K39)) -> 0 | N7: =IF(Calculo!$C$6="Si",IF($B$26="v",L67,M67),IF($B$26="v",L39,M39)) -> 80
C8: 5 | D8: =IF(Calculo!$C$6="Si",IF($B$26="v",H68,I68),IF($B$26="v",H40,I40)) -> 0 | E8: =IF(Calculo!$C$6="Si",IF($B$26="v",F68,G68),IF($B$26="v",F40,G40)) -> 0 | F8: =IF(Calculo!$C$6="Si",IF($B$26="v",F68,G68),IF($B$26="v",F40,G40)) -> 0 | G8: =IF(Calculo!$C$6="Si",IF($B$26="v",F68,G68),IF($B$26="v",F40,G40)) -> 0 | H8: =IF(Calculo!$C$6="Si",IF($B$26="v",F68,G68),IF($B$26="v",F40,G40)) -> 0 | I8: =IF(Calculo!$C$6="Si",IF($B$26="v",F68,G68),IF($B$26="v",F40,G40)) -> 0 | J8: =IF(Calculo!$C$6="Si",IF($B$26="v",F68,G68),IF($B$26="v",F40,G40)) -> 0 | K8: =IF(Calculo!$C$6="Si",IF($B$26="v",F68,G68),IF($B$26="v",F40,G40)) -> 0 | L8: =IF(Calculo!$C$6="Si",IF($B$26="v",F68,G68),IF($B$26="v",F40,G40)) -> 0 | M8: =IF(Calculo!$C$6="Si",IF($B$26="v",J68,K68),IF($B$26="v",J40,K40)) -> 0 | N8: =IF(Calculo!$C$6="Si",IF($B$26="v",L68,M68),IF($B$26="v",L40,M40)) -> 0
C9: 6 | D9: =IF(Calculo!$C$6="Si",IF($B$26="v",H69,I69),IF($B$26="v",H41,I41)) -> 0 | E9: =IF(Calculo!$C$6="Si",IF($B$26="v",F69,G69),IF($B$26="v",F41,G41)) -> 0 | F9: =IF(Calculo!$C$6="Si",IF($B$26="v",F69,G69),IF($B$26="v",F41,G41)) -> 0 | G9: =IF(Calculo!$C$6="Si",IF($B$26="v",F69,G69),IF($B$26="v",F41,G41)) -> 0 | H9: =IF(Calculo!$C$6="Si",IF($B$26="v",F69,G69),IF($B$26="v",F41,G41)) -> 0 | I9: =IF(Calculo!$C$6="Si",IF($B$26="v",F69,G69),IF($B$26="v",F41,G41)) -> 0 | J9: =IF(Calculo!$C$6="Si",IF($B$26="v",F69,G69),IF($B$26="v",F41,G41)) -> 0 | K9: =IF(Calculo!$C$6="Si",IF($B$26="v",F69,G69),IF($B$26="v",F41,G41)) -> 0 | L9: =IF(Calculo!$C$6="Si",IF($B$26="v",F69,G69),IF($B$26="v",F41,G41)) -> 0 | M9: =IF(Calculo!$C$6="Si",IF($B$26="v",J69,K69),IF($B$26="v",J41,K41)) -> 0 | N9: =IF(Calculo!$C$6="Si",IF($B$26="v",L69,M69),IF($B$26="v",L41,M41)) -> 0
C10: 7 | D10: =IF(Calculo!$C$6="Si",IF($B$26="v",H70,I70),IF($B$26="v",H42,I42)) -> 0 | E10: =IF(Calculo!$C$6="Si",IF($B$26="v",F70,G70),IF($B$26="v",F42,G42)) -> 0 | F10: =IF(Calculo!$C$6="Si",IF($B$26="v",F70,G70),IF($B$26="v",F42,G42)) -> 0 | G10: =IF(Calculo!$C$6="Si",IF($B$26="v",F70,G70),IF($B$26="v",F42,G42)) -> 0 | H10: =IF(Calculo!$C$6="Si",IF($B$26="v",F70,G70),IF($B$26="v",F42,G42)) -> 0 | I10: =IF(Calculo!$C$6="Si",IF($B$26="v",F70,G70),IF($B$26="v",F42,G42)) -> 0 | J10: =IF(Calculo!$C$6="Si",IF($B$26="v",F70,G70),IF($B$26="v",F42,G42)) -> 0 | K10: =IF(Calculo!$C$6="Si",IF($B$26="v",F70,G70),IF($B$26="v",F42,G42)) -> 0 | L10: =IF(Calculo!$C$6="Si",IF($B$26="v",F70,G70),IF($B$26="v",F42,G42)) -> 0 | M10: =IF(Calculo!$C$6="Si",IF($B$26="v",J70,K70),IF($B$26="v",J42,K42)) -> 0 | N10: =IF(Calculo!$C$6="Si",IF($B$26="v",L70,M70),IF($B$26="v",L42,M42)) -> 0
C11: 8 | D11: =IF(Calculo!$C$6="Si",IF($B$26="v",H71,I71),IF($B$26="v",H43,I43)) -> 0 | E11: =IF(Calculo!$C$6="Si",IF($B$26="v",F71,G71),IF($B$26="v",F43,G43)) -> 0 | F11: =IF(Calculo!$C$6="Si",IF($B$26="v",F71,G71),IF($B$26="v",F43,G43)) -> 0 | G11: =IF(Calculo!$C$6="Si",IF($B$26="v",F71,G71),IF($B$26="v",F43,G43)) -> 0 | H11: =IF(Calculo!$C$6="Si",IF($B$26="v",F71,G71),IF($B$26="v",F43,G43)) -> 0 | I11: =IF(Calculo!$C$6="Si",IF($B$26="v",F71,G71),IF($B$26="v",F43,G43)) -> 0 | J11: =IF(Calculo!$C$6="Si",IF($B$26="v",F71,G71),IF($B$26="v",F43,G43)) -> 0 | K11: =IF(Calculo!$C$6="Si",IF($B$26="v",F71,G71),IF($B$26="v",F43,G43)) -> 0 | L11: =IF(Calculo!$C$6="Si",IF($B$26="v",F71,G71),IF($B$26="v",F43,G43)) -> 0 | M11: =IF(Calculo!$C$6="Si",IF($B$26="v",J71,K71),IF($B$26="v",J43,K43)) -> 0 | N11: =IF(Calculo!$C$6="Si",IF($B$26="v",L71,M71),IF($B$26="v",L43,M43)) -> 0
C12: 9 | D12: =IF(Calculo!$C$6="Si",IF($B$26="v",H72,I72),IF($B$26="v",H44,I44)) -> 0 | E12: =IF(Calculo!$C$6="Si",IF($B$26="v",F72,G72),IF($B$26="v",F44,G44)) -> 0 | F12: =IF(Calculo!$C$6="Si",IF($B$26="v",F72,G72),IF($B$26="v",F44,G44)) -> 0 | G12: =IF(Calculo!$C$6="Si",IF($B$26="v",F72,G72),IF($B$26="v",F44,G44)) -> 0 | H12: =IF(Calculo!$C$6="Si",IF($B$26="v",F72,G72),IF($B$26="v",F44,G44)) -> 0 | I12: =IF(Calculo!$C$6="Si",IF($B$26="v",F72,G72),IF($B$26="v",F44,G44)) -> 0 | J12: =IF(Calculo!$C$6="Si",IF($B$26="v",F72,G72),IF($B$26="v",F44,G44)) -> 0 | K12: =IF(Calculo!$C$6="Si",IF($B$26="v",F72,G72),IF($B$26="v",F44,G44)) -> 0 | L12: =IF(Calculo!$C$6="Si",IF($B$26="v",F72,G72),IF($B$26="v",F44,G44)) -> 0 | M12: =IF(Calculo!$C$6="Si",IF($B$26="v",J72,K72),IF($B$26="v",J44,K44)) -> 0 | N12: =IF(Calculo!$C$6="Si",IF($B$26="v",L72,M72),IF($B$26="v",L44,M44)) -> 0
C13: 10 | D13: =IF(Calculo!$C$6="Si",IF($B$26="v",H73,I73),IF($B$26="v",H45,I45)) -> 0 | E13: =IF(Calculo!$C$6="Si",IF($B$26="v",F73,G73),IF($B$26="v",F45,G45)) -> 0 | F13: =IF(Calculo!$C$6="Si",IF($B$26="v",F73,G73),IF($B$26="v",F45,G45)) -> 0 | G13: =IF(Calculo!$C$6="Si",IF($B$26="v",F73,G73),IF($B$26="v",F45,G45)) -> 0 | H13: =IF(Calculo!$C$6="Si",IF($B$26="v",F73,G73),IF($B$26="v",F45,G45)) -> 0 | I13: =IF(Calculo!$C$6="Si",IF($B$26="v",F73,G73),IF($B$26="v",F45,G45)) -> 0 | J13: =IF(Calculo!$C$6="Si",IF($B$26="v",F73,G73),IF($B$26="v",F45,G45)) -> 0 | K13: =IF(Calculo!$C$6="Si",IF($B$26="v",F73,G73),IF($B$26="v",F45,G45)) -> 0 | L13: =IF(Calculo!$C$6="Si",IF($B$26="v",F73,G73),IF($B$26="v",F45,G45)) -> 0 | M13: =IF(Calculo!$C$6="Si",IF($B$26="v",J73,K73),IF($B$26="v",J45,K45)) -> 0 | N13: =IF(Calculo!$C$6="Si",IF($B$26="v",L73,M73),IF($B$26="v",L45,M45)) -> 0
C14: 11 | D14: =IF(Calculo!$C$6="Si",IF($B$26="v",H74,I74),IF($B$26="v",H46,I46)) -> 0 | E14: =IF(Calculo!$C$6="Si",IF($B$26="v",F74,G74),IF($B$26="v",F46,G46)) -> 0 | F14: =IF(Calculo!$C$6="Si",IF($B$26="v",F74,G74),IF($B$26="v",F46,G46)) -> 0 | G14: =IF(Calculo!$C$6="Si",IF($B$26="v",F74,G74),IF($B$26="v",F46,G46)) -> 0 | H14: =IF(Calculo!$C$6="Si",IF($B$26="v",F74,G74),IF($B$26="v",F46,G46)) -> 0 | I14: =IF(Calculo!$C$6="Si",IF($B$26="v",F74,G74),IF($B$26="v",F46,G46)) -> 0 | J14: =IF(Calculo!$C$6="Si",IF($B$26="v",F74,G74),IF($B$26="v",F46,G46)) -> 0 | K14: =IF(Calculo!$C$6="Si",IF($B$26="v",F74,G74),IF($B$26="v",F46,G46)) -> 0 | L14: =IF(Calculo!$C$6="Si",IF($B$26="v",F74,G74),IF($B$26="v",F46,G46)) -> 0 | M14: =IF(Calculo!$C$6="Si",IF($B$26="v",J74,K74),IF($B$26="v",J46,K46)) -> 0 | N14: =IF(Calculo!$C$6="Si",IF($B$26="v",L74,M74),IF($B$26="v",L46,M46)) -> 0
C15: 12 | D15: =IF(Calculo!$C$6="Si",IF($B$26="v",H75,I75),IF($B$26="v",H47,I47)) -> 0 | E15: =IF(Calculo!$C$6="Si",IF($B$26="v",F75,G75),IF($B$26="v",F47,G47)) -> 0 | F15: =IF(Calculo!$C$6="Si",IF($B$26="v",F75,G75),IF($B$26="v",F47,G47)) -> 0 | G15: =IF(Calculo!$C$6="Si",IF($B$26="v",F75,G75),IF($B$26="v",F47,G47)) -> 0 | H15: =IF(Calculo!$C$6="Si",IF($B$26="v",F75,G75),IF($B$26="v",F47,G47)) -> 0 | I15: =IF(Calculo!$C$6="Si",IF($B$26="v",F75,G75),IF($B$26="v",F47,G47)) -> 0 | J15: =IF(Calculo!$C$6="Si",IF($B$26="v",F75,G75),IF($B$26="v",F47,G47)) -> 0 | K15: =IF(Calculo!$C$6="Si",IF($B$26="v",F75,G75),IF($B$26="v",F47,G47)) -> 0 | L15: =IF(Calculo!$C$6="Si",IF($B$26="v",F75,G75),IF($B$26="v",F47,G47)) -> 0 | M15: =IF(Calculo!$C$6="Si",IF($B$26="v",J75,K75),IF($B$26="v",J47,K47)) -> 0 | N15: =IF(Calculo!$C$6="Si",IF($B$26="v",L75,M75),IF($B$26="v",L47,M47)) -> 0
C16: 13 | D16: =IF(Calculo!$C$6="Si",IF($B$26="v",H76,I76),IF($B$26="v",H48,I48)) -> 0 | E16: =IF(Calculo!$C$6="Si",IF($B$26="v",F76,G76),IF($B$26="v",F48,G48)) -> 0 | F16: =IF(Calculo!$C$6="Si",IF($B$26="v",F76,G76),IF($B$26="v",F48,G48)) -> 0 | G16: =IF(Calculo!$C$6="Si",IF($B$26="v",F76,G76),IF($B$26="v",F48,G48)) -> 0 | H16: =IF(Calculo!$C$6="Si",IF($B$26="v",F76,G76),IF($B$26="v",F48,G48)) -> 0 | I16: =IF(Calculo!$C$6="Si",IF($B$26="v",F76,G76),IF($B$26="v",F48,G48)) -> 0 | J16: =IF(Calculo!$C$6="Si",IF($B$26="v",F76,G76),IF($B$26="v",F48,G48)) -> 0 | K16: =IF(Calculo!$C$6="Si",IF($B$26="v",F76,G76),IF($B$26="v",F48,G48)) -> 0 | L16: =IF(Calculo!$C$6="Si",IF($B$26="v",F76,G76),IF($B$26="v",F48,G48)) -> 0 | M16: =IF(Calculo!$C$6="Si",IF($B$26="v",J76,K76),IF($B$26="v",J48,K48)) -> 0 | N16: =IF(Calculo!$C$6="Si",IF($B$26="v",L76,M76),IF($B$26="v",L48,M48)) -> 0
C17: 14 | D17: =IF(Calculo!$C$6="Si",IF($B$26="v",H77,I77),IF($B$26="v",H49,I49)) -> 0 | E17: =IF(Calculo!$C$6="Si",IF($B$26="v",F77,G77),IF($B$26="v",F49,G49)) -> 0 | F17: =IF(Calculo!$C$6="Si",IF($B$26="v",F77,G77),IF($B$26="v",F49,G49)) -> 0 | G17: =IF(Calculo!$C$6="Si",IF($B$26="v",F77,G77),IF($B$26="v",F49,G49)) -> 0 | H17: =IF(Calculo!$C$6="Si",IF($B$26="v",F77,G77),IF($B$26="v",F49,G49)) -> 0 | I17: =IF(Calculo!$C$6="Si",IF($B$26="v",F77,G77),IF($B$26="v",F49,G49)) -> 0 | J17: =IF(Calculo!$C$6="Si",IF($B$26="v",F77,G77),IF($B$26="v",F49,G49)) -> 0 | K17: =IF(Calculo!$C$6="Si",IF($B$26="v",F77,G77),IF($B$26="v",F49,G49)) -> 0 | L17: =IF(Calculo!$C$6="Si",IF($B$26="v",F77,G77),IF($B$26="v",F49,G49)) -> 0 | M17: =IF(Calculo!$C$6="Si",IF($B$26="v",J77,K77),IF($B$26="v",J49,K49)) -> 0 | N17: =IF(Calculo!$C$6="Si",IF($B$26="v",L77,M77),IF($B$26="v",L49,M49)) -> 0
C18: 15 | D18: =IF(Calculo!$C$6="Si",IF($B$26="v",H78,I78),IF($B$26="v",H50,I50)) -> 0 | E18: =IF(Calculo!$C$6="Si",IF($B$26="v",F78,G78),IF($B$26="v",F50,G50)) -> 0 | F18: =IF(Calculo!$C$6="Si",IF($B$26="v",F78,G78),IF($B$26="v",F50,G50)) -> 0 | G18: =IF(Calculo!$C$6="Si",IF($B$26="v",F78,G78),IF($B$26="v",F50,G50)) -> 0 | H18: =IF(Calculo!$C$6="Si",IF($B$26="v",F78,G78),IF($B$26="v",F50,G50)) -> 0 | I18: =IF(Calculo!$C$6="Si",IF($B$26="v",F78,G78),IF($B$26="v",F50,G50)) -> 0 | J18: =IF(Calculo!$C$6="Si",IF($B$26="v",F78,G78),IF($B$26="v",F50,G50)) -> 0 | K18: =IF(Calculo!$C$6="Si",IF($B$26="v",F78,G78),IF($B$26="v",F50,G50)) -> 0 | L18: =IF(Calculo!$C$6="Si",IF($B$26="v",F78,G78),IF($B$26="v",F50,G50)) -> 0 | M18: =IF(Calculo!$C$6="Si",IF($B$26="v",J78,K78),IF($B$26="v",J50,K50)) -> 0 | N18: =IF(Calculo!$C$6="Si",IF($B$26="v",L78,M78),IF($B$26="v",L50,M50)) -> 0
C19: 16 | D19: =IF(Calculo!$C$6="Si",IF($B$26="v",H79,I79),IF($B$26="v",H51,I51)) -> 0 | E19: =IF(Calculo!$C$6="Si",IF($B$26="v",F79,G79),IF($B$26="v",F51,G51)) -> 0 | F19: =IF(Calculo!$C$6="Si",IF($B$26="v",F79,G79),IF($B$26="v",F51,G51)) -> 0 | G19: =IF(Calculo!$C$6="Si",IF($B$26="v",F79,G79),IF($B$26="v",F51,G51)) -> 0 | H19: =IF(Calculo!$C$6="Si",IF($B$26="v",F79,G79),IF($B$26="v",F51,G51)) -> 0 | I19: =IF(Calculo!$C$6="Si",IF($B$26="v",F79,G79),IF($B$26="v",F51,G51)) -> 0 | J19: =IF(Calculo!$C$6="Si",IF($B$26="v",F79,G79),IF($B$26="v",F51,G51)) -> 0 | K19: =IF(Calculo!$C$6="Si",IF($B$26="v",F79,G79),IF($B$26="v",F51,G51)) -> 0 | L19: =IF(Calculo!$C$6="Si",IF($B$26="v",F79,G79),IF($B$26="v",F51,G51)) -> 0 | M19: =IF(Calculo!$C$6="Si",IF($B$26="v",J79,K79),IF($B$26="v",J51,K51)) -> 0 | N19: =IF(Calculo!$C$6="Si",IF($B$26="v",L79,M79),IF($B$26="v",L51,M51)) -> 0
C20: 17 | D20: =IF(Calculo!$C$6="Si",IF($B$26="v",H80,I80),IF($B$26="v",H52,I52)) -> 0 | E20: =IF(Calculo!$C$6="Si",IF($B$26="v",F80,G80),IF($B$26="v",F52,G52)) -> 0 | F20: =IF(Calculo!$C$6="Si",IF($B$26="v",F80,G80),IF($B$26="v",F52,G52)) -> 0 | G20: =IF(Calculo!$C$6="Si",IF($B$26="v",F80,G80),IF($B$26="v",F52,G52)) -> 0 | H20: =IF(Calculo!$C$6="Si",IF($B$26="v",F80,G80),IF($B$26="v",F52,G52)) -> 0 | I20: =IF(Calculo!$C$6="Si",IF($B$26="v",F80,G80),IF($B$26="v",F52,G52)) -> 0 | J20: =IF(Calculo!$C$6="Si",IF($B$26="v",F80,G80),IF($B$26="v",F52,G52)) -> 0 | K20: =IF(Calculo!$C$6="Si",IF($B$26="v",F80,G80),IF($B$26="v",F52,G52)) -> 0 | L20: =IF(Calculo!$C$6="Si",IF($B$26="v",F80,G80),IF($B$26="v",F52,G52)) -> 0 | M20: =IF(Calculo!$C$6="Si",IF($B$26="v",J80,K80),IF($B$26="v",J52,K52)) -> 0 | N20: =IF(Calculo!$C$6="Si",IF($B$26="v",L80,M80),IF($B$26="v",L52,M52)) -> 0
C21: 18 | D21: =IF(Calculo!$C$6="Si",IF($B$26="v",H81,I81),IF($B$26="v",H53,I53)) -> 0 | E21: =IF(Calculo!$C$6="Si",IF($B$26="v",F81,G81),IF($B$26="v",F53,G53)) -> 0 | F21: =IF(Calculo!$C$6="Si",IF($B$26="v",F81,G81),IF($B$26="v",F53,G53)) -> 0 | G21: =IF(Calculo!$C$6="Si",IF($B$26="v",F81,G81),IF($B$26="v",F53,G53)) -> 0 | H21: =IF(Calculo!$C$6="Si",IF($B$26="v",F81,G81),IF($B$26="v",F53,G53)) -> 0 | I21: =IF(Calculo!$C$6="Si",IF($B$26="v",F81,G81),IF($B$26="v",F53,G53)) -> 0 | J21: =IF(Calculo!$C$6="Si",IF($B$26="v",F81,G81),IF($B$26="v",F53,G53)) -> 0 | K21: =IF(Calculo!$C$6="Si",IF($B$26="v",F81,G81),IF($B$26="v",F53,G53)) -> 0 | L21: =IF(Calculo!$C$6="Si",IF($B$26="v",F81,G81),IF($B$26="v",F53,G53)) -> 0 | M21: =IF(Calculo!$C$6="Si",IF($B$26="v",J81,K81),IF($B$26="v",J53,K53)) -> 0 | N21: =IF(Calculo!$C$6="Si",IF($B$26="v",L81,M81),IF($B$26="v",L53,M53)) -> 0
C22: 19 | D22: =IF(Calculo!$C$6="Si",IF($B$26="v",H82,I82),IF($B$26="v",H54,I54)) -> 0 | E22: =IF(Calculo!$C$6="Si",IF($B$26="v",F82,G82),IF($B$26="v",F54,G54)) -> 0 | F22: =IF(Calculo!$C$6="Si",IF($B$26="v",F82,G82),IF($B$26="v",F54,G54)) -> 0 | G22: =IF(Calculo!$C$6="Si",IF($B$26="v",F82,G82),IF($B$26="v",F54,G54)) -> 0 | H22: =IF(Calculo!$C$6="Si",IF($B$26="v",F82,G82),IF($B$26="v",F54,G54)) -> 0 | I22: =IF(Calculo!$C$6="Si",IF($B$26="v",F82,G82),IF($B$26="v",F54,G54)) -> 0 | J22: =IF(Calculo!$C$6="Si",IF($B$26="v",F82,G82),IF($B$26="v",F54,G54)) -> 0 | K22: =IF(Calculo!$C$6="Si",IF($B$26="v",F82,G82),IF($B$26="v",F54,G54)) -> 0 | L22: =IF(Calculo!$C$6="Si",IF($B$26="v",F82,G82),IF($B$26="v",F54,G54)) -> 0 | M22: =IF(Calculo!$C$6="Si",IF($B$26="v",J82,K82),IF($B$26="v",J54,K54)) -> 0 | N22: =IF(Calculo!$C$6="Si",IF($B$26="v",L82,M82),IF($B$26="v",L54,M54)) -> 0
C23: 20 | D23: =IF(Calculo!$C$6="Si",IF($B$26="v",H83,I83),IF($B$26="v",H55,I55)) -> 0 | E23: =IF(Calculo!$C$6="Si",IF($B$26="v",F83,G83),IF($B$26="v",F55,G55)) -> 0 | F23: =IF(Calculo!$C$6="Si",IF($B$26="v",F83,G83),IF($B$26="v",F55,G55)) -> 0 | G23: =IF(Calculo!$C$6="Si",IF($B$26="v",F83,G83),IF($B$26="v",F55,G55)) -> 0 | H23: =IF(Calculo!$C$6="Si",IF($B$26="v",F83,G83),IF($B$26="v",F55,G55)) -> 0 | I23: =IF(Calculo!$C$6="Si",IF($B$26="v",F83,G83),IF($B$26="v",F55,G55)) -> 0 | J23: =IF(Calculo!$C$6="Si",IF($B$26="v",F83,G83),IF($B$26="v",F55,G55)) -> 0 | K23: =IF(Calculo!$C$6="Si",IF($B$26="v",F83,G83),IF($B$26="v",F55,G55)) -> 0 | L23: =IF(Calculo!$C$6="Si",IF($B$26="v",F83,G83),IF($B$26="v",F55,G55)) -> 0 | M23: =IF(Calculo!$C$6="Si",IF($B$26="v",J83,K83),IF($B$26="v",J55,K55)) -> 0 | N23: =IF(Calculo!$C$6="Si",IF($B$26="v",L83,M83),IF($B$26="v",L55,M55)) -> 0
C24: 21 | D24: =IF(Calculo!$C$6="Si",IF($B$26="v",H84,I84),IF($B$26="v",H56,I56)) -> 0 | E24: =IF(Calculo!$C$6="Si",IF($B$26="v",F84,G84),IF($B$26="v",F56,G56)) -> 0 | F24: =IF(Calculo!$C$6="Si",IF($B$26="v",F84,G84),IF($B$26="v",F56,G56)) -> 0 | G24: =IF(Calculo!$C$6="Si",IF($B$26="v",F84,G84),IF($B$26="v",F56,G56)) -> 0 | H24: =IF(Calculo!$C$6="Si",IF($B$26="v",F84,G84),IF($B$26="v",F56,G56)) -> 0 | I24: =IF(Calculo!$C$6="Si",IF($B$26="v",F84,G84),IF($B$26="v",F56,G56)) -> 0 | J24: =IF(Calculo!$C$6="Si",IF($B$26="v",F84,G84),IF($B$26="v",F56,G56)) -> 0 | K24: =IF(Calculo!$C$6="Si",IF($B$26="v",F84,G84),IF($B$26="v",F56,G56)) -> 0 | L24: =IF(Calculo!$C$6="Si",IF($B$26="v",F84,G84),IF($B$26="v",F56,G56)) -> 0 | M24: =IF(Calculo!$C$6="Si",IF($B$26="v",J84,K84),IF($B$26="v",J56,K56)) -> 0 | N24: =IF(Calculo!$C$6="Si",IF($B$26="v",L84,M84),IF($B$26="v",L56,M56)) -> 0
B25: Cat. Mes | C25: 22 | D25: =IF(Calculo!$C$6="Si",IF($B$26="v",H85,I85),IF($B$26="v",H57,I57)) -> 0 | E25: =IF(Calculo!$C$6="Si",IF($B$26="v",F85,G85),IF($B$26="v",F57,G57)) -> 0 | F25: =IF(Calculo!$C$6="Si",IF($B$26="v",F85,G85),IF($B$26="v",F57,G57)) -> 0 | G25: =IF(Calculo!$C$6="Si",IF($B$26="v",F85,G85),IF($B$26="v",F57,G57)) -> 0 | H25: =IF(Calculo!$C$6="Si",IF($B$26="v",F85,G85),IF($B$26="v",F57,G57)) -> 0 | I25: =IF(Calculo!$C$6="Si",IF($B$26="v",F85,G85),IF($B$26="v",F57,G57)) -> 0 | J25: =IF(Calculo!$C$6="Si",IF($B$26="v",F85,G85),IF($B$26="v",F57,G57)) -> 0 | K25: =IF(Calculo!$C$6="Si",IF($B$26="v",F85,G85),IF($B$26="v",F57,G57)) -> 0 | L25: =IF(Calculo!$C$6="Si",IF($B$26="v",F85,G85),IF($B$26="v",F57,G57)) -> 0 | M25: =IF(Calculo!$C$6="Si",IF($B$26="v",J85,K85),IF($B$26="v",J57,K57)) -> 0 | N25: =IF(Calculo!$C$6="Si",IF($B$26="v",L85,M85),IF($B$26="v",L57,M57)) -> 0
B26: =+Datos!AF3 -> 0 | C26: 23 | D26: =IF(Calculo!$C$6="Si",IF($B$26="v",H86,I86),IF($B$26="v",H58,I58)) -> 0 | E26: =IF(Calculo!$C$6="Si",IF($B$26="v",F86,G86),IF($B$26="v",F58,G58)) -> 0 | F26: =IF(Calculo!$C$6="Si",IF($B$26="v",F86,G86),IF($B$26="v",F58,G58)) -> 0 | G26: =IF(Calculo!$C$6="Si",IF($B$26="v",F86,G86),IF($B$26="v",F58,G58)) -> 0 | H26: =IF(Calculo!$C$6="Si",IF($B$26="v",F86,G86),IF($B$26="v",F58,G58)) -> 0 | I26: =IF(Calculo!$C$6="Si",IF($B$26="v",F86,G86),IF($B$26="v",F58,G58)) -> 0 | J26: =IF(Calculo!$C$6="Si",IF($B$26="v",F86,G86),IF($B$26="v",F58,G58)) -> 0 | K26: =IF(Calculo!$C$6="Si",IF($B$26="v",F86,G86),IF($B$26="v",F58,G58)) -> 0 | L26: =IF(Calculo!$C$6="Si",IF($B$26="v",F86,G86),IF($B$26="v",F58,G58)) -> 0 | M26: =IF(Calculo!$C$6="Si",IF($B$26="v",J86,K86),IF($B$26="v",J58,K58)) -> 0 | N26: =IF(Calculo!$C$6="Si",IF($B$26="v",L86,M86),IF($B$26="v",L58,M58)) -> 0
C27: 24 | D27: =IF(Calculo!$C$6="Si",IF($B$26="v",H87,I87),IF($B$26="v",H59,I59)) -> 0 | E27: =IF(Calculo!$C$6="Si",IF($B$26="v",F87,G87),IF($B$26="v",F59,G59)) -> 0 | F27: =IF(Calculo!$C$6="Si",IF($B$26="v",F87,G87),IF($B$26="v",F59,G59)) -> 0 | G27: =IF(Calculo!$C$6="Si",IF($B$26="v",F87,G87),IF($B$26="v",F59,G59)) -> 0 | H27: =IF(Calculo!$C$6="Si",IF($B$26="v",F87,G87),IF($B$26="v",F59,G59)) -> 0 | I27: =IF(Calculo!$C$6="Si",IF($B$26="v",F87,G87),IF($B$26="v",F59,G59)) -> 0 | J27: =IF(Calculo!$C$6="Si",IF($B$26="v",F87,G87),IF($B$26="v",F59,G59)) -> 0 | K27: =IF(Calculo!$C$6="Si",IF($B$26="v",F87,G87),IF($B$26="v",F59,G59)) -> 0 | L27: =IF(Calculo!$C$6="Si",IF($B$26="v",F87,G87),IF($B$26="v",F59,G59)) -> 0 | M27: =IF(Calculo!$C$6="Si",IF($B$26="v",J87,K87),IF($B$26="v",J59,K59)) -> 0 | N27: =IF(Calculo!$C$6="Si",IF($B$26="v",L87,M87),IF($B$26="v",L59,M59)) -> 0
R32: =+COLUMN(R33) -> 18
E33: T° Libre | P33: =+COLUMN(P34) -> 16 | S33: Espesor de calculo
F34: Muros | H34: Techos | J34: Pisos_v | L34: Pisos_t | P34: e Eq H.A | Q34: 4.043513199 | R34: 4.043513199 | S34: =+IF($B$26="v",Q34,R34) -> 4.043513199
F35: SA Verano | G35: SA Invierno | H35: SA Verano | I35: SA Invierno | J35: SA Verano | K35: SA Invierno | L35: SA Verano | M35: SA Invierno | P35: Área eq H.A | Q35: 420
E36: 1 | F36: 0 | G36: 0 | H36: 0 | I36: 0 | J36: 0 | K36: 0 | L36: 0 | M36: 0
E37: =+E36+1 -> 2 | F37: 0 | G37: 0 | H37: 29 | I37: 76 | J37: 0 | K37: 0 | L37: 0 | M37: 0 | P37: Amortiguamiento | Q37: CTm | R37: fi
E38: =+E37+1 -> 3 | F38: 0 | G38: 0 | H38: 0 | I38: 0 | J38: 0 | K38: 0 | L38: 0 | M38: 0 | P38: 0.6512543299 | Q38: 7.454105764 | R38: 1.980905743
E39: 4 | F39: 70 | G39: 80 | H39: 0 | I39: 0 | J39: 0 | K39: 0 | L39: 70 | M39: 80
E40: 5 | F40: 0 | G40: 0 | H40: 0 | I40: 0 | J40: 0 | K40: 0 | L40: 0 | M40: 0 | P40: Participación de Masa
E41: 6 | F41: 0 | G41: 0 | H41: 0 | I41: 0 | J41: 0 | K41: 0 | L41: 0 | M41: 0 | P41: Techo | Q41: 0.04077025704
E42: 7 | F42: 0 | G42: 0 | H42: 0 | I42: 0 | J42: 0 | K42: 0 | L42: 0 | M42: 0 | P42: Muros | Q42: 0.4710660782
E43: 8 | F43: 0 | G43: 0 | H43: 0 | I43: 0 | J43: 0 | K43: 0 | L43: 0 | M43: 0 | P43: Piso v | Q43: 0
E44: 9 | F44: 0 | G44: 0 | H44: 0 | I44: 0 | J44: 0 | K44: 0 | L44: 0 | M44: 0 | P44: Piso t | Q44: 0.3827411886
E45: 10 | F45: 0 | G45: 0 | H45: 0 | I45: 0 | J45: 0 | K45: 0 | L45: 0 | M45: 0 | P45: Masa ad | Q45: 0.1054224762
E46: 11 | F46: 0 | G46: 0 | H46: 0 | I46: 0 | J46: 0 | K46: 0 | L46: 0 | M46: 0
E47: 12 | F47: 0 | G47: 0 | H47: 0 | I47: 0 | J47: 0 | K47: 0 | L47: 0 | M47: 0 | P47: dpm | Q47: =+IF(S34>=7,5,3) -> 3
E48: 13 | F48: 0 | G48: 0 | H48: 0 | I48: 0 | J48: 0 | K48: 0 | L48: 0 | M48: 0
E49: 14 | F49: 0 | G49: 0 | H49: 0 | I49: 0 | J49: 0 | K49: 0 | L49: 0 | M49: 0
E50: 15 | F50: 0 | G50: 0 | H50: 0 | I50: 0 | J50: 0 | K50: 0 | L50: 0 | M50: 0
E51: 16 | F51: 0 | G51: 0 | H51: 0 | I51: 0 | J51: 0 | K51: 0 | L51: 0 | M51: 0
E52: 17 | F52: 0 | G52: 0 | H52: 0 | I52: 0 | J52: 0 | K52: 0 | L52: 0 | M52: 0
E53: 18 | F53: 0 | G53: 0 | H53: 0 | I53: 0 | J53: 0 | K53: 0 | L53: 0 | M53: 0
E54: 19 | F54: 0 | G54: 0 | H54: 0 | I54: 0 | J54: 0 | K54: 0 | L54: 0 | M54: 0
E55: 20 | F55: 0 | G55: 0 | H55: 0 | I55: 0 | J55: 0 | K55: 0 | L55: 0 | M55: 0
E56: 21 | F56: 0 | G56: 0 | H56: 0 | I56: 0 | J56: 0 | K56: 0 | L56: 0 | M56: 0
E57: 22 | F57: 0 | G57: 0 | H57: 0 | I57: 0 | J57: 0 | K57: 0 | L57: 0 | M57: 0
E58: 23 | F58: 0 | G58: 0 | H58: 0 | I58: 0 | J58: 0 | K58: 0 | L58: 0 | M58: 0
E59: 24 | F59: 0 | G59: 0 | H59: 0 | I59: 0 | J59: 0 | K59: 0 | L59: 0 | M59: 0
E61: Con Clima
F62: Muros | H62: Techos | J62: Pisos_v | L62: Pisos_t
F63: SA Verano | G63: SA Invierno | H63: SA Verano | I63: SA Invierno | J63: SA Verano | K63: SA Invierno | L63: SA Verano | M63: SA Invierno
E64: 1 | F64: 0 | G64: 0 | H64: 0 | I64: 0 | J64: 0 | K64: 0 | L64: 0 | M64: 0
E65: =+E64+1 -> 2 | F65: 0 | G65: 0 | H65: 29 | I65: 76 | J65: 0 | K65: 0 | L65: 0 | M65: 0
E66: =+E65+1 -> 3 | F66: 0 | G66: 0 | H66: 0 | I66: 0 | J66: 0 | K66: 0 | L66: 0 | M66: 0
E67: 4 | F67: 70 | G67: 80 | H67: 0 | I67: 0 | J67: 0 | K67: 0 | L67: 70 | M67: 80
E68: 5 | F68: 0 | G68: 0 | H68: 0 | I68: 0 | J68: 0 | K68: 0 | L68: 0 | M68: 0
E69: 6 | F69: 0 | G69: 0 | H69: 0 | I69: 0 | J69: 0 | K69: 0 | L69: 0 | M69: 0
E70: 7 | F70: 0 | G70: 0 | H70: 0 | I70: 0 | J70: 0 | K70: 0 | L70: 0 | M70: 0
E71: 8 | F71: 0 | G71: 0 | H71: 0 | I71: 0 | J71: 0 | K71: 0 | L71: 0 | M71: 0
E72: 9 | F72: 0 | G72: 0 | H72: 0 | I72: 0 | J72: 0 | K72: 0 | L72: 0 | M72: 0
E73: 10 | F73: 0 | G73: 0 | H73: 0 | I73: 0 | J73: 0 | K73: 0 | L73: 0 | M73: 0
E74: 11 | F74: 0 | G74: 0 | H74: 0 | I74: 0 | J74: 0 | K74: 0 | L74: 0 | M74: 0
E75: 12 | F75: 0 | G75: 0 | H75: 0 | I75: 0 | J75: 0 | K75: 0 | L75: 0 | M75: 0
E76: 13 | F76: 0 | G76: 0 | H76: 0 | I76: 0 | J76: 0 | K76: 0 | L76: 0 | M76: 0
E77: 14 | F77: 0 | G77: 0 | H77: 0 | I77: 0 | J77: 0 | K77: 0 | L77: 0 | M77: 0
E78: 15 | F78: 0 | G78: 0 | H78: 0 | I78: 0 | J78: 0 | K78: 0 | L78: 0 | M78: 0
E79: 16 | F79: 0 | G79: 0 | H79: 0 | I79: 0 | J79: 0 | K79: 0 | L79: 0 | M79: 0
E80: 17 | F80: 0 | G80: 0 | H80: 0 | I80: 0 | J80: 0 | K80: 0 | L80: 0 | M80: 0
E81: 18 | F81: 0 | G81: 0 | H81: 0 | I81: 0 | J81: 0 | K81: 0 | L81: 0 | M81: 0
E82: 19 | F82: 0 | G82: 0 | H82: 0 | I82: 0 | J82: 0 | K82: 0 | L82: 0 | M82: 0
E83: 20 | F83: 0 | G83: 0 | H83: 0 | I83: 0 | J83: 0 | K83: 0 | L83: 0 | M83: 0
E84: 21 | F84: 0 | G84: 0 | H84: 0 | I84: 0 | J84: 0 | K84: 0 | L84: 0 | M84: 0
E85: 22 | F85: 0 | G85: 0 | H85: 0 | I85: 0 | J85: 0 | K85: 0 | L85: 0 | M85: 0
E86: 23 | F86: 0 | G86: 0 | H86: 0 | I86: 0 | J86: 0 | K86: 0 | L86: 0 | M86: 0
E87: 24 | F87: 0 | G87: 0 | H87: 0 | I87: 0 | J87: 0 | K87: 0 | L87: 0 | M87: 0

Sheet CEV-CEVE (hidden)
C1: CALIFICACIÓN ENERGÉTICA EN VIVIENDAS EN CHILE
D3: 1.- Características de la vivienda
D5: 1.1.- Datos generales e identificación del proyecto
B7: 1 | C7: Tipo de Calificación | E7: Calificación | G7: Vivienda nueva
B8: 2 | C8: Región | E8: Región_Metropolitana_de_Santiago
B9: 3 | C9: Comuna | E9: Peñalolén | I9: Tiene las siguientes Zonas Térmicas | L9: D | M9: 0 | N9: 0
B10: 4 | C10: Zona Térmica Proyecto | E10: D | L10: 3 | M10: 5 | N10: 7 | O10: 3 | AB10: Puertas
B11: 5 | C11: Dormitorios de la vivienda | E11: 4 | AB11: Nombre | AC11: Abreviatura | AD11: U puerta opaca [W/m2K] | AE11: Vidrio | AF11: % Vidrio | AG11: U Marco [W/m2K] | AH11: % Marco | AI11: U ponderado | AJ11: U ponderado opaco | AK11: U vidrio [W/m2K]
B12: 5 | AB12: Madera Solida | AC12: MS | AD12: 1.91 | AE12: VM | AF12: 0 | AG12: 1.25 | AH12: 0.0878 | AI12: 1.852052 | AJ12: 1.852052 | AK12: 5.8
B13: 6 | C13: Identificación de la vivienda a evaluar | E13: BLABLA | AB13: Madera con hasta 50% zona vidriada | AC13: MS < 50% Vidrio | AD13: 1.91 | AE13: VM | AF13: 0.4 | AG13: 1.25 | AH13: 0.0878 | AI13: 3.408052 | AJ13: 1.81342 | AK13: 5.8
B14: 7 | C14: Nombre del proyecto | E14: BLABLA | AB14: Madera con hasta 100% zona vidriada | AC14: MS < 100% Vidrio | AD14: 1.91 | AE14: VM | AF14: 0.85 | AG14: 1.25 | AH14: 0.0878 | AI14: 5.158552 | AJ14: 1.52368 | AK14: 5.8
B15: 8 | C15: Dirección de la vivienda | E15: EL OLIVILLO 5873 | AB15: Liviana de madera | AC15: ML | AD15: 2.63 | AE15: VM | AF15: 0 | AG15: 1.25 | AH15: 0.0878 | AI15: 2.508836 | AJ15: 2.508836 | AK15: 5.8
B16: 9 | C16: Tipo de vivienda | E16: Casa Aislada | AB16: Liviana madera con hasta 50% zona vidriada | AC16: ML < 50% Vidrio | AD16: 2.53 | AE16: VM | AF16: 0.45 | AG16: 1.25 | AH16: 0.0878 | AI16: 3.889116 | AJ16: 2.325665455 | AK16: 5.8
B17: 9 | AB17: Liviana madera con hasta 100% zona vidriada | AC17: ML < 100% Vidrio | AD17: 2.18 | AE17: VM | AF17: 0.85 | AG17: 1.25 | AH17: 0.0878 | AI17: 5.175346 | AJ17: 1.63564 | AK17: 5.8
B18: 9 | AI18: 0 | AJ18: 0 | AK18: 0
B19: 10 | C19: Rol vivienda | E19: 10371-8 | AI19: 0 | AJ19: 0 | AK19: 0
B20: 11 | C20: Evaluador energético | E20: YO | AI20: 0 | AJ20: 0 | AK20: 0
B21: 12 | C21: Rol registro de Evaluadores: | E21: NO SÉ | AI21: 0 | AJ21: 0 | AK21: 0
B22: 13 | C22: RUT Evaluador | E22: 16125392-8 | AI22: 0 | AJ22: 0 | AK22: 0
B23: 13 | AI23: 0 | AJ23: 0 | AK23: 0
B24: 14 | C24: Versión Planilla | E24: 2.2
B25: 15 | C25: Caso interno Evaluador | AB25: Vidrios
B26: 16 | C26: Iteración Evaluador | AB26: Nombre | AC26: Abreviatura | AD26: U vidrio [W/m2K] | AE26: FS Vidrio
B27: 16 | AB27: Vidrio Monolítico (VM). Sin espaciador | AC27: VM | AD27: 5.8 | AE27: 0.87
B28: 17 | C28: Solicitado por: | E28: 6699564-k | AB28: DVH con espaciador de 6mm | AC28: DVH con 6mm | AD28: 3.28 | AE28: 0.7743
B29: 18 | C29: RUT Mandante | E29: ROSA MARIA CARO HENRIQUEZ | AB29: DVH con espaciador de 9mm | AC29: DVH con 9mm | AD29: 3.01 | AE29: 0.7743
B30: 18 | AB30: DVH con espaciador de 12mm | AC30: DVH con 12mm | AD30: 2.85 | AE30: 0.7743
B31: 18 | D31: 1.2.- Descripción general de los elementos de la envolvente (esto sólo se utiliza en la confección del certificado) | AB31: DVH con espaciador de 15mm o mayor | AC31: DVH con 15mm o + | AD31: 2.8 | AE31: 0.7743
B32: 18
B33: 19 | C33: Muro principal | E33: Muro LADRILLO con aislación por Sin, de materialidad Pesado, con U= 1,9 [W/m2K], espesor solido17 [cm] y espesor aislante de [cm]
B34: 20 | C34: Muro secundario
B35: 21 | C35: Piso principal | E35: Piso MI PISO con aislación por Sin, con U = [W/m2K],
B36: 22 | C36: Techo principal | E36: Techo TECHO con aislación por con U= 0,47 [W/m2K] y espesor aislante de [cm]
B37: 23 | C37: Techo secundario
B38: 24 | C38: Ventana principal: Vidrio y Marco | E38: Vidrio Vidrio Monolítico (VM). Sin espaciador con U= 5,8 [W/m2K] y factor solar de 0,87
B39: 25 | C39: Ventana secundaria: Vidrio y Marco | O39: Marco Metal sin Ruptura de Puente Térmico con U= 5,8 [W/m2K] y factor Marco de 0,85
B40: 26 | C40: Puerta principal | E40: Puerta Madera Solida con U= 1,91 [W/m2K] y 0 % de vidrio
B41: 26
B42: 26 | D42: 1.3.- Descripción general de los sistemas de calefacción y agua caliente sanitaria
B43: 26
B44: 27 | C44: Sistema de calefacción | AB44: Marcos Ventana
B45: 28 | C45: Sistema de agua caliente | AB45: Nombre tipo de Marcos | AC45: Abreviatura | AD45: Ufr [W/m2K] | AE45: FM
B46: 28 | AB46: Madera | AC46: Madera | AD46: 2.6 | AE46: 0.75
B47: 28 | AB47: Policloruro de Vinilo | AC47: PVC | AD47: 2.8 | AE47: 0.8
B48: 28 | D48: 2.- Dimensiones de la vivienda | AB48: Metal sin Ruptura de Puente Térmico | AC48: Sin RPT | AD48: 5.8 | AE48: 0.85
B49: 28 | AB49: Metal con Ruptura de Puente Térmico | AC49: Con RPT | AD49: 3.3 | AE49: 0.8
B50: 28 | D50: Area [m²] | E50: Altura [m] | F50: Volumen [m3]
B51: 28
B52: 29 | C52: Piso 1 | D52: 130 | E52: 2.4 | F52: 312
B53: 30 | C53: Piso 2 | F53: 0
B54: 31 | C54: Piso 3+4+.. | F54: 0
B55: 31
B56: 32 | C56: Total | D56: 130 | F56: 312
B57: 32
B58: 32
B59: 32 | D59: 3.- Características térmicas de la envolvente | AB59: Muros transmitancia
B60: 32 | AB60: Nombre | AC60: Abreviatura | AD60: Tipología/materialidad | AE60: U [W/m2K] | AF60: espesor muro solido [cm] | AG60: espesor aislante [cm] | AH60: Posición Aislación
B61: 32 | D61: 3.1.- Area y coeficiente de transferencia de calor por elemento constructivo | AB61: Adiabatico | AC61: Muro Adiabatico | AE61: 0
B62: 32 | AB62: LADRILLO | AC62: LADRILLO | AD62: Pesado | AE62: 1.9 | AF62: 17 | AH62: Sin
B63: 32 | D63: Muros | E63: Ángulo Azimut | F63: Orientación | G63: Densidad Muro | H63: Area (m²) | I63: U [W/m²K] | K63: Puentes térmicos [ml] | O63: Posición Aislación
B64: 32 | K64: P01 | L64: P02 | M64: P03
B65: 32
B66: 33 | C66: Muro 1 | D66: LADRILLO | E66: 0° ≤ Az < 22,5° | F66: N | G66: Pesado | H66: 40 | I66: 1.9 | O66: Sin
B67: 34 | C67: Muro 2 | D67: LADRILLO | E67: 67,5° ≤ Az < 90° | F67: E | G67: Pesado | H67: 40 | I67: 1.9 | O67: Sin
B68: 35 | C68: Muro 3 | D68: LADRILLO | E68: 157,5° ≤ Az < 180° | F68: S | G68: Pesado | H68: 40 | I68: 1.9 | O68: Sin
B69: 36 | C69: Muro 4 | D69: LADRILLO | E69: -90° ≤ Az < -67,5° | F69: O | G69: Pesado | H69: 40 | I69: 1.9 | O69: Sin
B70: 37 | C70: Muro 5 | F70: 0
B71: 38 | C71: Muro 6 | F71: 0
B72: 39 | C72: Muro 7 | F72: 0
B73: 40 | C73: Muro 8 | F73: 0
B74: 41 | C74: Muro 9 | F74: 0
B75: 42 | C75: Muro 10 | F75: 0
B76: 43 | C76: Muro 11 | F76: 0
B77: 44 | C77: Muro 12 | F77: 0 | AB77: Techos transmitancia
B78: 45 | C78: Muro 13 | F78: 0 | AB78: Nombre | AC78: Abreviatura | AD78: U [W/m2K] | AF78: espesor techo solido [cm] | AG78: espesor aislante [cm] | AH78: Posición Aislación
B79: 46 | C79: Muro 14 | F79: 0 | AB79: Adiabatico | AC79: Techo Adiabatico | AD79: 0
B80: 47 | C80: Muro 15 | F80: 0 | AB80: TECHO | AC80: TECHO | AD80: 0.47
B81: 48 | C81: Muro 16 + .. | F81: 0
B82: 48
B83: 48 | D83: Puentes térmicos particulares
B84: 48 | D84: Alojada en el muro | E84: Azimut | F84: Orientación | G84: Elemento perpendicular | H84: Aislación | I84: Longitud [m] | AB84: Pisos transmitancia
B85: 48 | AB85: Nombre | AC85: Abreviatura | AD85: U Piso ventilado | AE85: Aislación bajo piso contacto terreno | AG85: Refuerzo Aislación Vert. | AJ85: Refuerzo Aislación horiz. | AM85: Posición
B86: 48 | AD86: [W/m2K] | AE86: l [W/mK] | AF86: e aislante [cm] | AG86: l [W/mK] | AH86: e aislante [cm] | AI86: D [cm] | AJ86: l [W/mK] | AK86: e aislante [cm] | AL86: D [cm] | AM86: Aislación
B87: 49 | C87: P04 | F87: 0 | AB87: Adiabatico | AC87: Piso Adiabatico | AD87: 0
B88: 50 | C88: P04 | F88: 0 | AB88: MI PISO | AC88: PISO CONTACTO | AM88: Sin
B89: 51 | C89: P04 | F89: 0
B90: 52 | C90: P04 | F90: 0
B91: 53 | C91: P04 | F91: 0
B92: 53
B93: 53 | D93: Tipo Puerta | E93: Azimut | F93: Orientación | H93: Categoría para Infiltraciones | K93: Alto [m] | L93: Ancho [m] | N93: Área vidrio [m2] | P93: FAV 1 | R93: FAV 2 Izquierda | T93: FAV 2 Derecha | V93: FAV 3
B94: 53 | K94: (incluye marco) | P94: D | Q94: L | R94: P | S94: S | T94: P | U94: S | V94: E | W94: T | X94: b | Y94: a
B95: 53
B96: 54 | C96: Puerta 1 | D96: MS | E96: 0° ≤ Az < 22,5° | F96: N | H96: Madera Solida | K96: 2 | L96: 0.9 | N96: 0
B97: 55 | C97: Puerta 2 | F97: 0 | N97: 0
B98: 56 | C98: Puerta 3 | F98: 0 | N98: 0
B99: 56
B100: 56 | D100: Tipo Ventana | E100: Azimut | F100: Orientación | G100: Elemento envolvente donde se encuentra | H100: Tipo de Cierre de ventana | I100: Posición Ventanal | J100: Aislación Con/Sin retorno | K100: Alto [m] (H) | L100: Ancho [m] (W) | M100: Categoría para PT y Infilt | N100: Tipo | P100: FAV 1 | R100: FAV 2 Izquierda | T100: FAV 2 Derecha | V100: FAV 3
B101: 56 | D101: Ventana (incluye marco) | M101: Marco | P101: D | Q101: L | R101: P | S101: S | T101: P | U101: S | V101: E | W101: T | X101: b | Y101: a
B102: 56
B103: 57 | C103: Ventana 1 | D103: VM | E103: 45° ≤ Az < 67,5° | F103: NE | G103: LADRILLO | H103: Corredera | I103: Centrada | J103: Sin | K103: 2 | L103: 2.5 | M103: Metalico | N103: Sin RPT
B104: 58 | C104: Ventana 2 | F104: 0
B105: 59 | C105: Ventana 3 | F105: 0
B106: 60 | C106: Ventana 4 | F106: 0
B107: 61 | C107: Ventana 5 | F107: 0
B108: 62 | C108: Ventana 6 | F108: 0
B109: 63 | C109: Ventana 7 | F109: 0
B110: 64 | C110: Ventana 8 | F110: 0
B111: 65 | C111: Ventana 9 | F111: 0
B112: 66 | C112: Ventana 10 | F112: 0
B113: 67 | C113: Ventana 11 | F113: 0
B114: 68 | C114: Ventana 12 | F114: 0
B115: 69 | C115: Ventana 13 | F115: 0
B116: 70 | C116: Ventana 14 | F116: 0
B117: 71 | C117: Ventana 15 | F117: 0
B118: 72 | C118: Ventana 16 | F118: 0
B119: 73 | C119: Ventana 17 | F119: 0
B120: 74 | C120: Ventana 18 | F120: 0
B121: 75 | C121: Ventana 19 | F121: 0
B122: 76 | C122: Ventana 20 | F122: 0
B124: 76 | E124: % Anual referencial Rad Directa | H124: 1 | J124: % Anual referencial Rad Directa | M124: 1 | O124: % Anual referencial Rad Directa | R124: 1 | T124: % Anual referencial Rad Directa | W124: 1
B125: 77 | C125: Orientación | E125: N | F125: Azimut | J125: E | K125: Azimut | O125: S | P125: Azimut | T125: O | U125: Azimut
B126: 78 | C126: Dimensiones | E126: División | F126: A [m] | G126: B [m] | H126: D [m] | J126: División | K126: A [m] | L126: B [m] | M126: D [m] | O126: División | P126: A [m] | Q126: B [m] | R126: D [m] | T126: División | U126: A [m] | V126: B [m] | W126: D [m]
B127: 79 | C127: Obstrucción 1
B128: 80 | C128: Obstrucción 2
B129: 81 | C129: Obstrucción 3
B130: 82 | C130: Obstrucción 4
B131: 83 | C131: Obstrucción 5
B132: 84 | C132: Obstrucción 6
B133: 85 | C133: Obstrucción 7
B134: 86 | C134: Obstrucción 8
B136: 86 | E136: % Anual referencial Rad Directa | H136: 1 | J136: % Anual referencial Rad Directa | M136: 1 | O136: % Anual referencial Rad Directa | R136: 1 | T136: % Anual referencial Rad Directa | W136: 1
B137: 87 | C137: Orientación | E137: NE | F137: Azimut | J137: SE | K137: Azimut | O137: SO | P137: Azimut | T137: NO | U137: Azimut
B138: 88 | C138: Dimensiones | E138: División | F138: A [m] | G138: B [m] | H138: D [m] | J138: División | K138: A [m] | L138: B [m] | M138: D [m] | O138: División | P138: A [m] | Q138: B [m] | R138: D [m] | T138: División | U138: A [m] | V138: B [m] | W138: D [m]
B139: 89 | C139: Obstrucción 1
B140: 90 | C140: Obstrucción 2
B141: 91 | C141: Obstrucción 3
B142: 92 | C142: Obstrucción 4
B143: 93 | C143: Obstrucción 5
B144: 94 | C144: Obstrucción 6
B145: 95 | C145: Obstrucción 7
B146: 96 | C146: Obstrucción 8
B147: 96
B148: 96 | D148: Techos | F148: Densidad Techo | G148: Area (m²) | H148: U [W/m²K] | K148: Camaras de aire | L148: Tipo de cubierta | N148: Posición Aislación
B149: 96
B150: 97 | C150: Techo 1 | D150: TECHO | F150: Liviano-Otro | G150: 130 | H150: 0.47 | K150: Ligeramente ventilada | L150: Cubierta normal | N150: 0
B151: 98 | C151: Techo 2
B152: 99 | C152: Techo 3
B153: 100 | C153: Techo 4
B154: 101 | C154: Techo 5+..
B155: 101
B156: 101 | D156: Pisos | F156: Densidad Piso | G156: Area (m²) | H156: U [W/m²K] | K156: Perímetro contacto terreno [m] | L156: Piso ventilado | N156: Posición Aislación | R156: Ls [W/K]
B157: 101
B158: 102 | C158: Piso 1 | D158: PISO CONTACTO | F158: Pesado | G158: 130 | H158: 0 | K158: 90 | L158: No Ventilado | N158: Sin | R158: 148.3710555
B159: 103 | C159: Piso 2 | R159: 0
B160: 104 | C160: Piso 3 | R160: 0
B161: 105 | C161: Piso 4+.. | R161: 0
B162: 105
B163: 105
B164: 105 | D164: Resumen Envolvente
B165: 105
B166: 105 | D166: Elementos Opacos | H166: Elementos traslucidos | K166: Perdidas Puentes térmicos
B167: 105 | D167: Área total [m²] | E167: Área Efectiva [m²] | F167: Ū [W/Km²] | H167: Área [m²] | I167: U [W/Km²] | K167: P01 | L167: P02 | M167: P03 | N167: P04 | O167: P05 | P167: Total | S167: Ū*A + jL [W/K] | U167: [m²] Envolvente no adiabatica
B168: 105 | U168: 426.8
B169: 106 | C169: Horiz | D169: 130 | E169: 130 | F169: 0.47 | H169: 0 | I169: 0 | R169: Techos | S169: 61.1
B170: 107 | C170: N | D170: 41.8 | E170: 41.8 | F170: 1.897935254 | H170: 0 | I170: 0 | K170: 0 | L170: 0 | M170: 0 | N170: 0 | O170: 0 | P170: 0 | R170: N | S170: 79.3336936
B171: 108 | C171: NE | D171: 0.75 | E171: 0.75 | F171: 5.8 | H171: 4.25 | I171: 5.8 | K171: 0 | L171: 0 | M171: 0 | N171: 0 | O171: 0 | P171: 0 | R171: NE | S171: 29
B172: 109 | C172: E | D172: 40 | E172: 40 | F172: 1.9 | H172: 0 | I172: 0 | K172: 0 | L172: 0 | M172: 0 | N172: 0 | O172: 0 | P172: 0 | R172: E | S172: 76
B173: 110 | C173: SE | D173: 0 | E173: 0 | F173: 0 | H173: 0 | I173: 0 | K173: 0 | L173: 0 | M173: 0 | N173: 0 | O173: 0 | P173: 0 | R173: SE | S173: 0
B174: 111 | C174: S | D174: 40 | E174: 40 | F174: 1.9 | H174: 0 | I174: 0 | K174: 0 | L174: 0 | M174: 0 | N174: 0 | O174: 0 | P174: 0 | R174: S | S174: 76
B175: 112 | C175: SO | D175: 0 | E175: 0 | F175: 0 | H175: 0 | I175: 0 | K175: 0 | L175: 0 | M175: 0 | N175: 0 | O175: 0 | P175: 0 | R175: SO | S175: 0
B176: 113 | C176: O | D176: 40 | E176: 40 | F176: 1.9 | H176: 0 | I176: 0 | K176: 0 | L176: 0 | M176: 0 | N176: 0 | O176: 0 | P176: 0 | R176: O | S176: 76
B177: 114 | C177: NO | D177: 0 | E177: 0 | F177: 0 | H177: 0 | I177: 0 | K177: 0 | L177: 0 | M177: 0 | N177: 0 | O177: 0 | P177: 0 | R177: NO | S177: 0
B178: 115 | C178: Pisos | D178: 130 | E178: 0 | F178: 0 | O178: Pisos Ls | P178: 148.3710555 | R178: Pisos | S178: 148.3710555
B179: 115
B180: 115
B181: 115
B182: 115 | D182: 4.- Perfil de uso
B183: 115
B184: 115 | D184: 4.1.- Condiciones de uso de la vivienda
B185: 115
B186: 115 | I186: Cargas internas [W/m2]
B187: 115 | I187: Enero | J187: Febrero | K187: Marzo | L187: Abril | M187: Mayo | N187: Junio | O187: Julio | P187: Agosto | Q187: Septiembre | R187: Octubre | S187: Noviembre | T187: Diciembre
B188: 115 | H188: 0 | I188: 3.153846154 | J188: 3.153846154 | K188: 3.153846154 | L188: 3.153846154 | M188: 3.153846154 | N188: 3.153846154 | O188: 3.153846154 | P188: 3.153846154 | Q188: 3.153846154 | R188: 3.153846154 | S188: 3.153846154 | T188: 3.153846154
B189: 115 | H189: 1 | I189: 3.153846154 | J189: 3.153846154 | K189: 3.153846154 | L189: 3.153846154 | M189: 3.153846154 | N189: 3.153846154 | O189: 3.153846154 | P189: 3.153846154 | Q189: 3.153846154 | R189: 3.153846154 | S189: 3.153846154 | T189: 3.153846154
B190: 115 | H190: 2 | I190: 3.153846154 | J190: 3.153846154 | K190: 3.153846154 | L190: 3.153846154 | M190: 3.153846154 | N190: 3.153846154 | O190: 3.153846154 | P190: 3.153846154 | Q190: 3.153846154 | R190: 3.153846154 | S190: 3.153846154 | T190: 3.153846154
B191: 115 | E191: [W/m2] | H191: 3 | I191: 3.153846154 | J191: 3.153846154 | K191: 3.153846154 | L191: 3.153846154 | M191: 3.153846154 | N191: 3.153846154 | O191: 3.153846154 | P191: 3.153846154 | Q191: 3.153846154 | R191: 3.153846154 | S191: 3.153846154 | T191: 3.153846154
B192: 115 | H192: 4 | I192: 3.153846154 | J192: 3.153846154 | K192: 3.153846154 | L192: 3.153846154 | M192: 3.153846154 | N192: 3.153846154 | O192: 3.153846154 | P192: 3.153846154 | Q192: 3.153846154 | R192: 3.153846154 | S192: 3.153846154 | T192: 3.153846154
B193: 115 | E193: Diurna | F193: Nocturna | H193: 5 | I193: 3.153846154 | J193: 3.153846154 | K193: 3.153846154 | L193: 3.153846154 | M193: 3.153846154 | N193: 3.153846154 | O193: 3.153846154 | P193: 3.153846154 | Q193: 3.153846154 | R193: 3.153846154 | S193: 3.153846154 | T193: 3.153846154
B194: 116 | C194: Usuarios | E194: 3.784615385 | F194: 3.153846154 | H194: 6 | I194: 2.523076923 | J194: 2.523076923 | K194: 2.523076923 | L194: 2.523076923 | M194: 2.523076923 | N194: 2.523076923 | O194: 2.523076923 | P194: 2.523076923 | Q194: 2.523076923 | R194: 2.523076923 | S194: 2.523076923 | T194: 2.523076923
B195: 117 | C195: Iluminación cuando luz natural < 250 Lux | E195: 1.5 | F195: 0 | G195: 308.295 | H195: 7 | I195: 3.027692308 | J195: 3.027692308 | K195: 3.027692308 | L195: 3.027692308 | M195: 3.027692308 | N195: 4.527692308 | O195: 3.027692308 | P195: 3.027692308 | Q195: 3.027692308 | R195: 3.027692308 | S195: 3.027692308 | T195: 3.027692308
B196: 117 | H196: 8 | I196: 1.513846154 | J196: 1.513846154 | K196: 1.513846154 | L196: 1.513846154 | M196: 1.513846154 | N196: 1.513846154 | O196: 1.513846154 | P196: 1.513846154 | Q196: 1.513846154 | R196: 1.513846154 | S196: 1.513846154 | T196: 1.513846154
B197: 117 | H197: 9 | I197: 0.9461538462 | J197: 0.9461538462 | K197: 0.9461538462 | L197: 0.9461538462 | M197: 0.9461538462 | N197: 0.9461538462 | O197: 0.9461538462 | P197: 0.9461538462 | Q197: 0.9461538462 | R197: 0.9461538462 | S197: 0.9461538462 | T197: 0.9461538462
B198: 117 | H198: 10 | I198: 0.9461538462 | J198: 0.9461538462 | K198: 0.9461538462 | L198: 0.9461538462 | M198: 0.9461538462 | N198: 0.9461538462 | O198: 0.9461538462 | P198: 0.9461538462 | Q198: 0.9461538462 | R198: 0.9461538462 | S198: 0.9461538462 | T198: 0.9461538462
B199: 117 | H199: 11 | I199: 0.9461538462 | J199: 0.9461538462 | K199: 0.9461538462 | L199: 0.9461538462 | M199: 0.9461538462 | N199: 0.9461538462 | O199: 0.9461538462 | P199: 0.9461538462 | Q199: 0.9461538462 | R199: 0.9461538462 | S199: 0.9461538462 | T199: 0.9461538462
B200: 117 | H200: 12 | I200: 0.9461538462 | J200: 0.9461538462 | K200: 0.9461538462 | L200: 0.9461538462 | M200: 0.9461538462 | N200: 0.9461538462 | O200: 0.9461538462 | P200: 0.9461538462 | Q200: 0.9461538462 | R200: 0.9461538462 | S200: 0.9461538462 | T200: 0.9461538462
B201: 117 | H201: 13 | I201: 0.9461538462 | J201: 0.9461538462 | K201: 0.9461538462 | L201: 0.9461538462 | M201: 0.9461538462 | N201: 0.9461538462 | O201: 0.9461538462 | P201: 0.9461538462 | Q201: 0.9461538462 | R201: 0.9461538462 | S201: 0.9461538462 | T201: 0.9461538462
B202: 117 | H202: 14 | I202: 0.9461538462 | J202: 0.9461538462 | K202: 0.9461538462 | L202: 0.9461538462 | M202: 0.9461538462 | N202: 0.9461538462 | O202: 0.9461538462 | P202: 0.9461538462 | Q202: 0.9461538462 | R202: 0.9461538462 | S202: 0.9461538462 | T202: 0.9461538462
B203: 117 | H203: 15 | I203: 0.9461538462 | J203: 0.9461538462 | K203: 0.9461538462 | L203: 0.9461538462 | M203: 0.9461538462 | N203: 0.9461538462 | O203: 0.9461538462 | P203: 0.9461538462 | Q203: 0.9461538462 | R203: 0.9461538462 | S203: 0.9461538462 | T203: 0.9461538462
B204: 117 | H204: 16 | I204: 1.135384615 | J204: 1.135384615 | K204: 1.135384615 | L204: 1.135384615 | M204: 1.135384615 | N204: 2.635384615 | O204: 1.135384615 | P204: 1.135384615 | Q204: 1.135384615 | R204: 1.135384615 | S204: 1.135384615 | T204: 1.135384615
B205: 117 | H205: 17 | I205: 1.892307692 | J205: 1.892307692 | K205: 1.892307692 | L205: 3.392307692 | M205: 3.392307692 | N205: 3.392307692 | O205: 3.392307692 | P205: 3.392307692 | Q205: 1.892307692 | R205: 1.892307692 | S205: 1.892307692 | T205: 1.892307692
... 34 more rows

Sheet Calculo
C1: Versión | D1: 2.2
C2: Parámetros de operación | H2: DATOS RECINTO:
B4: Recup. de calor. | C4: No | D4: [ ] | G4: Elementos Opacos | K4: Elementos traslucidos | N4: Puentes térmicos
B5: Eficiencia recup. | C5: 0 | D5: [ ] | G5: Área total [m2] | H5: Área Efectiva [m2] | I5: U [W/Km²] | K5: Área [m2] | L5: U [W/Km²] | N5: [W/K]
B6: Sistema de clima. | C6: No | D6: [ ]
F8: TECHO | G8: 130 | H8: 130 | I8: 0.47 | K8: 0 | L8: 0
F9: NORTE: | G9: 40 | H9: 40 | I9: 1.9 | K9: 0 | L9: 0 | N9: 0
F10: NOR-ESTE: | G10: 0 | H10: 0 | I10: 0 | K10: 0 | L10: 0 | N10: 0
F11: ESTE: | G11: 40 | H11: 40 | I11: 1.9 | K11: 0 | L11: 0 | N11: 0
F12: SUR-ESTE: | G12: 0 | H12: 0 | I12: 0 | K12: 0 | L12: 0 | N12: 0
F13: SUR: | G13: 40 | H13: 40 | I13: 1.9 | K13: 0 | L13: 0 | N13: 0
F14: SUR-OESTE: | G14: 0 | H14: 0 | I14: 0 | K14: 0 | L14: 0 | N14: 0
F15: OESTE: | G15: 41.8 | H15: 41.8 | I15: 1.897935254 | K15: 0 | L15: 0 | N15: 0
F16: NOR-OESTE: | G16: 0.75 | H16: 0.75 | I16: 5.8 | K16: 4.25 | L16: 5.8 | N16: 2.76
F17: PISO: | G17: 130 | H17: 0 | I17: 0 | N17: 148.3710555
G20: Area [m²] | H20: Altura [m] | I20: Volumen [m3]
F22: Piso 1 | G22: 130 | H22: 2.4 | I22: 312
F23: Piso 2 | G23: 0 | H23: 0 | I23: 0
F24: Piso 3+4+.. | G24: 0 | H24: 0 | I24: 0
F26: Total | G26: 130 | I26: 312
A35: # | B35: Situación evaluada | C35: Estado | D35: Demanda calefacción [kWh/m²año] | E35: Demanda refrigeración [kWh/m²año] | F35: Demanda total [kWh/m²año] | G35: % ahorro calefacción | H35: % ahorro refrigeración | I35: % ahorro demanda | J35: letra | K35: % Tiempo en disconfort frio | L35: % Tiempo en disconfort calor
A36: 1 | B36: BLABLA 18-11-14 17-31 | C36: OK | D36: 105.3402594 | E36: 0.3232898111 | F36: 105.6635492 | G36: 0.0084676895 | H36: 0.2172003454 | I36: 0.009275964779 | J36: E | K36: 0.5902777778 | L36: 0

Sheet Resultados (hidden)
A1: =+COUNTA(C6:C1048576)/25*26+6 -> 3126 | B1: Fila a insertar datos (NO borrar)
A2: =+Calculo!C23 -> 0
C4: 1 | D4: 2 | E4: 3 | F4: 4 | G4: 5 | H4: 6 | I4: 7 | J4: 8 | K4: 9 | L4: 10 | M4: 11 | N4: 12 | O4: 13 | P4: 14 | Q4: 15 | R4: 16 | S4: 17 | T4: 18 | U4: 19 | V4: 20 | W4: 21 | X4: 22 | Y4: 23 | Z4: 24 | AA4: 25 | AB4: 26 | AC4: 27 | AD4: 28 | AE4: 29 | AF4: 30 | AG4: 31 | AH4: 32 | AI4: 33 | AJ4: 34
C5: Tiempo [hrs] | D5: Tiempo [s] | E5: Mes | F5: T° exterior | G5: Qsol_ef tot [W] | H5: Qgen pers [W] | I5: Qgen ilum [W] | J5: Qgen equip [W] | K5: TsolH | L5: TsolN | M5: TsolNE | N5: TsolE | O5: TsolSE | P5: TsolS | Q5: TsolSO | R5: TsolO | S5: TsolNO | T5: T Interior [°C] | U5: Q Envolvente [W] | V5: Q Piso_vent [W] | W5: Q Ventanas [W] | X5: Q Techo [W] | Y5: Q Muros [W] | Z5: Q Piso_terreno [W] | AA5: Q Ventilacion [W] | AB5: Q Recuperado [W] | AC5: Q Infiltraciones [W] | AD5: QClima [W] | AF5: Q Masa_tot [W] | AG5: TmasaHOR [°C] | AH5: Q Masa_ad [W] | AI5: Demanda Calef. [Wh] | AJ5: Demanda Ref. [Wh] | AK5: Qtot [W] | AL5: Q_techo_v [W] | AM5: Q_techo_opaco [W] | AN5: Q_norte_v [W] | AO5: Q_norte_opaco [W] | AP5: Q_noreste_v [W] | AQ5: Q_noreste_opaco [W] | AR5: Q_este_v [W] | AS5: Q_este_opaco [W] | AT5: Q_sureste_v [W] | AU5: Q_sureste_opaco [W] | AV5: Q_sur_v [W] | AW5: Q_sur_opaco [W] | AX5: Q_suroeste_v [W] | AY5: Q_suroeste_opaco [W] | AZ5: Q_oeste_v [W] | BA5: Q_oeste_opaco [W] | BB5: Q_noroeste_v [W] | BC5: Q_noroeste_opaco [W] | BD5: Q_piso_vent_SA [W] | BE5: Q_piso_terre_SA [W]
C6: 72 | D6: 259200 | E6: 1 | F6: 15.8483871 | G6: 0 | H6: 410 | I6: 0 | J6: 0 | K6: 12.14250474 | L6: 15.8483871 | M6: 15.8483871 | N6: 15.8483871 | O6: 15.8483871 | P6: 15.8483871 | Q6: 15.8483871 | R6: 15.8483871 | S6: 15.8483871 | T6: 24.20999293 | U6: -4.097955996 | V6: 0 | W6: -205.8754166 | X6: -99.20047726 | Y6: -149.2345186 | Z6: 450.2124565 | AA6: -581.9426588 | AB6: 0 | AC6: -114.8600189 | AD6: 0 | AE6: 0 | AF6: 0 | AG6: 24.94052715 | AH6: 268.6621828 | AI6: 0 | AJ6: 0 | AK6: -22.23845091 | AL6: 0 | AM6: -203.1007711 | AN6: 0 | AO6: -343.546648 | AP6: -205.8754166 | AQ6: -18.83724117 | AR6: 0 | AS6: -329.1104204 | AT6: 0 | AU6: 0 | AV6: 0 | AW6: -329.1104204 | AX6: 0 | AY6: 0 | AZ6: 0 | BA6: -329.1104204 | BB6: 0 | BC6: 0 | BD6: 0 | BE6: -525.1780567
C7: 73 | D7: 262800 | E7: 1 | F7: 14.88387097 | G7: 0 | H7: 410 | I7: 0 | J7: 0 | K7: 11.17798861 | L7: 14.88387097 | M7: 14.88387097 | N7: 14.88387097 | O7: 14.88387097 | P7: 14.88387097 | Q7: 14.88387097 | R7: 14.88387097 | S7: 14.88387097 | T7: 23.95476575 | U7: 47.24711893 | V7: 0 | W7: -223.3066713 | X7: -43.93807785 | Y7: -215.9406025 | Z7: 530.4324706 | AA7: -631.2151309 | AB7: 0 | AC7: -124.5850957 | AD7: 0 | AE7: 0 | AF7: 0 | AG7: 24.69471572 | AH7: 271.8792178 | AI7: 0 | AJ7: 0 | AK7: -26.67388998 | AL7: 0 | AM7: -149.0825024 | AN7: 0 | AO7: -364.1844066 | AP7: -223.3066713 | AQ7: -19.96884422 | AR7: 0 | AS7: -348.8809564 | AT7: 0 | AU7: 0 | AV7: 0 | AW7: -348.8809564 | AX7: 0 | AY7: 0 | AZ7: 0 | BA7: -348.8809564 | BB7: 0 | BC7: 0 | BD7: 0 | BE7: -456.6376373
C8: 74 | D8: 266400 | E8: 1 | F8: 13.78064516 | G8: 0 | H8: 410 | I8: 0 | J8: 0 | K8: 10.07476281 | L8: 13.78064516 | M8: 13.78064516 | N8: 13.78064516 | O8: 13.78064516 | P8: 13.78064516 | Q8: 13.78064516 | R8: 13.78064516 | S8: 13.78064516 | T8: 23.56628325 | U8: 47.7793639 | V8: 0 | W8: -240.9305945 | X8: -104.2930173 | Y8: -283.9556704 | Z8: 676.958646 | AA8: -681.0322139 | AB8: 0 | AC8: -134.4176643 | AD8: 0 | AE8: 0 | AF8: 0 | AG8: 24.42593098 | AH8: 315.1783817 | AI8: 0 | AJ8: 0 | AK8: -42.49213259 | AL8: 0 | AM8: -226.182619 | AN8: 0 | AO8: -430.742552 | AP8: -240.9305945 | AQ8: -23.6183394 | AR8: 0 | AS8: -412.6422516 | AT8: 0 | AU8: 0 | AV8: 0 | AW8: -412.6422516 | AX8: 0 | AY8: 0 | AZ8: 0 | BA8: -412.6422516 | BB8: 0 | BC8: 0 | BD8: 0 | BE8: -467.3110843
C9: 75 | D9: 270000 | E9: 1 | F9: 12.67419355 | G9: 0 | H9: 410 | I9: 0 | J9: 0 | K9: 8.968311195 | L9: 12.67419355 | M9: 12.67419355 | N9: 12.67419355 | O9: 12.67419355 | P9: 12.67419355 | Q9: 12.67419355 | R9: 12.67419355 | S9: 12.67419355 | T9: 23.21014959 | U9: 93.21871084 | V9: 0 | W9: -259.4058066 | X9: -108.5111213 | Y9: -316.2462054 | Z9: 777.3818441 | AA9: -733.255613 | AB9: 0 | AC9: -144.7251757 | AD9: 0 | AE9: 0 | AF9: 0 | AG9: 24.12816036 | AH9: 337.0291314 | AI9: 0 | AJ9: 0 | AK9: -37.73294644 | AL9: 0 | AM9: -238.8511097 | AN9: 0 | AO9: -463.8133896 | AP9: -259.4058066 | AQ9: -25.43166911 | AR9: 0 | AS9: -444.3234143 | AT9: 0 | AU9: 0 | AV9: 0 | AW9: -444.3234143 | AX9: 0 | AY9: 0 | AZ9: 0 | BA9: -444.3234143 | BB9: 0 | BC9: 0 | BD9: 0 | BE9: -446.2180465
C10: 76 | D10: 273600 | E10: 1 | F10: 12.14193548 | G10: 0 | H10: 410 | I10: 0 | J10: 0 | K10: 8.436053131 | L10: 12.14193548 | M10: 12.14193548 | N10: 12.14193548 | O10: 12.14193548 | P10: 12.14193548 | Q10: 12.14193548 | R10: 12.14193548 | S10: 12.14193548 | T10: 22.84950365 | U10: 90.9684999 | V10: 0 | W10: -263.8738373 | X10: -115.2584131 | Y10: -395.0464792 | Z10: 865.1472294 | AA10: -745.8852786 | AB10: 0 | AC10: -147.2179361 | AD10: 0 | AE10: 0 | AF10: 0 | AG10: 23.81330228 | AH10: 353.922286 | AI10: 0 | AJ10: 0 | AK10: -38.21242877 | AL10: 0 | AM10: -252.1315268 | AN10: 0 | AO10: -503.0839809 | AP10: -263.8738373 | AQ10: -27.58494175 | AR10: 0 | AS10: -481.9438099 | AT10: 0 | AU10: 0 | AV10: 0 | AW10: -481.9438099 | AX10: 0 | AY10: 0 | AZ10: 0 | BA10: -481.9438099 | BB10: 0 | BC10: 0 | BD10: 0 | BE10: -419.7840425
C11: 77 | D11: 277200 | E11: 1 | F11: 11.81935484 | G11: 120.6986765 | H11: 410 | I11: 0 | J11: 0 | K11: 9.106533839 | L11: 12.34882143 | M11: 12.58248183 | N11: 12.71805362 | O11: 12.56574352 | P11: 12.3251499 | Q11: 12.56574352 | R11: 12.71805362 | S11: 12.58248183 | T11: 22.49853146 | U11: 62.41549977 | V11: 0 | W11: -263.2524141 | X11: -114.3709859 | Y11: -503.6745813 | Z11: 943.713481 | AA11: -744.1287179 | AB11: 0 | AC11: -146.8712377 | AD11: 0 | AE11: 0 | AF11: 0 | AG11: 23.49085955 | AH11: 364.5217493 | AI11: 0 | AJ11: 0 | AK11: -36.25965178 | AL11: 0 | AM11: -255.3432524 | AN11: 0 | AO11: -542.7886317 | AP11: -263.2524141 | AQ11: -29.76201461 | AR11: 0 | AS11: -519.9800254 | AT11: 0 | AU11: 0 | AV11: 0 | AW11: -519.9800254 | AX11: 0 | AY11: 0 | AZ11: 0 | BA11: -519.9800254 | BB11: 0 | BC11: 0 | BD11: 0 | BE11: -379.6996336
C12: 78 | D12: 280800 | E12: 1 | F12: 12.87096774 | G12: 402.085956 | H12: 328 | I12: 0 | J12: 0 | K12: 14.49615433 | L12: 15.7133127 | M12: 16.96767595 | N12: 17.69546839 | O12: 16.8778194 | P12: 15.58623635 | Q12: 16.8778194 | R12: 17.69546839 | S12: 16.96767595 | T12: 22.18549117 | U12: -6.587583215 | V12: 0 | W12: -230.1586931 | X12: -96.32017681 | Y12: -663.7181573 | Z12: 983.609444 | AA12: -650.583562 | AB12: 0 | AC12: -128.4079094 | AD12: 0 | AE12: 0 | AF12: 0 | AG12: 23.17951217 | AH12: 365.3009162 | AI12: 0 | AJ12: 0 | AK12: -31.30204647 | AL12: 0 | AM12: -237.5937723 | AN12: 0 | AO12: -584.4111376 | AP12: -230.1586931 | AQ12: -32.04424669 | AR12: 0 | AS12: -559.8535054 | AT12: 0 | AU12: 0 | AV12: 0 | AW12: -559.8535054 | AX12: 0 | AY12: 0 | AZ12: 0 | BA12: -559.8535054 | BB12: 0 | BC12: 0 | BD12: 0 | BE12: -342.6324725
C13: 79 | D13: 284400 | E13: 1 | F13: 15.17419355 | G13: 592.3942727 | H13: 393.6 | I13: 0 | J13: 0 | K13: 21.25427577 | L13: 20.3917376 | M13: 22.69430665 | N13: 24.03027718 | O13: 22.52936169 | P13: 20.15847019 | Q13: 22.52936169 | R13: 24.03027718 | S13: 22.69430665 | T13: 22.03977629 | U13: -236.199152 | V13: 0 | W13: -170.2294038 | X13: -14.29671664 | Y13: -907.1083401 | Z13: 855.4353085 | AA13: -481.1830062 | AB13: 0 | AC13: -94.9727406 | AD13: 0 | AE13: 0 | AF13: 0 | AG13: 22.90748953 | AH13: 319.6816811 | AI13: 0 | AJ13: 0 | AK13: -11.78318093 | AL13: 0 | AM13: -137.9278889 | AN13: 0 | AO13: -594.4770916 | AP13: -170.2294038 | AQ13: -32.5961799 | AR13: 0 | AS13: -569.4964764 | AT13: 0 | AU13: 0 | AV13: 0 | AW13: -569.4964764 | AX13: 0 | AY13: 0 | AZ13: 0 | BA13: -569.4964764 | BB13: 0 | BC13: 0 | BD13: 0 | BE13: -305.1838594
C14: 80 | D14: 288000 | E14: 1 | F14: 17.8483871 | G14: 704.3130564 | H14: 196.8 | I14: 0 | J14: 0 | K14: 28.55285262 | L14: 25.53149531 | M14: 28.92214942 | N14: 30.88943635 | O14: 28.67925928 | P14: 25.18799678 | Q14: 28.67925928 | R14: 30.88943635 | S14: 28.92214942 | T14: 21.94715486 | U14: -240.7674092 | V14: 0 | W14: -102.1616018 | X14: 89.98751929 | Y14: -954.3861378 | Z14: 725.7928112 | AA14: -288.7775295 | AB14: 0 | AC14: -56.99701162 | AD14: 0 | AE14: 0 | AF14: 0 | AG14: 22.69046662 | AH14: 273.9235878 | AI14: 0 | AJ14: 0 | AK14: -7.171200919 | AL14: 0 | AM14: -15.94752881 | AN14: 0 | AO14: -564.1639718 | AP14: -102.1616018 | AQ14: -30.23442287 | AR14: 0 | AS14: -521.1413828 | AT14: 0 | AU14: 0 | AV14: 0 | AW14: -541.6954861 | AX14: 0 | AY14: 0 | AZ14: 0 | BA14: -521.1413828 | BB14: 0 | BC14: 0 | BD14: 0 | BE14: -268.699477
C15: 81 | D15: 291600 | E15: 1 | F15: 20.7 | G15: 1613.715182 | H15: 123 | I15: 0 | J15: 0 | K15: 35.58223909 | L15: 30.61055522 | M15: 34.98421025 | N15: 37.52184283 | O15: 34.67090266 | P15: 30.16747138 | Q15: 34.67090266 | R15: 37.52184283 | S15: 34.98421025 | T15: 22.11191317 | U15: 78.5404299 | V15: 0 | W15: -35.78725105 | X15: 181.2203827 | Y15: -453.6634963 | Z15: 386.7707945 | AA15: -546.5758697 | AB15: 0 | AC15: -19.96607657 | AD15: 0 | AE15: 0 | AF15: 0 | AG15: 22.57069937 | AH15: 171.5652161 | AI15: 0 | AJ15: 0 | AK15: 47.57747164 | AL15: 0 | AM15: 114.8706041 | AN15: 0 | AO15: -362.8158904 | AP15: -35.78725105 | AQ15: -16.12607073 | AR15: 0 | AS15: -243.5493896 | AT15: 0 | AU15: 0 | AV15: 0 | AW15: -354.2387228 | AX15: 0 | AY15: 0 | AZ15: 0 | BA15: -243.5493896 | BB15: 0 | BC15: 0 | BD15: 0 | BE15: -236.1046786
C16: 82 | D16: 295200 | E16: 1 | F16: 23.45806452 | G16: 1868.137752 | H16: 123 | I16: 0 | J16: 0 | K16: 40.91037951 | L16: 34.73889695 | M16: 39.71727287 | N16: 42.60576975 | O16: 39.36064598 | P16: 34.23455037 | Q16: 39.36064598 | R16: 42.60576975 | S16: 39.71727287 | T16: 22.8406282 | U16: -486.4236462 | V16: 0 | W16: 14.42831721 | X16: 213.0956304 | Y16: -271.3349923 | Z16: -442.6126015 | AA16: 223.4062554 | AB16: 0 | AC16: 8.049707026 | AD16: 0 | AE16: 0 | AF16: 0 | AG16: 22.66387007 | AH16: -61.13865104 | AI16: 0 | AJ16: 0 | AK16: 86.47827169 | AL16: 0 | AM16: 236.7399102 | AN16: 0 | AO16: -95.95652519 | AP16: 14.42831721 | AQ16: 1.696668479 | AR16: 0 | AS16: 100.1773247 | AT16: 0 | AU16: 0 | AV16: 0 | AW16: -104.2399908 | AX16: 0 | AY16: 0 | AZ16: 0 | BA16: 100.1773247 | BB16: 0 | BC16: 0 | BD16: 0 | BE16: -220.6458937
C17: 83 | D17: 298800 | E17: 1 | F17: 25.39354839 | G17: 2001.617272 | H17: 123 | I17: 0 | J17: 0 | K17: 44.8322296 | L17: 37.73344385 | M17: 43.17919785 | N17: 46.33887156 | O17: 42.78909025 | P17: 37.18174838 | Q17: 42.78909025 | R17: 46.33887156 | S17: 43.17919785 | T17: 23.53039911 | U17: -309.0542259 | V17: 0 | W17: 45.39523514 | X17: 237.5186921 | Y17: 382.4997129 | Z17: -974.4678661 | AA17: 137.8938014 | AB17: 0 | AC17: 25.32647002 | AD17: 0 | AE17: 0 | AF17: 0 | AG17: 22.95335847 | AH17: -210.3039856 | AI17: 0 | AJ17: 0 | AK17: 66.77095192 | AL17: 0 | AM17: 318.849997 | AN17: 0 | AO17: 194.2303029 | AP17: 45.39523514 | AQ17: 20.91929601 | AR17: 0 | AS17: 469.5864481 | AT17: 0 | AU17: 0 | AV17: 0 | AW17: 167.8921374 | AX17: 0 | AY17: 0 | AZ17: 0 | BA17: 469.5864481 | BB17: 0 | BC17: 0 | BD17: 0 | BE17: -210.9494939
C18: 84 | D18: 302400 | E18: 1 | F18: 26.87741935 | G18: 1924.437941 | H18: 123 | I18: 0 | J18: 0 | K18: 45.12262492 | L18: 38.58099412 | M18: 43.74593165 | N18: 46.7426732 | O18: 43.37594039 | P18: 38.05774746 | Q18: 43.37594039 | R18: 46.7426732 | S18: 43.74593165 | T18: 24.32518226 | U18: -188.7579408 | V18: 0 | W18: 62.64367955 | X18: 241.5524558 | Y18: 1000.849041 | Z18: -1493.803117 | AA18: 177.0732516 | AB18: 0 | AC18: 34.9495551 | AD18: 0 | AE18: 0 | AF18: 0 | AG18: 23.36992965 | AH18: -348.8877389 | AI18: 0 | AJ18: 0 | AK18: 86.23576641 | AL18: 0 | AM18: 376.4785485 | AN18: 0 | AO18: 467.6825129 | AP18: 62.64367955 | AQ18: 38.91171192 | AR18: 0 | AS18: 814.3331526 | AT18: 0 | AU18: 0 | AV18: 0 | AW18: 424.5461909 | AX18: 0 | AY18: 0 | AZ18: 0 | BA18: 814.3331526 | BB18: 0 | BC18: 0 | BD18: 0 | BE18: -227.1500017
C19: 85 | D19: 306000 | E19: 1 | F19: 28.16451613 | G19: 1869.063368 | H19: 123 | I19: 0 | J19: 0 | K19: 45.36868754 | L19: 39.31304683 | M19: 44.2330363 | N19: 47.08765686 | O19: 43.88059194 | P19: 38.81461523 | Q19: 43.88059194 | R19: 47.08765686 | S19: 44.2330363 | T19: 25.0726645 | U19: -145.2672688 | V19: 0 | W19: 76.0012859 | X19: 200.2515108 | Y19: 1461.728774 | Z19: -1883.248839 | AA19: 214.8308483 | AB19: 0 | AC19: 42.40190149 | AD19: 0 | AE19: 0 | AF19: 0 | AG19: 23.88400659 | AH19: -435.4887653 | AI19: 0 | AJ19: 0 | AK19: 79.97465727 | AL19: 0 | AM19: 368.6690015 | AN19: 0 | AO19: 657.7021212 | AP19: 76.0012859 | AQ19: 51.19137982 | AR19: 0 | AS19: 1047.735065 | AT19: 0 | AU19: 0 | AV19: 0 | AW19: 603.2877987 | AX19: 0 | AY19: 0 | AZ19: 0 | BA19: 1047.735065 | BB19: 0 | BC19: 0 | BD19: 0 | BE19: -302.1866821
C20: 86 | D20: 309600 | E20: 1 | F20: 28.86129032 | G20: 1690.066556 | H20: 123 | I20: 0 | J20: 0 | K20: 44.51669513 | L20: 39.18407126 | M20: 43.73964677 | N20: 46.3828312 | O20: 43.41330727 | P20: 38.72255751 | Q20: 43.41330727 | R20: 46.3828312 | S20: 43.73964677 | T20: 25.77554288 | U20: -73.31593814 | V20: 0 | W20: 76.07284913 | X20: 171.7004432 | Y20: 1818.706522 | Z20: -2139.795753 | AA20: 215.0331342 | AB20: 0 | AC20: 42.44182736 | AD20: 0 | AE20: 0 | AF20: 0 | AG20: 24.44990636 | AH20: -486.3294531 | AI20: 0 | AJ20: 0 | AK20: 74.78704575 | AL20: 0 | AM20: 359.7796605 | AN20: 0 | AO20: 786.5686032 | AP20: 76.07284913 | AQ20: 59.68748243 | AR20: 0 | AS20: 1210.669983 | AT20: 0 | AU20: 0 | AV20: 0 | AW20: 724.2078645 | AX20: 0 | AY20: 0 | AZ20: 0 | BA20: 1210.669983 | BB20: 0 | BC20: 0 | BD20: 0 | BE20: -374.1541205
C21: 87 | D21: 313200 | E21: 1 | F21: 28.52580645 | G21: 1337.372982 | H21: 123 | I21: 0 | J21: 0 | K21: 39.47330171 | L21: 36.33848986 | M21: 39.78632717 | N21: 41.78679228 | O21: 39.53934071 | P21: 35.98919825 | Q21: 39.53934071 | R21: 41.78679228 | S21: 39.78632717 | T21: 26.25797202 | U21: -7.859208822 | V21: 0 | W21: 56.22336168 | X21: 154.4518923 | Y21: 1909.674627 | Z21: -2128.20909 | AA21: 158.9251069 | AB21: 0 | AC21: 31.36759353 | AD21: 0 | AE21: 0 | AF21: 0 | AG21: 25.00632081 | AH21: -460.4907367 | AI21: 0 | AJ21: 0 | AK21: 46.43043605 | AL21: 0 | AM21: 332.5384483 | AN21: 0 | AO21: 791.6593534 | AP21: 56.22336168 | AQ21: 59.14950154 | AR21: 0 | AS21: 1192.987695 | AT21: 0 | AU21: 0 | AV21: 0 | AW21: 730.5309644 | AX21: 0 | AY21: 0 | AZ21: 0 | BA21: 1192.987695 | BB21: 0 | BC21: 0 | BD21: 0 | BE21: -456.3761157
C22: 88 | D22: 316800 | E22: 1 | F22: 27.13548387 | G22: 575.0664089 | H22: 147.6 | I22: 0 | J22: 0 | K22: 33.83677736 | L22: 32.68423667 | M22: 35.13297239 | N22: 36.55375009 | O22: 34.95755675 | P22: 32.43616149 | Q22: 34.95755675 | R22: 36.55375009 | S22: 35.13297239 | T22: 26.4788871 | U22: 504.5268167 | V22: 0 | W22: 16.75630134 | X22: 92.79977578 | Y22: 2271.382139 | Z22: -1876.411399 | AA22: 255.9176721 | AB22: 0 | AC22: 9.348513391 | AD22: -635.4253813 | AE22: 0 | AF22: 0 | AG22: 25.47925573 | AH22: -369.7233487 | AI22: 0 | AJ22: -209.9319975 | AK22: -5.329070518e-15 | AL22: 0 | AM22: 235.7836679 | AN22: 0 | AO22: 790.8536748 | AP22: 16.75630134 | AQ22: 58.35763767 | AR22: 0 | AS22: 1171.573543 | AT22: 0 | AU22: 0 | AV22: 0 | AW22: 731.0825247 | AX22: 0 | AY22: 0 | AZ22: 0 | BA22: 1171.573543 | BB22: 0 | BC22: 0 | BD22: 0 | BE22: -534.1136367
C23: 89 | D23: 320400 | E23: 1 | F23: 25.28387097 | G23: 389.0320777 | H23: 246 | I23: 0 | J23: 0 | K23: 26.74760595 | L23: 28.0401354 | M23: 29.25651022 | N23: 29.96226144 | O23: 29.16937498 | P23: 27.91690757 | Q23: 29.16937498 | R23: 29.96226144 | S23: 29.25651022 | T23: 26.4788871 | U23: 1042.480221 | V23: 0 | W23: -28.69644328 | X23: 34.57836173 | Y23: 2558.735813 | Z23: -1522.13751 | AA23: -444.3321313 | AB23: 0 | AC23: -16.01004176 | AD23: -633.3071816 | AE23: 0 | AF23: 0 | AG23: 25.79750697 | AH23: -252.0107638 | AI23: 0 | AJ23: -662.2536255 | AK23: 1.065814104e-14 | AL23: 0 | AM23: 132.0390171 | AN23: 0 | AO23: 745.4086075 | AP23: -28.69644328 | AQ23: 54.76223051 | AR23: 0 | AS23: 1097.570291 | AT23: 0 | AU23: 0 | AV23: 0 | AW23: 689.5004101 | AX23: 0 | AY23: 0 | AZ23: 0 | BA23: 1097.570291 | BB23: 0 | BC23: 0 | BD23: 0 | BE23: -607.2007455
C24: 90 | D24: 324000 | E24: 1 | F24: 22.9 | G24: 106.153873 | H24: 246 | I24: 0 | J24: 0 | K24: 20.05811512 | L24: 23.36065412 | M24: 23.56394668 | N24: 23.68189879 | O24: 23.54938378 | P24: 23.34005906 | Q24: 23.54938378 | R24: 23.68189879 | S24: 23.56394668 | T24: 26.4788871 | U24: 572.5328156 | V24: 0 | W24: -87.24019328 | X24: -60.38185058 | Y24: 2009.135439 | Z24: -1288.98058 | AA24: -265.0031848 | AB24: 0 | AC24: -48.67220387 | AD24: -347.6287763 | AE24: 0 | AF24: 0 | AG24: 26.00859472 | AH24: -173.858927 | AI24: 0 | AJ24: -383.8090329 | AK24: -2.131628207e-14 | AL24: 0 | AM24: 6.854979753 | AN24: 0 | AO24: 562.8542679 | AP24: -87.24019328 | AQ24: 41.41712956 | AR24: 0 | AS24: 830.6042415 | AT24: 0 | AU24: 0 | AV24: 0 | AW24: 520.5206629 | AX24: 0 | AY24: 0 | AZ24: 0 | BA24: 830.6042415 | BB24: 0 | BC24: 0 | BD24: 0 | BE24: -657.7776829
C25: 91 | D25: 327600 | E25: 1 | F25: 20.94193548 | G25: 0 | H25: 369 | I25: 195 | J25: 0 | K25: 17.23605313 | L25: 20.94193548 | M25: 20.94193548 | N25: 20.94193548 | O25: 20.94193548 | P25: 20.94193548 | Q25: 20.94193548 | R25: 20.94193548 | S25: 20.94193548 | T25: 26.41699196 | U25: -21.13567544 | V25: 0 | W25: -134.2305778 | X25: -151.4221486 | Y25: 1318.029747 | Z25: -1053.512696 | AA25: -379.4260657 | AB25: 0 | AC25: -74.88862418 | AD25: 0 | AE25: 0 | AF25: 0 | AG25: 26.1427623 | AH25: -102.4688837 | AI25: 0 | AJ25: -99.73681008 | AK25: -18.95386435 | AL25: 0 | AM25: -111.7941406 | AN25: 0 | AO25: 347.9875409 | AP25: -134.2305778 | AQ25: 26.58784747 | AR25: 0 | AS25: 540.6226753 | AT25: 0 | AU25: 0 | AV25: 0 | AW25: 320.0773572 | AX25: 0 | AY25: 0 | AZ25: 0 | BA25: 540.6226753 | BB25: 0 | BC25: 0 | BD25: 0 | BE25: -681.4946616
C26: 92 | D26: 331200 | E26: 1 | F26: 19.57419355 | G26: 0 | H26: 442.8 | I26: 195 | J26: 0 | K26: 15.8683112 | L26: 19.57419355 | M26: 19.57419355 | N26: 19.57419355 | O26: 19.57419355 | P26: 19.57419355 | Q26: 19.57419355 | R26: 19.57419355 | S26: 19.57419355 | T26: 26.08089045 | U26: -168.4750145 | V26: 0 | W26: -159.9913807 | X26: -149.4864062 | Y26: 705.985367 | Z26: -564.9825946 | AA26: -452.2434538 | AB26: 0 | AC26: -89.26084187 | AD26: 0 | AE26: 0 | AF26: 0 | AG26: 26.17434964 | AH26: 32.09215777 | AI26: 0 | AJ26: 0 | AK26: -41.31715242 | AL26: 0 | AM26: -161.8974742 | AN26: 0 | AO26: 91.00010957 | AP26: -159.9913807 | AQ26: 8.756092868 | AR26: 0 | AS26: 191.1599683 | AT26: 0 | AU26: 0 | AV26: 0 | AW26: 80.50976096 | AX26: 0 | AY26: 0 | AZ26: 0 | BA26: 191.1599683 | BB26: 0 | BC26: 0 | BD26: 0 | BE26: -681.4946616
C27: 93 | D27: 334800 | E27: 1 | F27: 18.77419355 | G27: 0 | H27: 492 | I27: 195 | J27: 0 | K27: 15.0683112 | L27: 18.77419355 | M27: 18.77419355 | N27: 18.77419355 | O27: 18.77419355 | P27: 18.77419355 | Q27: 18.77419355 | R27: 18.77419355 | S27: 18.77419355 | T27: 25.04499768 | U27: 1296.135173 | V27: 0 | W27: -154.7231964 | X27: -46.68746261 | Y27: 921.244321 | Z27: 576.3015105 | AA27: -2363.075206 | AB27: 0 | AC27: -86.32166751 | AD27: 0 | AE27: 0 | AF27: 0 | AG27: 26.0017807 | AH27: 346.4481769 | AI27: 0 | AJ27: 0 | AK27: -120.6335236 | AL27: 0 | AM27: -180.6700983 | AN27: 0 | AO27: -168.8355184 | AP27: -154.7231964 | AQ27: -8.587095969 | AR27: 0 | AS27: -143.2311898 | AT27: 0 | AU27: 0 | AV27: 0 | AW27: -162.9275124 | AX27: 0 | AY27: 0 | AZ27: 0 | BA27: -143.2311898 | BB27: 0 | BC27: 0 | BD27: 0 | BE27: -681.4946616
C28: 94 | D28: 338400 | E28: 1 | F28: 17.73870968 | G28: 0 | H28: 410 | I28: 0 | J28: 0 | K28: 14.03282732 | L28: 17.73870968 | M28: 17.73870968 | N28: 17.73870968 | O28: 17.73870968 | P28: 17.73870968 | Q28: 17.73870968 | R28: 17.73870968 | S28: 17.73870968 | T28: 24.38070029 | U28: 1681.234797 | V28: 0 | W28: -163.5787734 | X28: 0.08058037453 | Y28: 858.8220454 | Z28: 985.9109445 | AA28: -2532.833226 | AB28: 0 | AC28: -91.26228528 | AD28: 0 | AE28: 0 | AF28: 0 | AG28: 25.630205 | AH28: 457.5875073 | AI28: 0 | AJ28: 0 | AK28: -70.65654064 | AL28: 0 | AM28: -176.8832035 | AN28: 0 | AO28: -301.9795305 | AP28: -163.5787734 | AQ28: -16.54772902 | AR28: 0 | AS28: -289.0051642 | AT28: 0 | AU28: 0 | AV28: 0 | AW28: -289.3082621 | AX28: 0 | AY28: 0 | AZ28: 0 | BA28: -289.0051642 | BB28: 0 | BC28: 0 | BD28: 0 | BE28: -675.3817205
C29: 95 | D29: 342000 | E29: 1 | F29: 16.64193548 | G29: 0 | H29: 410 | I29: 0 | J29: 0 | K29: 12.93605313 | L29: 16.64193548 | M29: 16.64193548 | N29: 16.64193548 | O29: 16.64193548 | P29: 16.64193548 | Q29: 16.64193548 | R29: 16.64193548 | S29: 16.64193548 | T29: 24.50137366 | U29: 28.55426187 | V29: 0 | W29: -193.1494485 | X29: -71.04838251 | Y29: -119.7114304 | Z29: 412.4635233 | AA29: -586.7160201 | AB29: 0 | AC29: -107.76007 | AD29: 0 | AE29: 0 | AF29: 0 | AG29: 25.28093722 | AH29: 290.1243889 | AI29: 0 | AJ29: 0 | AK29: 34.20256056 | AL29: 0 | AM29: -183.2488006 | AN29: 0 | AO29: -360.4419887 | AP29: -193.1494485 | AQ29: -19.76364114 | AR29: 0 | AS29: -345.2957992 | AT29: 0 | AU29: 0 | AV29: 0 | AW29: -345.2957992 | AX29: 0 | AY29: 0 | AZ29: 0 | BA29: -345.2957992 | BB29: 0 | BC29: 0 | BD29: 0 | BE29: -640.8465243
C30: 96 | D30: 345600 | E30: 2 | F30: 14.90125446 | G30: 0 | H30: 410 | I30: 0 | J30: 0 | K30: 11.19537211 | L30: 14.90125446 | M30: 14.90125446 | N30: 14.90125446 | O30: 14.90125446 | P30: 14.90125446 | Q30: 14.90125446 | R30: 14.90125446 | S30: 14.90125446 | T30: 24.27498899 | U30: -75.08893288 | V30: 0 | W30: -207.7672662 | X30: -99.03480346 | Y30: -150.8456642 | Z30: 382.558801 | AA30: -587.2903007 | AB30: 0 | AC30: -115.9155013 | AD30: 0 | AE30: 0 | AF30: 0 | AG30: 25.0282592 | AH30: 272.7213245 | AI30: 0 | AJ30: 0 | AK30: -95.57341039 | AL30: 0 | AM30: -204.5048977 | AN30: 0 | AO30: -348.5733817 | AP30: -207.7672662 | AQ30: -19.11286543 | AR30: 0 | AS30: -333.9259248 | AT30: 0 | AU30: 0 | AV30: 0 | AW30: -333.9259248 | AX30: 0 | AY30: 0 | AZ30: 0 | BA30: -333.9259248 | BB30: 0 | BC30: 0 | BD30: 0 | BE30: -607.5686144
C32: 144 | D32: 518400 | E32: 2 | F32: 14.90125446 | G32: 0 | H32: 410 | I32: 0 | J32: 0 | K32: 11.19537211 | L32: 14.90125446 | M32: 14.90125446 | N32: 14.90125446 | O32: 14.90125446 | P32: 14.90125446 | Q32: 14.90125446 | R32: 14.90125446 | S32: 14.90125446 | T32: 23.51204636 | U32: 102.730526 | V32: 0 | W32: -211.6343746 | X32: -82.11532965 | Y32: -69.81612919 | Z32: 466.2963594 | AA32: -642.8663345 | AB32: 0 | AC32: -118.073001 | AD32: 0 | AE32: 0 | AF32: 0 | AG32: 24.29628115 | AH32: 292.4449488 | AI32: 0 | AJ32: 0 | AK32: 44.23613926 | AL32: 0 | AM32: -195.2131828 | AN32: 0 | AO32: -350.3812799 | AP32: -211.6343746 | AQ32: -19.21199554 | AR32: 0 | AS32: -335.6578531 | AT32: 0 | AU32: 0 | AV32: 0 | AW32: -335.6578531 | AX32: 0 | AY32: 0 | AZ32: 0 | BA32: -335.6578531 | BB32: 0 | BC32: 0 | BD32: 0 | BE32: -595.4385888
C33: 145 | D33: 522000 | E33: 2 | F33: 14.00746875 | G33: 0 | H33: 410 | I33: 0 | J33: 0 | K33: 10.3015864 | L33: 14.00746875 | M33: 14.00746875 | N33: 14.00746875 | O33: 14.00746875 | P33: 14.00746875 | Q33: 14.00746875 | R33: 14.00746875 | S33: 14.00746875 | T33: 23.26058991 | U33: 48.63270791 | V33: 0 | W33: -227.8288157 | X33: -107.3825893 | Y33: -164.003523 | Z33: 547.847636 | AA33: -643.9977584 | AB33: 0 | AC33: -127.1080468 | AD33: 0 | AE33: 0 | AF33: 0 | AG33: 24.03742897 | AH33: 285.4940261 | AI33: 0 | AJ33: 0 | AK33: -26.97907109 | AL33: 0 | AM33: -217.7922975 | AN33: 0 | AO33: -366.449455 | AP33: -227.8288157 | AQ33: -20.09304064 | AR33: 0 | AS33: -351.0508249 | AT33: 0 | AU33: 0 | AV33: 0 | AW33: -351.0508249 | AX33: 0 | AY33: 0 | AZ33: 0 | BA33: -351.0508249 | BB33: 0 | BC33: 0 | BD33: 0 | BE33: -488.6516651
C34: 146 | D34: 525600 | E34: 2 | F34: 13.08596875 | G34: 0 | H34: 410 | I34: 0 | J34: 0 | K34: 9.380086397 | L34: 13.08596875 | M34: 13.08596875 | N34: 13.08596875 | O34: 13.08596875 | P34: 13.08596875 | Q34: 13.08596875 | R34: 13.08596875 | S34: 13.08596875 | T34: 22.94528973 | U34: 75.15794021 | V34: 0 | W34: -242.7872364 | X34: -112.3436275 | Y34: -242.293587 | Z34: 672.5823911 | AA34: -686.280335 | AB34: 0 | AC34: -135.453504 | AD34: 0 | AE34: 0 | AF34: 0 | AG34: 23.76996138 | AH34: 302.7667246 | AI34: 0 | AJ34: 0 | AK34: -33.80917409 | AL34: 0 | AM34: -229.4332428 | AN34: 0 | AO34: -406.0218536 | AP34: -242.7872364 | AQ34: -22.26286188 | AR34: 0 | AS34: -388.9603455 | AT34: 0 | AU34: 0 | AV34: 0 | AW34: -388.9603455 | AX34: 0 | AY34: 0 | AZ34: 0 | BA34: -388.9603455 | BB34: 0 | BC34: 0 | BD34: 0 | BE34: -426.6262429
C35: 147 | D35: 529200 | E35: 2 | F35: 12.42429018 | G35: 0 | H35: 410 | I35: 0 | J35: 0 | K35: 8.718407826 | L35: 12.42429018 | M35: 12.42429018 | N35: 12.42429018 | O35: 12.42429018 | P35: 12.42429018 | Q35: 12.42429018 | R35: 12.42429018 | S35: 12.42429018 | T35: 22.55971594 | U35: 53.95530247 | V35: 0 | W35: -249.7400417 | X35: -109.7193483 | Y35: -365.7589689 | Z35: 779.1736614 | AA35: -705.9336481 | AB35: 0 | AC35: -139.3325458 | AD35: 0 | AE35: 0 | AF35: 0 | AG35: 23.47960802 | AH35: 337.3558973 | AI35: 0 | AJ35: 0 | AK35: -43.95499408 | AL35: 0 | AM35: -240.1857075 | AN35: 0 | AO35: -476.7876528 | AP35: -249.7400417 | AQ35: -26.1430698 | AR35: 0 | AS35: -456.7524839 | AT35: 0 | AU35: 0 | AV35: 0 | AW35: -456.7524839 | AX35: 0 | AY35: 0 | AZ35: 0 | BA35: -456.7524839 | BB35: 0 | BC35: 0 | BD35: 0 | BE35: -445.612568
C36: 148 | D36: 532800 | E36: 2 | F36: 11.88732589 | G36: 0 | H36: 410 | I36: 0 | J36: 0 | K36: 8.18144354 | L36: 11.88732589 | M36: 11.88732589 | N36: 11.88732589 | O36: 11.88732589 | P36: 11.88732589 | Q36: 11.88732589 | R36: 11.88732589 | S36: 11.88732589 | T36: 22.20281405 | U36: 59.83462268 | V36: 0 | W36: -254.2040117 | X36: -108.6216316 | Y36: -438.667871 | Z36: 861.3281369 | AA36: -718.5518353 | AB36: 0 | AC36: -141.8230407 | AD36: 0 | AE36: 0 | AF36: 0 | AG36: 23.16430872 | AH36: 353.1176006 | AI36: 0 | AJ36: 0 | AK36: -37.42265279 | AL36: 0 | AM36: -245.1835476 | AN36: 0 | AO36: -513.2718467 | AP36: -254.2040117 | AQ36: -28.14355959 | AR36: 0 | AS36: -491.7035698 | AT36: 0 | AU36: 0 | AV36: 0 | AW36: -491.7035698 | AX36: 0 | AY36: 0 | AZ36: 0 | BA36: -491.7035698 | BB36: 0 | BC36: 0 | BD36: 0 | BE36: -420.681687
C37: 149 | D37: 536400 | E37: 2 | F37: 11.65175446 | G37: 43.68765768 | H37: 410 | I37: 0 | J37: 0 | K37: 8.284499562 | L37: 11.89599511 | M37: 11.9551347 | N37: 11.96504465 | O37: 11.8861193 | P37: 11.79839259 | Q37: 11.8861193 | R37: 11.96504465 | S37: 11.9551347 | T37: 21.85422896 | U37: 36.39599342 | V37: 0 | W37: -251.5377487 | X37: -108.3271682 | Y37: -530.5883806 | Z37: 926.8492909 | AA37: -711.0151796 | AB37: 0 | AC37: -140.3355051 | AD37: 0 | AE37: 0 | AF37: 0 | AG37: 22.84011939 | AH37: 362.1762484 | AI37: 0 | AJ37: 0 | AK37: -36.33451338 | AL37: 0 | AM37: -248.3923543 | AN37: 0 | AO37: -546.9714302 | AP37: -251.5377487 | AQ37: -29.99136449 | AR37: 0 | AS37: -523.9870578 | AT37: 0 | AU37: 0 | AV37: 0 | AW37: -523.9870578 | AX37: 0 | AY37: 0 | AZ37: 0 | BA37: -523.9870578 | BB37: 0 | BC37: 0 | BD37: 0 | BE37: -388.0483739
C38: 150 | D38: 540000 | E38: 2 | F38: 12.37925446 | G38: 330.3535223 | H38: 328 | I38: 0 | J38: 0 | K38: 12.70535741 | L38: 15.28739047 | M38: 15.99155657 | N38: 16.10955278 | O38: 15.16980076 | P38: 14.12525226 | Q38: 15.16980076 | R38: 16.10955278 | S38: 15.99155657 | T38: 21.55647321 | U38: 2.856611446 | V38: 0 | W38: -226.6321813 | X38: -102.5430383 | Y38: -615.6128208 | Z38: 947.6446518 | AA38: -640.615263 | AB38: 0 | AC38: -126.440432 | AD38: 0 | AE38: 0 | AF38: 0 | AG38: 22.52736315 | AH38: 356.9204654 | AI38: 0 | AJ38: 0 | AK38: -29.07558783 | AL38: 0 | AM38: -240.5756443 | AN38: 0 | AO38: -562.6352926 | AP38: -226.6321813 | AQ38: -30.85024044 | AR38: 0 | AS38: -538.9927066 | AT38: 0 | AU38: 0 | AV38: 0 | AW38: -538.9927066 | AX38: 0 | AY38: 0 | AZ38: 0 | BA38: -538.9927066 | BB38: 0 | BC38: 0 | BD38: 0 | BE38: -348.1716494
C39: 151 | D39: 543600 | E39: 2 | F39: 14.29500446 | G39: 503.7836193 | H39: 393.6 | I39: 0 | J39: 0 | K39: 19.19338682 | L39: 20.50097253 | M39: 22.00366441 | N39: 22.25546856 | O39: 20.25003586 | P39: 18.02096726 | Q39: 20.25003586 | R39: 22.25546856 | S39: 22.00366441 | T39: 21.39296605 | U39: -203.8893209 | V39: 0 | W39: -175.8076959 | X39: -35.57408062 | Y39: -832.8919438 | Z39: 840.3843993 | AA39: -496.9510186 | AB39: 0 | AC39: -98.0849273 | AD39: 0 | AE39: 0 | AF39: 0 | AG39: 22.25405175 | AH39: 317.1367248 | AI39: 0 | AJ39: 0 | AK39: -14.14790772 | AL39: 0 | AM39: -158.2210365 | AN39: 0 | AO39: -572.6920983 | AP39: -175.8076959 | AQ39: -31.40167203 | AR39: 0 | AS39: -548.6269136 | AT39: 0 | AU39: 0 | AV39: 0 | AW39: -548.6269136 | AX39: 0 | AY39: 0 | AZ39: 0 | BA39: -548.6269136 | BB39: 0 | BC39: 0 | BD39: 0 | BE39: -310.9951867
C40: 152 | D40: 547200 | E40: 2 | F40: 16.61607589 | G40: 1267.0791 | H40: 196.8 | I40: 0 | J40: 0 | K40: 25.55021805 | L40: 25.73290239 | M40: 27.94041957 | N40: 28.3103304 | O40: 25.36426594 | P40: 22.08967098 | Q40: 25.36426594 | R40: 28.3103304 | S40: 27.94041957 | T40: 21.31059604 | U40: -271.7182109 | V40: 0 | W40: -116.6875772 | X40: 65.36613889 | Y40: -943.51086 | Z40: 723.1140875 | AA40: -329.8377246 | AB40: 0 | AC40: -65.10120319 | AD40: 0 | AE40: 0 | AF40: 0 | AG40: 22.05661077 | AH40: 274.8586864 | AI40: 0 | AJ40: 0 | AK40: -3.564825987 | AL40: 0 | AM40: -40.93054185 | AN40: 0 | AO40: -553.3478183 | AP40: -116.6875772 | AQ40: -30.16391386 | AR40: 0 | AS40: -526.4832912 | AT40: 0 | AU40: 0 | AV40: 0 | AW40: -535.2014156 | AX40: 0 | AY40: 0 | AZ40: 0 | BA40: -526.4832912 | BB40: 0 | BC40: 0 | BD40: 0 | BE40: -274.7731194
C41: 153 | D41: 550800 | E41: 2 | F41: 19.37018304 | G41: 1578.158923 | H41: 123 | I41: 0 | J41: 0 | K41: 31.8658448 | L41: 31.05581438 | M41: 33.88533319 | N41: 34.35947203 | O41: 30.583309 | P41: 26.38604698 | Q41: 30.583309 | R41: 34.35947203 | S41: 33.88533319 | T41: 21.57007352 | U41: -290.6905383 | V41: 0 | W41: -55.22266052 | X41: 131.9705091 | Y41: -675.1105497 | Z41: 307.6721629 | AA41: -156.0964511 | AB41: 0 | AC41: -30.80929203 | AD41: 0 | AE41: 0 | AF41: 0 | AG41: 21.97765564 | AH41: 151.8778642 | AI41: 0 | AJ41: 0 | AK41: 34.45772165 | AL41: 0 | AM41: 73.23446163 | AN41: 0 | AO41: -351.5423433 | AP41: -55.22266052 | AQ41: -17.1642079 | AR41: 0 | AS41: -293.698852 | AT41: 0 | AU41: 0 | AV41: 0 | AW41: -397.6519917 | AX41: 0 | AY41: 0 | AZ41: 0 | BA41: -293.698852 | BB41: 0 | BC41: 0 | BD41: 0 | BE41: -243.7274661
C42: 154 | D42: 554400 | E42: 2 | F42: 22.09657589 | G42: 1788.83026 | H42: 123 | I42: 0 | J42: 0 | K42: 37.15539942 | L42: 35.63093001 | M42: 38.90809222 | N42: 39.45724209 | O42: 35.08367201 | P42: 30.22238307 | Q42: 35.08367201 | R42: 39.45724209 | S42: 38.90809222 | T42: 22.08223188 | U42: -293.4603587 | V42: 0 | W42: -0.4531170548 | X42: 176.4752111 | Y42: -203.6665611 | Z42: -265.8158918 | AA42: -6.920421129 | AB42: 0 | AC42: -0.2527986796 | AD42: 0 | AE42: 0 | AF42: 0 | AG42: 22.04264151 | AH42: -10.82996652 | AI42: 0 | AJ42: 0 | AK42: 79.33431562 | AL42: 0 | AM42: 180.663507 | AN42: 0 | AO42: -54.48699134 | AP42: -0.4531170548 | AQ42: 1.547558118 | AR42: 0 | AS42: 40.31513479 | AT42: 0 | AU42: 0 | AV42: 0 | AW42: -182.9651566 | AX42: 0 | AY42: 0 | AZ42: 0 | BA42: 40.31513479 | BB42: 0 | BC42: 0 | BD42: 0 | BE42: -226.4971961
C43: 155 | D43: 558000 | E43: 2 | F43: 24.71557589 | G43: 1977.304906 | H43: 123 | I43: 0 | J43: 0 | K43: 41.58265923 | L43: 39.55416726 | M43: 43.14713303 | N43: 43.74920169 | O43: 38.95417278 | P43: 33.62442601 | Q43: 38.95417278 | R43: 43.74920169 | S43: 43.14713303 | T43: 22.93000136 | U43: -791.2658282 | V43: 0 | W43: 43.3222361 | X43: 178.4712097 | Y43: 24.00842346 | Z43: -1037.067698 | AA43: 670.7960744 | AB43: 0 | AC43: 24.16992247 | AD43: 0 | AE43: 0 | AF43: 0 | AG43: 22.30648115 | AH43: -225.6689469 | AI43: 0 | AJ43: 0 | AK43: 97.155771 | AL43: 0 | AM43: 265.7446385 | AN43: 0 | AO43: 240.7123386 | AP43: 43.3222361 | AQ43: 19.88478278 | AR43: 0 | AS43: 366.9868314 | AT43: 0 | AU43: 0 | AV43: 0 | AW43: 37.80881056 | AX43: 0 | AY43: 0 | AZ43: 0 | BA43: 366.9868314 | BB43: 0 | BC43: 0 | BD43: 0 | BE43: -217.7661209
C44: 156 | D44: 561600 | E44: 2 | F44: 26.32993304 | G44: 1974.370624 | H44: 123 | I44: 0 | J44: 0 | K44: 43.12772715 | L44: 41.11854842 | M44: 44.69941316 | N44: 45.29945408 | O44: 40.5205747 | P44: 35.20877838 | Q44: 40.5205747 | R44: 45.29945408 | S44: 44.69941316 | T44: 23.55818057 | U44: -297.1211868 | V44: 0 | W44: 67.89036636 | X44: 210.3821485 | Y44: 786.7022544 | Z44: -1362.095956 | AA44: 206.2256241 | AB44: 0 | AC44: 37.87673581 | AD44: 0 | AE44: 0 | AF44: 0 | AG44: 22.71827042 | AH44: -307.9463284 | AI44: 0 | AJ44: 0 | AK44: 58.197774 | AL44: 0 | AM44: 329.474883 | AN44: 0 | AO44: 522.1571885 | AP44: 67.89036636 | AQ44: 37.21507603 | AR44: 0 | AS44: 675.3262024 | AT44: 0 | AU44: 0 | AV44: 0 | AW44: 252.6941088 | AX44: 0 | AY44: 0 | AZ44: 0 | BA44: 675.3262024 | BB44: 0 | BC44: 0 | BD44: 0 | BE44: -244.0825306
C45: 157 | D45: 565200 | E45: 2 | F45: 27.32071875 | G45: 1867.069087 | H45: 123 | I45: 0 | J45: 0 | K45: 42.97537561 | L45: 41.2848275 | M45: 44.66604903 | N45: 45.23263599 | O45: 40.72019249 | P45: 35.70454366 | Q45: 40.72019249 | R45: 45.23263599 | S45: 44.66604903 | T45: 24.28404028 | U45: -181.0665254 | V45: 0 | W45: 74.75244546 | X45: 192.5556501 | Y45: 1292.986561 | Z45: -1741.361182 | AA45: 211.3007837 | AB45: 0 | AC45: 41.70516053 | AD45: 0 | AE45: 0 | AF45: 0 | AG45: 23.19734237 | AH45: -397.9657067 | AI45: 0 | AJ45: 0 | AK45: 77.30232906 | AL45: 0 | AM45: 346.461769 | AN45: 0 | AO45: 748.8792882 | AP45: 74.75244546 | AQ45: 51.01855336 | AR45: 0 | AS45: 920.5068967 | AT45: 0 | AU45: 0 | AV45: 0 | AW45: 430.3308682 | AX45: 0 | AY45: 0 | AZ45: 0 | BA45: 920.5068967 | BB45: 0 | BC45: 0 | BD45: 0 | BE45: -296.5282286
C46: 158 | D46: 568800 | E46: 2 | F46: 27.79532589 | G46: 1615.371815 | H46: 123 | I46: 0 | J46: 0 | K46: 40.40961511 | L46: 39.56651925 | M46: 42.41675575 | N46: 42.89436622 | O46: 39.09055419 | P46: 34.86255989 | Q46: 39.09055419 | R46: 42.89436622 | S46: 42.41675575 | T46: 24.96637614 | U46: -76.97792709 | V46: 0 | W46: 69.82050236 | X46: 155.9126086 | Y46: 1729.530579 | Z46: -2032.241617 | AA46: 197.359789 | AB46: 0 | AC46: 38.95357859 | AD46: 0 | AE46: 0 | AF46: 0 | AG46: 23.72889855 | AH46: -453.9153959 | AI46: 0 | AJ46: 0 | AK46: 71.35505999 | AL46: 0 | AM46: 331.4562691 | AN46: 0 | AO46: 920.432997 | AP46: 69.82050236 | AQ46: 61.39344475 | AR46: 0 | AS46: 1104.604235 | AT46: 0 | AU46: 0 | AV46: 0 | AW46: 566.7552286 | AX46: 0 | AY46: 0 | AZ46: 0 | BA46: 1104.604235 | BB46: 0 | BC46: 0 | BD46: 0 | BE46: -384.2807225
C47: 159 | D47: 572400 | E47: 2 | F47: 27.42118304 | G47: 1293.383907 | H47: 123 | I47: 0 | J47: 0 | K47: 36.53030068 | L47: 36.66421349 | M47: 38.90228928 | N47: 39.27732076 | O47: 36.29047402 | P47: 32.97054894 | Q47: 36.29047402 | R47: 39.27732076 | S47: 38.90228928 | T47: 25.48478753 | U47: 22.02402378 | V47: 0 | W47: 48.09324792 | X47: 100.5258807 | Y47: 1957.733152 | Z47: -2084.328257 | AA47: 135.9439268 | AB47: 0 | AC47: 26.83171918 | AD47: 0 | AE47: 0 | AF47: 0 | AG47: 24.26018391 | AH47: -450.1131272 | AI47: 0 | AJ47: 0 | AK47: 52.49909843 | AL47: 0 | AM47: 274.5990818 | AN47: 0 | AO47: 974.2601988 | AP47: 48.09324792 | AQ47: 64.32467442 | AR47: 0 | AS47: 1155.757367 | AT47: 0 | AU47: 0 | AV47: 0 | AW47: 618.9031843 | AX47: 0 | AY47: 0 | AZ47: 0 | BA47: 1155.757367 | BB47: 0 | BC47: 0 | BD47: 0 | BE47: -450.1716754
C48: 160 | D48: 576000 | E48: 2 | F48: 26.07704018 | G48: 875.4181046 | H48: 147.6 | I48: 0 | J48: 0 | K48: 31.28870685 | L48: 32.50896973 | M48: 34.06637515 | N48: 34.32734758 | O48: 32.24889637 | P48: 29.93866659 | Q48: 32.24889637 | R48: 34.32734758 | S48: 34.06637515 | T48: 25.85580415 | U48: 53.46924894 | V48: 0 | W48: 6.086798822 | X48: 38.89746135 | Y48: 2018.049478 | Z48: -2009.564489 | AA48: 92.96319954 | AB48: 0 | AC48: 3.395887859 | AD48: 0 | AE48: 0 | AF48: 0 | AG48: 24.74742965 | AH48: -408.8429237 | AI48: 0 | AJ48: 0 | AK48: 20.53304281 | AL48: 0 | AM48: 197.0101494 | AN48: 0 | AO48: 944.6487306 | AP48: 6.086798822 | AQ48: 62.10263193 | AR48: 0 | AS48: 1115.183589 | AT48: 0 | AU48: 0 | AV48: 0 | AW48: 607.790253 | AX48: 0 | AY48: 0 | AZ48: 0 | BA48: 1115.183589 | BB48: 0 | BC48: 0 | BD48: 0 | BE48: -525.2412954
C49: 161 | D49: 579600 | E49: 2 | F49: 24.32757589 | G49: 325.0347059 | H49: 246 | I49: 0 | J49: 0 | K49: 24.50027197 | L49: 27.12506466 | M49: 27.80243902 | N49: 27.91594578 | O49: 27.01194895 | P49: 26.00714288 | Q49: 27.01194895 | R49: 27.91594578 | S49: 27.80243902 | T49: 25.81403051 | U49: 533.5912605 | V49: 0 | W49: -35.97319284 | X49: -4.176784884 | Y49: 2127.956226 | Z49: -1554.214988 | AA49: -557.0044095 | AB49: 0 | AC49: -20.06981541 | AD49: 0 | AE49: 0 | AF49: 0 | AG49: 25.10253233 | AH49: -263.8741894 | AI49: 0 | AJ49: 0 | AK49: -12.8659894 | AL49: 0 | AM49: 97.87183811 | AN49: 0 | AO49: 813.0237255 | AP49: -35.97319284 | AQ49: 53.28537745 | AR49: 0 | AS49: 956.450686 | AT49: 0 | AU49: 0 | AV49: 0 | AW49: 527.831882 | AX49: 0 | AY49: 0 | AZ49: 0 | BA49: 956.450686 | BB49: 0 | BC49: 0 | BD49: 0 | BE49: -596.2075069
C50: 162 | D50: 583200 | E50: 2 | F50: 22.43954018 | G50: 37.04830752 | H50: 246 | I50: 195 | J50: 0 | K50: 19.01755488 | L50: 22.64430562 | M50: 22.69388683 | N50: 22.70219509 | O50: 22.63602599 | P50: 22.56247804 | Q50: 22.63602599 | R50: 22.70219509 | S50: 22.69388683 | T50: 25.57682448 | U50: 863.4592061 | V50: 0 | W50: -76.68516613 | X50: -63.62344958 | Y50: 2051.356882 | Z50: -1047.58906 | AA50: -1187.383502 | AB50: 0 | AC50: -42.78344533 | AD50: 0 | AE50: 0 | AF50: 0 | AG50: 25.28596736 | AH50: -109.4120826 | AI50: 0 | AJ50: 0 | AK50: -32.09261135 | AL50: 0 | AM50: -21.31028363 | AN50: 0 | AO50: 623.987087 | AP50: -76.68516613 | AQ50: 41.06027055 | AR50: 0 | AS50: 737.4174703 | AT50: 0 | AU50: 0 | AV50: 0 | AW50: 400.3676786 | AX50: 0 | AY50: 0 | AZ50: 0 | BA50: 737.4174703 | BB50: 0 | BC50: 0 | BD50: 0 | BE50: -650.3634204
C51: 163 | D51: 586800 | E51: 2 | F51: 20.69700446 | G51: 0 | H51: 369 | I51: 195 | J51: 0 | K51: 16.99112211 | L51: 20.69700446 | M51: 20.69700446 | N51: 20.69700446 | O51: 20.69700446 | P51: 20.69700446 | Q51: 20.69700446 | R51: 20.69700446 | S51: 20.69700446 | T51: 25.57042761 | U51: -40.70120262 | V51: 0 | W51: -119.3507157 | X51: -144.1624415 | Y51: 1188.867762 | Z51: -966.0558075 | AA51: -362.5429815 | AB51: 0 | AC51: -66.58699562 | AD51: 0 | AE51: 0 | AF51: 0 | AG51: 25.3616884 | AH51: -76.19421973 | AI51: 0 | AJ51: 0 | AK51: 16.01722134 | AL51: 0 | AM51: -114.6956899 | AN51: 0 | AO51: 373.502802 | AP51: -119.3507157 | AQ51: 25.25663106 | AR51: 0 | AS51: 455.250144 | AT51: 0 | AU51: 0 | AV51: 0 | AW51: 220.071608 | AX51: 0 | AY51: 0 | AZ51: 0 | BA51: 455.250144 | BB51: 0 | BC51: 0 | BD51: 0 | BE51: -689.4291594
C52: 164 | D52: 590400 | E52: 2 | F52: 19.39443304 | G52: 0 | H52: 442.8 | I52: 195 | J52: 0 | K52: 15.68855068 | L52: 19.39443304 | M52: 19.39443304 | N52: 19.39443304 | O52: 19.39443304 | P52: 19.39443304 | Q52: 19.39443304 | R52: 19.39443304 | S52: 19.39443304 | T52: 25.23931775 | U52: -239.3933798 | V52: 0 | W52: -143.7033051 | X52: -132.7397786 | Y52: 547.7739916 | Z52: -510.7242876 | AA52: -406.2023764 | AB52: 0 | AC52: -80.17355648 | AD52: 0 | AE52: 0 | AF52: 0 | AG52: 25.37626286 | AH52: 48.18067418 | AI52: 0 | AJ52: 0 | AK52: -41.01863842 | AL52: 0 | AM52: -151.3727926 | AN52: 0 | AO52: 77.67505075 | AP52: -143.7033051 | AQ52: 6.366320331 | AR52: 0 | AS52: 117.3969777 | AT52: 0 | AU52: 0 | AV52: 0 | AW52: 13.64983816 | AX52: 0 | AY52: 0 | AZ52: 0 | BA52: 117.3969777 | BB52: 0 | BC52: 0 | BD52: 0 | BE52: -685.6464595
C53: 165 | D53: 594000 | E53: 2 | F53: 18.62536161 | G53: 0 | H53: 492 | I53: 195 | J53: 0 | K53: 14.91947925 | L53: 18.62536161 | M53: 18.62536161 | N53: 18.62536161 | O53: 18.62536161 | P53: 18.62536161 | Q53: 18.62536161 | R53: 18.62536161 | S53: 18.62536161 | T53: 24.87920179 | U53: -353.5371424 | V53: 0 | W53: -154.00288 | X53: -111.8552008 | Y53: 37.54805036 | Z53: -125.2271119 | AA53: -435.3159155 | AB53: 0 | AC53: -85.91979557 | AD53: 0 | AE53: 0 | AF53: 0 | AG53: 25.28532501 | AH53: 147.6646069 | AI53: 0 | AJ53: 0 | AK53: -40.92824656 | AL53: 0 | AM53: -168.9618464 | AN53: 0 | AO53: -158.9916884 | AP53: -154.00288 | AQ53: -8.534946709 | AR53: 0 | AS53: -148.5810349 | AT53: 0 | AU53: 0 | AV53: 0 | AW53: -157.5825714 | AX53: 0 | AY53: 0 | AZ53: 0 | BA53: -148.5810349 | BB53: 0 | BC53: 0 | BD53: 0 | BE53: -661.3303148
C54: 166 | D54: 597600 | E54: 2 | F54: 17.29854018 | G54: 0 | H54: 410 | I54: 0 | J54: 0 | K54: 13.59265783 | L54: 17.29854018 | M54: 17.29854018 | N54: 17.29854018 | O54: 17.29854018 | P54: 17.29854018 | Q54: 17.29854018 | R54: 17.29854018 | S54: 17.29854018 | T54: 23.84549591 | U54: 1585.680842 | V54: 0 | W54: -161.3306616 | X54: -10.52552253 | Y54: 860.5378419 | Z54: 896.9991844 | AA54: -2463.990503 | AB54: 0 | AC54: -90.00804055 | AD54: 0 | AE54: 0 | AF54: 0 | AG54: 25.02585817 | AH54: 428.8237123 | AI54: 0 | AJ54: 0 | AK54: -124.8773222 | AL54: 0 | AM54: -176.3654232 | AN54: 0 | AO54: -268.6937706 | AP54: -161.3306616 | AQ54: -14.73041562 | AR54: 0 | AS54: -257.3516188 | AT54: 0 | AU54: 0 | AV54: 0 | AW54: -257.4755013 | AX54: 0 | AY54: 0 | AZ54: 0 | BA54: -257.3516188 | BB54: 0 | BC54: 0 | BD54: 0 | BE54: -659.8651888
C55: 167 | D55: 601200 | E55: 2 | F55: 15.98904018 | G55: 0 | H55: 410 | I55: 0 | J55: 0 | K55: 12.28315783 | L55: 15.98904018 | M55: 15.98904018 | N55: 15.98904018 | O55: 15.98904018 | P55: 15.98904018 | Q55: 15.98904018 | R55: 15.98904018 | S55: 15.98904018 | T55: 23.26234986 | U55: 1909.686567 | V55: 0 | W55: -178.9874242 | X55: 8.353283012 | Y55: 923.2033605 | Z55: 1157.117347 | AA55: -2771.418845 | AB55: 0 | AC55: -99.85893056 | AD55: 0 | AE55: 0 | AF55: 0 | AG55: 24.6013144 | AH55: 491.2601807 | AI55: 0 | AJ55: 0 | AK55: -60.33102835 | AL55: 0 | AM55: -181.632805 | AN55: 0 | AO55: -323.7468472 | AP55: -178.9874242 | AQ55: -17.75158475 | AR55: 0 | AS55: -310.1426301 | AT55: 0 | AU55: 0 | AV55: 0 | AW55: -310.1426301 | AX55: 0 | AY55: 0 | AZ55: 0 | BA55: -310.1426301 | BB55: 0 | BC55: 0 | BD55: 0 | BE55: -626.42552
C56: 168 | D56: 604800 | E56: 3 | F56: 12.9483871 | G56: 0 | H56: 410 | I56: 0 | J56: 0 | K56: 9.242504744 | L56: 12.9483871 | M56: 12.9483871 | N56: 12.9483871 | O56: 12.9483871 | P56: 12.9483871 | Q56: 12.9483871 | R56: 12.9483871 | S56: 12.9483871 | T56: 23.42750247 | U56: -106.9417426 | V56: 0 | W56: -210.3718711 | X56: -82.31987126 | Y56: -68.96440594 | Z56: 254.7144057 | AA56: -639.0313196 | AB56: 0 | AC56: -117.3686373 | AD56: 0 | AE56: 0 | AF56: 0 | AG56: 24.2374177 | AH56: 289.6191607 | AI56: 0 | AJ56: 0 | AK56: -163.7225388 | AL56: 0 | AM56: -194.3249014 | AN56: 0 | AO56: -346.9505926 | AP56: -210.3718711 | AQ56: -19.02388518 | AR56: 0 | AS56: -332.3713272 | AT56: 0 | AU56: 0 | AV56: 0 | AW56: -332.3713272 | AX56: 0 | AY56: 0 | AZ56: 0 | BA56: -332.3713272 | BB56: 0 | BC56: 0 | BD56: 0 | BE56: -796.7613877
C58: 216 | D58: 777600 | E58: 3 | F58: 12.9483871 | G58: 0 | H58: 410 | I58: 0 | J58: 0 | K58: 9.242504744 | L58: 12.9483871 | M58: 12.9483871 | N58: 12.9483871 | O58: 12.9483871 | P58: 12.9483871 | Q58: 12.9483871 | R58: 12.9483871 | S58: 12.9483871 | T58: 22.0847182 | U58: -18.65206959 | V58: 0 | W58: -225.224199 | X58: -98.55154125 | Y58: -283.8302258 | Z58: 588.9538964 | AA58: -636.6353562 | AB58: 0 | AC58: -125.6549042 | AD58: 0 | AE58: 0 | AF58: 0 | AG58: 22.9959655 | AH58: 334.612708 | AI58: 0 | AJ58: 0 | AK58: -36.32962198 | AL58: 0 | AM58: -227.9570211 | AN58: 0 | AO58: -452.8141556 | AP58: -225.224199 | AQ58: -24.82856259 | AR58: 0 | AS58: -433.7863808 | AT58: 0 | AU58: 0 | AV58: 0 | AW58: -433.7863808 | AX58: 0 | AY58: 0 | AZ58: 0 | BA58: -433.7863808 | BB58: 0 | BC58: 0 | BD58: 0 | BE58: -625.873057
C59: 217 | D59: 781200 | E59: 3 | F59: 12.13870968 | G59: 0 | H59: 410 | I59: 0 | J59: 0 | K59: 8.432827324 | L59: 12.13870968 | M59: 12.13870968 | N59: 12.13870968 | O59: 12.13870968 | P59: 12.13870968 | Q59: 12.13870968 | R59: 12.13870968 | S59: 12.13870968 | T59: 21.74079891 | U59: 7.486980138 | V59: 0 | W59: -236.5012041 | X59: -93.38931422 | Y59: -340.583401 | Z59: 677.9608995 | AA59: -668.511772 | AB59: 0 | AC59: -131.9464617 | AD59: 0 | AE59: 0 | AF59: 0 | AG59: 22.68534699 | AH59: 346.9369728 | AI59: 0 | AJ59: 0 | AK59: -36.03428081 | AL59: 0 | AM59: -227.560983 | AN59: 0 | AO59: -481.2766354 | AP59: -236.5012041 | AQ59: -26.38920828 | AR59: 0 | AS59: -461.0528343 | AT59: 0 | AU59: 0 | AV59: 0 | AW59: -461.0528343 | AX59: 0 | AY59: 0 | AZ59: 0 | BA59: -461.0528343 | BB59: 0 | BC59: 0 | BD59: 0 | BE59: -581.6098687
C60: 218 | D60: 784800 | E60: 3 | F60: 10.99354839 | G60: 0 | H60: 410 | I60: 0 | J60: 0 | K60: 7.287666034 | L60: 10.99354839 | M60: 10.99354839 | N60: 10.99354839 | O60: 10.99354839 | P60: 10.99354839 | Q60: 10.99354839 | R60: 10.99354839 | S60: 10.99354839 | T60: 21.37203535 | U60: 52.25183946 | V60: 0 | W60: -255.5136033 | X60: -95.09869097 | Y60: -374.198423 | Z60: 777.0625567 | AA60: -722.2536237 | AB60: 0 | AC60: -142.5536754 | AD60: 0 | AE60: 0 | AF60: 0 | AG60: 22.36182836 | AH60: 363.4776212 | AI60: 0 | AJ60: 0 | AK60: -39.0778384 | AL60: 0 | AM60: -235.6671597 | AN60: 0 | AO60: -508.6451811 | AP60: -255.5136033 | AQ60: -27.88987172 | AR60: 0 | AS60: -487.2713221 | AT60: 0 | AU60: 0 | AV60: 0 | AW60: -487.2713221 | AX60: 0 | AY60: 0 | AZ60: 0 | BA60: -487.2713221 | BB60: 0 | BC60: 0 | BD60: 0 | BE60: -542.5598027
C61: 219 | D61: 788400 | E61: 3 | F61: 10.20967742 | G61: 0 | H61: 410 | I61: 0 | J61: 0 | K61: 6.503795066 | L61: 10.20967742 | M61: 10.20967742 | N61: 10.20967742 | O61: 10.20967742 | P61: 10.20967742 | Q61: 10.20967742 | R61: 10.20967742 | S61: 10.20967742 | T61: 21.03293826 | U61: 91.01494169 | V61: 0 | W61: -266.6104565 | X61: -107.737961 | Y61: -357.452434 | Z61: 822.8157932 | AA61: -753.6208087 | AB61: 0 | AC61: -148.7447243 | AD61: 0 | AE61: 0 | AF61: 0 | AG61: 22.02930023 | AH61: 366.1339556 | AI61: 0 | AJ61: 0 | AK61: -35.21663562 | AL61: 0 | AM61: -249.3337195 | AN61: 0 | AO61: -507.4039478 | AP61: -266.6104565 | AQ61: -27.82181281 | AR61: 0 | AS61: -486.0822468 | AT61: 0 | AU61: 0 | AV61: 0 | AW61: -486.0822468 | AX61: 0 | AY61: 0 | AZ61: 0 | BA61: -486.0822468 | BB61: 0 | BC61: 0 | BD61: 0 | BE61: -506.4505114
C62: 220 | D62: 792000 | E62: 3 | F62: 9.516129032 | G62: 0 | H62: 410 | I62: 0 | J62: 0 | K62: 5.810246679 | L62: 9.516129032 | M62: 9.516129032 | N62: 9.516129032 | O62: 9.516129032 | P62: 9.516129032 | Q62: 9.516129032 | R62: 9.516129032 | S62: 9.516129032 | T62: 20.66442986 | U62: 103.6966556 | V62: 0 | W62: -274.6743116 | X62: -111.4847727 | Y62: -408.3932967 | Z62: 898.2490366 | AA62: -776.4146972 | AB62: 0 | AC62: -153.2436322 | AD62: 0 | AE62: 0 | AF62: 0 | AG62: 21.69097612 | AH62: 377.071417 | AI62: 0 | AJ62: 0 | AK62: -38.89025691 | AL62: 0 | AM62: -257.3103987 | AN62: 0 | AO62: -532.8097301 | AP62: -274.6743116 | AQ62: -29.21485463 | AR62: 0 | AS62: -510.4204487 | AT62: 0 | AU62: 0 | AV62: 0 | AW62: -510.4204487 | AX62: 0 | AY62: 0 | AZ62: 0 | BA62: -510.4204487 | BB62: 0 | BC62: 0 | BD62: 0 | BE62: -470.7262286
C63: 221 | D63: 795600 | E63: 3 | F63: 9.641935484 | G63: 2.021031915 | H63: 410 | I63: 0 | J63: 0 | K63: 5.95115117 | L63: 9.6578476 | M63: 9.658267615 | N63: 9.656296124 | O63: 9.651502906 | P63: 9.648280856 | Q63: 9.651502906 | R63: 9.656296124 | S63: 9.658267615 | T63: 20.29320409 | U63: 54.28147551 | V63: 0 | W63: -262.759125 | X63: -113.8860727 | Y63: -537.4445938 | Z63: 968.371267 | AA63: -742.7343505 | AB63: 0 | AC63: -146.5960267 | AD63: 0 | AE63: 0 | AF63: 0 | AG63: 21.34351013 | AH63: 385.8505917 | AI63: 0 | AJ63: 0 | AK63: -38.90020777 | AL63: 0 | AM63: -263.1068875 | AN63: 0 | AO63: -575.642456 | AP63: -262.759125 | AQ63: -31.56344511 | AR63: 0 | AS63: -551.4532939 | AT63: 0 | AU63: 0 | AV63: 0 | AW63: -551.4532939 | AX63: 0 | AY63: 0 | AZ63: 0 | BA63: -551.4532939 | BB63: 0 | BC63: 0 | BD63: 0 | BE63: -432.4771992
C64: 222 | D64: 799200 | E64: 3 | F64: 10.51612903 | G64: 164.8631936 | H64: 328 | I64: 0 | J64: 0 | K64: 8.302517394 | L64: 12.08886205 | M64: 12.13037583 | N64: 11.93551614 | O64: 11.46176064 | P64: 11.14329739 | Q64: 11.46176064 | R64: 11.93551614 | S64: 12.13037583 | T64: 19.95375833 | U64: 16.60074856 | V64: 0 | W64: -233.1328893 | X64: -105.6596286 | Y64: -642.6137303 | Z64: 998.0069967 | AA64: -658.9906445 | AB64: 0 | AC64: -130.0672441 | AD64: 0 | AE64: 0 | AF64: 0 | AG64: 20.99936388 | AH64: 384.2951586 | AI64: 0 | AJ64: 0 | AK64: -34.47294113 | AL64: 0 | AM64: -254.2789076 | AN64: 0 | AO64: -600.6423768 | AP64: -233.1328893 | AQ64: -32.93423286 | AR64: 0 | AS64: -575.4026891 | AT64: 0 | AU64: 0 | AV64: 0 | AW64: -575.4026891 | AX64: 0 | AY64: 0 | AZ64: 0 | BA64: -575.4026891 | BB64: 0 | BC64: 0 | BD64: 0 | BE64: -397.1943974
C65: 223 | D65: 802800 | E65: 3 | F65: 12.51935484 | G65: 683.6708795 | H65: 393.6 | I65: 0 | J65: 0 | K65: 14.79400063 | L65: 18.82234931 | M65: 18.98872282 | N65: 18.20778958 | O65: 16.30913401 | P65: 15.03283847 | Q65: 16.30913401 | R65: 18.20778958 | S65: 18.98872282 | T65: 20.78963306 | U65: -247.1454075 | V65: 0 | W65: -179.4497664 | X65: -73.72057239 | Y65: -888.4462648 | Z65: 894.4711962 | AA65: -507.2459643 | AB65: 0 | AC65: -100.116876 | AD65: 6403.732951 | AE65: 0 | AF65: 0 | AG65: 20.70100933 | AH65: 345.2520428 | AI65: 106.7288825 | AJ65: 0 | AK65: 6388.237025 | AL65: 0 | AM65: -207.2406246 | AN65: 0 | AO65: -618.8093053 | AP65: -179.4497664 | AQ65: -33.93035614 | AR65: 0 | AS65: -592.8062223 | AT65: 0 | AU65: 0 | AV65: 0 | AW65: -592.8062223 | AX65: 0 | AY65: 0 | AZ65: 0 | BA65: -592.8062223 | BB65: 0 | BC65: 0 | BD65: 0 | BE65: -358.9823555
C66: 224 | D66: 806400 | E66: 3 | F66: 15.3516129 | G66: 1114.692851 | H66: 196.8 | I66: 0 | J66: 0 | K66: 21.73292536 | L66: 25.98270294 | M66: 26.26332063 | N66: 24.94614168 | O66: 21.74373077 | P66: 19.59103765 | Q66: 21.74373077 | R66: 24.94614168 | S66: 26.26332063 | T66: 20.78963306 | U66: -2874.143418 | V66: 0 | W66: -135.210783 | X66: -90.2665618 | Y66: -2325.865374 | Z66: -322.8006996 | AA66: -382.1967861 | AB66: 0 | AC66: -75.43549078 | AD66: 2966.223105 | AE66: 0 | AF66: 0 | AG66: 20.78937029 | AH66: -0.6537831341 | AI66: 3274.797333 | AJ66: 0 | AK66: 1.278976924e-13 | AL66: 0 | AM66: -90.01372287 | AN66: 0 | AO66: -591.0968451 | AP66: -135.210783 | AQ66: -32.40957766 | AR66: 0 | AS66: -566.3394347 | AT66: 0 | AU66: 0 | AV66: 0 | AW66: -566.75874 | AX66: 0 | AY66: 0 | AZ66: 0 | BA66: -566.3394347 | BB66: 0 | BC66: 0 | BD66: 0 | BE66: -320.4271096
C67: 225 | D67: 810000 | E67: 3 | F67: 18.2483871 | G67: 1441.834704 | H67: 123 | I67: 0 | J67: 0 | K67: 27.81075901 | L67: 32.23205732 | M67: 32.60116954 | N67: 30.86861004 | O67: 26.65629898 | P67: 23.82474074 | Q67: 26.65629898 | R67: 30.86861004 | S67: 32.60116954 | T67: 20.78963306 | U67: -1852.313763 | V67: 0 | W67: -63.8318045 | X67: 27.12270334 | Y67: -1647.455705 | Z67: -168.1489567 | AA67: -180.4316933 | AB67: 0 | AC67: -35.61242227 | AD67: 1696.457823 | AE67: 0 | AF67: 0 | AG67: 20.87875069 | AH67: 32.21270428 | AI67: 2283.196483 | AJ67: 0 | AK67: 8.526512829e-14 | AL67: 0 | AM67: 14.66501613 | AN67: 0 | AO67: -439.3227354 | AP67: -63.8318045 | AQ67: -23.96448136 | AR67: 0 | AS67: -428.8852968 | AT67: 0 | AU67: 0 | AV67: 0 | AW67: -470.3360075 | AX67: 0 | AY67: 0 | AZ67: 0 | BA67: -428.8852968 | BB67: 0 | BC67: 0 | BD67: 0 | BE67: -285.0986734
C68: 226 | D68: 813600 | E68: 3 | F68: 21.39677419 | G68: 1803.786382 | H68: 123 | I68: 0 | J68: 0 | K68: 34.5722043 | L68: 39.18831644 | M68: 39.65794105 | N68: 37.45359091 | O68: 32.0942318 | P68: 28.49161624 | Q68: 32.0942318 | R68: 37.45359091 | S68: 39.65794105 | T68: 20.93762107 | U68: -484.8464638 | V68: 0 | W68: 10.37480278 | X68: 129.0235468 | Y68: -419.4190588 | Z68: -204.8257545 | AA68: 158.4535467 | AB68: 0 | AC68: 5.788209508 | AD68: 0 | AE68: 0 | AF68: 0 | AG68: 20.97071891 | AH68: 16.57762935 | AI68: 726.0714608 | AJ68: 0 | AK68: 88.63599985 | AL68: 0 | AM68: 122.6124451 | AN68: 0 | AO68: -58.62972759 | AP68: 10.37480278 | AQ68: -2.714495975 | AR68: 0 | AS68: -88.45167345 | AT68: 0 | AU68: 0 | AV68: 0 | AW68: -255.2463832 | AX68: 0 | AY68: 0 | AZ68: 0 | BA68: -88.45167345 | BB68: 0 | BC68: 0 | BD68: 0 | BE68: -265.0116067
C69: 227 | D69: 817200 | E69: 3 | F69: 22.93548387 | G69: 1877.741401 | H69: 123 | I69: 0 | J69: 0 | K69: 36.61450664 | L69: 41.25777218 | M69: 41.74140634 | N69: 39.47129741 | O69: 33.95206129 | P69: 30.24197477 | Q69: 33.95206129 | R69: 39.47129741 | S69: 41.74140634 | T69: 21.58491757 | U69: -701.3990066 | V69: 0 | W69: 32.9886914 | X69: 182.2644326 | Y69: -4.750888577 | Z69: -911.9012421 | AA69: 510.7927633 | AB69: 0 | AC69: 18.40473127 | AD69: 0 | AE69: 0 | AF69: 0 | AG69: 21.17121941 | AH69: -148.8929092 | AI69: 0 | AJ69: 0 | AK69: 83.38190128 | AL69: 0 | AM69: 239.8461021 | AN69: 0 | AO69: 281.7624547 | AP69: 32.9886914 | AQ69: 16.2981928 | AR69: 0 | AS69: 215.1515864 | AT69: 0 | AU69: 0 | AV69: 0 | AW69: -67.80687915 | AX69: 0 | AY69: 0 | AZ69: 0 | BA69: 215.1515864 | BB69: 0 | BC69: 0 | BD69: 0 | BE69: -371.3386306
C70: 228 | D70: 820800 | E70: 3 | F70: 24.27419355 | G70: 1764.917777 | H70: 123 | I70: 0 | J70: 0 | K70: 37.03199241 | L70: 41.62558613 | M70: 42.08359258 | N70: 39.93377643 | O70: 34.70700393 | P70: 31.19351442 | Q70: 34.70700393 | R70: 39.93377643 | S70: 42.08359258 | T70: 22.36155823 | U70: -750.8787425 | V70: 0 | W70: 46.93768868 | X70: 148.481245 | Y70: 527.7425133 | Z70: -1474.040189 | AA70: 726.777289 | AB70: 0 | AC70: 26.18702076 | AD70: 0 | AE70: 0 | AF70: 0 | AG70: 21.528262 | AH70: -303.7288181 | AI70: 0 | AJ70: 0 | AK70: 86.37647484 | AL70: 0 | AM70: 265.9429327 | AN70: 0 | AO70: 629.6546949 | AP70: 46.93768868 | AQ70: 35.64448274 | AR70: 0 | AS70: 530.95032 | AT70: 0 | AU70: 0 | AV70: 0 | AW70: 157.7138449 | AX70: 0 | AY70: 0 | AZ70: 0 | BA70: 530.95032 | BB70: 0 | BC70: 0 | BD70: 0 | BE70: -371.3386306
C71: 229 | D71: 824400 | E71: 3 | F71: 25.43548387 | G71: 1688.991393 | H71: 123 | I71: 0 | J71: 0 | K71: 37.03000316 | L71: 41.56087358 | M71: 41.98651852 | N71: 39.98860262 | O71: 35.13113984 | P71: 31.86590408 | Q71: 35.13113984 | R71: 39.98860262 | S71: 41.98651852 | T71: 23.25087279 | U71: -694.6632264 | V71: 0 | W71: 53.73766462 | X71: 85.35960177 | Y71: 1191.586938 | Z71: -2025.347431 | AA71: 832.0672643 | AB71: 0 | AC71: 29.9807975 | AD71: 0 | AE71: 0 | AF71: 0 | AG71: 22.01600406 | AH71: -451.7540641 | AI71: 0 | AJ71: 0 | AK71: 92.16929619 | AL71: 0 | AM71: 260.0674058 | AN71: 0 | AO71: 1007.876945 | AP71: 53.73766462 | AQ71: 56.68849586 | AR71: 0 | AS71: 873.566591 | AT71: 0 | AU71: 0 | AV71: 0 | AW71: 398.4902587 | AX71: 0 | AY71: 0 | AZ71: 0 | BA71: 873.566591 | BB71: 0 | BC71: 0 | BD71: 0 | BE71: -385.2333516
C72: 230 | D72: 828000 | E72: 3 | F72: 25.98064516 | G72: 1492.461217 | H72: 123 | I72: 0 | J72: 0 | K72: 35.73271664 | L72: 40.16424342 | M72: 40.53863293 | N72: 38.7813026 | O72: 34.50876707 | P72: 31.63672533 | Q72: 34.50876707 | R72: 38.7813026 | S72: 40.53863293 | T72: 23.65338382 | U72: -109.5356046 | V72: 0 | W72: 57.27976471 | X72: 86.17910913 | Y72: 1685.031541 | Z72: -1938.026019 | AA72: 173.9945718 | AB72: 0 | AC72: 31.95697167 | AD72: 0 | AE72: 0 | AF72: 0 | AG72: 22.54272662 | AH72: -409.1607762 | AI72: 0 | AJ72: 0 | AK72: 34.61567063 | AL72: 0 | AM72: 244.4147209 | AN72: 0 | AO72: 1091.330816 | AP72: 57.27976471 | AQ72: 61.31146121 | AR72: 0 | AS72: 950.4772587 | AT72: 0 | AU72: 0 | AV72: 0 | AW72: 459.7143426 | AX72: 0 | AY72: 0 | AZ72: 0 | BA72: 950.4772587 | BB72: 0 | BC72: 0 | BD72: 0 | BE72: -452.5488472
C73: 231 | D73: 831600 | E73: 3 | F73: 25.96129032 | G73: 1068.880202 | H73: 123 | I73: 0 | J73: 0 | K73: 31.76790323 | L73: 35.98669336 | M73: 36.25132337 | N73: 35.0091883 | O73: 31.98922891 | P73: 29.95918157 | Q73: 31.98922891 | R73: 35.0091883 | S73: 36.25132337 | T73: 24.03983219 | U73: -27.87956975 | V73: 0 | W73: 47.51819008 | X73: 67.43820292 | Y73: 1771.046655 | Z73: -1913.882617 | AA73: 134.3184259 | AB73: 0 | AC73: 26.51088848 | AD73: 0 | AE73: 0 | AF73: 0 | AG73: 23.00629187 | AH73: -380.3069218 | AI73: 0 | AJ73: 0 | AK73: 37.03380566 | AL73: 0 | AM73: 214.5151026 | AN73: 0 | AO73: 1070.228824 | AP73: 47.51819008 | AQ73: 60.07837868 | AR73: 0 | AS73: 935.1683582 | AT73: 0 | AU73: 0 | AV73: 0 | AW73: 469.7527854 | AX73: 0 | AY73: 0 | AZ73: 0 | BA73: 935.1683582 | BB73: 0 | BC73: 0 | BD73: 0 | BE73: -533.1607019
C74: 232 | D74: 835200 | E74: 3 | F74: 24.69354839 | G74: 628.2798501 | H74: 147.6 | I74: 0 | J74: 0 | K74: 26.26296964 | L74: 30.25329306 | M74: 30.40004778 | N74: 29.71120227 | O74: 28.03643638 | P74: 26.91064175 | Q74: 28.03643638 | R74: 29.71120227 | S74: 30.40004778 | T74: 24.32909451 | U74: -40.88840843 | V74: 0 | W74: 9.558737747 | X74: 7.003913598 | Y74: 1799.705245 | Z74: -1857.156305 | AA74: 145.9898496 | AB74: 0 | AC74: 5.332918405 | AD74: 0 | AE74: 0 | AF74: 0 | AG74: 23.40974168 | AH74: -339.2679547 | AI74: 0 | AJ74: 0 | AK74: 13.69988325 | AL74: 0 | AM74: 138.2097268 | AN74: 0 | AO74: 1017.700161 | AP74: 9.558737747 | AQ74: 57.09994459 | AR74: 0 | AS74: 891.1844166 | AT74: 0 | AU74: 0 | AV74: 0 | AW74: 458.5092816 | AX74: 0 | AY74: 0 | AZ74: 0 | BA74: 891.1844166 | BB74: 0 | BC74: 0 | BD74: 0 | BE74: -625.4282625
C75: 233 | D75: 838800 | E75: 3 | F75: 22.76129032 | G75: 164.625485 | H75: 246 | I75: 0 | J75: 0 | K75: 20.31049336 | L75: 24.08404913 | M75: 24.1189646 | N75: 23.95507642 | O75: 23.55662083 | P75: 23.28877494 | Q75: 23.55662083 | R75: 23.95507642 | S75: 24.1189646 | T75: 24.27215662 | U75: 517.4292041 | V75: 0 | W75: -36.49839653 | X75: -47.07823756 | Y75: 2048.466499 | Z75: -1447.460661 | AA75: -565.1365977 | AB75: 0 | AC75: -20.36283197 | AD75: 0 | AE75: 0 | AF75: 0 | AG75: 23.69359501 | AH75: -214.6425619 | AI75: 0 | AJ75: 0 | AK75: -12.49982881 | AL75: 0 | AM75: 35.93093409 | AN75: 0 | AO75: 918.5079646 | AP75: -36.49839653 | AQ75: 51.50595554 | AR75: 0 | AS75: 806.1708727 | AT75: 0 | AU75: 0 | AV75: 0 | AW75: 425.2120944 | AX75: 0 | AY75: 0 | AZ75: 0 | BA75: 806.1708727 | BB75: 0 | BC75: 0 | BD75: 0 | BE75: -668.190886
C76: 234 | D76: 842400 | E76: 3 | F76: 20.45483871 | G76: 2.385480293 | H76: 246 | I76: 195 | J76: 0 | K76: 16.76722011 | L76: 20.47408724 | M76: 20.47459532 | N76: 20.47221045 | O76: 20.4664122 | P76: 20.46251456 | Q76: 20.4664122 | R76: 20.47221045 | S76: 20.47459532 | T76: 24.26139236 | U76: 60.9704285 | V76: 0 | W76: -92.81842453 | X76: -126.1580152 | Y76: 1529.754147 | Z76: -1249.807279 | AA76: -281.9477718 | AB76: 0 | AC76: -51.78435664 | AD76: 0 | AE76: 0 | AF76: 0 | AG76: 23.85513824 | AH76: -149.1566719 | AI76: 0 | AJ76: 0 | AK76: 16.59505017 | AL76: 0 | AM76: -68.47434017 | AN76: 0 | AO76: 667.6481954 | AP76: -92.81842453 | AQ76: 37.4196434 | AR76: 0 | AS76: 587.23009 | AT76: 0 | AU76: 0 | AV76: 0 | AW76: 316.7125461 | AX76: 0 | AY76: 0 | AZ76: 0 | BA76: 587.23009 | BB76: 0 | BC76: 0 | BD76: 0 | BE76: -708.2870649
C77: 235 | D77: 846000 | E77: 3 | F77: 18.31935484 | G77: 0 | H77: 369 | I77: 195 | J77: 0 | K77: 14.61347249 | L77: 18.31935484 | M77: 18.31935484 | N77: 18.31935484 | O77: 18.31935484 | P77: 18.31935484 | Q77: 18.31935484 | R77: 18.31935484 | S77: 18.31935484 | T77: 23.98307457 | U77: -106.4250832 | V77: 0 | W77: -138.8710434 | X77: -139.5707685 | Y77: 984.6638341 | Z77: -812.6471054 | AA77: -392.5431485 | AB77: 0 | AC77: -77.47758782 | AD77: 0 | AE77: 0 | AF77: 0 | AG77: 23.93355987 | AH77: -20.36303897 | AI77: 0 | AJ77: 0 | AK77: -34.85289479 | AL77: 0 | AM77: -131.6957274 | AN77: 0 | AO77: 334.420515 | AP77: -138.8710434 | AQ77: 18.78969024 | AR77: 0 | AS77: 291.1424812 | AT77: 0 | AU77: 0 | AV77: 0 | AW77: 140.1581523 | AX77: 0 | AY77: 0 | AZ77: 0 | BA77: 291.1424812 | BB77: 0 | BC77: 0 | BD77: 0 | BE77: -738.7181481
C78: 236 | D78: 849600 | E78: 3 | F78: 16.38387097 | G78: 0 | H78: 442.8 | I78: 195 | J78: 0 | K78: 12.67798861 | L78: 16.38387097 | M78: 16.38387097 | N78: 16.38387097 | O78: 16.38387097 | P78: 16.38387097 | Q78: 16.38387097 | R78: 16.38387097 | S78: 16.38387097 | T78: 23.57811143 | U78: -198.4669195 | V78: 0 | W78: -176.7305862 | X78: -121.9615217 | Y78: 424.8977264 | Z78: -324.672538 | AA78: -499.5597285 | AB78: 0 | AC78: -98.59981733 | AD78: 0 | AE78: 0 | AF78: 0 | AG78: 23.89023762 | AH78: 112.5362651 | AI78: 0 | AJ78: 0 | AK78: -47.52020031 | AL78: 0 | AM78: -165.4829094 | AN78: 0 | AO78: -4.847523146 | AP78: -176.7305862 | AQ78: -0.1538044022 | AR78: 0 | AS78: -11.87147097 | AT78: 0 | AU78: 0 | AV78: 0 | AW78: -49.21108602 | AX78: 0 | AY78: 0 | AZ78: 0 | BA78: -11.87147097 | BB78: 0 | BC78: 0 | BD78: 0 | BE78: -733.240667
C79: 237 | D79: 853200 | E79: 3 | F79: 15.06451613 | G79: 0 | H79: 492 | I79: 195 | J79: 0 | K79: 11.35863378 | L79: 15.06451613 | M79: 15.06451613 | N79: 15.06451613 | O79: 15.06451613 | P79: 15.06451613 | Q79: 15.06451613 | R79: 15.06451613 | S79: 15.06451613 | T79: 23.20231511 | U79: -251.4175337 | V79: 0 | W79: -200.2287808 | X79: -115.7956575 | Y79: 74.26148522 | Z79: -9.654580619 | AA79: -565.981461 | AB79: 0 | AC79: -111.7097025 | AD79: 0 | AE79: 0 | AF79: 0 | AG79: 23.74748012 | AH79: 198.8636912 | AI79: 0 | AJ79: 0 | AK79: -44.06500612 | AL79: 0 | AM79: -192.7026331 | AN79: 0 | AO79: -206.833708 | AP79: -200.2287808 | AQ79: -11.33774718 | AR79: 0 | AS79: -198.354853 | AT79: 0 | AU79: 0 | AV79: 0 | AW79: -199.4528646 | AX79: 0 | AY79: 0 | AZ79: 0 | BA79: -198.354853 | BB79: 0 | BC79: 0 | BD79: 0 | BE79: -731.6384333
C80: 238 | D80: 856800 | E80: 3 | F80: 14.13225806 | G80: 0 | H80: 410 | I80: 0 | J80: 0 | K80: 10.42637571 | L80: 14.13225806 | M80: 14.13225806 | N80: 14.13225806 | O80: 14.13225806 | P80: 14.13225806 | Q80: 14.13225806 | R80: 14.13225806 | S80: 14.13225806 | T80: 22.77694534 | U80: -16.63837279 | V80: 0 | W80: -212.8941738 | X80: -103.0151396 | Y80: 2.326355283 | Z80: 296.9445853 | AA80: -601.7823964 | AB80: 0 | AC80: -118.7758559 | AD80: 0 | AE80: 0 | AF80: 0 | AG80: 23.53018578 | AH80: 275.5875319 | AI80: 0 | AJ80: 0 | AK80: -46.99242655 | AL80: 0 | AM80: -209.5936883 | AN80: 0 | AO80: -312.8425075 | AP80: -212.8941738 | AQ80: -17.15365565 | AR80: 0 | AS80: -299.6981674 | AT80: 0 | AU80: 0 | AV80: 0 | AW80: -299.7067644 | AX80: 0 | AY80: 0 | AZ80: 0 | BA80: -299.6981674 | BB80: 0 | BC80: 0 | BD80: 0 | BE80: -703.588729
C81: 239 | D81: 860400 | E81: 3 | F81: 13.26451613 | G81: 0 | H81: 410 | I81: 0 | J81: 0 | K81: 9.558633776 | L81: 13.26451613 | M81: 13.26451613 | N81: 13.26451613 | O81: 13.26451613 | P81: 13.26451613 | Q81: 13.26451613 | R81: 13.26451613 | S81: 13.26451613 | T81: 22.40333105 | U81: -2.306620732 | V81: 0 | W81: -225.0722496 | X81: -97.12888363 | Y81: -159.6251663 | Z81: 479.5196788 | AA81: -636.2058448 | AB81: 0 | AC81: -125.5701301 | AD81: 0 | AE81: 0 | AF81: 0 | AG81: 23.26029337 | AH81: 314.3493465 | AI81: 0 | AJ81: 0 | AK81: -39.73324917 | AL81: 0 | AM81: -218.6978708 | AN81: 0 | AO81: -398.1534735 | AP81: -225.0722496 | AQ81: -21.83142535 | AR81: 0 | AS81: -381.4226039 | AT81: 0 | AU81: 0 | AV81: 0 | AW81: -381.4226039 | AX81: 0 | AY81: 0 | AZ81: 0 | BA81: -381.4226039 | BB81: 0 | BC81: 0 | BD81: 0 | BE81: -661.7402008
C82: 240 | D82: 864000 | E82: 4 | F82: 9.786666667 | G82: 0 | H82: 410 | I82: 0 | J82: 0 | K82: 6.080784314 | L82: 9.786666667 | M82: 9.786666667 | N82: 9.786666667 | O82: 9.786666667 | P82: 9.786666667 | Q82: 9.786666667 | R82: 9.786666667 | S82: 9.786666667 | T82: 22.00159593 | U82: -367.3829648 | V82: 0 | W82: -224.5493646 | X82: -98.5899582 | Y82: -283.3467279 | Z82: 239.1030859 | AA82: -634.7278195 | AB82: 0 | AC82: -125.2784071 | AD82: 0 | AE82: 0 | AF82: 0 | AG82: 22.96478483 | AH82: 333.2068775 | AI82: 0 | AJ82: 0 | AK82: -384.1823139 | AL82: 0 | AM82: -227.4517582 | AN82: 0 | AO82: -451.0921753 | AP82: -224.5493646 | AQ82: -24.73414351 | AR82: 0 | AS82: -432.1367602 | AT82: 0 | AU82: 0 | AV82: 0 | AW82: -432.1367602 | AX82: 0 | AY82: 0 | AZ82: 0 | BA82: -432.1367602 | BB82: 0 | BC82: 0 | BD82: 0 | BE82: -970.6199347
C84: 288 | D84: 1036800 | E84: 4 | F84: 9.786666667 | G84: 0 | H84: 410 | I84: 0 | J84: 0 | K84: 6.080784314 | L84: 9.786666667 | M84: 9.786666667 | N84: 9.786666667 | O84: 9.786666667 | P84: 9.786666667 | Q84: 9.786666667 | R84: 9.786666667 | S84: 9.786666667 | T84: 19.31297278 | U84: 10.11081287 | V84: 0 | W84: -234.7251953 | X84: -100.0569085 | Y84: -191.5392463 | Z84: 536.4321629 | AA84: -663.4915744 | AB84: 0 | AC84: -130.9556081 | AD84: 0 | AE84: 0 | AF84: 0 | AG84: 20.22682206 | AH84: 335.4211757 | AI84: 0 | AJ84: 0 | AK84: -38.91519387 | AL84: 0 | AM84: -229.7750487 | AN84: 0 | AO84: -430.2425896 | AP84: -234.7251953 | AQ84: -23.59092562 | AR84: 0 | AS84: -412.1632982 | AT84: 0 | AU84: 0 | AV84: 0 | AW84: -412.1632982 | AX84: 0 | AY84: 0 | AZ84: 0 | BA84: -412.1632982 | BB84: 0 | BC84: 0 | BD84: 0 | BE84: -681.3299699
C85: 289 | D85: 1040400 | E85: 4 | F85: 9.196666667 | G85: 0 | H85: 410 | I85: 0 | J85: 0 | K85: 5.490784314 | L85: 9.196666667 | M85: 9.196666667 | N85: 9.196666667 | O85: 9.196666667 | P85: 9.196666667 | Q85: 9.196666667 | R85: 9.196666667 | S85: 9.196666667 | T85: 18.96197557 | U85: 17.83675426 | V85: 0 | W85: -240.6177391 | X85: -99.11900328 | Y85: -275.0889099 | Z85: 632.6624065 | AA85: -680.1478739 | AB85: 0 | AC85: -134.2431191 | AD85: 0 | AE85: 0 | AF85: 0 | AG85: 19.91433752 | AH85: 349.7809329 | AI85: 0 | AJ85: 0 | AK85: -36.77330577 | AL85: 0 | AM85: -234.3905228 | AN85: 0 | AO85: -467.8407091 | AP85: -240.6177391 | AQ85: -25.65249382 | AR85: 0 | AS85: -448.1815012 | AT85: 0 | AU85: 0 | AV85: 0 | AW85: -448.1815012 | AX85: 0 | AY85: 0 | AZ85: 0 | BA85: -448.1815012 | BB85: 0 | BC85: 0 | BD85: 0 | BE85: -637.2334907
C86: 290 | D86: 1044000 | E86: 4 | F86: 8.276666667 | G86: 0 | H86: 410 | I86: 0 | J86: 0 | K86: 4.570784314 | L86: 8.276666667 | M86: 8.276666667 | N86: 8.276666667 | O86: 8.276666667 | P86: 8.276666667 | Q86: 8.276666667 | R86: 8.276666667 | S86: 8.276666667 | T86: 18.57401644 | U86: 35.42397569 | V86: 0 | W86: -253.6154061 | X86: -94.94796206 | Y86: -360.6532385 | Z86: 744.6405823 | AA86: -716.8880392 | AB86: 0 | AC86: -141.4946515 | AD86: 0 | AE86: 0 | AF86: 0 | AG86: 19.58594659 | AH86: 371.5188234 | AI86: 0 | AJ86: 0 | AK86: -41.43989164 | AL86: 0 | AM86: -238.6262219 | AN86: 0 | AO86: -514.3431096 | AP86: -253.6154061 | AQ86: -28.20229873 | AR86: 0 | AS86: -492.729817 | AT86: 0 | AU86: 0 | AV86: 0 | AW86: -492.729817 | AX86: 0 | AY86: 0 | AZ86: 0 | BA86: -492.729817 | BB86: 0 | BC86: 0 | BD86: 0 | BE86: -604.1757346
C87: 291 | D87: 1047600 | E87: 4 | F87: 7.586666667 | G87: 0 | H87: 410 | I87: 0 | J87: 0 | K87: 3.880784314 | L87: 7.586666667 | M87: 7.586666667 | N87: 7.586666667 | O87: 7.586666667 | P87: 7.586666667 | Q87: 7.586666667 | R87: 7.586666667 | S87: 7.586666667 | T87: 18.21309317 | U87: 59.79102824 | V87: 0 | W87: -261.8064323 | X87: -101.5043139 | Y87: -385.2870414 | Z87: 808.3888158 | AA87: -740.0413989 | AB87: 0 | AC87: -146.0645096 | AD87: 0 | AE87: 0 | AF87: 0 | AG87: 19.24390425 | AH87: 378.7245268 | AI87: 0 | AJ87: 0 | AK87: -37.59035343 | AL87: 0 | AM87: -247.9692507 | AN87: 0 | AO87: -528.8085886 | AP87: -261.8064323 | AQ87: -28.99546531 | AR87: 0 | AS87: -506.5874398 | AT87: 0 | AU87: 0 | AV87: 0 | AW87: -506.5874398 | AX87: 0 | AY87: 0 | AZ87: 0 | BA87: -506.5874398 | BB87: 0 | BC87: 0 | BD87: 0 | BE87: -566.5881415
C88: 292 | D88: 1051200 | E88: 4 | F88: 6.843333333 | G88: 0 | H88: 410 | I88: 0 | J88: 0 | K88: 3.13745098 | L88: 6.843333333 | M88: 6.843333333 | N88: 6.843333333 | O88: 6.843333333 | P88: 6.843333333 | Q88: 6.843333333 | R88: 6.843333333 | S88: 6.843333333 | T88: 17.93529167 | U88: -164.0236866 | V88: 0 | W88: -273.1113868 | X88: -116.0950454 | Y88: -537.9961704 | Z88: 763.178916 | AA88: -771.9968184 | AB88: 0 | AC88: -152.3716603 | AD88: 322.1711462 | AE88: 0 | AF88: 0 | AG88: 18.89918663 | AH88: 356.2210192 | AI88: 43.30084123 | AJ88: 0 | AK88: 0 | AL88: 0 | AM88: -253.8571531 | AN88: 0 | AO88: -542.083805 | AP88: -273.1113868 | AQ88: -29.72336778 | AR88: 0 | AS88: -519.3048163 | AT88: 0 | AU88: 0 | AV88: 0 | AW88: -519.3048163 | AX88: 0 | AY88: 0 | AZ88: 0 | BA88: -519.3048163 | BB88: 0 | BC88: 0 | BD88: 0 | BE88: -530.0980131
C89: 293 | D89: 1054800 | E89: 4 | F89: 6.513333333 | G89: 0 | H89: 410 | I89: 0 | J89: 0 | K89: 2.80745098 | L89: 6.513333333 | M89: 6.513333333 | N89: 6.513333333 | O89: 6.513333333 | P89: 6.513333333 | Q89: 6.513333333 | R89: 6.513333333 | S89: 6.513333333 | T89: 17.93529167 | U89: -1117.069269 | V89: 0 | W89: -281.4156979 | X89: -163.4971713 | Y89: -1106.838837 | Z89: 434.6824366 | AA89: -795.4703976 | AB89: 0 | AC89: -157.0047212 | AD89: 1404.881676 | AE89: 0 | AF89: 0 | AG89: 18.624381 | AH89: 254.6627125 | AI89: 893.6775582 | AJ89: 0 | AK89: -8.526512829e-14 | AL89: 0 | AM89: -261.9834204 | AN89: 0 | AO89: -571.3660382 | AP89: -281.4156979 | AQ89: -31.32896192 | AR89: 0 | AS89: -547.3565761 | AT89: 0 | AU89: 0 | AV89: 0 | AW89: -547.3565761 | AX89: 0 | AY89: 0 | AZ89: 0 | BA89: -547.3565761 | BB89: 0 | BC89: 0 | BD89: 0 | BE89: -489.8823506
C90: 294 | D90: 1058400 | E90: 4 | F90: 7.47 | G90: 29.13488685 | H90: 328 | I90: 0 | J90: 0 | K90: 3.98454902 | L90: 7.800015454 | M90: 7.760477681 | N90: 7.686110702 | O90: 7.60087653 | P90: 7.574305342 | Q90: 7.60087653 | R90: 7.686110702 | S90: 7.760477681 | T90: 17.93529167 | U90: -1747.84995 | V90: 0 | W90: -258.3624701 | X90: -197.4000194 | Y90: -1502.086379 | Z90: 209.9989182 | AA90: -730.3064412 | AB90: 0 | AC90: -144.1430876 | AD90: 2106.202324 | AE90: 0 | AF90: 0 | AG90: 18.42897455 | AH90: 182.4330919 | AI90: 1758.300087 | AJ90: 0 | AK90: 1.705302566e-13 | AL90: 0 | AM90: -267.9527546 | AN90: 0 | AO90: -589.8194684 | AP90: -258.3624701 | AQ90: -32.34079458 | AR90: 0 | AS90: -565.0345719 | AT90: 0 | AU90: 0 | AV90: 0 | AW90: -565.0345719 | AX90: 0 | AY90: 0 | AZ90: 0 | BA90: -565.0345719 | BB90: 0 | BC90: 0 | BD90: 0 | BE90: -452.3328819
C91: 295 | D91: 1062000 | E91: 4 | F91: 9.556666667 | G91: 353.2083854 | H91: 393.6 | I91: 0 | J91: 0 | K91: 8.62127451 | L91: 13.70446364 | M91: 13.20753341 | N91: 12.27285254 | O91: 11.20158744 | P91: 10.86762765 | Q91: 11.20158744 | R91: 12.27285254 | S91: 13.20753341 | T91: 19.93529167 | U91: -2146.737134 | V91: 0 | W91: -207.3903785 | X91: -195.2038406 | Y91: -1812.614884 | Z91: 68.47196916 | AA91: -586.224962 | AB91: 0 | AC91: -115.7052318 | AD91: 14748.65822 | AE91: 0 | AF91: 0 | AG91: 18.30195652 | AH91: 135.3313656 | AI91: 2374.286836 | AJ91: 0 | AK91: 12480 | AL91: 0 | AM91: -247.5408256 | AN91: 0 | AO91: -615.2882173 | AP91: -207.3903785 | AQ91: -33.73728896 | AR91: 0 | AS91: -589.4330944 | AT91: 0 | AU91: 0 | AV91: 0 | AW91: -589.4330944 | AX91: 0 | AY91: 0 | AZ91: 0 | BA91: -589.4330944 | BB91: 0 | BC91: 0 | BD91: 0 | BE91: -422.8548292
C92: 296 | D92: 1065600 | E92: 4 | F92: 12.55 | G92: 793.4360284 | H92: 196.8 | I92: 0 | J92: 0 | K92: 15.20995425 | L92: 22.08051479 | M92: 20.93870362 | N92: 18.79105996 | O92: 16.32958272 | P92: 15.5622335 | Q92: 16.32958272 | R92: 18.79105996 | S92: 20.93870362 | T92: 19.93529167 | U92: -6801.660924 | V92: 0 | W92: -183.2772007 | X92: -327.6618448 | Y92: -4354.021389 | Z92: -1936.700489 | AA92: -518.0648726 | AB92: 0 | AC92: -102.2522411 | AD92: 7520.957813 | AE92: 0 | AF92: 0 | AG92: 18.80807331 | AH92: -416.9746105 | AI92: 8295.352916 | AJ92: 0 | AK92: -3.97903932e-13 | AL92: 0 | AM92: -166.4043723 | AN92: 0 | AO92: -633.9968652 | AP92: -183.2772007 | AQ92: -34.76311562 | AR92: 0 | AS92: -607.3555833 | AT92: 0 | AU92: 0 | AV92: 0 | AW92: -607.3555833 | AX92: 0 | AY92: 0 | AZ92: 0 | BA92: -607.3555833 | BB92: 0 | BC92: 0 | BD92: 0 | BE92: -422.8548292
C93: 297 | D93: 1069200 | E93: 4 | F93: 15.31666667 | G93: 1160.161584 | H93: 123 | I93: 0 | J93: 0 | K93: 21.03850327 | L93: 29.43123174 | M93: 27.74022465 | N93: 24.55959309 | O93: 20.91417818 | P93: 19.77774424 | Q93: 20.91417818 | R93: 24.55959309 | S93: 27.74022465 | T93: 19.93529167 | U93: -5180.884723 | V93: 0 | W93: -114.9857451 | X93: -191.2959399 | Y93: -3460.19531 | Z93: -1414.407728 | AA93: -325.0272003 | AB93: 0 | AC93: -64.1517335 | AD93: 5545.840194 | AE93: 0 | AF93: 0 | AG93: 19.19784487 | AH93: -273.1139605 | AI93: 6383.220642 | AJ93: 0 | AK93: -1.847411113e-13 | AL93: 0 | AM93: -85.67400065 | AN93: 0 | AO93: -564.0391295 | AP93: -114.9857451 | AQ93: -31.04560116 | AR93: 0 | AS93: -546.2962899 | AT93: 0 | AU93: 0 | AV93: 0 | AW93: -552.145201 | AX93: 0 | AY93: 0 | AZ93: 0 | BA93: -546.2962899 | BB93: 0 | BC93: 0 | BD93: 0 | BE93: -422.8548292
C94: 298 | D94: 1072800 | E94: 4 | F94: 17.80666667 | G94: 1496.756676 | H94: 123 | I94: 0 | J94: 0 | K94: 26.39360784 | L94: 36.21067919 | M94: 34.00577131 | N94: 29.8585388 | O94: 25.10527427 | P94: 23.62347555 | Q94: 25.10527427 | R94: 29.8585388 | S94: 34.00577131 | T94: 19.93529167 | U94: -3071.763231 | V94: 0 | W94: -53.49358125 | X94: -44.54786038 | Y94: -1965.311377 | Z94: -1008.410412 | AA94: -151.2089079 | AB94: 0 | AC94: -29.84462086 | AD94: 3067.430548 | AE94: 0 | AF94: 0 | AG94: 19.50089807 | AH94: -161.2858019 | AI94: 4178.815521 | AJ94: 0 | AK94: 1.811883976e-13 | AL94: 0 | AM94: 17.8265387 | AN94: 0 | AO94: -240.4179696 | AP94: -53.49358125 | AQ94: -14.67246197 | AR94: 0 | AS94: -305.3086727 | AT94: 0 | AU94: 0 | AV94: 0 | AW94: -378.919805 | AX94: 0 | AY94: 0 | AZ94: 0 | BA94: -305.3086727 | BB94: 0 | BC94: 0 | BD94: 0 | BE94: -422.8548292
C95: 299 | D95: 1076400 | E95: 4 | F95: 19.30666667 | G95: 1613.150984 | H95: 123 | I95: 0 | J95: 0 | K95: 28.86265033 | L95: 39.1614663 | M95: 36.78274569 | N95: 32.30858711 | O95: 27.18062303 | P95: 25.58201422 | Q95: 27.18062303 | R95: 32.30858711 | S95: 36.78274569 | T95: 19.93529167 | U95: -1431.172274 | V95: 0 | W95: -16.11185625 | X95: 83.62776602 | Y95: -593.7502876 | Z95: -904.9378962 | AA95: -45.54296293 | AB95: 0 | AC95: -8.988970825 | AD95: 1196.593427 | AE95: 0 | AF95: 0 | AG95: 19.73299653 | AH95: -75.57088136 | AI95: 2354.230782 | AJ95: 0 | AK95: 4.085620731e-14 | AL95: 0 | AM95: 112.8534527 | AN95: 0 | AO95: 111.3793961 | AP95: -16.11185625 | AQ95: 2.663032518 | AR95: 0 | AS95: -66.65260386 | AT95: 0 | AU95: 0 | AV95: 0 | AW95: -236.8092448 | AX95: 0 | AY95: 0 | AZ95: 0 | BA95: -66.65260386 | BB95: 0 | BC95: 0 | BD95: 0 | BE95: -630.5743069
C96: 300 | D96: 1080000 | E96: 4 | F96: 20.41333333 | G96: 1526.531429 | H96: 123 | I96: 0 | J96: 0 | K96: 29.26222549 | L96: 39.20952175 | M96: 36.95762892 | N96: 32.72202196 | O96: 27.86746886 | P96: 26.35409411 | Q96: 27.86746886 | R96: 32.72202196 | S96: 36.95762892 | T96: 20.18520827 | U96: -273.7228062 | V96: 0 | W96: 5.437054111 | X96: 120.0979956 | Y96: 582.0122189 | Z96: -981.2700748 | AA96: 83.03969969 | AB96: 0 | AC96: 3.033388582 | AD96: 0 | AE96: 0 | AF96: 0 | AG96: 19.9150191 | AH96: -96.59586515 | AI96: 324.3294249 | AJ96: 0 | AK96: 67.95068016 | AL96: 0 | AM96: 157.4547187 | AN96: 0 | AO96: 520.5400725 | AP96: 5.437054111 | AQ96: 23.42084375 | AR96: 0 | AS96: 240.8980696 | AT96: 0 | AU96: 0 | AV96: 0 | AW96: -12.11927601 | AX96: 0 | AY96: 0 | AZ96: 0 | BA96: 240.8980696 | BB96: 0 | BC96: 0 | BD96: 0 | BE96: -630.5743069
C97: 301 | D97: 1083600 | E97: 4 | F97: 21.54666667 | G97: 1487.942382 | H97: 123 | I97: 0 | J97: 0 | K97: 29.99923529 | L97: 39.74950538 | M97: 37.5686993 | N97: 33.46680009 | O97: 28.76549337 | P97: 27.29989215 | Q97: 28.76549337 | R97: 33.46680009 | S97: 37.5686993 | T97: 20.85063141 | U97: -304.7835374 | V97: 0 | W97: 16.98635167 | X97: 68.32859662 | Y97: 1109.613169 | Z97: -1499.711655 | AA97: 263.0145405 | AB97: 0 | AC97: 9.476860844 | AD97: 0 | AE97: 0 | AF97: 0 | AG97: 20.19292228 | AH97: -239.3957434 | AI97: 0 | AJ97: 0 | AK97: 74.59995039 | AL97: 0 | AM97: 160.9106185 | AN97: 0 | AO97: 897.555841 | AP97: 16.98635167 | AQ97: 42.52663403 | AR97: 0 | AS97: 523.2183492 | AT97: 0 | AU97: 0 | AV97: 0 | AW97: 192.8015007 | AX97: 0 | AY97: 0 | AZ97: 0 | BA97: 523.2183492 | BB97: 0 | BC97: 0 | BD97: 0 | BE97: -630.5743069
C98: 302 | D98: 1087200 | E98: 4 | F98: 21.47333333 | G98: 1189.905091 | H98: 123 | I98: 0 | J98: 0 | K98: 27.44353268 | L98: 35.95973089 | M98: 34.2241761 | N98: 30.95975435 | O98: 27.21830504 | P98: 26.05193302 | Q98: 27.21830504 | R98: 30.95975435 | S98: 34.2241761 | T98: 21.28527625 | U98: -61.42997075 | V98: 0 | W98: 4.841537018 | X98: 56.14741062 | Y98: 1502.796332 | Z98: -1625.21525 | AA98: 74.96575241 | AB98: 0 | AC98: 2.701143452 | AD98: 0 | AE98: 0 | AF98: 0 | AG98: 20.53845149 | AH98: -273.9645335 | AI98: 0 | AJ98: 0 | AK98: 44.50324847 | AL98: 0 | AM98: 162.0982937 | AN98: 0 | AO98: 1064.967284 | AP98: 4.841537018 | AQ98: 51.15956604 | AR98: 0 | AS98: 656.0869412 | AT98: 0 | AU98: 0 | AV98: 0 | AW98: 298.6690687 | AX98: 0 | AY98: 0 | AZ98: 0 | BA98: 656.0869412 | BB98: 0 | BC98: 0 | BD98: 0 | BE98: -630.5743069
C99: 303 | D99: 1090800 | E99: 4 | F99: 21.32 | G99: 728.6999638 | H99: 123 | I99: 0 | J99: 0 | K99: 23.38609804 | L99: 29.96143206 | M99: 28.92613818 | N99: 26.97884392 | O99: 24.74699298 | P99: 24.05122824 | Q99: 24.74699298 | R99: 26.97884392 | S99: 28.92613818 | T99: 21.53076039 | U99: 114.4073737 | V99: 0 | W99: -5.058920661 | X99: 14.03223861 | Y99: 1661.748528 | Z99: -1556.314472 | AA99: -78.33169349 | AB99: 0 | AC99: -2.822424029 | AD99: 0 | AE99: 0 | AF99: 0 | AG99: 20.85732437 | AH99: -248.1485658 | AI99: 0 | AJ99: 0 | AK99: 18.56269771 | AL99: 0 | AM99: 109.999258 | AN99: 0 | AO99: 1057.048596 | AP99: -5.058920661 | AQ99: 51.09630418 | AR99: 0 | AS99: 667.171232 | AT99: 0 | AU99: 0 | AV99: 0 | AW99: 328.0794721 | AX99: 0 | AY99: 0 | AZ99: 0 | BA99: 667.171232 | BB99: 0 | BC99: 0 | BD99: 0 | BE99: -655.3995966
C100: 304 | D100: 1094400 | E100: 4 | F100: 19.56333333 | G100: 357.8650542 | H100: 147.6 | I100: 0 | J100: 0 | K100: 18.61787582 | L100: 23.69606111 | M100: 23.20093626 | N100: 22.26965114 | O100: 21.20227801 | P100: 20.86953151 | Q100: 21.20227801 | R100: 22.26965114 | S100: 23.20093626 | T100: 21.68797108 | U100: 227.5149558 | V100: 0 | W100: -51.5322729 | X100: -48.66048973 | Y100: 1829.283474 | Z100: -1501.575755 | AA100: -156.5358343 | AB100: 0 | AC100: -28.7503867 | AD100: 0 | AE100: 0 | AF100: 0 | AG100: 21.10442617 | AH100: -214.0658946 | AI100: 0 | AJ100: 0 | AK100: 29.9596857 | AL100: 0 | AM100: 34.12566614 | AN100: 0 | AO100: 1049.686358 | AP100: -51.5322729 | AQ100: 50.91190825 | AR100: 0 | AS100: 671.1558162 | AT100: 0 | AU100: 0 | AV100: 0 | AW100: 342.8980764 | AX100: 0 | AY100: 0 | AZ100: 0 | BA100: 671.1558162 | BB100: 0 | BC100: 0 | BD100: 0 | BE100: -724.399598
C101: 305 | D101: 1098000 | E101: 4 | F101: 18.29666667 | G101: 36.12022903 | H101: 246 | I101: 195 | J101: 0 | K101: 14.85801961 | L101: 18.6967539 | M101: 18.64882112 | N101: 18.55866389 | O101: 18.45533205 | P101: 18.42311903 | Q101: 18.45533205 | R101: 18.55866389 | S101: 18.64882112 | T101: 21.68785802 | U101: -17.85177684 | V101: 0 | W101: -83.09312186 | X101: -110.3242538 | Y101: 1484.638525 | Z101: -1309.072926 | AA101: -234.8771556 | AB101: 0 | AC101: -46.35850994 | AD101: 0 | AE101: 0 | AF101: 0 | AG101: 21.28700611 | AH101: -148.4708466 | AI101: 0 | AJ101: 0 | AK101: -5.225892644 | AL101: 0 | AM101: -52.90580947 | AN101: 0 | AO101: 818.8288063 | AP101: -83.09312186 | AQ101: 39.59040134 | AR101: 0 | AS101: 517.2845674 | AT101: 0 | AU101: 0 | AV101: 0 | AW101: 255.0720828 | AX101: 0 | AY101: 0 | AZ101: 0 | BA101: 517.2845674 | BB101: 0 | BC101: 0 | BD101: 0 | BE101: -770.0426326
C102: 306 | D102: 1101600 | E102: 4 | F102: 16.59333333 | G102: 0 | H102: 246 | I102: 195 | J102: 0 | K102: 12.88745098 | L102: 16.59333333 | M102: 16.59333333 | N102: 16.59333333 | O102: 16.59333333 | P102: 16.59333333 | Q102: 16.59333333 | R102: 16.59333333 | S102: 16.59333333 | T102: 21.43599782 | U102: -43.74674933 | V102: 0 | W102: -118.7971264 | X102: -130.3512677 | Y102: 1099.275631 | Z102: -893.8739866 | AA102: -335.8007321 | AB102: 0 | AC102: -66.27814245 | AD102: 0 | AE102: 0 | AF102: 0 | AG102: 21.36811029 | AH102: -26.96665056 | AI102: 0 | AJ102: 0 | AK102: -31.7019739 | AL102: 0 | AM102: -119.9223979 | AN102: 0 | AO102: 473.902411 | AP102: -118.7971264 | AQ102: 22.79685903 | AR102: 0 | AS102: 293.526043 | AT102: 0 | AU102: 0 | AV102: 0 | AW102: 136.0211067 | AX102: 0 | AY102: 0 | AZ102: 0 | BA102: 293.526043 | BB102: 0 | BC102: 0 | BD102: 0 | BE102: -795.9703112
C103: 307 | D103: 1105200 | E103: 4 | F103: 14.66 | G103: 0 | H103: 369 | I103: 195 | J103: 0 | K103: 10.95411765 | L103: 14.66 | M103: 14.66 | N103: 14.66 | O103: 14.66 | P103: 14.66 | Q103: 14.66 | R103: 14.66 | S103: 14.66 | T103: 21.07459923 | U103: -167.4390988 | V103: 0 | W103: -157.5003642 | X103: -114.5031464 | Y103: 574.2391861 | Z103: -469.6747743 | AA103: -445.2021626 | AB103: 0 | AC103: -87.87107806 | AD103: 0 | AE103: 0 | AF103: 0 | AG103: 21.33690932 | AH103: 94.32015709 | AI103: 0 | AJ103: 0 | AK103: -44.2421823 | AL103: 0 | AM103: -150.9797801 | AN103: 0 | AO103: 117.5820442 | AP103: -157.5003642 | AQ103: 4.912152706 | AR103: 0 | AS103: 35.37628877 | AT103: 0 | AU103: 0 | AV103: 0 | AW103: -40.4644551 | AX103: 0 | AY103: 0 | AZ103: 0 | BA103: 35.37628877 | BB103: 0 | BC103: 0 | BD103: 0 | BE103: -812.1084785
C104: 308 | D104: 1108800 | E104: 4 | F104: 14.04666667 | G104: 0 | H104: 442.8 | I104: 195 | J104: 0 | K104: 10.34078431 | L104: 14.04666667 | M104: 14.04666667 | N104: 14.04666667 | O104: 14.04666667 | P104: 14.04666667 | Q104: 14.04666667 | R104: 14.04666667 | S104: 14.04666667 | T104: 20.71781157 | U104: -299.9950536 | V104: 0 | W104: -164.3498624 | X104: -109.4014133 | Y104: 134.195358 | Z104: -160.4391359 | AA104: -464.5634601 | AB104: 0 | AC104: -91.69248377 | AD104: 0 | AE104: 0 | AF104: 0 | AG104: 21.21035089 | AH104: 179.6542912 | AI104: 0 | AJ104: 0 | AK104: -40.02670625 | AL104: 0 | AM104: -178.8794971 | AN104: 0 | AO104: -161.5260874 | AP104: -164.3498624 | AQ104: -9.025397658 | AR104: 0 | AS104: -163.2272731 | AT104: 0 | AU104: 0 | AV104: 0 | AW104: -171.5595156 | AX104: 0 | AY104: 0 | AZ104: 0 | BA104: -163.2272731 | BB104: 0 | BC104: 0 | BD104: 0 | BE104: -812.6823712
C105: 309 | D105: 1112400 | E105: 4 | F105: 12.65333333 | G105: 0 | H105: 492 | I105: 195 | J105: 0 | K105: 8.94745098 | L105: 12.65333333 | M105: 12.65333333 | N105: 12.65333333 | O105: 12.65333333 | P105: 12.65333333 | Q105: 12.65333333 | R105: 12.65333333 | S105: 12.65333333 | T105: 20.40926081 | U105: -299.2690089 | V105: 0 | W105: -190.7425816 | X105: -96.62942298 | Y105: -43.29701494 | Z105: 31.40001058 | AA105: -539.1670697 | AB105: 0 | AC105: -106.4172541 | AD105: 0 | AE105: 0 | AF105: 0 | AG105: 21.02452861 | AH105: 225.4109537 | AI105: 0 | AJ105: 0 | AK105: -33.26237915 | AL105: 0 | AM105: -183.8030775 | AN105: 0 | AO105: -267.2658163 | AP105: -190.7425816 | AQ105: -14.65706731 | AR105: 0 | AS105: -256.1574372 | AT105: 0 | AU105: 0 | AV105: 0 | AW105: -256.2776203 | AX105: 0 | AY105: 0 | AZ105: 0 | BA105: -256.1574372 | BB105: 0 | BC105: 0 | BD105: 0 | BE105: -786.9649097
C106: 310 | D106: 1116000 | E106: 4 | F106: 11.55666667 | G106: 0 | H106: 410 | I106: 0 | J106: 0 | K106: 7.850784314 | L106: 11.55666667 | M106: 11.55666667 | N106: 11.55666667 | O106: 11.55666667 | P106: 11.55666667 | Q106: 11.55666667 | R106: 11.55666667 | S106: 11.55666667 | T106: 19.98283209 | U106: -54.24438459 | V106: 0 | W106: -207.4407024 | X106: -88.85333201 | Y106: -77.77818429 | Z106: 319.8278341 | AA106: -586.3672113 | AB106: 0 | AC106: -115.733308 | AD106: 0 | AE106: 0 | AF106: 0 | AG106: 20.78747525 | AH106: 294.5745882 | AI106: 0 | AJ106: 0 | AK106: -47.15364898 | AL106: 0 | AM106: -202.7747851 | AN106: 0 | AO106: -354.830018 | AP106: -207.4407024 | AQ106: -19.45592734 | AR106: 0 | AS106: -339.91965 | AT106: 0 | AU106: 0 | AV106: 0 | AW106: -339.91965 | AX106: 0 | AY106: 0 | AZ106: 0 | BA106: -339.91965 | BB106: 0 | BC106: 0 | BD106: 0 | BE106: -749.6388687
C107: 311 | D107: 1119600 | E107: 4 | F107: 10.4 | G107: 0 | H107: 410 | I107: 0 | J107: 0 | K107: 6.694117647 | L107: 10.4 | M107: 10.4 | N107: 10.4 | O107: 10.4 | P107: 10.4 | Q107: 10.4 | R107: 10.4 | S107: 10.4 | T107: 19.66722047 | U107: 19.43342339 | V107: 0 | W107: -228.090903 | X107: -94.93933555 | Y107: -70.03754275 | Z107: 412.5012047 | AA107: -644.7385937 | AB107: 0 | AC107: -127.254268 | AD107: 0 | AE107: 0 | AF107: 0 | AG107: 20.51094502 | AH107: 309.874581 | AI107: 0 | AJ107: 0 | AK107: -32.68485721 | AL107: 0 | AM107: -214.7777872 | AN107: 0 | AO107: -370.2611414 | AP107: -228.090903 | AQ107: -20.30204182 | AR107: 0 | AS107: -354.7023399 | AT107: 0 | AU107: 0 | AV107: 0 | AW107: -354.7023399 | AX107: 0 | AY107: 0 | AZ107: 0 | BA107: -354.7023399 | BB107: 0 | BC107: 0 | BD107: 0 | BE107: -712.5128316
C108: 312 | D108: 1123200 | E108: 5 | F108: 7.925806452 | G108: 0 | H108: 410 | I108: 0 | J108: 0 | K108: 4.219924099 | L108: 7.925806452 | M108: 7.925806452 | N108: 7.925806452 | O108: 7.925806452 | P108: 7.925806452 | Q108: 7.925806452 | R108: 7.925806452 | S108: 7.925806452 | T108: 19.2406837 | U108: -309.1873493 | V108: 0 | W108: -234.5203321 | X108: -100.0682793 | Y108: -191.3934541 | Z108: 216.7947162 | AA108: -662.9124929 | AB108: 0 | AC108: -211.0343755 | AD108: 0 | AE108: 0 | AF108: 0 | AG108: 20.21735823 | AH108: 334.995087 | AI108: 0 | AJ108: 0 | AK108: -438.1391307 | AL108: 0 | AM108: -229.6216374 | AN108: 0 | AO108: -429.7208709 | AP108: -234.5203321 | AQ108: -23.5623189 | AR108: 0 | AS108: -411.6635027 | AT108: 0 | AU108: 0 | AV108: 0 | AW108: -411.6635027 | AX108: 0 | AY108: 0 | AZ108: 0 | BA108: -411.6635027 | BB108: 0 | BC108: 0 | BD108: 0 | BE108: -999.4204819
C110: 360 | D110: 1296000 | E110: 5 | F110: 7.925806452 | G110: 0 | H110: 410 | I110: 0 | J110: 0 | K110: 4.219924099 | L110: 7.925806452 | M110: 7.925806452 | N110: 7.925806452 | O110: 7.925806452 | P110: 7.925806452 | Q110: 7.925806452 | R110: 7.925806452 | S110: 7.925806452 | T110: 17.18620675 | U110: -142.112369 | V110: 0 | W110: -228.1138452 | X110: -406.6516661 | Y110: -177.3736975 | Z110: 670.0268397 | AA110: -566.8010473 | AB110: 0 | AC110: -205.2694639 | AD110: 0 | AE110: 0 | AF110: 0 | AG110: 18.43259358 | AH110: 457.8774462 | AI110: 0 | AJ110: 0 | AK110: -46.30543399 | AL110: 0 | AM110: -583.7275786 | AN110: 0 | AO110: -565.9120176 | AP110: -228.1138452 | AQ110: -31.02990879 | AR110: 0 | AS110: -542.1317398 | AT110: 0 | AU110: 0 | AV110: 0 | AW110: -542.1317398 | AX110: 0 | AY110: 0 | AZ110: 0 | BA110: -542.1317398 | BB110: 0 | BC110: 0 | BD110: 0 | BE110: -992.318462
C111: 361 | D111: 1299600 | E111: 5 | F111: 6.803225806 | G111: 0 | H111: 410 | I111: 0 | J111: 0 | K111: 3.097343454 | L111: 6.803225806 | M111: 6.803225806 | N111: 6.803225806 | O111: 6.803225806 | P111: 6.803225806 | Q111: 6.803225806 | R111: 6.803225806 | S111: 6.803225806 | T111: 17.15190927 | U111: -1355.556757 | V111: 0 | W111: -254.6338539 | X111: -470.9047497 | Y111: -866.6086409 | Z111: 236.5904878 | AA111: -632.6960777 | AB111: 0 | AC111: -229.1336357 | AD111: 1468.895008 | AE111: 0 | AF111: 0 | AG111: 18.06783 | AH111: 338.491462 | AI111: 731.020864 | AJ111: 0 | AK111: 5.684341886e-14 | AL111: 0 | AM111: -601.8102683 | AN111: 0 | AO111: -605.5618034 | AP111: -254.6338539 | AQ111: -33.20397331 | AR111: 0 | AS111: -580.1153957 | AT111: 0 | AU111: 0 | AV111: 0 | AW111: -580.1153957 | AX111: 0 | AY111: 0 | AZ111: 0 | BA111: -580.1153957 | BB111: 0 | BC111: 0 | BD111: 0 | BE111: -992.318462
C112: 362 | D112: 1303200 | E112: 5 | F112: 6.087096774 | G112: 0 | H112: 410 | I112: 0 | J112: 0 | K112: 2.381214421 | L112: 6.087096774 | M112: 6.087096774 | N112: 6.087096774 | O112: 6.087096774 | P112: 6.087096774 | Q112: 6.087096774 | R112: 6.087096774 | S112: 6.087096774 | T112: 17.15190927 | U112: -1892.535916 | V112: 0 | W112: -272.4534184 | X112: -558.1845482 | Y112: -1129.096115 | Z112: 67.19816641 | AA112: -676.9728633 | AB112: 0 | AC112: -245.1686661 | AD112: 2162.689608 | AE112: 0 | AF112: 0 | AG112: 17.80670179 | AH112: 241.9878369 | AI112: 1651.351509 | AJ112: 0 | AK112: 8.526512829e-14 | AL112: 0 | AM112: -651.7690159 | AN112: 0 | AO112: -562.6155375 | AP112: -272.4534184 | AQ112: -30.84915724 | AR112: 0 | AS112: -538.9737816 | AT112: 0 | AU112: 0 | AV112: 0 | AW112: -538.9737816 | AX112: 0 | AY112: 0 | AZ112: 0 | BA112: -538.9737816 | BB112: 0 | BC112: 0 | BD112: 0 | BE112: -811.3498971
C113: 363 | D113: 1306800 | E113: 5 | F113: 5.719354839 | G113: 0 | H113: 410 | I113: 0 | J113: 0 | K113: 2.013472486 | L113: 5.719354839 | M113: 5.719354839 | N113: 5.719354839 | O113: 5.719354839 | P113: 5.719354839 | Q113: 5.719354839 | R113: 5.719354839 | S113: 5.719354839 | T113: 17.15190927 | U113: -2566.366743 | V113: 0 | W113: -281.6613862 | X113: -618.4341338 | Y113: -1534.469394 | Z113: -131.8018294 | AA113: -699.8521662 | AB113: 0 | AC113: -253.4545052 | AD113: 2936.676102 | AE113: 0 | AF113: 0 | AG113: 17.620021 | AH113: 172.9973124 | AI113: 2540.037512 | AJ113: 0 | AK113: 1.421085472e-13 | AL113: 0 | AM113: -685.3377501 | AN113: 0 | AO113: -587.3302685 | AP113: -281.6613862 | AQ113: -32.20430755 | AR113: 0 | AS113: -562.649971 | AT113: 0 | AU113: 0 | AV113: 0 | AW113: -562.649971 | AX113: 0 | AY113: 0 | AZ113: 0 | BA113: -562.649971 | BB113: 0 | BC113: 0 | BD113: 0 | BE113: -759.8765944
C114: 364 | D114: 1310400 | E114: 5 | F114: 5.629032258 | G114: 0 | H114: 410 | I114: 0 | J114: 0 | K114: 1.923149905 | L114: 5.629032258 | M114: 5.629032258 | N114: 5.629032258 | O114: 5.629032258 | P114: 5.629032258 | Q114: 5.629032258 | R114: 5.629032258 | S114: 5.629032258 | T114: 17.15190927 | U114: -3267.888139 | V114: 0 | W114: -284.0018109 | X114: -654.8543902 | Y114: -2023.118353 | Z114: -305.9135844 | AA114: -705.667487 | AB114: 0 | AC114: -255.5605489 | AD114: 3695.440248 | AE114: 0 | AF114: 0 | AG114: 17.48656275 | AH114: 123.6759272 | AI114: 3279.070254 | AJ114: 0 | AK114: -1.705302566e-13 | AL114: 0 | AM114: -702.683843 | AN114: 0 | AO114: -655.6119805 | AP114: -284.0018109 | AQ114: -35.94830879 | AR114: 0 | AS114: -628.0624065 | AT114: 0 | AU114: 0 | AV114: 0 | AW114: -628.0624065 | AX114: 0 | AY114: 0 | AZ114: 0 | BA114: -628.0624065 | BB114: 0 | BC114: 0 | BD114: 0 | BE114: -754.9247732
C115: 365 | D115: 1314000 | E115: 5 | F115: 5.690322581 | G115: 0 | H115: 410 | I115: 0 | J115: 0 | K115: 1.984440228 | L115: 5.690322581 | M115: 5.690322581 | N115: 5.690322581 | O115: 5.690322581 | P115: 5.690322581 | Q115: 5.690322581 | R115: 5.690322581 | S115: 5.690322581 | T115: 17.15190927 | U115: -3750.305199 | V115: 0 | W115: -282.5532921 | X115: -672.8994496 | Y115: -2360.926169 | Z115: -433.9262888 | AA115: -702.0683106 | AB115: 0 | AC115: -254.2570915 | AD115: 4208.214575 | AE115: 0 | AF115: 0 | AG115: 17.39115333 | AH115: 88.41602653 | AI115: 3904.719933 | AJ115: 0 | AK115: -3.97903932e-13 | AL115: 0 | AM115: -707.0927664 | AN115: 0 | AO115: -701.4924469 | AP115: -282.5532921 | AQ115: -38.46401202 | AR115: 0 | AS115: -672.0149226 | AT115: 0 | AU115: 0 | AV115: 0 | AW115: -672.0149226 | AX115: 0 | AY115: 0 | AZ115: 0 | BA115: -672.0149226 | BB115: 0 | BC115: 0 | BD115: 0 | BE115: -754.9247732
C116: 366 | D116: 1317600 | E116: 5 | F116: 5.680645161 | G116: 2.915587024 | H116: 328 | I116: 0 | J116: 0 | K116: 2.000575585 | L116: 5.730766705 | M116: 5.721518828 | N116: 5.706856324 | O116: 5.695197873 | P116: 5.693543253 | Q116: 5.695197873 | R116: 5.706856324 | S116: 5.721518828 | T116: 17.15190927 | U116: -4054.511427 | V116: 0 | W116: -282.7626846 | X116: -679.9047022 | Y116: -2566.537421 | Z116: -525.3066192 | AA116: -702.5885941 | AB116: 0 | AC116: -254.4455144 | AD116: 4618.502649 | AE116: 0 | AF116: 0 | AG116: 17.32305037 | AH116: 63.24617027 | AI116: 4353.284228 | AJ116: 0 | AK116: 4.263256415e-13 | AL116: 0 | AM116: -704.3640273 | AN116: 0 | AO116: -725.2004255 | AP116: -282.7626846 | AQ116: -39.7639604 | AR116: 0 | AS116: -694.7266645 | AT116: 0 | AU116: 0 | AV116: 0 | AW116: -694.7266645 | AX116: 0 | AY116: 0 | AZ116: 0 | BA116: -694.7266645 | BB116: 0 | BC116: 0 | BD116: 0 | BE116: -754.9247732
C117: 367 | D117: 1321200 | E117: 5 | F117: 7.04516129 | G117: 141.25107 | H117: 393.6 | I117: 0 | J117: 0 | K117: 4.381774194 | L117: 9.069409679 | M117: 8.695917598 | N117: 8.103746066 | O117: 7.632898626 | P117: 7.566073831 | Q117: 7.632898626 | R117: 8.103746066 | S117: 8.695917598 | T117: 19.15190927 | U117: -4181.618498 | V117: 0 | W117: -249.6919265 | X117: -685.3773534 | Y117: -2662.504734 | Z117: -584.044485 | AA117: -620.4167281 | AB117: 0 | AC117: -224.6866158 | AD117: 17046.30598 | AE117: 0 | AF117: 0 | AG117: 17.2794574 | AH117: 47.06737517 | AI117: 4733.593171 | AJ117: 0 | AK117: 12480 | AL117: 0 | AM117: -703.5798189 | AN117: 0 | AO117: -731.226374 | AP117: -249.6919265 | AQ117: -40.09437331 | AR117: 0 | AS117: -700.4993957 | AT117: 0 | AU117: 0 | AV117: 0 | AW117: -700.4993957 | AX117: 0 | AY117: 0 | AZ117: 0 | BA117: -700.4993957 | BB117: 0 | BC117: 0 | BD117: 0 | BE117: -754.9247732
C118: 368 | D118: 1324800 | E118: 5 | F118: 9.038709677 | G118: 529.3029479 | H118: 196.8 | I118: 0 | J118: 0 | K118: 9.260022138 | L118: 16.66427701 | M118: 15.25729108 | N118: 13.02651549 | O118: 11.25278116 | P118: 11.00104477 | Q118: 11.25278116 | R118: 13.02651549 | S118: 15.25729108 | T118: 19.15190927 | U118: -8583.410545 | V118: 0 | W118: -250.1093862 | X118: -782.8502347 | Y118: -5030.502837 | Z118: -2519.948088 | AA118: -621.4540022 | AB118: 0 | AC118: -225.0622692 | AD118: 9637.580648 | AE118: 0 | AF118: 0 | AG118: 17.83712711 | AH118: -486.1591434 | AI118: 10456.34404 | AJ118: 0 | AK118: 1.98951966e-13 | AL118: 0 | AM118: -594.8368816 | AN118: 0 | AO118: -727.4968374 | AP118: -250.1093862 | AQ118: -39.88987653 | AR118: 0 | AS118: -696.9265785 | AT118: 0 | AU118: 0 | AV118: 0 | AW118: -696.9265785 | AX118: 0 | AY118: 0 | AZ118: 0 | BA118: -696.9265785 | BB118: 0 | BC118: 0 | BD118: 0 | BE118: -754.9247732
C119: 369 | D119: 1328400 | E119: 5 | F119: 11.09677419 | G119: 961.0308436 | H119: 123 | I119: 0 | J119: 0 | K119: 14.53932638 | L119: 24.97713193 | M119: 22.41608076 | N119: 18.35553525 | O119: 15.12691422 | P119: 14.66869375 | Q119: 15.12691422 | R119: 18.35553525 | S119: 22.41608076 | T119: 19.15190927 | U119: -7057.971898 | V119: 0 | W119: -199.4046012 | X119: -590.1512427 | Y119: -4320.907176 | Z119: -1947.508878 | AA119: -495.4663613 | AB119: 0 | AC119: -179.4352972 | AD119: 7794.054373 | AE119: 0 | AF119: 0 | AG119: 18.26435918 | AH119: -328.4861237 | AI119: 8554.952959 | AJ119: 0 | AK119: 1.705302566e-13 | AL119: 0 | AM119: -463.1151098 | AN119: 0 | AO119: -724.9079212 | AP119: -199.4046012 | AQ119: -39.77956813 | AR119: 0 | AS119: -695.8759736 | AT119: 0 | AU119: 0 | AV119: 0 | AW119: -696.6719177 | AX119: 0 | AY119: 0 | AZ119: 0 | BA119: -695.8759736 | BB119: 0 | BC119: 0 | BD119: 0 | BE119: -754.9247732
C120: 370 | D120: 1332000 | E120: 5 | F120: 13.09032258 | G120: 1124.042785 | H120: 123 | I120: 0 | J120: 0 | K120: 17.7392568 | L120: 29.31315322 | M120: 26.31989468 | N120: 21.57408457 | O120: 17.80059594 | P120: 17.26504539 | Q120: 17.80059594 | R120: 21.57408457 | S120: 26.31989468 | T120: 19.15190927 | U120: -5125.99966 | V120: 0 | W120: -150.2371281 | X120: -298.7896137 | Y120: -3166.203513 | Z120: -1510.769405 | AA120: -373.2985234 | AB120: 0 | AC120: -135.1916835 | AD120: 5551.481305 | AE120: 0 | AF120: 0 | AG120: 18.5900942 | AH120: -208.1903257 | AI120: 6502.171825 | AJ120: 0 | AK120: -3.694822226e-13 | AL120: 0 | AM120: -218.275729 | AN120: 0 | AO120: -516.5031955 | AP120: -150.2371281 | AQ120: -29.59936616 | AR120: 0 | AS120: -552.5571713 | AT120: 0 | AU120: 0 | AV120: 0 | AW120: -584.7162926 | AX120: 0 | AY120: 0 | AZ120: 0 | BA120: -552.5571713 | BB120: 0 | BC120: 0 | BD120: 0 | BE120: -754.9247732
C121: 371 | D121: 1335600 | E121: 5 | F121: 14.64516129 | G121: 1305.339517 | H121: 123 | I121: 0 | J121: 0 | K121: 20.65364959 | L121: 33.50788419 | M121: 30.02754172 | N121: 24.50946025 | O121: 20.12192321 | P121: 19.49922414 | Q121: 20.12192321 | R121: 24.50946025 | S121: 30.02754172 | T121: 19.15190927 | U121: -3605.371337 | V121: 0 | W121: -111.7301174 | X121: -113.6274725 | Y121: -1960.054788 | Z121: -1419.958959 | AA121: -277.6190437 | AB121: 0 | AC121: -100.5409438 | AD121: 3782.973209 | AE121: 0 | AF121: 0 | AG121: 18.83495488 | AH121: -117.7895701 | AI121: 4895.010754 | AJ121: 0 | AK121: -8.526512829e-14 | AL121: 0 | AM121: -68.07446313 | AN121: 0 | AO121: -165.9161628 | AP121: -111.7301174 | AQ121: -13.93383098 | AR121: 0 | AS121: -377.4123486 | AT121: 0 | AU121: 0 | AV121: 0 | AW121: -499.0533323 | AX121: 0 | AY121: 0 | AZ121: 0 | BA121: -377.4123486 | BB121: 0 | BC121: 0 | BD121: 0 | BE121: -992.318462
C122: 372 | D122: 1339200 | E122: 5 | F122: 15.56451613 | G122: 1317.636629 | H122: 123 | I122: 0 | J122: 0 | K122: 21.66602783 | L122: 34.60786572 | M122: 31.094196 | N122: 25.52327419 | O122: 21.09372272 | P122: 20.46506078 | Q122: 21.09372272 | R122: 25.52327419 | S122: 31.094196 | T122: 19.15190927 | U122: -1455.966809 | V122: 0 | W122: -88.80694264 | X122: 47.87088595 | Y122: -238.6336063 | Z122: -1176.397146 | AA122: -220.6611706 | AB122: 0 | AC122: -79.91340242 | AD122: 1486.62938 | AE122: 0 | AF122: 0 | AG122: 19.01650501 | AH122: -50.70274975 | AI122: 2535.853017 | AJ122: 0 | AK122: 8.526512829e-14 | AL122: 0 | AM122: 67.47926753 | AN122: 0 | AO122: 360.9159501 | AP122: -88.80694264 | AQ122: 10.94410697 | AR122: 0 | AS122: -53.819614 | AT122: 0 | AU122: 0 | AV122: 0 | AW122: -276.2960547 | AX122: 0 | AY122: 0 | AZ122: 0 | BA122: -53.819614 | BB122: 0 | BC122: 0 | BD122: 0 | BE122: -992.318462
C123: 373 | D123: 1342800 | E123: 5 | F123: 16.28064516 | G123: 1140.350889 | H123: 123 | I123: 0 | J123: 0 | K123: 21.0562081 | L123: 32.74935507 | M123: 29.71072959 | N123: 24.89299021 | O123: 21.06230918 | P123: 20.51864163 | Q123: 21.06230918 | R123: 24.89299021 | S123: 29.71072959 | T123: 19.15190927 | U123: -153.0057337 | V123: 0 | W123: -71.07087006 | X123: 114.0810112 | Y123: 813.961751 | Z123: -1009.977626 | AA123: -176.5918397 | AB123: 0 | AC123: -63.95350263 | AD123: 103.9192796 | AE123: 0 | AF123: 0 | AG123: 19.14030267 | AH123: -4.864051299 | AI123: 737.3170592 | AJ123: 0 | AK123: -7.105427358e-15 | AL123: 0 | AM123: 115.962096 | AN123: 0 | AO123: 640.3166433 | AP123: -71.07087006 | AQ123: 24.71816801 | AR123: 0 | AS123: 144.0067945 | AT123: 0 | AU123: 0 | AV123: 0 | AW123: -117.3522937 | AX123: 0 | AY123: 0 | AZ123: 0 | BA123: 144.0067945 | BB123: 0 | BC123: 0 | BD123: 0 | BE123: -992.318462
C124: 374 | D124: 1346400 | E124: 5 | F124: 16.47096774 | G124: 939.8387271 | H124: 123 | I124: 0 | J124: 0 | K124: 19.76302657 | L124: 30.05910742 | M124: 27.55197312 | N124: 23.57691278 | O124: 20.41626272 | P124: 19.96768899 | Q124: 20.41626272 | R124: 23.57691278 | S124: 27.55197312 | T124: 19.43204256 | U124: 82.03476944 | V124: 0 | W124: -72.9311473 | X124: 63.8190971 | Y124: 1318.918467 | Z124: -1227.771648 | AA124: -181.2141242 | AB124: 0 | AC124: -65.62748306 | AD124: 0 | AE124: 0 | AF124: 0 | AG124: 19.25225962 | AH124: -64.85337506 | AI124: 2.643301946 | AJ124: 0 | AK124: 34.81687659 | AL124: 0 | AM124: 88.89997992 | AN124: 0 | AO124: 906.6928987 | AP124: -72.9311473 | AQ124: 37.63215739 | AR124: 0 | AS124: 322.7645855 | AT124: 0 | AU124: 0 | AV124: 0 | AW124: 18.85277615 | AX124: 0 | AY124: 0 | AZ124: 0 | BA124: 322.7645855 | BB124: 0 | BC124: 0 | BD124: 0 | BE124: -992.318462
C125: 375 | D125: 1350000 | E125: 5 | F125: 16.76451613 | G125: 586.1279407 | H125: 123 | I125: 0 | J125: 0 | K125: 17.41320051 | L125: 25.21992601 | M125: 23.65982664 | N125: 21.18628977 | O125: 19.21953109 | P125: 18.94039981 | Q125: 19.21953109 | R125: 21.18628977 | S125: 23.65982664 | T125: 19.60889958 | U125: 125.4583856 | V125: 0 | W125: -70.16708782 | X125: -15.34245404 | Y125: 1503.431313 | Z125: -1292.463385 | AA125: -174.3461859 | AB125: 0 | AC125: -63.14022935 | AD125: 0 | AE125: 0 | AF125: 0 | AG125: 19.38326221 | AH125: -82.67210836 | AI125: 0 | AJ125: 0 | AK125: 17.10333001 | AL125: 0 | AM125: 16.62950517 | AN125: 0 | AO125: 979.7789492 | AP125: -70.16708782 | AQ125: 41.49729187 | AR125: 0 | AS125: 386.3516553 | AT125: 0 | AU125: 0 | AV125: 0 | AW125: 78.86089719 | AX125: 0 | AY125: 0 | AZ125: 0 | BA125: 386.3516553 | BB125: 0 | BC125: 0 | BD125: 0 | BE125: -992.318462
C126: 376 | D126: 1353600 | E126: 5 | F126: 15.85483871 | G126: 176.3139741 | H126: 147.6 | I126: 0 | J126: 0 | K126: 13.45152751 | L126: 18.38408529 | M126: 17.91741649 | N126: 17.17751331 | O126: 16.58920148 | P126: 16.50570561 | Q126: 16.58920148 | R126: 17.17751331 | S126: 17.91741649 | T126: 19.57608822 | U126: 166.389139 | V126: 0 | W126: -91.38518984 | X126: -115.2405612 | Y126: 1508.280371 | Z126: -1135.265481 | AA126: -227.0674157 | AB126: 0 | AC126: -82.23345196 | AD126: 0 | AE126: 0 | AF126: 0 | AG126: 19.47101888 | AH126: -39.37341778 | AI126: 0 | AJ126: 0 | AK126: -7.623515466 | AL126: 0 | AM126: -100.0135961 | AN126: 0 | AO126: 864.9543792 | AP126: -91.38518984 | AQ126: 36.82493576 | AR126: 0 | AS126: 349.6964085 | AT126: 0 | AU126: 0 | AV126: 0 | AW126: 83.04303186 | AX126: 0 | AY126: 0 | AZ126: 0 | BA126: 349.6964085 | BB126: 0 | BC126: 0 | BD126: 0 | BE126: -992.318462
C127: 377 | D127: 1357200 | E127: 5 | F127: 14.7 | G127: 2.449300189 | H127: 246 | I127: 195 | J127: 0 | K127: 11.01213789 | L127: 14.73499051 | M127: 14.72853445 | N127: 14.71829836 | O127: 14.71015944 | P127: 14.70900433 | Q127: 14.71015944 | R127: 14.71829836 | S127: 14.72853445 | T127: 19.45454763 | U127: -70.42166841 | V127: 0 | W127: -116.7896595 | X127: -276.5703153 | Y127: 1302.592252 | Z127: -979.6539452 | AA127: -290.1906338 | AB127: 0 | AC127: -105.0937999 | AD127: 0 | AE127: 0 | AF127: 0 | AG127: 19.49089954 | AH127: 12.46456181 | AI127: 0 | AJ127: 0 | AK127: -16.32948353 | AL127: 0 | AM127: -281.3907616 | AN127: 0 | AO127: 677.6672648 | AP127: -116.7896595 | AQ127: 28.40198332 | AR127: 0 | AS127: 253.6809757 | AT127: 0 | AU127: 0 | AV127: 0 | AW127: 33.46484319 | AX127: 0 | AY127: 0 | AZ127: 0 | BA127: 253.6809757 | BB127: 0 | BC127: 0 | BD127: 0 | BE127: -1024.907115
C128: 378 | D128: 1360800 | E128: 5 | F128: 13.65483871 | G128: 0 | H128: 246 | I128: 195 | J128: 0 | K128: 9.948956357 | L128: 13.65483871 | M128: 13.65483871 | N128: 13.65483871 | O128: 13.65483871 | P128: 13.65483871 | Q128: 13.65483871 | R128: 13.65483871 | S128: 13.65483871 | T128: 19.15190927 | U128: -128.6684299 | V128: 0 | W128: -134.9383025 | X128: -348.8159051 | Y128: 1012.205137 | Z128: -657.1193588 | AA128: -335.2850903 | AB128: 0 | AC128: -121.4249534 | AD128: 71.39340612 | AE128: 0 | AF128: 0 | AG128: 19.43644227 | AH128: 107.1786535 | AI128: 1.189890102 | AJ128: 0 | AK128: 34.19970928 | AL128: 0 | AM128: -390.2653323 | AN128: 0 | AO128: 361.4075208 | AP128: -134.9383025 | AQ128: 14.33250907 | AR128: 0 | AS128: 98.49446951 | AT128: 0 | AU128: 0 | AV128: 0 | AW128: -39.43715148 | AX128: 0 | AY128: 0 | AZ128: 0 | BA128: 98.49446951 | BB128: 0 | BC128: 0 | BD128: 0 | BE128: -1046.236431
C129: 379 | D129: 1364400 | E129: 5 | F129: 12.26774194 | G129: 0 | H129: 369 | I129: 195 | J129: 0 | K129: 8.561859583 | L129: 12.26774194 | M129: 12.26774194 | N129: 12.26774194 | O129: 12.26774194 | P129: 12.26774194 | Q129: 12.26774194 | R129: 12.26774194 | S129: 12.26774194 | T129: 19.15190927 | U129: -1542.22742 | V129: 0 | W129: -169.1248593 | X129: -397.1987449 | Y129: -206.0147291 | Z129: -769.8890864 | AA129: -420.2294136 | AB129: 0 | AC129: -152.1879094 | AD129: 1477.520633 | AE129: 0 | AF129: 0 | AG129: 19.35532216 | AH129: 75.17410972 | AI129: 787.515259 | AJ129: 0 | AK129: 5.684341886e-14 | AL129: 0 | AM129: -426.2709872 | AN129: 0 | AO129: -68.49950101 | AP129: -169.1248593 | AQ129: -5.443369381 | AR129: 0 | AS129: -141.8454078 | AT129: 0 | AU129: 0 | AV129: 0 | AW129: -184.2863863 | AX129: 0 | AY129: 0 | AZ129: 0 | BA129: -141.8454078 | BB129: 0 | BC129: 0 | BD129: 0 | BE129: -1042.812178
C130: 380 | D130: 1368000 | E130: 5 | F130: 10.41290323 | G130: 0 | H130: 442.8 | I130: 195 | J130: 0 | K130: 6.707020873 | L130: 10.41290323 | M130: 10.41290323 | N130: 10.41290323 | O130: 10.41290323 | P130: 10.41290323 | Q130: 10.41290323 | R130: 10.41290323 | S130: 10.41290323 | T130: 19.15190927 | U130: -2448.098388 | V130: 0 | W130: -214.6544695 | X130: -469.902256 | Y130: -930.1033165 | Z130: -833.4383454 | AA130: -533.3581487 | AB130: 0 | AC130: -193.1579727 | AD130: 2484.302473 | AE130: 0 | AF130: 0 | AG130: 19.29732932 | AH130: 53.74203559 | AI130: 1975.313182 | AJ130: 0 | AK130: -1.98951966e-13 | AL130: 0 | AM130: -490.6860271 | AN130: 0 | AO130: -295.8420565 | AP130: -214.6544695 | AQ130: -16.27067754 | AR130: 0 | AS130: -285.6310588 | AT130: 0 | AU130: 0 | AV130: 0 | AW130: -286.8674831 | AX130: 0 | AY130: 0 | AZ130: 0 | BA130: -285.6310588 | BB130: 0 | BC130: 0 | BD130: 0 | BE130: -1028.551298
C131: 381 | D131: 1371600 | E131: 5 | F131: 10.23225806 | G131: 0 | H131: 492 | I131: 195 | J131: 0 | K131: 6.526375712 | L131: 10.23225806 | M131: 10.23225806 | N131: 10.23225806 | O131: 10.23225806 | P131: 10.23225806 | Q131: 10.23225806 | R131: 10.23225806 | S131: 10.23225806 | T131: 19.15190927 | U131: -2826.780943 | V131: 0 | W131: -219.7951873 | X131: -561.5969806 | Y131: -1193.207275 | Z131: -852.1815003 | AA131: -546.1314382 | AB131: 0 | AC131: -197.7838751 | AD131: 2846.096029 | AE131: 0 | AF131: 0 | AG131: 19.25587019 | AH131: 38.42022739 | AI131: 2638.254774 | AJ131: 0 | AK131: 5.684341886e-14 | AL131: 0 | AM131: -576.4553163 | AN131: 0 | AO131: -347.391919 | AP131: -219.7951873 | AQ131: -19.0484583 | AR131: 0 | AS131: -332.8110233 | AT131: 0 | AU131: 0 | AV131: 0 | AW131: -332.8204412 | AX131: 0 | AY131: 0 | AZ131: 0 | BA131: -332.8110233 | BB131: 0 | BC131: 0 | BD131: 0 | BE131: -991.6679175
C132: 382 | D132: 1375200 | E132: 5 | F132: 9.6 | G132: 0 | H132: 410 | I132: 0 | J132: 0 | K132: 5.894117647 | L132: 9.6 | M132: 9.6 | N132: 9.6 | O132: 9.6 | P132: 9.6 | Q132: 9.6 | R132: 9.6 | S132: 9.6 | T132: 18.56772409 | U132: -3291.362209 | V132: 0 | W132: -235.1948109 | X132: -575.5172322 | Y132: -1588.050663 | Z132: -892.5995026 | AA132: -584.3953271 | AB132: 0 | AC132: -211.6413088 | AD132: 0 | AE132: 0 | AF132: 0 | AG132: 19.22623102 | AH132: 27.46665355 | AI132: 3144.817284 | AJ132: 0 | AK132: -3645.315525 | AL132: 0 | AM132: -586.1394692 | AN132: 0 | AO132: -435.4498911 | AP132: -235.1948109 | AQ132: -23.87645073 | AR132: 0 | AS132: -417.1517828 | AT132: 0 | AU132: 0 | AV132: 0 | AW132: -417.1517828 | AX132: 0 | AY132: 0 | AZ132: 0 | BA132: -417.1517828 | BB132: 0 | BC132: 0 | BD132: 0 | BE132: -992.318462
C133: 383 | D133: 1378800 | E133: 5 | F133: 8.748387097 | G133: 0 | H133: 410 | I133: 0 | J133: 0 | K133: 5.042504744 | L133: 8.748387097 | M133: 8.748387097 | N133: 8.748387097 | O133: 8.748387097 | P133: 8.748387097 | Q133: 8.748387097 | R133: 8.748387097 | S133: 8.748387097 | T133: 17.6179448 | U133: -178.5395684 | V133: 0 | W133: -218.5142048 | X133: -441.1091264 | Y133: -160.4460527 | Z133: 641.5298155 | AA133: -542.9485442 | AB133: 0 | AC133: -196.6311762 | AD133: 0 | AE133: 0 | AF133: 0 | AG133: 18.84498118 | AH133: 450.0282078 | AI133: 0 | AJ133: 0 | AK133: -58.09108101 | AL133: 0 | AM133: -615.1494864 | AN133: 0 | AO133: -552.6760865 | AP133: -218.5142048 | AQ133: -30.3041604 | AR133: 0 | AS133: -529.4519978 | AT133: 0 | AU133: 0 | AV133: 0 | AW133: -529.4519978 | AX133: 0 | AY133: 0 | AZ133: 0 | BA133: -529.4519978 | BB133: 0 | BC133: 0 | BD133: 0 | BE133: -992.318462
C134: 384 | D134: 1382400 | E134: 6 | F134: 5.476666667 | G134: 0 | H134: 410 | I134: 0 | J134: 0 | K134: 1.770784314 | L134: 5.476666667 | M134: 5.476666667 | N134: 5.476666667 | O134: 5.476666667 | P134: 5.476666667 | Q134: 5.476666667 | R134: 5.476666667 | S134: 5.476666667 | T134: 17.14106715 | U134: -423.6228955 | V134: 0 | W134: -228.1132038 | X134: -406.6505884 | Y134: -177.3755888 | Z134: 388.5164855 | AA134: -566.7994537 | AB134: 0 | AC134: -205.2688868 | AD134: 0 | AE134: 0 | AF134: 0 | AG134: 18.43256642 | AH134: 457.877023 | AI134: 0 | AJ134: 0 | AK134: -327.8142129 | AL134: 0 | AM134: -583.7263373 | AN134: 0 | AO134: -565.9120176 | AP134: -228.1132038 | AQ134: -31.02990879 | AR134: 0 | AS134: -542.1317398 | AT134: 0 | AU134: 0 | AV134: 0 | AW134: -542.1317398 | AX134: 0 | AY134: 0 | AZ134: 0 | BA134: -542.1317398 | BB134: 0 | BC134: 0 | BD134: 0 | BE134: -1273.82728
C136: 432 | D136: 1555200 | E136: 6 | F136: 5.476666667 | G136: 0 | H136: 410 | I136: 0 | J136: 0 | K136: 1.770784314 | L136: 5.476666667 | M136: 5.476666667 | N136: 5.476666667 | O136: 5.476666667 | P136: 5.476666667 | Q136: 5.476666667 | R136: 5.476666667 | S136: 5.476666667 | T136: 17 | U136: -2639.076328 | V136: 0 | W136: -284.2309333 | X136: -612.6939152 | Y136: -1613.444739 | Z136: -128.7067405 | AA136: -706.2367941 | AB136: 0 | AC136: -255.7667259 | AD136: 2895.439556 | AE136: 0 | AF136: 0 | AG136: 17.79997017 | AH136: 295.6402922 | AI136: 2245.696685 | AJ136: 0 | AK136: 1.136868377e-13 | AL136: 0 | AM136: -727.0275103 | AN136: 0 | AO136: -746.919453 | AP136: -284.2309333 | AQ136: -40.95485125 | AR136: 0 | AS136: -715.5330333 | AT136: 0 | AU136: 0 | AV136: 0 | AW136: -715.5330333 | AX136: 0 | AY136: 0 | AZ136: 0 | BA136: -715.5330333 | BB136: 0 | BC136: 0 | BD136: 0 | BE136: -1202.042531
C137: 433 | D137: 1558800 | E137: 6 | F137: 5.54 | G137: 0 | H137: 410 | I137: 0 | J137: 0 | K137: 1.834117647 | L137: 5.54 | M137: 5.54 | N137: 5.54 | O137: 5.54 | P137: 5.54 | Q137: 5.54 | R137: 5.54 | S137: 5.54 | T137: 17 | U137: -3573.88485 | V137: 0 | W137: -282.5150194 | X137: -625.787205 | Y137: -2230.868772 | Z137: -434.7138527 | AA137: -701.9732134 | AB137: 0 | AC137: -254.2226516 | AD137: 3908.727216 | AE137: 0 | AF137: 0 | AG137: 17.57189936 | AH137: 211.3534988 | AI137: 3384.269473 | AJ137: 0 | AK137: 2.842170943e-14 | AL137: 0 | AM137: -707.5243903 | AN137: 0 | AO137: -808.2109017 | AP137: -282.5150194 | AQ137: -44.31556458 | AR137: 0 | AS137: -774.2489444 | AT137: 0 | AU137: 0 | AV137: 0 | AW137: -774.2489444 | AX137: 0 | AY137: 0 | AZ137: 0 | BA137: -774.2489444 | BB137: 0 | BC137: 0 | BD137: 0 | BE137: -1202.042531
C138: 434 | D138: 1562400 | E138: 6 | F138: 5.666666667 | G138: 0 | H138: 410 | I138: 0 | J138: 0 | K138: 1.960784314 | L138: 5.666666667 | M138: 5.666666667 | N138: 5.666666667 | O138: 5.666666667 | P138: 5.666666667 | Q138: 5.666666667 | R138: 5.666666667 | S138: 5.666666667 | T138: 17 | U138: -3699.821893 | V138: 0 | W138: -279.4187056 | X138: -645.8579448 | Y138: -2304.706735 | Z138: -469.8385082 | AA138: -694.279713 | AB138: 0 | AC138: -251.436417 | AD138: 4084.441225 | AE138: 0 | AF138: 0 | AG138: 17.40885134 | AH138: 151.0967978 | AI138: 3685.626996 | AJ138: 0 | AK138: 1.98951966e-13 | AL138: 0 | AM138: -704.2919287 | AN138: 0 | AO138: -758.4724221 | AP138: -279.4187056 | AQ138: -41.58832 | AR138: 0 | AS138: -726.6005333 | AT138: 0 | AU138: 0 | AV138: 0 | AW138: -726.6005333 | AX138: 0 | AY138: 0 | AZ138: 0 | BA138: -726.6005333 | BB138: 0 | BC138: 0 | BD138: 0 | BE138: -1018.402439
C139: 435 | D139: 1566000 | E139: 6 | F139: 5.71 | G139: 0 | H139: 410 | I139: 0 | J139: 0 | K139: 2.004117647 | L139: 5.71 | M139: 5.71 | N139: 5.71 | O139: 5.71 | P139: 5.71 | Q139: 5.71 | R139: 5.71 | S139: 5.71 | T139: 17 | U139: -3953.70176 | V139: 0 | W139: -278.3163028 | X139: -656.6845459 | Y139: -2392.467298 | Z139: -626.2336139 | AA139: -691.540541 | AB139: 0 | AC139: -250.444414 | AD139: 4377.667485 | AE139: 0 | AF139: 0 | AG139: 17.29228818 | AH139: 108.0192305 | AI139: 4179.048344 | AJ139: 0 | AK139: -2.842170943e-13 | AL139: 0 | AM139: -698.4590512 | AN139: 0 | AO139: -731.8163011 | AP139: -278.3163028 | AQ139: -40.12672 | AR139: 0 | AS139: -701.0645333 | AT139: 0 | AU139: 0 | AV139: 0 | AW139: -701.0645333 | AX139: 0 | AY139: 0 | AZ139: 0 | BA139: -701.0645333 | BB139: 0 | BC139: 0 | BD139: 0 | BE139: -1018.402439
C140: 436 | D140: 1569600 | E140: 6 | F140: 5.033333333 | G140: 0 | H140: 410 | I140: 0 | J140: 0 | K140: 1.32745098 | L140: 5.033333333 | M140: 5.033333333 | N140: 5.033333333 | O140: 5.033333333 | P140: 5.033333333 | Q140: 5.033333333 | R140: 5.033333333 | S140: 5.033333333 | T140: 17 | U140: -4211.977234 | V140: 0 | W140: -294.7003361 | X140: -666.5177003 | Y140: -2512.718589 | Z140: -738.0406093 | AA140: -732.250421 | AB140: 0 | AC140: -265.187674 | AD140: 4722.192289 | AE140: 0 | AF140: 0 | AG140: 17.20895707 | AH140: 77.22304061 | AI140: 4486.491329 | AJ140: 0 | AK140: -1.136868377e-13 | AL140: 0 | AM140: -696.3823301 | AN140: 0 | AO140: -727.3982958 | AP140: -294.7003361 | AQ140: -39.88447333 | AR140: 0 | AS140: -696.8321778 | AT140: 0 | AU140: 0 | AV140: 0 | AW140: -696.8321778 | AX140: 0 | AY140: 0 | AZ140: 0 | BA140: -696.8321778 | BB140: 0 | BC140: 0 | BD140: 0 | BE140: -1018.402439
C141: 437 | D141: 1573200 | E141: 6 | F141: 4.05 | G141: 0 | H141: 410 | I141: 0 | J141: 0 | K141: 0.3441176471 | L141: 4.05 | M141: 4.05 | N141: 4.05 | O141: 4.05 | P141: 4.05 | Q141: 4.05 | R141: 4.05 | S141: 4.05 | T141: 17 | U141: -4422.455936 | V141: 0 | W141: -318.8135139 | X141: -705.896542 | Y141: -2579.774354 | Z141: -817.9715263 | AA141: -792.165129 | AB141: 0 | AC141: -286.886046 | AD141: 5036.300293 | AE141: 0 | AF141: 0 | AG141: 17.14938359 | AH141: 55.20681804 | AI141: 4808.489163 | AJ141: 0 | AK141: 3.410605132e-13 | AL141: 0 | AM141: -727.2467914 | AN141: 0 | AO141: -719.4261411 | AP141: -318.8135139 | AQ141: -39.44734667 | AR141: 0 | AS141: -689.1950222 | AT141: 0 | AU141: 0 | AV141: 0 | AW141: -689.1950222 | AX141: 0 | AY141: 0 | AZ141: 0 | BA141: -689.1950222 | BB141: 0 | BC141: 0 | BD141: 0 | BE141: -1018.402439
C142: 438 | D142: 1576800 | E142: 6 | F142: 5.173333333 | G142: 0 | H142: 328 | I142: 0 | J142: 0 | K142: 1.46745098 | L142: 5.173333333 | M142: 5.173333333 | N142: 5.173333333 | O142: 5.173333333 | P142: 5.173333333 | Q142: 5.173333333 | R142: 5.173333333 | S142: 5.173333333 | T142: 17 | U142: -4563.463708 | V142: 0 | W142: -291.9888361 | X142: -757.4082068 | Y142: -2638.952458 | Z142: -875.1142074 | AA142: -725.5130788 | AB142: 0 | AC142: -262.7477162 | AD142: 5182.890435 | AE142: 0 | AF142: 0 | AG142: 17.10679445 | AH142: 39.46740162 | AI142: 5031.873869 | AJ142: 0 | AK142: 5.684341886e-14 | AL142: 0 | AM142: -772.6715185 | AN142: 0 | AO142: -716.5877578 | AP142: -291.9888361 | AQ142: -39.29171333 | AR142: 0 | AS142: -686.4759111 | AT142: 0 | AU142: 0 | AV142: 0 | AW142: -686.4759111 | AX142: 0 | AY142: 0 | AZ142: 0 | BA142: -686.4759111 | BB142: 0 | BC142: 0 | BD142: 0 | BE142: -1018.402439
C143: 439 | D143: 1580400 | E143: 6 | F143: 6.06 | G143: 55.15429227 | H143: 393.6 | I143: 195 | J143: 0 | K143: 2.787934641 | L143: 6.985450726 | M143: 6.798792186 | N143: 6.505308566 | O143: 6.308280865 | P143: 6.291762964 | Q143: 6.308280865 | R143: 6.505308566 | S143: 6.798792186 | T143: 18.54713542 | U143: -4746.175634 | V143: 0 | W143: -270.0352722 | X143: -710.9529016 | Y143: -2851.79579 | Z143: -913.3916701 | AA143: -670.9644257 | AB143: 0 | AC143: -242.9926843 | AD143: 14692.94159 | AE143: 0 | AF143: 0 | AG143: 17.07833956 | AH143: 28.92423298 | AI143: 5190.233308 | AJ143: 0 | AK143: 9654.125 | AL143: 0 | AM143: -722.1388314 | AN143: 0 | AO143: -758.7721272 | AP143: -270.0352722 | AQ143: -41.60475333 | AR143: 0 | AS143: -726.8876444 | AT143: 0 | AU143: 0 | AV143: 0 | AW143: -726.8876444 | AX143: 0 | AY143: 0 | AZ143: 0 | BA143: -726.8876444 | BB143: 0 | BC143: 0 | BD143: 0 | BE143: -1018.402439
C144: 440 | D144: 1584000 | E144: 6 | F144: 8.006666667 | G144: 358.8489987 | H144: 196.8 | I144: 0 | J144: 0 | K144: 6.900666667 | L144: 13.55292937 | M144: 12.43427738 | N144: 10.67541847 | O144: 9.494623684 | P144: 9.39563125 | Q144: 9.494623684 | R144: 10.67541847 | S144: 12.43427738 | T144: 18.54713542 | U144: -8412.965973 | V144: 0 | W144: -260.6223102 | X144: -809.0011333 | Y144: -4935.292294 | Z144: -2408.050235 | AA144: -647.5757677 | AB144: 0 | AC144: -234.5223801 | AD144: 9421.431479 | AE144: 0 | AF144: 0 | AG144: 17.51189526 | AH144: -382.7654718 | AI144: 9799.004387 | AJ144: 0 | AK144: 4.263256415e-13 | AL144: 0 | AM144: -660.9734334 | AN144: 0 | AO144: -820.8569128 | AP144: -260.6223102 | AQ144: -45.00896667 | AR144: 0 | AS144: -786.3635556 | AT144: 0 | AU144: 0 | AV144: 0 | AW144: -786.3635556 | AX144: 0 | AY144: 0 | AZ144: 0 | BA144: -786.3635556 | BB144: 0 | BC144: 0 | BD144: 0 | BE144: -1018.402439
C145: 441 | D145: 1587600 | E145: 6 | F145: 8.863333333 | G145: 655.4458419 | H145: 123 | I145: 0 | J145: 0 | K145: 9.887666667 | L145: 18.9541818 | M145: 16.91891078 | N145: 13.71884982 | O145: 11.57051645 | P145: 11.39041001 | Q145: 11.57051645 | R145: 13.71884982 | S145: 16.91891078 | T145: 18.54713542 | U145: -6966.946739 | V145: 0 | W145: -239.0576686 | X145: -644.8043975 | Y145: -4118.340248 | Z145: -1964.744426 | AA145: -593.9934809 | AB145: 0 | AC145: -215.117322 | AD145: 7814.913196 | AE145: 0 | AF145: 0 | AG145: 17.8427 | AH145: -260.6610381 | AI145: 8463.873939 | AJ145: 0 | AK145: -1.98951966e-13 | AL145: 0 | AM145: -543.9984033 | AN145: 0 | AO145: -751.7907621 | AP145: -239.0576686 | AQ145: -41.22195333 | AR145: 0 | AS145: -720.1996444 | AT145: 0 | AU145: 0 | AV145: 0 | AW145: -720.1996444 | AX145: 0 | AY145: 0 | AZ145: 0 | BA145: -720.1996444 | BB145: 0 | BC145: 0 | BD145: 0 | BE145: -1018.402439
C146: 442 | D146: 1591200 | E146: 6 | F146: 10.68666667 | G146: 884.4815106 | H146: 123 | I146: 0 | J146: 0 | K146: 13.35593137 | L146: 24.28660527 | M146: 21.54356924 | N146: 17.23068785 | O146: 14.33527207 | P146: 14.09253365 | Q146: 14.33527207 | R146: 17.23068785 | S146: 21.54356924 | T146: 18.54713542 | U146: -5635.700847 | V146: 0 | W146: -194.5096408 | X146: -468.8754342 | Y146: -3348.848067 | Z146: -1623.467705 | AA146: -483.303712 | AB146: 0 | AC146: -175.0305408 | AD146: 6205.595024 | AE146: 0 | AF146: 0 | AG146: 18.09737071 | AH146: -166.6595614 | AI146: 6849.103157 | AJ146: 0 | AK146: 3.126388037e-13 | AL146: 0 | AM146: -404.4228297 | AN146: 0 | AO146: -637.5097731 | AP146: -194.5096408 | AQ146: -35.59447981 | AR146: 0 | AS146: -639.4269741 | AT146: 0 | AU146: 0 | AV146: 0 | AW146: -652.1941538 | AX146: 0 | AY146: 0 | AZ146: 0 | BA146: -639.4269741 | BB146: 0 | BC146: 0 | BD146: 0 | BE146: -1018.402439
C147: 443 | D147: 1594800 | E147: 6 | F147: 11.59 | G147: 935.3769428 | H147: 123 | I147: 0 | J147: 0 | K147: 14.63143137 | L147: 25.98387226 | M147: 23.08070399 | N147: 18.51604634 | O147: 15.45160273 | P147: 15.1946938 | Q147: 15.45160273 | R147: 18.51604634 | S147: 23.08070399 | T147: 18.54713542 | U147: -4302.111364 | V147: 0 | W147: -171.8645075 | X147: -280.829001 | Y147: -2299.220623 | Z147: -1550.197233 | AA147: -427.0366963 | AB147: 0 | AC147: -154.6531965 | AD147: 4716.517907 | AE147: 0 | AF147: 0 | AG147: 18.28892253 | AH147: -95.89595228 | AI147: 5604.14453 | AJ147: 0 | AK147: -3.410605132e-13 | AL147: 0 | AM147: -243.7429567 | AN147: 0 | AO147: -323.9140142 | AP147: -171.8645075 | AQ147: -21.59960412 | AR147: 0 | AS147: -482.8261019 | AT147: 0 | AU147: 0 | AV147: 0 | AW147: -559.5567065 | AX147: 0 | AY147: 0 | AZ147: 0 | BA147: -482.8261019 | BB147: 0 | BC147: 0 | BD147: 0 | BE147: -1202.042531
C148: 444 | D148: 1598400 | E148: 6 | F148: 11.92 | G148: 922.2876615 | H148: 123 | I148: 0 | J148: 0 | K148: 14.86555882 | L148: 26.1093498 | M148: 23.24743263 | N148: 18.74763418 | O148: 15.72673324 | P148: 15.47347472 | Q148: 15.72673324 | R148: 18.74763418 | S148: 23.24743263 | T148: 18.54713542 | U148: -2944.992819 | V148: 0 | W148: -163.494463 | X148: -200.1532626 | Y148: -1216.551956 | Z148: -1364.793138 | AA148: -406.2394056 | AB148: 0 | AC148: -147.1213672 | AD148: 3281.80585 | AE148: 0 | AF148: 0 | AG148: 18.4270901 | AH148: -44.82813052 | AI148: 3891.581975 | AJ148: 0 | AK148: 1.705302566e-13 | AL148: 0 | AM148: -182.816785 | AN148: 0 | AO148: 20.12064358 | AP148: -163.494463 | AQ148: -5.926330488 | AR148: 0 | AS148: -296.6437746 | AT148: 0 | AU148: 0 | AV148: 0 | AW148: -437.1502805 | AX148: 0 | AY148: 0 | AZ148: 0 | BA148: -296.6437746 | BB148: 0 | BC148: 0 | BD148: 0 | BE148: -1202.042531
C149: 445 | D149: 1602000 | E149: 6 | F149: 12.20333333 | G149: 821.311945 | H149: 123 | I149: 0 | J149: 0 | K149: 14.42695425 | L149: 24.8525914 | M149: 22.30130263 | N149: 18.28990587 | O149: 15.59688919 | P149: 15.37111899 | Q149: 15.59688919 | R149: 18.28990587 | S149: 22.30130263 | T149: 18.54713542 | U149: -1684.68086 | V149: 0 | W149: -156.4911241 | X149: -174.922448 | Y149: -115.7056379 | Z149: -1237.56165 | AA149: -388.8380076 | AB149: 0 | AC149: -140.8193752 | AD149: 1977.672421 | AE149: 0 | AF149: 0 | AG149: 18.52178192 | AH149: -9.783408705 | AI149: 2553.12152 | AJ149: 0 | AK149: 1.136868377e-13 | AL149: 0 | AM149: -171.1388897 | AN149: 0 | AO149: 358.6261295 | AP149: -156.4911241 | AQ149: 10.1593595 | AR149: 0 | AS149: -83.59867453 | AT149: 0 | AU149: 0 | AV149: 0 | AW149: -273.5779391 | AX149: 0 | AY149: 0 | AZ149: 0 | BA149: -83.59867453 | BB149: 0 | BC149: 0 | BD149: 0 | BE149: -1202.042531
C150: 446 | D150: 1605600 | E150: 6 | F150: 13.19 | G150: 666.7825144 | H150: 123 | I150: 0 | J150: 0 | K150: 14.28831373 | L150: 23.43866895 | M150: 21.37156636 | N150: 18.12145658 | O150: 15.93952336 | P150: 15.75660006 | Q150: 15.93952336 | R150: 18.12145658 | S150: 21.37156636 | T150: 18.54713542 | U150: -1149.08844 | V150: 0 | W150: -132.4587436 | X150: -186.3435049 | Y150: 328.1804727 | Z150: -1158.466664 | AA150: -329.1240588 | AB150: 0 | AC150: -119.193709 | AD150: 1361.999942 | AE150: 0 | AF150: 0 | AG150: 18.58052342 | AH150: 12.00256455 | AI150: 1617.964012 | AJ150: 0 | AK150: -4.263256415e-14 | AL150: 0 | AM150: -190.985282 | AN150: 0 | AO150: 470.1917022 | AP150: -132.4587436 | AQ150: 15.68766481 | AR150: 0 | AS150: -3.192712437 | AT150: 0 | AU150: 0 | AV150: 0 | AW150: -204.9453059 | AX150: 0 | AY150: 0 | AZ150: 0 | BA150: -3.192712437 | BB150: 0 | BC150: 0 | BD150: 0 | BE150: -1202.042531
C151: 447 | D151: 1609200 | E151: 6 | F151: 13.11333333 | G151: 282.0645879 | H151: 123 | I151: 0 | J151: 0 | K151: 11.46128758 | L151: 17.49473057 | M151: 16.61102581 | N151: 15.22157493 | O151: 14.28877905 | P151: 14.21057771 | Q151: 14.28877905 | R151: 15.22157493 | S151: 16.61102581 | T151: 18.54713542 | U151: -1025.287163 | V151: 0 | W151: -133.9117241 | X151: -189.6612005 | Y151: 425.281217 | Z151: -1126.995455 | AA151: -332.7343215 | AB151: 0 | AC151: -120.5011813 | AD151: 1291.580168 | AE151: 0 | AF151: 0 | AG151: 18.60346126 | AH151: 20.6710143 | AI151: 1288.816906 | AJ151: 0 | AK151: 2.842170943e-14 | AL151: 0 | AM151: -197.6553455 | AN151: 0 | AO151: 479.8179908 | AP151: -133.9117241 | AQ151: 16.34736403 | AR151: 0 | AS151: 11.95564917 | AT151: 0 | AU151: 0 | AV151: 0 | AW151: -187.1610682 | AX151: 0 | AY151: 0 | AZ151: 0 | BA151: 11.95564917 | BB151: 0 | BC151: 0 | BD151: 0 | BE151: -1202.042531
C152: 448 | D152: 1612800 | E152: 6 | F152: 13 | G152: 69.77564571 | H152: 147.6 | I152: 195 | J152: 0 | K152: 9.804683007 | L152: 14.08917606 | M152: 13.86949498 | N152: 13.52408995 | O152: 13.29220526 | P152: 13.27276511 | Q152: 13.29220526 | R152: 13.52408995 | S152: 13.86949498 | T152: 18.54713542 | U152: -1310.885418 | V152: 0 | W152: -136.6903269 | X152: -319.4030819 | Y152: 277.3359818 | Z152: -1132.127991 | AA152: -339.6383959 | AB152: 0 | AC152: -123.0015219 | AD152: 1404.330961 | AE152: 0 | AF152: 0 | AG152: 18.59934328 | AH152: 19.2573054 | AI152: 1322.028903 | AJ152: 0 | AK152: 2.842170943e-14 | AL152: 0 | AM152: -326.8505003 | AN152: 0 | AO152: 401.5174678 | AP152: -136.6903269 | AQ152: 13.11937744 | AR152: 0 | AS152: -15.17572515 | AT152: 0 | AU152: 0 | AV152: 0 | AW152: -192.9980781 | AX152: 0 | AY152: 0 | AZ152: 0 | BA152: -15.17572515 | BB152: 0 | BC152: 0 | BD152: 0 | BE152: -1202.042531
C153: 449 | D153: 1616400 | E153: 6 | F153: 11.45333333 | G153: 0 | H153: 246 | I153: 195 | J153: 0 | K153: 7.74745098 | L153: 11.45333333 | M153: 11.45333333 | N153: 11.45333333 | O153: 11.45333333 | P153: 11.45333333 | Q153: 11.45333333 | R153: 11.45333333 | S153: 11.45333333 | T153: 18.54713542 | U153: -1556.249894 | V153: 0 | W153: -174.2267991 | X153: -399.0152343 | Y153: 165.8325329 | Z153: -1148.840393 | AA153: -432.9063506 | AB153: 0 | AC153: -156.7789173 | AD153: 1691.746692 | AE153: 0 | AF153: 0 | AG153: 18.5867892 | AH153: 14.65403072 | AI153: 1525.355398 | AJ153: 0 | AK153: -8.526512829e-14 | AL153: 0 | AM153: -404.6824186 | AN153: 0 | AO153: 311.9463605 | AP153: -174.2267991 | AQ153: 9.882944403 | AR153: 0 | AS153: -25.710578 | AT153: 0 | AU153: 0 | AV153: 0 | AW153: -170.0551705 | AX153: 0 | AY153: 0 | AZ153: 0 | BA153: -25.710578 | BB153: 0 | BC153: 0 | BD153: 0 | BE153: -1202.042531
C154: 450 | D154: 1620000 | E154: 6 | F154: 10.83 | G154: 0 | H154: 246 | I154: 195 | J154: 0 | K154: 7.124117647 | L154: 10.83 | M154: 10.83 | N154: 10.83 | O154: 10.83 | P154: 10.83 | Q154: 10.83 | R154: 10.83 | S154: 10.83 | T154: 18.54713542 | U154: -2530.589375 | V154: 0 | W154: -189.9713019 | X154: -495.8503495 | Y154: -680.7609637 | Z154: -1164.00676 | AA154: -472.0271705 | AB154: 0 | AC154: -170.9466923 | AD154: 2722.086641 | AE154: 0 | AF154: 0 | AG154: 18.57548394 | AH154: 10.47659702 | AI154: 2182.12463 | AJ154: 0 | AK154: -1.705302566e-13 | AL154: 0 | AM154: -499.901986 | AN154: 0 | AO154: -60.50553673 | AP154: -189.9713019 | AQ154: -6.461550096 | AR154: 0 | AS154: -199.2555307 | AT154: 0 | AU154: 0 | AV154: 0 | AW154: -262.0960724 | AX154: 0 | AY154: 0 | AZ154: 0 | BA154: -199.2555307 | BB154: 0 | BC154: 0 | BD154: 0 | BE154: -1202.042531
C155: 451 | D155: 1623600 | E155: 6 | F155: 9.246666667 | G155: 0 | H155: 369 | I155: 195 | J155: 0 | K155: 5.540784314 | L155: 9.246666667 | M155: 9.246666667 | N155: 9.246666667 | O155: 9.246666667 | P155: 9.246666667 | Q155: 9.246666667 | R155: 9.246666667 | S155: 9.246666667 | T155: 18.54713542 | U155: -3119.593712 | V155: 0 | W155: -228.6060686 | X155: -527.0603163 | Y155: -1189.076601 | Z155: -1174.850725 | AA155: -568.024089 | AB155: 0 | AC155: -205.7123938 | AD155: 3323.890466 | AE155: 0 | AF155: 0 | AG155: 18.5674018 | AH155: 7.489728207 | AI155: 2986.720402 | AJ155: 0 | AK155: 0 | AL155: 0 | AM155: -529.9568347 | AN155: 0 | AO155: -279.3307692 | AP155: -228.6060686 | AQ155: -16.11917993 | AR155: 0 | AS155: -303.681046 | AT155: 0 | AU155: 0 | AV155: 0 | AW155: -319.7313977 | AX155: 0 | AY155: 0 | AZ155: 0 | BA155: -303.681046 | BB155: 0 | BC155: 0 | BD155: 0 | BE155: -1202.042531
C156: 452 | D156: 1627200 | E156: 6 | F156: 7.673333333 | G156: 0 | H156: 442.8 | I156: 195 | J156: 0 | K156: 3.96745098 | L156: 7.673333333 | M156: 7.673333333 | N156: 7.673333333 | O156: 7.673333333 | P156: 7.673333333 | Q156: 7.673333333 | R156: 7.673333333 | S156: 7.673333333 | T156: 18.54713542 | U156: -3786.586498 | V156: 0 | W156: -267.3928436 | X156: -600.6668019 | Y156: -1735.923767 | Z156: -1182.603086 | AA156: -664.3987071 | AB156: 0 | AC156: -240.6148808 | AD156: 4049.675673 | AE156: 0 | AF156: 0 | AG156: 18.56162387 | AH156: 5.354413126 | AI156: 3636.673282 | AJ156: 0 | AK156: 1.421085472e-13 | AL156: 0 | AM156: -602.7375254 | AN156: 0 | AO156: -447.4338682 | AP156: -267.3928436 | AQ156: -24.54629387 | AR156: 0 | AS156: -429.2048 | AT156: 0 | AU156: 0 | AV156: 0 | AW156: -429.4594758 | AX156: 0 | AY156: 0 | AZ156: 0 | BA156: -429.2048 | BB156: 0 | BC156: 0 | BD156: 0 | BE156: -1202.042531
C157: 453 | D157: 1630800 | E157: 6 | F157: 6.763333333 | G157: 0 | H157: 492 | I157: 195 | J157: 0 | K157: 3.05745098 | L157: 6.763333333 | M157: 6.763333333 | N157: 6.763333333 | O157: 6.763333333 | P157: 6.763333333 | Q157: 6.763333333 | R157: 6.763333333 | S157: 6.763333333 | T157: 18.54713542 | U157: -4057.115766 | V157: 0 | W157: -290.096863 | X157: -674.3242094 | Y157: -1904.549439 | Z157: -1188.145255 | AA157: -720.8120387 | AB157: 0 | AC157: -261.0452141 | AD157: 4348.965145 | AE157: 0 | AF157: 0 | AG157: 18.55749322 | AH157: 3.827874542 | AI157: 4138.048331 | AJ157: 0 | AK157: -3.410605132e-13 | AL157: 0 | AM157: -675.8045714 | AN157: 0 | AO157: -489.1237342 | AP157: -290.096863 | AQ157: -26.81947792 | AR157: 0 | AS157: -468.5701889 | AT157: 0 | AU157: 0 | AV157: 0 | AW157: -468.5701889 | AX157: 0 | AY157: 0 | AZ157: 0 | BA157: -468.5701889 | BB157: 0 | BC157: 0 | BD157: 0 | BE157: -1202.042531
C158: 454 | D158: 1634400 | E158: 6 | F158: 5.796666667 | G158: 0 | H158: 410 | I158: 0 | J158: 0 | K158: 2.090784314 | L158: 5.796666667 | M158: 5.796666667 | N158: 5.796666667 | O158: 5.796666667 | P158: 5.796666667 | Q158: 5.796666667 | R158: 5.796666667 | S158: 5.796666667 | T158: 17.71879638 | U158: -4523.761333 | V158: 0 | W158: -313.9019158 | X158: -717.5163951 | Y158: -2300.235666 | Z158: -1192.107356 | AA158: -779.9611396 | AB158: 0 | AC158: -282.4663182 | AD158: 0 | AE158: 0 | AF158: 0 | AG158: 18.55454022 | AH158: 2.736550797 | AI158: 4602.878664 | AJ158: 0 | AK158: -5168.835573 | AL158: 0 | AM158: -718.5747071 | AN158: 0 | AO158: -588.5976081 | AP158: -313.9019158 | AQ158: -32.27379792 | AR158: 0 | AS158: -563.8640556 | AT158: 0 | AU158: 0 | AV158: 0 | AW158: -563.8640556 | AX158: 0 | AY158: 0 | AZ158: 0 | BA158: -563.8640556 | BB158: 0 | BC158: 0 | BD158: 0 | BE158: -1202.042531
C159: 455 | D159: 1638000 | E159: 6 | F159: 5.036666667 | G159: 0 | H159: 410 | I159: 0 | J159: 0 | K159: 1.330784314 | L159: 5.036666667 | M159: 5.036666667 | N159: 5.036666667 | O159: 5.036666667 | P159: 5.036666667 | Q159: 5.036666667 | R159: 5.036666667 | S159: 5.036666667 | T159: 17 | U159: -1455.7016 | V159: 0 | W159: -294.5839333 | X159: -603.4896974 | Y159: -856.9624167 | Z159: 299.3344479 | AA159: -731.9611917 | AB159: 0 | AC159: -265.0829283 | AD159: 1629.20549 | AE159: 0 | AF159: 0 | AG159: 18.11899445 | AH159: 413.5402291 | AI159: 688.5180729 | AJ159: 0 | AK159: 1.136868377e-13 | AL159: 0 | AM159: -763.4189843 | AN159: 0 | AO159: -688.4628616 | AP159: -294.5839333 | AQ159: -37.74957792 | AR159: 0 | AS159: -659.5328556 | AT159: 0 | AU159: 0 | AV159: 0 | AW159: -659.5328556 | AX159: 0 | AY159: 0 | AZ159: 0 | BA159: -659.5328556 | BB159: 0 | BC159: 0 | BD159: 0 | BE159: -1202.042531
C160: 456 | D160: 1641600 | E160: 7 | F160: 4.664516129 | G160: 0 | H160: 410 | I160: 0 | J160: 0 | K160: 0.9586337761 | L160: 4.664516129 | M160: 4.664516129 | N160: 4.664516129 | O160: 4.664516129 | P160: 4.664516129 | Q160: 4.664516129 | R160: 4.664516129 | S160: 4.664516129 | T160: 17 | U160: -2674.523415 | V160: 0 | W160: -284.2309333 | X160: -612.6939257 | Y160: -1613.444861 | Z160: -164.1536952 | AA160: -706.2367941 | AB160: 0 | AC160: -255.7667259 | AD160: 2930.88667 | AE160: 0 | AF160: 0 | AG160: 17.79997009 | AH160: 295.6402649 | AI160: 2246.287765 | AJ160: 0 | AK160: 1.136868377e-13 | AL160: 0 | AM160: -727.0275103 | AN160: 0 | AO160: -746.919453 | AP160: -284.2309333 | AQ160: -40.95485125 | AR160: 0 | AS160: -715.5330333 | AT160: 0 | AU160: 0 | AV160: 0 | AW160: -715.5330333 | AX160: 0 | AY160: 0 | AZ160: 0 | BA160: -715.5330333 | BB160: 0 | BC160: 0 | BD160: 0 | BE160: -1237.489387
C162: 504 | D162: 1814400 | E162: 7 | F162: 4.664516129 | G162: 0 | H162: 410 | I162: 0 | J162: 0 | K162: 0.9586337761 | L162: 4.664516129 | M162: 4.664516129 | N162: 4.664516129 | O162: 4.664516129 | P162: 4.664516129 | Q162: 4.664516129 | R162: 4.664516129 | S162: 4.664516129 | T162: 17 | U162: -2471.057982 | V162: 0 | W162: -303.298371 | X162: -548.6377378 | Y162: -1412.103102 | Z162: -207.018772 | AA162: -753.6142061 | AB162: 0 | AC162: -272.9246617 | AD162: 2806.253063 | AE162: 0 | AF162: 0 | AG162: 17.76128539 | AH162: 281.3437873 | AI162: 2100.160247 | AJ162: 0 | AK162: -1.705302566e-13 | AL162: 0 | AM162: -657.4424153 | AN162: 0 | AO162: -679.4113634 | AP162: -303.298371 | AQ162: -37.25326903 | AR162: 0 | AS162: -650.8617118 | AT162: 0 | AU162: 0 | AV162: 0 | AW162: -650.8617118 | AX162: 0 | AY162: 0 | AZ162: 0 | BA162: -650.8617118 | BB162: 0 | BC162: 0 | BD162: 0 | BE162: -1228.450438
C163: 505 | D163: 1818000 | E163: 7 | F163: 4.058064516 | G163: 0 | H163: 410 | I163: 0 | J163: 0 | K163: 0.3521821632 | L163: 4.058064516 | M163: 4.058064516 | N163: 4.058064516 | O163: 4.058064516 | P163: 4.058064516 | Q163: 4.058064516 | R163: 4.058064516 | S163: 4.058064516 | T163: 17 | U163: -3466.349727 | V163: 0 | W163: -318.7695591 | X163: -665.6593272 | Y163: -1983.692777 | Z163: -498.228063 | AA163: -792.0559133 | AB163: 0 | AC163: -286.8464931 | AD163: 3934.119218 | AE163: 0 | AF163: 0 | AG163: 17.54424358 | AH163: 201.1329151 | AI163: 3353.856071 | AJ163: 0 | AK163: -1.705302566e-13 | AL163: 0 | AM163: -743.4438846 | AN163: 0 | AO163: -733.6721977 | AP163: -318.7695591 | AQ163: -40.22848194 | AR163: 0 | AS163: -702.842443 | AT163: 0 | AU163: 0 | AV163: 0 | AW163: -702.842443 | AX163: 0 | AY163: 0 | AZ163: 0 | BA163: -702.842443 | BB163: 0 | BC163: 0 | BD163: 0 | BE163: -1228.450438
C164: 506 | D164: 1821600 | E164: 7 | F164: 4.051612903 | G164: 0 | H164: 410 | I164: 0 | J164: 0 | K164: 0.3457305503 | L164: 4.051612903 | M164: 4.051612903 | N164: 4.051612903 | O164: 4.051612903 | P164: 4.051612903 | Q164: 4.051612903 | R164: 4.051612903 | S164: 4.051612903 | T164: 17 | U164: -3531.673572 | V164: 0 | W164: -319.1750914 | X164: -716.9804691 | Y164: -1963.70532 | Z164: -531.8126916 | AA164: -793.063551 | AB164: 0 | AC164: -287.2114135 | AD164: 4058.158443 | AE164: 0 | AF164: 0 | AG164: 17.3890802 | AH164: 143.7900937 | AI164: 3696.471462 | AJ164: 0 | AK164: -1.705302566e-13 | AL164: 0 | AM164: -772.588716 | AN164: 0 | AO164: -663.3661666 | AP164: -319.1750914 | AQ164: -36.37348387 | AR164: 0 | AS164: -635.4907527 | AT164: 0 | AU164: 0 | AV164: 0 | AW164: -635.4907527 | AX164: 0 | AY164: 0 | AZ164: 0 | BA164: -635.4907527 | BB164: 0 | BC164: 0 | BD164: 0 | BE164: -1053.849295
C165: 507 | D165: 1825200 | E165: 7 | F165: 3.612903226 | G165: 0 | H165: 410 | I165: 0 | J165: 0 | K165: -0.09297912713 | L165: 3.612903226 | M165: 3.612903226 | N165: 3.612903226 | O165: 3.612903226 | P165: 3.612903226 | Q165: 3.612903226 | R165: 3.612903226 | S165: 3.612903226 | T165: 17 | U165: -4352.739539 | V165: 0 | W165: -329.8116989 | X165: -733.5982796 | Y165: -2608.684682 | Z165: -680.6448789 | AA165: -819.4926364 | AB165: 0 | AC165: -296.7828217 | AD165: 4956.219336 | AE165: 0 | AF165: 0 | AG165: 17.27815377 | AH165: 102.7956615 | AI165: 4454.463879 | AJ165: 0 | AK165: 2.273736754e-13 | AL165: 0 | AM165: -773.352663 | AN165: 0 | AO165: -780.9096968 | AP165: -329.8116989 | AQ165: -42.81859355 | AR165: 0 | AS165: -748.0949677 | AT165: 0 | AU165: 0 | AV165: 0 | AW165: -748.0949677 | AX165: 0 | AY165: 0 | AZ165: 0 | BA165: -748.0949677 | BB165: 0 | BC165: 0 | BD165: 0 | BE165: -1053.849295
C166: 508 | D166: 1828800 | E166: 7 | F166: 3.212903226 | G166: 0 | H166: 410 | I166: 0 | J166: 0 | K166: -0.4929791271 | L166: 3.212903226 | M166: 3.212903226 | N166: 3.212903226 | O166: 3.212903226 | P166: 3.212903226 | Q166: 3.212903226 | R166: 3.212903226 | S166: 3.212903226 | T166: 17 | U166: -4787.839918 | V166: 0 | W166: -339.6876022 | X166: -764.9696039 | Y166: -2896.137575 | Z166: -787.0451374 | AA166: -844.0315779 | AB166: 0 | AC166: -305.669706 | AD166: 5454.052495 | AE166: 0 | AF166: 0 | AG166: 17.19885237 | AH166: 73.48870666 | AI166: 5136.6718 | AJ166: 0 | AK166: -1.136868377e-13 | AL166: 0 | AM166: -793.3900467 | AN166: 0 | AO166: -820.7437415 | AP166: -339.6876022 | AQ166: -45.00276129 | AR166: 0 | AS166: -786.2551398 | AT166: 0 | AU166: 0 | AV166: 0 | AW166: -786.2551398 | AX166: 0 | AY166: 0 | AZ166: 0 | BA166: -786.2551398 | BB166: 0 | BC166: 0 | BD166: 0 | BE166: -1053.849295
C167: 509 | D167: 1832400 | E167: 7 | F167: 3.303225806 | G167: 0 | H167: 410 | I167: 0 | J167: 0 | K167: -0.4026565465 | L167: 3.303225806 | M167: 3.303225806 | N167: 3.303225806 | O167: 3.303225806 | P167: 3.303225806 | Q167: 3.303225806 | R167: 3.303225806 | S167: 3.303225806 | T167: 17 | U167: -4986.30895 | V167: 0 | W167: -337.6625914 | X167: -791.6766064 | Y167: -2993.858979 | Z167: -863.1107736 | AA167: -838.9999753 | AB167: 0 | AC167: -303.8474893 | AD167: 5666.619275 | AE167: 0 | AF167: 0 | AG167: 17.14215973 | AH167: 52.53713949 | AI167: 5478.303174 | AJ167: 0 | AK167: -1.136868377e-13 | AL167: 0 | AM167: -811.9944054 | AN167: 0 | AO167: -821.7878752 | AP167: -337.6625914 | AQ167: -45.0600129 | AR167: 0 | AS167: -787.2553978 | AT167: 0 | AU167: 0 | AV167: 0 | AW167: -787.2553978 | AX167: 0 | AY167: 0 | AZ167: 0 | BA167: -787.2553978 | BB167: 0 | BC167: 0 | BD167: 0 | BE167: -1053.849295
C168: 510 | D168: 1836000 | E168: 7 | F168: 4.161290323 | G168: 0.3644483781 | H168: 328 | I168: 0 | J168: 0 | K168: 0.4588172043 | L168: 4.16847473 | M168: 4.167046952 | N168: 4.164805107 | O168: 4.163162302 | P168: 4.162981007 | Q168: 4.163162302 | R168: 4.164805107 | S168: 4.167046952 | T168: 17 | U168: -5196.313585 | V168: 0 | W168: -316.8267151 | X168: -793.6526394 | Y168: -3168.361076 | Z168: -917.4731545 | AA168: -787.2284726 | AB168: 0 | AC168: -285.0982145 | AD168: 5901.656318 | AE168: 0 | AF168: 0 | AG168: 17.10164328 | AH168: 37.56353076 | AI168: 5694.887832 | AJ168: 0 | AK168: -1.705302566e-13 | AL168: 0 | AM168: -808.179663 | AN168: 0 | AO168: -849.1742075 | AP168: -316.8267151 | AQ168: -46.56165161 | AR168: 0 | AS168: -813.4909247 | AT168: 0 | AU168: 0 | AV168: 0 | AW168: -813.4909247 | AX168: 0 | AY168: 0 | AZ168: 0 | BA168: -813.4909247 | BB168: 0 | BC168: 0 | BD168: 0 | BE168: -1053.849295
C169: 511 | D169: 1839600 | E169: 7 | F169: 5.206451613 | G169: 106.2539402 | H169: 393.6 | I169: 0 | J169: 0 | K169: 2.277387729 | L169: 6.84347027 | M169: 6.518140655 | N169: 6.007320433 | O169: 5.632995564 | P169: 5.591686078 | Q169: 5.632995564 | R169: 6.007320433 | S169: 6.518140655 | T169: 18.47098387 | U169: -5310.367022 | V169: 0 | W169: -291.1403548 | X169: -757.8577232 | Y169: -3309.990417 | Z169: -951.3785276 | AA169: -723.4048329 | AB169: 0 | AC169: -261.9842058 | AD169: 15038.29077 | AE169: 0 | AF169: 0 | AG169: 17.07651482 | AH169: 28.22461325 | AI169: 5941.570988 | AJ169: 0 | AK169: 9178.939355 | AL169: 0 | AM169: -768.7730876 | AN169: 0 | AO169: -874.6019359 | AP169: -291.1403548 | AQ169: -47.95589677 | AR169: 0 | AS169: -837.8501505 | AT169: 0 | AU169: 0 | AV169: 0 | AW169: -837.8501505 | AX169: 0 | AY169: 0 | AZ169: 0 | BA169: -837.8501505 | BB169: 0 | BC169: 0 | BD169: 0 | BE169: -1053.849295
C170: 512 | D170: 1843200 | E170: 7 | F170: 6.425806452 | G170: 364.6056285 | H170: 196.8 | I170: 0 | J170: 0 | K170: 5.375961417 | L170: 12.02297338 | M170: 10.91063165 | N170: 9.16407486 | O170: 7.88421237 | P170: 7.742970186 | Q170: 7.88421237 | R170: 9.16407486 | S170: 10.91063165 | T170: 18.47098387 | U170: -8527.355079 | V170: 0 | W170: -297.414575 | X170: -825.2276509 | Y170: -5035.066648 | Z170: -2369.646205 | AA170: -738.9945686 | AB170: 0 | AC170: -267.6300964 | AD170: 9642.278716 | AE170: 0 | AF170: 0 | AG170: 17.49079453 | AH170: -362.4239369 | AI170: 10175.27717 | AJ170: 0 | AK170: 1.136868377e-13 | AL170: 0 | AM170: -685.0666758 | AN170: 0 | AO170: -869.3880914 | AP170: -297.414575 | AQ170: -47.6700129 | AR170: 0 | AS170: -832.8553978 | AT170: 0 | AU170: 0 | AV170: 0 | AW170: -832.8553978 | AX170: 0 | AY170: 0 | AZ170: 0 | BA170: -832.8553978 | BB170: 0 | BC170: 0 | BD170: 0 | BE170: -1053.849295
C171: 513 | D171: 1846800 | E171: 7 | F171: 8.212903226 | G171: 689.3391871 | H171: 123 | I171: 0 | J171: 0 | K171: 9.504228336 | L171: 18.74370569 | M171: 16.65088782 | N171: 13.36482456 | O171: 10.95682436 | P171: 10.69108393 | Q171: 10.95682436 | R171: 13.36482456 | S171: 16.65088782 | T171: 18.47098387 | U171: -7205.950956 | V171: 0 | W171: -253.5958868 | X171: -705.4637681 | Y171: -4301.34406 | Z171: -1945.547241 | AA171: -630.1170109 | AB171: 0 | AC171: -228.1996154 | AD171: 8083.058387 | AE171: 0 | AF171: 0 | AG171: 17.80732078 | AH171: -245.6098489 | AI171: 8702.220466 | AJ171: 0 | AK171: -1.421085472e-13 | AL171: 0 | AM171: -610.4785521 | AN171: 0 | AO171: -815.2930806 | AP171: -253.5958868 | AQ171: -44.70877823 | AR171: 0 | AS171: -781.2529165 | AT171: 0 | AU171: 0 | AV171: 0 | AW171: -781.3619734 | AX171: 0 | AY171: 0 | AZ171: 0 | BA171: -781.2529165 | BB171: 0 | BC171: 0 | BD171: 0 | BE171: -1053.849295
C172: 514 | D172: 1850400 | E172: 7 | F172: 9.648387097 | G172: 927.4662395 | H172: 123 | I172: 0 | J172: 0 | K172: 12.64773877 | L172: 23.77857792 | M172: 20.97044283 | N172: 16.56121561 | O172: 13.33017008 | P172: 12.97360058 | Q172: 13.33017008 | R172: 16.56121561 | S172: 20.97044283 | T172: 18.47098387 | U172: -5725.624671 | V172: 0 | W172: -218.0667551 | X172: -479.4865925 | Y172: -3411.789143 | Z172: -1616.282181 | AA172: -541.836753 | AB172: 0 | AC172: -196.2285362 | AD172: 6357.082214 | AE172: 0 | AF172: 0 | AG172: 18.05305185 | AH172: -154.9168715 | AI172: 7055.853358 | AJ172: 0 | AK172: -8.526512829e-14 | AL172: 0 | AM172: -419.5752634 | AN172: 0 | AO172: -647.4335778 | AP172: -218.0667551 | AQ172: -36.61323395 | AR172: 0 | AS172: -670.2219999 | AT172: 0 | AU172: 0 | AV172: 0 | AW172: -695.0732409 | AX172: 0 | AY172: 0 | AZ172: 0 | BA172: -670.2219999 | BB172: 0 | BC172: 0 | BD172: 0 | BE172: -1053.849295
C173: 515 | D173: 1854000 | E173: 7 | F173: 10.70645161 | G173: 1150.684893 | H173: 123 | I173: 0 | J173: 0 | K173: 15.28598355 | L173: 28.1666155 | M173: 24.6967049 | N173: 19.24838288 | O173: 15.25589719 | P173: 14.81529721 | Q173: 15.25589719 | R173: 19.24838288 | S173: 24.6967049 | T173: 18.47098387 | U173: -4641.351047 | V173: 0 | W173: -191.8304083 | X173: -305.3992616 | Y173: -2610.022674 | Z173: -1534.098703 | AA173: -476.6465458 | AB173: 0 | AC173: -172.6196192 | AD173: 5079.760477 | AE173: 0 | AF173: 0 | AG173: 18.24474048 | AH173: -84.18795228 | AI173: 5848.311086 | AJ173: 0 | AK173: -2.842170943e-14 | AL173: 0 | AM173: -272.8410769 | AN173: 0 | AO173: -414.7143791 | AP173: -191.8304083 | AQ173: -26.5647902 | AR173: 0 | AS173: -569.0589123 | AT173: 0 | AU173: 0 | AV173: 0 | AW173: -654.4431999 | AX173: 0 | AY173: 0 | AZ173: 0 | BA173: -569.0589123 | BB173: 0 | BC173: 0 | BD173: 0 | BE173: -1228.450438
C174: 516 | D174: 1857600 | E174: 7 | F174: 11.90322581 | G174: 1010.003183 | H174: 123 | I174: 0 | J174: 0 | K174: 15.48312144 | L174: 27.25681866 | M174: 24.20555322 | N174: 19.41457196 | O174: 15.90378019 | P174: 15.51633865 | Q174: 15.90378019 | R174: 19.41457196 | S174: 24.20555322 | T174: 18.47098387 | U174: -2919.292905 | V174: 0 | W174: -162.386911 | X174: -162.5474265 | Y174: -1247.557393 | Z174: -1346.801175 | AA174: -403.4874392 | AB174: 0 | AC174: -146.1247306 | AD174: 3226.651496 | AE174: 0 | AF174: 0 | AG174: 18.3841525 | AH174: -32.598602 | AI174: 4038.365801 | AJ174: 0 | AK174: -1.136868377e-13 | AL174: 0 | AM174: -149.9405003 | AN174: 0 | AO174: 10.19975 | AP174: -162.386911 | AQ174: -6.666869132 | AR174: 0 | AS174: -314.7112457 | AT174: 0 | AU174: 0 | AV174: 0 | AW174: -476.0053381 | AX174: 0 | AY174: 0 | AZ174: 0 | BA174: -314.7112457 | BB174: 0 | BC174: 0 | BD174: 0 | BE174: -1228.450438
C175: 517 | D175: 1861200 | E175: 7 | F175: 12.95483871 | G175: 1023.601999 | H175: 123 | I175: 0 | J175: 0 | K175: 16.6314105 | L175: 28.51216085 | M175: 25.42040768 | N175: 20.56585412 | O175: 17.00847709 | P175: 16.61589452 | Q175: 17.00847709 | R175: 20.56585412 | S175: 25.42040768 | T175: 18.47098387 | U175: -1716.343654 | V175: 0 | W175: -136.4050159 | X175: -137.8628652 | Y175: -223.3330817 | Z175: -1218.742691 | AA175: -338.9294753 | AB175: 0 | AC175: -122.7447832 | AD175: 1898.837701 | AE175: 0 | AF175: 0 | AG175: 18.47961104 | AH175: 2.673908177 | AI175: 2486.252555 | AJ175: 0 | AK175: -4.263256415e-14 | AL175: 0 | AM175: -138.8969513 | AN175: 0 | AO175: 331.5310321 | AP175: -136.4050159 | AQ175: 8.44758298 | AR175: 0 | AS175: -119.3529197 | AT175: 0 | AU175: 0 | AV175: 0 | AW175: -336.5538545 | AX175: 0 | AY175: 0 | AZ175: 0 | BA175: -119.3529197 | BB175: 0 | BC175: 0 | BD175: 0 | BE175: -1228.450438
C176: 518 | D176: 1864800 | E176: 7 | F176: 14.26129032 | G176: 663.2311462 | H176: 123 | I176: 0 | J176: 0 | K176: 15.36681214 | L176: 24.40054256 | M176: 22.38553863 | N176: 19.22165589 | O176: 16.90318857 | P176: 16.64732874 | Q176: 16.90318857 | R176: 19.22165589 | S176: 22.38553863 | T176: 18.47098387 | U176: -723.1371061 | V176: 0 | W176: -104.3056798 | X176: -77.2500959 | Y176: 601.8063555 | Z176: -1143.387686 | AA176: -259.1713297 | AB176: 0 | AC176: -93.86002401 | AD176: 829.3531221 | AE176: 0 | AF176: 0 | AG176: 18.53529238 | AH176: 23.42973864 | AI176: 1308.906787 | AJ176: 0 | AK176: -1.421085472e-14 | AL176: 0 | AM176: -86.31112825 | AN176: 0 | AO176: 610.7106255 | AP176: -104.3056798 | AQ176: 21.44938597 | AR176: 0 | AS176: 44.54286358 | AT176: 0 | AU176: 0 | AV176: 0 | AW176: -224.1320017 | AX176: 0 | AY176: 0 | AZ176: 0 | BA176: 44.54286358 | BB176: 0 | BC176: 0 | BD176: 0 | BE176: -1228.450438
C177: 519 | D177: 1868400 | E177: 7 | F177: 13.92580645 | G177: 336.172933 | H177: 123 | I177: 0 | J177: 0 | K177: 12.67335547 | L177: 19.09601428 | M177: 18.06852341 | N177: 16.45519622 | O177: 15.27296329 | P177: 15.14249524 | Q177: 15.27296329 | R177: 16.45519622 | S177: 18.06852341 | T177: 18.47098387 | U177: -720.6514518 | V177: 0 | W177: -111.9007954 | X177: -131.7611102 | Y177: 644.3889148 | Z177: -1121.378461 | AA177: -278.0431324 | AB177: 0 | AC177: -100.6945294 | AD177: 895.6535546 | AE177: 0 | AF177: 0 | AG177: 18.55125055 | AH177: 29.49197351 | AI177: 831.855824 | AJ177: 0 | AK177: -1.421085472e-14 | AL177: 0 | AM177: -143.1666035 | AN177: 0 | AO177: 558.5725476 | AP177: -111.9007954 | AQ177: 19.98478814 | AR177: 0 | AS177: 57.20175096 | AT177: 0 | AU177: 0 | AV177: 0 | AW177: -180.3528182 | AX177: 0 | AY177: 0 | AZ177: 0 | BA177: 57.20175096 | BB177: 0 | BC177: 0 | BD177: 0 | BE177: -1228.450438
C178: 520 | D178: 1872000 | E178: 7 | F178: 13.33870968 | G178: 86.2695162 | H178: 147.6 | I178: 0 | J178: 0 | K178: 10.26426629 | L178: 14.66936466 | M178: 14.40491961 | N178: 13.98969803 | O178: 13.68542706 | P178: 13.65184854 | Q178: 13.68542706 | R178: 13.98969803 | S178: 14.40491961 | T178: 18.47098387 | U178: -598.7397284 | V178: 0 | W178: -126.2693599 | X178: -256.9004475 | Y178: 916.8093389 | Z178: -1132.37926 | AA178: -313.7451189 | AB178: 0 | AC178: -113.624159 | AD178: 838.8919139 | AE178: 0 | AF178: 0 | AG178: 18.54270988 | AH178: 26.46190646 | AI178: 848.5900035 | AJ178: 0 | AK178: -2.842170943e-14 | AL178: 0 | AM178: -267.1341165 | AN178: 0 | AO178: 635.955047 | AP178: -126.2693599 | AQ178: 24.11353329 | AR178: 0 | AS178: 126.2014785 | AT178: 0 | AU178: 0 | AV178: 0 | AW178: -113.9036489 | AX178: 0 | AY178: 0 | AZ178: 0 | BA178: 126.2014785 | BB178: 0 | BC178: 0 | BD178: 0 | BE178: -1228.450438
C179: 521 | D179: 1875600 | E179: 7 | F179: 12.16129032 | G179: 0.1987900244 | H179: 246 | I179: 195 | J179: 0 | K179: 8.45686907 | L179: 12.16436935 | M179: 12.16375745 | N179: 12.16279666 | O179: 12.1620926 | P179: 12.1620149 | Q179: 12.1620926 | R179: 12.16279666 | S179: 12.16375745 | T179: 18.47098387 | U179: -1215.293536 | V179: 0 | W179: -155.0502228 | X179: -371.4815428 | Y179: 467.0169246 | Z179: -1155.778695 | AA179: -385.2577586 | AB179: 0 | AC179: -139.5227725 | AD179: 1283.702321 | AE179: 0 | AF179: 0 | AG179: 18.52514922 | AH179: 20.0167512 | AI179: 1046.747619 | AJ179: 0 | AK179: -5.684341886e-14 | AL179: 0 | AM179: -379.2226633 | AN179: 0 | AO179: 380.6802319 | AP179: -155.0502228 | AQ179: 13.79867297 | AR179: 0 | AS179: 47.00297947 | AT179: 0 | AU179: 0 | AV179: 0 | AW179: -110.9100851 | AX179: 0 | AY179: 0 | AZ179: 0 | BA179: 47.00297947 | BB179: 0 | BC179: 0 | BD179: 0 | BE179: -1228.450438
C180: 522 | D180: 1879200 | E180: 7 | F180: 10.37419355 | G180: 0 | H180: 246 | I180: 195 | J180: 0 | K180: 6.668311195 | L180: 10.37419355 | M180: 10.37419355 | N180: 10.37419355 | O180: 10.37419355 | P180: 10.37419355 | Q180: 10.37419355 | R180: 10.37419355 | S180: 10.37419355 | T180: 18.47098387 | U180: -2165.694131 | V180: 0 | W180: -198.8516825 | X180: -458.081321 | Y180: -332.2748132 | Z180: -1176.486314 | AA180: -494.0925082 | AB180: 0 | AC180: -178.9377503 | AD180: 2383.410861 | AE180: 0 | AF180: 0 | AG180: 18.50971337 | AH180: 14.31303142 | AI180: 1817.252193 | AJ180: 0 | AK180: 1.705302566e-13 | AL180: 0 | AM180: -463.6166299 | AN180: 0 | AO180: 45.27981442 | AP180: -198.8516825 | AQ180: -1.150175516 | AR180: 0 | AS180: -119.7565433 | AT180: 0 | AU180: 0 | AV180: 0 | AW180: -200.8472108 | AX180: 0 | AY180: 0 | AZ180: 0 | BA180: -119.7565433 | BB180: 0 | BC180: 0 | BD180: 0 | BE180: -1228.450438
C181: 523 | D181: 1882800 | E181: 7 | F181: 9.112903226 | G181: 0 | H181: 369 | I181: 195 | J181: 0 | K181: 5.407020873 | L181: 9.112903226 | M181: 9.112903226 | N181: 9.112903226 | O181: 9.112903226 | P181: 9.112903226 | Q181: 9.112903226 | R181: 9.112903226 | S181: 9.112903226 | T181: 18.47098387 | U181: -3000.417835 | V181: 0 | W181: -230.1585078 | X181: -542.7274863 | Y181: -1036.230604 | Z181: -1191.301237 | AA181: -571.8814795 | AB181: 0 | AC181: -207.1093645 | AD181: 3207.22628 | AE181: 0 | AF181: 0 | AG181: 18.49867162 | AH181: 10.23239964 | AI181: 2765.497428 | AJ181: 0 | AK181: 5.684341886e-14 | AL181: 0 | AM181: -546.6846838 | AN181: 0 | AO181: -236.5947624 | AP181: -230.1585078 | AQ181: -13.93741461 | AR181: 0 | AS181: -269.9638075 | AT181: 0 | AU181: 0 | AV181: 0 | AW181: -291.4929062 | AX181: 0 | AY181: 0 | AZ181: 0 | BA181: -269.9638075 | BB181: 0 | BC181: 0 | BD181: 0 | BE181: -1228.450438
C182: 524 | D182: 1886400 | E182: 7 | F182: 8.425806452 | G182: 0 | H182: 442.8 | I182: 195 | J182: 0 | K182: 4.719924099 | L182: 8.425806452 | M182: 8.425806452 | N182: 8.425806452 | O182: 8.425806452 | P182: 8.425806452 | Q182: 8.425806452 | R182: 8.425806452 | S182: 8.425806452 | T182: 18.47098387 | U182: -3584.249746 | V182: 0 | W182: -247.3313411 | X182: -602.8330272 | Y182: -1532.192935 | Z182: -1201.892442 | AA182: -614.5513136 | AB182: 0 | AC182: -222.5624305 | AD182: 3777.478339 | AE182: 0 | AF182: 0 | AG182: 18.49077787 | AH182: 7.315151293 | AI182: 3446.179771 | AJ182: 0 | AK182: -5.684341886e-14 | AL182: 0 | AM182: -605.6620312 | AN182: 0 | AO182: -397.6118786 | AP182: -247.3313411 | AQ182: -21.81916054 | AR182: 0 | AS182: -381.6865224 | AT182: 0 | AU182: 0 | AV182: 0 | AW182: -382.0756153 | AX182: 0 | AY182: 0 | AZ182: 0 | BA182: -381.6865224 | BB182: 0 | BC182: 0 | BD182: 0 | BE182: -1228.450438
C183: 525 | D183: 1890000 | E183: 7 | F183: 7.75483871 | G183: 0 | H183: 492 | I183: 195 | J183: 0 | K183: 4.048956357 | L183: 7.75483871 | M183: 7.75483871 | N183: 7.75483871 | O183: 7.75483871 | P183: 7.75483871 | Q183: 7.75483871 | R183: 7.75483871 | S183: 7.75483871 | T183: 18.47098387 | U183: -4097.439656 | V183: 0 | W183: -263.8773223 | X183: -635.9899872 | Y183: -1988.108243 | Z183: -1209.464104 | AA183: -655.66359 | AB183: 0 | AC183: -237.4514201 | AD183: 4299.145059 | AE183: 0 | AF183: 0 | AG183: 18.48513462 | AH183: 5.22960794 | AI183: 3980.402516 | AJ183: 0 | AK183: 3.410605132e-13 | AL183: 0 | AM183: -638.0124445 | AN183: 0 | AO183: -511.9850093 | AP183: -263.8773223 | AQ183: -28.07303562 | AR183: 0 | AS183: -490.4724005 | AT183: 0 | AU183: 0 | AV183: 0 | AW183: -490.4731926 | AX183: 0 | AY183: 0 | AZ183: 0 | BA183: -490.4724005 | BB183: 0 | BC183: 0 | BD183: 0 | BE183: -1228.450438
C184: 526 | D184: 1893600 | E184: 7 | F184: 6.896774194 | G184: 0 | H184: 410 | I184: 0 | J184: 0 | K184: 3.190891841 | L184: 6.896774194 | M184: 6.896774194 | N184: 6.896774194 | O184: 6.896774194 | P184: 6.896774194 | Q184: 6.896774194 | R184: 6.896774194 | S184: 6.896774194 | T184: 17.66567707 | U184: -4479.026575 | V184: 0 | W184: -284.951747 | X184: -667.7361289 | Y184: -2311.461607 | Z184: -1214.877092 | AA184: -708.0278207 | AB184: 0 | AC184: -256.415354 | AD184: 0 | AE184: 0 | AF184: 0 | AG184: 18.48110025 | AH184: 3.738651207 | AI184: 4511.2713 | AJ184: 0 | AK184: -5025.114431 | AL184: 0 | AM184: -669.1819853 | AN184: 0 | AO184: -592.5947111 | AP184: -284.951747 | AQ184: -32.49296581 | AR184: 0 | AS184: -567.6931957 | AT184: 0 | AU184: 0 | AV184: 0 | AW184: -567.6931957 | AX184: 0 | AY184: 0 | AZ184: 0 | BA184: -567.6931957 | BB184: 0 | BC184: 0 | BD184: 0 | BE184: -1228.450438
C185: 527 | D185: 1897200 | E185: 7 | F185: 6.541935484 | G185: 0 | H185: 410 | I185: 0 | J185: 0 | K185: 2.836053131 | L185: 6.541935484 | M185: 6.541935484 | N185: 6.541935484 | O185: 6.541935484 | P185: 6.541935484 | Q185: 6.541935484 | R185: 6.541935484 | S185: 6.541935484 | T185: 17 | U185: -1357.396949 | V185: 0 | W185: -257.6455108 | X185: -556.6867922 | Y185: -743.3880694 | Z185: 200.3234231 | AA185: -640.1792282 | AB185: 0 | AC185: -231.8436912 | AD185: 1425.877488 | AE185: 0 | AF185: 0 | AG185: 18.06488247 | AH185: 393.5423803 | AI185: 634.2979708 | AJ185: 0 | AK185: -5.684341886e-14 | AL185: 0 | AM185: -708.8822688 | AN185: 0 | AO185: -636.810023 | AP185: -257.6455108 | AQ185: -34.91736581 | AR185: 0 | AS185: -610.050529 | AT185: 0 | AU185: 0 | AV185: 0 | AW185: -610.050529 | AX185: 0 | AY185: 0 | AZ185: 0 | BA185: -610.050529 | BB185: 0 | BC185: 0 | BD185: 0 | BE185: -1228.450438
C186: 528 | D186: 1900800 | E186: 8 | F186: 6.370967742 | G186: 0 | H186: 410 | I186: 0 | J186: 0 | K186: 2.665085389 | L186: 6.370967742 | M186: 6.370967742 | N186: 6.370967742 | O186: 6.370967742 | P186: 6.370967742 | Q186: 6.370967742 | R186: 6.370967742 | S186: 6.370967742 | T186: 17 | U186: -2328.047443 | V186: 0 | W186: -303.298371 | X186: -548.6377384 | Y186: -1412.103109 | Z186: -64.00822511 | AA186: -753.6142061 | AB186: 0 | AC186: -272.9246617 | AD186: 2663.242525 | AE186: 0 | AF186: 0 | AG186: 17.76128539 | AH186: 281.3437856 | AI186: 2097.776756 | AJ186: 0 | AK186: -1.705302566e-13 | AL186: 0 | AM186: -657.4424153 | AN186: 0 | AO186: -679.4113634 | AP186: -303.298371 | AQ186: -37.25326903 | AR186: 0 | AS186: -650.8617118 | AT186: 0 | AU186: 0 | AV186: 0 | AW186: -650.8617118 | AX186: 0 | AY186: 0 | AZ186: 0 | BA186: -650.8617118 | BB186: 0 | BC186: 0 | BD186: 0 | BE186: -1085.439886
C188: 576 | D188: 2073600 | E188: 8 | F188: 6.370967742 | G188: 0 | H188: 410 | I188: 0 | J188: 0 | K188: 2.665085389 | L188: 6.370967742 | M188: 6.370967742 | N188: 6.370967742 | O188: 6.370967742 | P188: 6.370967742 | Q188: 6.370967742 | R188: 6.370967742 | S188: 6.370967742 | T188: 17 | U188: -1639.066342 | V188: 0 | W188: -261.90625 | X188: -514.6932414 | Y188: -1046.927593 | Z188: 184.460743 | AA188: -650.7660098 | AB188: 0 | AC188: -235.6777402 | AD188: 1755.683171 | AE188: 0 | AF188: 0 | AG188: 17.97365213 | AH188: 359.8269201 | AI188: 991.4556326 | AJ188: 0 | AK188: 5.684341886e-14 | AL188: 0 | AM188: -653.8498667 | AN188: 0 | AO188: -675.7246499 | AP188: -261.90625 | AQ188: -37.05112032 | AR188: 0 | AS188: -647.3299183 | AT188: 0 | AU188: 0 | AV188: 0 | AW188: -647.3299183 | AX188: 0 | AY188: 0 | AZ188: 0 | BA188: -647.3299183 | BB188: 0 | BC188: 0 | BD188: 0 | BE188: -1121.907577
C189: 577 | D189: 2077200 | E189: 8 | F189: 6.009677419 | G189: 0 | H189: 410 | I189: 0 | J189: 0 | K189: 2.303795066 | L189: 6.009677419 | M189: 6.009677419 | N189: 6.009677419 | O189: 6.009677419 | P189: 6.009677419 | Q189: 6.009677419 | R189: 6.009677419 | S189: 6.009677419 | T189: 17 | U189: -2721.299667 | V189: 0 | W189: -270.7630215 | X189: -565.985662 | Y189: -1696.56724 | Z189: -187.9837431 | AA189: -672.7726853 | AB189: 0 | AC189: -243.6475534 | AD189: 2970.479331 | AE189: 0 | AF189: 0 | AG189: 17.69606475 | AH189: 257.2405742 | AI189: 2371.089058 | AJ189: 0 | AK189: 1.98951966e-13 | AL189: 0 | AM189: -665.4688529 | AN189: 0 | AO189: -724.4031219 | AP189: -270.7630215 | AQ189: -39.7202429 | AR189: 0 | AS189: -693.9628645 | AT189: 0 | AU189: 0 | AV189: 0 | AW189: -693.9628645 | AX189: 0 | AY189: 0 | AZ189: 0 | BA189: -693.9628645 | BB189: 0 | BC189: 0 | BD189: 0 | BE189: -1121.907577
C190: 578 | D190: 2080800 | E190: 8 | F190: 5.341935484 | G190: 0 | H190: 410 | I190: 0 | J190: 0 | K190: 1.636053131 | L190: 5.341935484 | M190: 5.341935484 | N190: 5.341935484 | O190: 5.341935484 | P190: 5.341935484 | Q190: 5.341935484 | R190: 5.341935484 | S190: 5.341935484 | T190: 17 | U190: -2906.487508 | V190: 0 | W190: -287.0969597 | X190: -611.032739 | Y190: -1765.182018 | Z190: -243.1757915 | AA190: -713.3580924 | AB190: 0 | AC190: -258.345735 | AD190: 3284.289828 | AE190: 0 | AF190: 0 | AG190: 17.49761728 | AH190: 183.9015074 | AI190: 2875.364925 | AJ190: 0 | AK190: 2.273736754e-13 | AL190: 0 | AM190: -682.1533577 | AN190: 0 | AO190: -658.4560081 | AP190: -287.0969597 | AQ190: -36.10425161 | AR190: 0 | AS190: -630.7869247 | AT190: 0 | AU190: 0 | AV190: 0 | AW190: -630.7869247 | AX190: 0 | AY190: 0 | AZ190: 0 | BA190: -630.7869247 | BB190: 0 | BC190: 0 | BD190: 0 | BE190: -910.838742
C191: 579 | D191: 2084400 | E191: 8 | F191: 4.764516129 | G191: 0 | H191: 410 | I191: 0 | J191: 0 | K191: 1.058633776 | L191: 4.764516129 | M191: 4.764516129 | N191: 4.764516129 | O191: 4.764516129 | P191: 4.764516129 | Q191: 4.764516129 | R191: 4.764516129 | S191: 4.764516129 | T191: 17 | U191: -3458.822105 | V191: 0 | W191: -301.3674543 | X191: -662.0792577 | Y191: -2061.849467 | Z191: -433.5259253 | AA191: -748.8164018 | AB191: 0 | AC191: -271.187116 | AD191: 3937.354277 | AE191: 0 | AF191: 0 | AG191: 17.35574702 | AH191: 131.4713455 | AI191: 3576.145809 | AJ191: 0 | AK191: 1.705302566e-13 | AL191: 0 | AM191: -712.9234491 | AN191: 0 | AO191: -674.3363956 | AP191: -301.3674543 | AQ191: -36.975 | AR191: 0 | AS191: -646 | AT191: 0 | AU191: 0 | AV191: 0 | AW191: -646 | AX191: 0 | AY191: 0 | AZ191: 0 | BA191: -646 | BB191: 0 | BC191: 0 | BD191: 0 | BE191: -910.838742
C192: 580 | D192: 2088000 | E192: 8 | F192: 4.832258065 | G192: 0 | H192: 410 | I192: 0 | J192: 0 | K192: 1.126375712 | L192: 4.832258065 | M192: 4.832258065 | N192: 4.832258065 | O192: 4.832258065 | P192: 4.832258065 | Q192: 4.832258065 | R192: 4.832258065 | S192: 4.832258065 | T192: 17 | U192: -3891.952898 | V192: 0 | W192: -299.9626694 | X192: -703.4578418 | Y192: -2318.924988 | Z192: -569.6073995 | AA192: -745.3258921 | AB192: 0 | AC192: -269.9230127 | AD192: 4403.212825 | AE192: 0 | AF192: 0 | AG192: 17.25432385 | AH192: 93.98897781 | AI192: 4118.66873 | AJ192: 0 | AK192: 1.705302566e-13 | AL192: 0 | AM192: -739.8063979 | AN192: 0 | AO192: -697.1401407 | AP192: -299.9626694 | AQ192: -38.22536774 | AR192: 0 | AS192: -667.8455054 | AT192: 0 | AU192: 0 | AV192: 0 | AW192: -667.8455054 | AX192: 0 | AY192: 0 | AZ192: 0 | BA192: -667.8455054 | BB192: 0 | BC192: 0 | BD192: 0 | BE192: -910.838742
C193: 581 | D193: 2091600 | E193: 8 | F193: 4.477419355 | G193: 0 | H193: 410 | I193: 0 | J193: 0 | K193: 0.7715370019 | L193: 4.477419355 | M193: 4.477419355 | N193: 4.477419355 | O193: 4.477419355 | P193: 4.477419355 | Q193: 4.477419355 | R193: 4.477419355 | S193: 4.477419355 | T193: 17 | U193: -4290.488379 | V193: 0 | W193: -308.5358333 | X193: -711.1744313 | Y193: -2603.885952 | Z193: -666.8921622 | AA193: -766.6278798 | AB193: 0 | AC193: -277.6376202 | AD193: 4857.561078 | AE193: 0 | AF193: 0 | AG193: 17.18181634 | AH193: 67.19280094 | AI193: 4567.011556 | AJ193: 0 | AK193: 3.97903932e-13 | AL193: 0 | AM193: -737.1600452 | AN193: 0 | AO193: -739.1955288 | AP193: -308.5358333 | AQ193: -40.53133548 | AR193: 0 | AS193: -708.1336774 | AT193: 0 | AU193: 0 | AV193: 0 | AW193: -708.1336774 | AX193: 0 | AY193: 0 | AZ193: 0 | BA193: -708.1336774 | BB193: 0 | BC193: 0 | BD193: 0 | BE193: -910.838742
C194: 582 | D194: 2095200 | E194: 8 | F194: 5.119354839 | G194: 15.14117352 | H194: 328 | I194: 0 | J194: 0 | K194: 1.530604048 | L194: 5.317117957 | M194: 5.286979072 | N194: 5.236136407 | O194: 5.186528448 | P194: 5.175059321 | Q194: 5.186528448 | R194: 5.236136407 | S194: 5.286979072 | T194: 17 | U194: -4596.482178 | V194: 0 | W194: -293.1216317 | X194: -734.6578809 | Y194: -2832.968137 | Z194: -735.7345284 | AA194: -728.3277687 | AB194: 0 | AC194: -263.7670684 | AD194: 5208.74621 | AE194: 0 | AF194: 0 | AG194: 17.13052754 | AH194: 48.23081584 | AI194: 4960.637009 | AJ194: 0 | AK194: 5.684341886e-14 | AL194: 0 | AM194: -753.3102863 | AN194: 0 | AO194: -775.9381186 | AP194: -293.1216317 | AQ194: -42.54599355 | AR194: 0 | AS194: -743.3323011 | AT194: 0 | AU194: 0 | AV194: 0 | AW194: -743.3323011 | AX194: 0 | AY194: 0 | AZ194: 0 | BA194: -743.3323011 | BB194: 0 | BC194: 0 | BD194: 0 | BE194: -910.838742
C195: 583 | D195: 2098800 | E195: 8 | F195: 6.635483871 | G195: 239.1407557 | H195: 393.6 | I195: 0 | J195: 0 | K195: 4.735278305 | L195: 9.684160634 | M195: 9.219545604 | N195: 8.435765222 | O195: 7.671018823 | P195: 7.494213059 | Q195: 7.671018823 | R195: 8.435765222 | S195: 9.219545604 | T195: 18.77821774 | U195: -4599.8408 | V195: 0 | W195: -256.1081989 | X195: -704.3266421 | Y195: -2865.606808 | Z195: -773.7991509 | AA195: -636.3594252 | AB195: 0 | AC195: -230.4603329 | AD195: 16097.17521 | AE195: 0 | AF195: 0 | AG195: 17.10245744 | AH195: 37.74627205 | AI195: 5213.288252 | AJ195: 0 | AK195: 11096.07871 | AL195: 0 | AM195: -718.9243377 | AN195: 0 | AO195: -772.3211847 | AP195: -256.1081989 | AQ195: -42.34767097 | AR195: 0 | AS195: -739.8673548 | AT195: 0 | AU195: 0 | AV195: 0 | AW195: -739.8673548 | AX195: 0 | AY195: 0 | AZ195: 0 | BA195: -739.8673548 | BB195: 0 | BC195: 0 | BD195: 0 | BE195: -910.838742
C196: 584 | D196: 2102400 | E196: 8 | F196: 8.083870968 | G196: 677.4404046 | H196: 196.8 | I196: 0 | J196: 0 | K196: 9.605806452 | L196: 16.91043776 | M196: 15.56527856 | N196: 13.29606787 | O196: 11.08196461 | P196: 10.57007437 | Q196: 11.08196461 | R196: 13.29606787 | S196: 15.56527856 | T196: 18.77821774 | U196: -8526.049488 | V196: 0 | W196: -264.2106937 | X196: -738.7178209 | Y196: -5047.221416 | Z196: -2475.899558 | AA196: -656.4919275 | AB196: 0 | AC196: -237.7514062 | AD196: 9550.773856 | AE196: 0 | AF196: 0 | AG196: 17.61267039 | AH196: -431.0813458 | AI196: 10242.07061 | AJ196: 0 | AK196: -4.831690603e-13 | AL196: 0 | AM196: -572.0048209 | AN196: 0 | AO196: -794.3947186 | AP196: -264.2106937 | AQ196: -43.558 | AR196: 0 | AS196: -761.0133333 | AT196: 0 | AU196: 0 | AV196: 0 | AW196: -761.0133333 | AX196: 0 | AY196: 0 | AZ196: 0 | BA196: -761.0133333 | BB196: 0 | BC196: 0 | BD196: 0 | BE196: -910.838742
C197: 585 | D197: 2106000 | E197: 8 | F197: 10.21935484 | G197: 983.5974636 | H197: 123 | I197: 0 | J197: 0 | K197: 14.20251423 | L197: 23.20141402 | M197: 21.22296228 | N197: 17.88542141 | O197: 14.6289322 | P197: 13.87604724 | Q197: 14.6289322 | R197: 17.88542141 | S197: 21.22296228 | T197: 18.77821774 | U197: -6922.129189 | V197: 0 | W197: -211.8532985 | X197: -540.6687806 | Y197: -4217.016452 | Z197: -1952.590658 | AA197: -526.3979983 | AB197: 0 | AC197: -190.637324 | AD197: 7655.101094 | AE197: 0 | AF197: 0 | AG197: 18.00311825 | AH197: -286.9408097 | AI197: 8441.126613 | AJ197: 0 | AK197: -3.410605132e-13 | AL197: 0 | AM197: -429.6995548 | AN197: 0 | AO197: -742.365166 | AP197: -211.8532985 | AQ197: -40.80826729 | AR197: 0 | AS197: -716.0117397 | AT197: 0 | AU197: 0 | AV197: 0 | AW197: -719.6633351 | AX197: 0 | AY197: 0 | AZ197: 0 | BA197: -716.0117397 | BB197: 0 | BC197: 0 | BD197: 0 | BE197: -910.838742
C198: 586 | D198: 2109600 | E198: 8 | F198: 12.02903226 | G198: 1141.452506 | H198: 123 | I198: 0 | J198: 0 | K198: 17.20371917 | L198: 27.02284806 | M198: 24.73780681 | N198: 20.88306601 | O198: 17.121937 | P198: 16.25238169 | Q198: 17.121937 | R198: 20.88306601 | S198: 24.73780681 | T198: 18.77821774 | U198: -4928.682068 | V198: 0 | W198: -167.110898 | X198: -284.8649381 | Y198: -2919.708076 | Z198: -1556.998156 | AA198: -415.2252658 | AB198: 0 | AC198: -150.3756355 | AD198: 5378.43829 | AE198: 0 | AF198: 0 | AG198: 18.29817619 | AH198: -177.9785596 | AI198: 6350.813863 | AJ198: 0 | AK198: 3.694822226e-13 | AL198: 0 | AM198: -216.0349136 | AN198: 0 | AO198: -468.9334286 | AP198: -167.110898 | AQ198: -27.30407016 | AR198: 0 | AS198: -523.9477651 | AT198: 0 | AU198: 0 | AV198: 0 | AW198: -580.3019218 | AX198: 0 | AY198: 0 | AZ198: 0 | BA198: -523.9477651 | BB198: 0 | BC198: 0 | BD198: 0 | BE198: -910.838742
C199: 587 | D199: 2113200 | E199: 8 | F199: 13.43548387 | G199: 1366.194621 | H199: 123 | I199: 0 | J199: 0 | K199: 20.46114168 | L199: 31.55445033 | M199: 28.7931395 | N199: 24.13495775 | O199: 19.58989922 | P199: 18.5391031 | Q199: 19.58989922 | R199: 24.13495775 | S199: 28.7931395 | T199: 18.77821774 | U199: -3453.73734 | V199: 0 | W199: -132.2762071 | X199: -112.2483662 | Y199: -1741.721105 | Z199: -1467.491662 | AA199: -328.6705052 | AB199: 0 | AC199: -119.0294526 | AD199: 3669.25786 | AE199: 0 | AF199: 0 | AG199: 18.52250277 | AH199: -95.18789996 | AI199: 4717.546833 | AJ199: 0 | AK199: -2.273736754e-13 | AL199: 0 | AM199: -75.43614845 | AN199: 0 | AO199: -126.186138 | AP199: -132.2762071 | AQ199: -11.54908087 | AR199: 0 | AS199: -338.2398188 | AT199: 0 | AU199: 0 | AV199: 0 | AW199: -502.1719899 | AX199: 0 | AY199: 0 | AZ199: 0 | BA199: -338.2398188 | BB199: 0 | BC199: 0 | BD199: 0 | BE199: -1121.907577
C200: 588 | D200: 2116800 | E200: 8 | F200: 13.89032258 | G200: 1272.75787 | H200: 123 | I200: 0 | J200: 0 | K200: 20.06927261 | L200: 30.57972071 | M200: 28.03627455 | N200: 23.74561868 | O200: 19.55916072 | P200: 18.59127136 | Q200: 19.55916072 | R200: 23.74561868 | S200: 28.03627455 | T200: 18.77821774 | U200: -1595.446405 | V200: 0 | W200: -120.6734786 | X200: 62.34318668 | Y200: -290.5012074 | Z200: -1246.614905 | AA200: -299.8408712 | AB200: 0 | AC200: -108.5886753 | AD200: 1724.078145 | AE200: 0 | AF200: 0 | AG200: 18.68700502 | AH200: -34.34946592 | AI200: 2599.827737 | AJ200: 0 | AK200: 4.263256415e-14 | AL200: 0 | AM200: 75.62722824 | AN200: 0 | AO200: 274.0723132 | AP200: -120.6734786 | AQ200: 8.179565353 | AR200: 0 | AS200: -58.9325617 | AT200: 0 | AU200: 0 | AV200: 0 | AW200: -301.4020193 | AX200: 0 | AY200: 0 | AZ200: 0 | BA200: -58.9325617 | BB200: 0 | BC200: 0 | BD200: 0 | BE200: -1121.907577
C201: 589 | D201: 2120400 | E201: 8 | F201: 14.57419355 | G201: 1208.527594 | H201: 123 | I201: 0 | J201: 0 | K201: 20.27438963 | L201: 30.45527091 | M201: 28.03501196 | N201: 23.95216623 | O201: 19.96847178 | P201: 19.04746039 | Q201: 19.96847178 | R201: 23.95216623 | S201: 28.03501196 | T201: 18.77821774 | U201: -471.3741348 | V201: 0 | W201: -103.9101534 | X201: 63.01374235 | Y201: 665.5286811 | Z201: -1096.006405 | AA201: -258.1885537 | AB201: 0 | AC201: -93.50410739 | AD201: 511.4928458 | AE201: 0 | AF201: 0 | AG201: 18.79916734 | AH201: 7.134235198 | AI201: 1062.405139 | AJ201: 0 | AK201: 0 | AL201: 0 | AM201: 60.25470449 | AN201: 0 | AO201: 519.2193342 | AP201: -103.9101534 | AQ201: 20.53550896 | AR201: 0 | AS201: 124.9371617 | AT201: 0 | AU201: 0 | AV201: 0 | AW201: -155.9788508 | AX201: 0 | AY201: 0 | AZ201: 0 | BA201: 124.9371617 | BB201: 0 | BC201: 0 | BD201: 0 | BE201: -1121.907577
C202: 590 | D202: 2124000 | E202: 8 | F202: 15.28709677 | G202: 946.047834 | H202: 123 | I202: 0 | J202: 0 | K202: 18.88696078 | L202: 27.62200595 | M202: 25.74217918 | N202: 22.57101327 | O202: 19.47685862 | P202: 18.76150465 | Q202: 19.47685862 | R202: 22.57101327 | S202: 25.74217918 | T202: 18.95797909 | U202: 103.0372478 | V202: 0 | W202: -90.63942406 | X202: 59.18351706 | Y202: 1351.535995 | Z202: -1217.04284 | AA202: -225.21439 | AB202: 0 | AC202: -81.56237063 | AD202: 0 | AE202: 0 | AF202: 0 | AG202: 18.88265798 | AH202: -26.20411735 | AI202: 99.01663891 | AJ202: 0 | AK202: 35.61974436 | AL202: 0 | AM202: 69.31749075 | AN202: 0 | AO202: 806.0751271 | AP202: -90.63942406 | AQ202: 34.61671843 | AR202: 0 | AS202: 322.3945425 | AT202: 0 | AU202: 0 | AV202: 0 | AW202: -16.85538108 | AX202: 0 | AY202: 0 | AZ202: 0 | BA202: 322.3945425 | BB202: 0 | BC202: 0 | BD202: 0 | BE202: -1121.907577
C203: 591 | D203: 2127600 | E203: 8 | F203: 14.58709677 | G203: 629.0949014 | H203: 123 | I203: 0 | J203: 0 | K203: 15.70601202 | L203: 22.73321042 | M203: 21.49175154 | N203: 19.39747768 | O203: 17.35406293 | P203: 16.88163506 | Q203: 17.35406293 | R203: 19.39747768 | S203: 21.49175154 | T203: 18.96061082 | U203: 142.3968645 | V203: 0 | W203: -107.5338725 | X203: -2.045868848 | Y203: 1374.700077 | Z203: -1122.723472 | AA203: -267.192513 | AB203: 0 | AC203: -96.76493043 | AD203: 0 | AE203: 0 | AF203: 0 | AG203: 18.96144705 | AH203: -0.2247306131 | AI203: 0 | AJ203: 0 | AK203: -3.628692063 | AL203: 0 | AM203: -1.958958303 | AN203: 0 | AO203: 750.0365087 | AP203: -107.5338725 | AQ203: 32.26193586 | AR203: 0 | AS203: 302.4125074 | AT203: 0 | AU203: 0 | AV203: 0 | AW203: -11.41920371 | AX203: 0 | AY203: 0 | AZ203: 0 | BA203: 302.4125074 | BB203: 0 | BC203: 0 | BD203: 0 | BE203: -1121.907577
C204: 592 | D204: 2131200 | E204: 8 | F204: 13.37096774 | G204: 261.2389512 | H204: 147.6 | I204: 0 | J204: 0 | K204: 11.63805819 | L204: 16.70210451 | M204: 16.19444288 | N204: 15.33804522 | O204: 14.50244504 | P204: 14.30925822 | Q204: 14.50244504 | R204: 15.33804522 | S204: 16.19444288 | T204: 18.91141335 | U204: 238.8320188 | V204: 0 | W204: -136.1028568 | X204: -138.3299534 | Y204: 1537.861208 | Z204: -1024.596379 | AA204: -338.178692 | AB204: 0 | AC204: -122.4728838 | AD204: 0 | AE204: 0 | AF204: 0 | AG204: 18.98554149 | AH204: 26.80345818 | AI204: 0 | AJ204: 0 | AK204: -7.720616331 | AL204: 0 | AM204: -148.6957114 | AN204: 0 | AO204: 741.2386475 | AP204: -136.1028568 | AQ204: 32.21371709 | AR204: 0 | AS204: 314.3667667 | AT204: 0 | AU204: 0 | AV204: 0 | AW204: 15.90768147 | AX204: 0 | AY204: 0 | AZ204: 0 | BA204: 314.3667667 | BB204: 0 | BC204: 0 | BD204: 0 | BE204: -1121.907577
C205: 593 | D205: 2134800 | E205: 8 | F205: 12.37419355 | G205: 14.27099012 | H205: 246 | I205: 195 | J205: 0 | K205: 8.774240987 | L205: 12.55304377 | M205: 12.52578719 | N205: 12.47980682 | O205: 12.43494307 | P205: 12.42457078 | Q205: 12.43494307 | R205: 12.47980682 | S205: 12.52578719 | T205: 18.77821774 | U205: -77.62528216 | V205: 0 | W205: -157.4496883 | X205: -309.6560914 | Y205: 1297.367283 | Z205: -907.8867853 | AA205: -391.2197796 | AB205: 0 | AC205: -141.6819443 | AD205: 107.0184358 | AE205: 0 | AF205: 0 | AG205: 18.95315285 | AH205: 64.64050189 | AI205: 8.557176314 | AJ205: 0 | AK205: 0 | AL205: 0 | AM205: -334.6546494 | AN205: 0 | AO205: 553.2386684 | AP205: -157.4496883 | AQ205: 23.76186548 | AR205: 0 | AS205: 221.4191106 | AT205: 0 | AU205: 0 | AV205: 0 | AW205: -11.30881337 | AX205: 0 | AY205: 0 | AZ205: 0 | BA205: 221.4191106 | BB205: 0 | BC205: 0 | BD205: 0 | BE205: -1142.567125
C206: 594 | D206: 2138400 | E206: 8 | F206: 11.16774194 | G206: 0 | H206: 246 | I206: 195 | J206: 0 | K206: 7.461859583 | L206: 11.16774194 | M206: 11.16774194 | N206: 11.16774194 | O206: 11.16774194 | P206: 11.16774194 | Q206: 11.16774194 | R206: 11.16774194 | S206: 11.16774194 | T206: 18.77821774 | U206: -1210.79798 | V206: 0 | W206: -187.1025781 | X206: -444.3861426 | Y206: 395.8806112 | Z206: -975.1898707 | AA206: -464.8991697 | AB206: 0 | AC206: -168.3652558 | AD206: 1356.632551 | AE206: 0 | AF206: 0 | AG206: 18.90375562 | AH206: 46.39417778 | AI206: 743.5102062 | AJ206: 0 | AK206: -8.526512829e-14 | AL206: 0 | AM206: -462.328261 | AN206: 0 | AO206: 244.5697839 | AP206: -187.1025781 | AQ206: 9.052870812 | AR206: 0 | AS206: 29.74199765 | AT206: 0 | AU206: 0 | AV206: 0 | AW206: -124.5321482 | AX206: 0 | AY206: 0 | AZ206: 0 | BA206: 29.74199765 | BB206: 0 | BC206: 0 | BD206: 0 | BE206: -1143.626085
C207: 595 | D207: 2142000 | E207: 8 | F207: 10.1516129 | G207: 0 | H207: 369 | I207: 195 | J207: 0 | K207: 6.44573055 | L207: 10.1516129 | M207: 10.1516129 | N207: 10.1516129 | O207: 10.1516129 | P207: 10.1516129 | Q207: 10.1516129 | R207: 10.1516129 | S207: 10.1516129 | T207: 18.77821774 | U207: -2439.910962 | V207: 0 | W207: -212.2283496 | X207: -511.6438428 | Y207: -698.589938 | Z207: -1017.448832 | AA207: -527.3298985 | AB207: 0 | AC207: -190.9748157 | AD207: 2563.098354 | AE207: 0 | AF207: 0 | AG207: 18.86796488 | AH207: 33.167323 | AI207: 1951.878105 | AJ207: 0 | AK207: -1.421085472e-13 | AL207: 0 | AM207: -524.4707118 | AN207: 0 | AO207: -133.917032 | AP207: -212.2283496 | AQ207: -9.152119058 | AR207: 0 | AS207: -213.2224506 | AT207: 0 | AU207: 0 | AV207: 0 | AW207: -277.2795833 | AX207: 0 | AY207: 0 | AZ207: 0 | BA207: -213.2224506 | BB207: 0 | BC207: 0 | BD207: 0 | BE207: -1137.864336
C208: 596 | D208: 2145600 | E208: 8 | F208: 9.029032258 | G208: 0 | H208: 442.8 | I208: 195 | J208: 0 | K208: 5.323149905 | L208: 9.029032258 | M208: 9.029032258 | N208: 9.029032258 | O208: 9.029032258 | P208: 9.029032258 | Q208: 9.029032258 | R208: 9.029032258 | S208: 9.029032258 | T208: 18.77821774 | U208: -3289.178425 | V208: 0 | W208: -239.8562286 | X208: -562.7150195 | Y208: -1450.784748 | Z208: -1035.822429 | AA208: -595.977686 | AB208: 0 | AC208: -215.8359105 | AD208: 3440.710674 | AE208: 0 | AF208: 0 | AG208: 18.84237805 | AH208: 23.71134769 | AI208: 2970.656469 | AJ208: 0 | AK208: 0 | AL208: 0 | AM208: -571.8849591 | AN208: 0 | AO208: -390.7040314 | AP208: -239.8562286 | AQ208: -21.54567629 | AR208: 0 | AS208: -380.047036 | AT208: 0 | AU208: 0 | AV208: 0 | AW208: -384.3919185 | AX208: 0 | AY208: 0 | AZ208: 0 | BA208: -380.047036 | BB208: 0 | BC208: 0 | BD208: 0 | BE208: -1121.907577
... 880 more rows

Sheet Importado (hidden)
A1: Caso 1 | Y1: Caso 2 | AW1: Caso 3 | BU1: Caso 4 | CS1: Caso 5 | DQ1: Caso 6 | EO1: Caso 7 | FM1: Caso 8 | GK1: Caso 9 | HI1: Caso 10 | IF1: end
F3: Rad Ventanas: Sol Incidente*FS*FAV*FAR [W] | AD3: Rad Ventanas: Sol Incidente*FS*FAV*FAR [W] | BB3: Rad Ventanas: Sol Incidente*FS*FAV*FAR [W] | BZ3: Rad Ventanas: Sol Incidente*FS*FAV*FAR [W] | CX3: Rad Ventanas: Sol Incidente*FS*FAV*FAR [W] | DV3: Rad Ventanas: Sol Incidente*FS*FAV*FAR [W] | ET3: Rad Ventanas: Sol Incidente*FS*FAV*FAR [W] | FR3: Rad Ventanas: Sol Incidente*FS*FAV*FAR [W] | GP3: Rad Ventanas: Sol Incidente*FS*FAV*FAR [W] | HN3: Rad Ventanas: Sol Incidente*FS*FAV*FAR [W]
B4: Mes | C4: Tiempo [hrs] | D4: Tiempo [s] | E4: T° exterior | F4: Difuso | G4: Directo | H4: Qgen Pers [W/m2] | I4: Qgen Ilum [W/m2] | J4: Qgen Equip [W/m2] | K4: TsolH | L4: TsolN | M4: TsolNE | N4: TsolE | O4: TsolSE | P4: TsolS | Q4: TsolSO | R4: TsolO | S4: TsolNO | T4: Clima [0, 1 o 2] | U4: N [RAH] | V4: G total [W/m2] | Z4: Mes | AA4: Tiempo [hrs] | AB4: Tiempo [s] | AC4: T° exterior | AD4: Difuso | AE4: Directo | AF4: Qgen Pers [W/m2] | AG4: Qgen Ilum [W/m2] | AH4: Qgen Equip [W/m2] | AI4: TsolH | AJ4: TsolN | AK4: TsolNE | AL4: TsolE | AM4: TsolSE | AN4: TsolS | AO4: TsolSO | AP4: TsolO | AQ4: TsolNO | AR4: Clima [0, 1 o 2] | AS4: N [RAH] | AT4: G total [W/m2] | AX4: Mes | AY4: Tiempo [hrs] | AZ4: Tiempo [s] | BA4: T° exterior | BB4: Difuso | BC4: Directo | BD4: Qgen Pers [W/m2] | BE4: Qgen Ilum [W/m2] | BF4: Qgen Equip [W/m2] | BG4: TsolH | BH4: TsolN | BI4: TsolNE | BJ4: TsolE | BK4: TsolSE | BL4: TsolS | BM4: TsolSO | BN4: TsolO | BO4: TsolNO | BP4: Clima [0, 1 o 2] | BQ4: N [RAH] | BR4: G total [W/m2] | BV4: Mes | BW4: Tiempo [hrs] | BX4: Tiempo [s] | BY4: T° exterior | BZ4: Difuso | CA4: Directo | CB4: Qgen Pers [W/m2] | CC4: Qgen Ilum [W/m2] | CD4: Qgen Equip [W/m2] | CE4: TsolH | CF4: TsolN | CG4: TsolNE | CH4: TsolE | CI4: TsolSE | CJ4: TsolS | CK4: TsolSO | CL4: TsolO | CM4: TsolNO | CN4: Clima [0, 1 o 2] | CO4: N [RAH] | CP4: G total [W/m2] | CT4: Mes | CU4: Tiempo [hrs] | CV4: Tiempo [s] | CW4: T° exterior | CX4: Difuso | CY4: Directo | CZ4: Qgen Pers [W/m2] | DA4: Qgen Ilum [W/m2] | DB4: Qgen Equip [W/m2] | DC4: TsolH | DD4: TsolN | DE4: TsolNE | DF4: TsolE | DG4: TsolSE | DH4: TsolS | DI4: TsolSO | DJ4: TsolO | DK4: TsolNO | DL4: Clima [0, 1 o 2] | DM4: N [RAH] | DN4: G total [W/m2] | DR4: Mes | DS4: Tiempo [hrs] | DT4: Tiempo [s] | DU4: T° exterior | DV4: Difuso | DW4: Directo | DX4: Qgen Pers [W/m2] | DY4: Qgen Ilum [W/m2] | DZ4: Qgen Equip [W/m2] | EA4: TsolH | EB4: TsolN | EC4: TsolNE | ED4: TsolE | EE4: TsolSE | EF4: TsolS | EG4: TsolSO | EH4: TsolO | EI4: TsolNO | EJ4: Clima [0, 1 o 2] | EK4: N [RAH] | EL4: G total [W/m2] | EP4: Mes | EQ4: Tiempo [hrs] | ER4: Tiempo [s] | ES4: T° exterior | ET4: Difuso | EU4: Directo | EV4: Qgen Pers [W/m2] | EW4: Qgen Ilum [W/m2] | EX4: Qgen Equip [W/m2] | EY4: TsolH | EZ4: TsolN | FA4: TsolNE | FB4: TsolE | FC4: TsolSE | FD4: TsolS | FE4: TsolSO | FF4: TsolO | FG4: TsolNO | FH4: Clima [0, 1 o 2] | FI4: N [RAH] | FJ4: G total [W/m2] | FN4: Mes | FO4: Tiempo [hrs] | FP4: Tiempo [s] | FQ4: T° exterior | FR4: Difuso | FS4: Directo | FT4: Qgen Pers [W/m2] | FU4: Qgen Ilum [W/m2] | FV4: Qgen Equip [W/m2] | FW4: TsolH | FX4: TsolN | FY4: TsolNE | FZ4: TsolE | GA4: TsolSE | GB4: TsolS | GC4: TsolSO | GD4: TsolO | GE4: TsolNO | GF4: Clima [0, 1 o 2] | GG4: N [RAH] | GH4: G total [W/m2] | GL4: Mes | GM4: Tiempo [hrs] | GN4: Tiempo [s] | GO4: T° exterior | GP4: Difuso | GQ4: Directo | GR4: Qgen Pers [W/m2] | GS4: Qgen Ilum [W/m2] | GT4: Qgen Equip [W/m2] | GU4: TsolH | GV4: TsolN | GW4: TsolNE | GX4: TsolE | GY4: TsolSE | GZ4: TsolS | HA4: TsolSO | HB4: TsolO | HC4: TsolNO | HD4: Clima [0, 1 o 2] | HE4: N [RAH] | HF4: G total [W/m2] | HJ4: Mes | HK4: Tiempo [hrs] | HL4: Tiempo [s] | HM4: T° exterior | HN4: Difuso | HO4: Directo | HP4: Qgen Pers [W/m2] | HQ4: Qgen Ilum [W/m2] | HR4: Qgen Equip [W/m2] | HS4: TsolH | HT4: TsolN | HU4: TsolNE | HV4: TsolE | HW4: TsolSE | HX4: TsolS | HY4: TsolSO | HZ4: TsolO | IA4: TsolNO | IB4: Clima [0, 1 o 2] | IC4: N [RAH] | ID4: G total [W/m2]
B5: Enero | C5: 0 | D5: 0 | E5: 15.8483871 | F5: 0 | G5: 0 | H5: 3.153846154 | I5: 0 | J5: 0 | K5: 12.14250474 | L5: 15.8483871 | M5: 15.8483871 | N5: 15.8483871 | O5: 15.8483871 | P5: 15.8483871 | Q5: 15.8483871 | R5: 15.8483871 | S5: 15.8483871 | T5: 2 | U5: 0.6699760643 | V5: 0 | Z5: Enero | AA5: 0 | AB5: 0 | AC5: 15.8483871 | AD5: 0 | AE5: 0 | AF5: 3.153846154 | AG5: 0 | AH5: 0 | AI5: 12.14250474 | AJ5: 15.8483871 | AK5: 15.8483871 | AL5: 15.8483871 | AM5: 15.8483871 | AN5: 15.8483871 | AO5: 15.8483871 | AP5: 15.8483871 | AQ5: 15.8483871 | AR5: 0 | AS5: 0.6699760643 | AT5: 0 | AX5: Enero | AY5: 0 | AZ5: 0 | BA5: 15.8483871 | BB5: 0 | BC5: 0 | BD5: 3.153846154 | BE5: 0 | BF5: 0 | BG5: 12.14250474 | BH5: 15.8483871 | BI5: 15.8483871 | BJ5: 15.8483871 | BK5: 15.8483871 | BL5: 15.8483871 | BM5: 15.8483871 | BN5: 15.8483871 | BO5: 15.8483871 | BP5: 2 | BQ5: 0.6672581958 | BR5: 0 | BV5: Enero | BW5: 0 | BX5: 0 | BY5: 15.8483871 | BZ5: 0 | CA5: 0 | CB5: 3.153846154 | CC5: 0 | CD5: 0 | CE5: 12.14250474 | CF5: 15.8483871 | CG5: 15.8483871 | CH5: 15.8483871 | CI5: 15.8483871 | CJ5: 15.8483871 | CK5: 15.8483871 | CL5: 15.8483871 | CM5: 15.8483871 | CN5: 0 | CO5: 0.6672581958 | CP5: 0 | CT5: Enero | CU5: 0 | CV5: 0 | CW5: 15.8483871 | CX5: 0 | CY5: 0 | CZ5: 3.153846154 | DA5: 0 | DB5: 0 | DC5: 12.14250474 | DD5: 15.8483871 | DE5: 15.8483871 | DF5: 15.8483871 | DG5: 15.8483871 | DH5: 15.8483871 | DI5: 15.8483871 | DJ5: 15.8483871 | DK5: 15.8483871 | DL5: 2 | DM5: 0.6672581958 | DN5: 0 | DR5: Enero | DS5: 0 | DT5: 0 | DU5: 15.8483871 | DV5: 0 | DW5: 0 | DX5: 3.153846154 | DY5: 0 | DZ5: 0 | EA5: 12.14250474 | EB5: 15.8483871 | EC5: 15.8483871 | ED5: 15.8483871 | EE5: 15.8483871 | EF5: 15.8483871 | EG5: 15.8483871 | EH5: 15.8483871 | EI5: 15.8483871 | EJ5: 0 | EK5: 0.6672581958 | EL5: 0 | EP5: Enero | EQ5: 0 | ER5: 0 | ES5: 15.8483871 | ET5: 0 | EU5: 0 | EV5: 3.153846154 | EW5: 0 | EX5: 0 | EY5: 12.14250474 | EZ5: 15.8483871 | FA5: 15.8483871 | FB5: 15.8483871 | FC5: 15.8483871 | FD5: 15.8483871 | FE5: 15.8483871 | FF5: 15.8483871 | FG5: 15.8483871 | FH5: 2 | FI5: 0.6672581958 | FJ5: 0 | FN5: Enero | FO5: 0 | FP5: 0 | FQ5: 15.8483871 | FR5: 0 | FS5: 0 | FT5: 3.153846154 | FU5: 0 | FV5: 0 | FW5: 12.14250474 | FX5: 15.8483871 | FY5: 15.8483871 | FZ5: 15.8483871 | GA5: 15.8483871 | GB5: 15.8483871 | GC5: 15.8483871 | GD5: 15.8483871 | GE5: 15.8483871 | GF5: 0 | GG5: 0.6672581958 | GH5: 0 | GL5: Enero | GM5: 0 | GN5: 0 | GO5: 15.8483871 | GP5: 0 | GQ5: 0 | GR5: 3.153846154 | GS5: 0 | GT5: 0 | GU5: 12.14250474 | GV5: 15.8483871 | GW5: 15.8483871 | GX5: 15.8483871 | GY5: 15.8483871 | GZ5: 15.8483871 | HA5: 15.8483871 | HB5: 15.8483871 | HC5: 15.8483871 | HD5: 2 | HE5: 0.6672581958 | HF5: 0 | HJ5: Enero | HK5: 0 | HL5: 0 | HM5: 15.8483871 | HN5: 0 | HO5: 0 | HP5: 3.153846154 | HQ5: 0 | HR5: 0 | HS5: 12.14250474 | HT5: 15.8483871 | HU5: 15.8483871 | HV5: 15.8483871 | HW5: 15.8483871 | HX5: 15.8483871 | HY5: 15.8483871 | HZ5: 15.8483871 | IA5: 15.8483871 | IB5: 0 | IC5: 0.6672581958 | ID5: 0
B6: 1 | C6: 1 | D6: 3600 | E6: 14.88387097 | F6: 0 | G6: 0 | H6: 3.153846154 | I6: 0 | J6: 0 | K6: 11.17798861 | L6: 14.88387097 | M6: 14.88387097 | N6: 14.88387097 | O6: 14.88387097 | P6: 14.88387097 | Q6: 14.88387097 | R6: 14.88387097 | S6: 14.88387097 | T6: 2 | U6: 0.6699760643 | V6: 0 | Z6: 1 | AA6: 1 | AB6: 3600 | AC6: 14.88387097 | AD6: 0 | AE6: 0 | AF6: 3.153846154 | AG6: 0 | AH6: 0 | AI6: 11.17798861 | AJ6: 14.88387097 | AK6: 14.88387097 | AL6: 14.88387097 | AM6: 14.88387097 | AN6: 14.88387097 | AO6: 14.88387097 | AP6: 14.88387097 | AQ6: 14.88387097 | AR6: 0 | AS6: 0.6699760643 | AT6: 0 | AX6: 1 | AY6: 1 | AZ6: 3600 | BA6: 14.88387097 | BB6: 0 | BC6: 0 | BD6: 3.153846154 | BE6: 0 | BF6: 0 | BG6: 11.17798861 | BH6: 14.88387097 | BI6: 14.88387097 | BJ6: 14.88387097 | BK6: 14.88387097 | BL6: 14.88387097 | BM6: 14.88387097 | BN6: 14.88387097 | BO6: 14.88387097 | BP6: 2 | BQ6: 0.6672581958 | BR6: 0 | BV6: 1 | BW6: 1 | BX6: 3600 | BY6: 14.88387097 | BZ6: 0 | CA6: 0 | CB6: 3.153846154 | CC6: 0 | CD6: 0 | CE6: 11.17798861 | CF6: 14.88387097 | CG6: 14.88387097 | CH6: 14.88387097 | CI6: 14.88387097 | CJ6: 14.88387097 | CK6: 14.88387097 | CL6: 14.88387097 | CM6: 14.88387097 | CN6: 0 | CO6: 0.6672581958 | CP6: 0 | CT6: 1 | CU6: 1 | CV6: 3600 | CW6: 14.88387097 | CX6: 0 | CY6: 0 | CZ6: 3.153846154 | DA6: 0 | DB6: 0 | DC6: 11.17798861 | DD6: 14.88387097 | DE6: 14.88387097 | DF6: 14.88387097 | DG6: 14.88387097 | DH6: 14.88387097 | DI6: 14.88387097 | DJ6: 14.88387097 | DK6: 14.88387097 | DL6: 2 | DM6: 0.6672581958 | DN6: 0 | DR6: 1 | DS6: 1 | DT6: 3600 | DU6: 14.88387097 | DV6: 0 | DW6: 0 | DX6: 3.153846154 | DY6: 0 | DZ6: 0 | EA6: 11.17798861 | EB6: 14.88387097 | EC6: 14.88387097 | ED6: 14.88387097 | EE6: 14.88387097 | EF6: 14.88387097 | EG6: 14.88387097 | EH6: 14.88387097 | EI6: 14.88387097 | EJ6: 0 | EK6: 0.6672581958 | EL6: 0 | EP6: 1 | EQ6: 1 | ER6: 3600 | ES6: 14.88387097 | ET6: 0 | EU6: 0 | EV6: 3.153846154 | EW6: 0 | EX6: 0 | EY6: 11.17798861 | EZ6: 14.88387097 | FA6: 14.88387097 | FB6: 14.88387097 | FC6: 14.88387097 | FD6: 14.88387097 | FE6: 14.88387097 | FF6: 14.88387097 | FG6: 14.88387097 | FH6: 2 | FI6: 0.6672581958 | FJ6: 0 | FN6: 1 | FO6: 1 | FP6: 3600 | FQ6: 14.88387097 | FR6: 0 | FS6: 0 | FT6: 3.153846154 | FU6: 0 | FV6: 0 | FW6: 11.17798861 | FX6: 14.88387097 | FY6: 14.88387097 | FZ6: 14.88387097 | GA6: 14.88387097 | GB6: 14.88387097 | GC6: 14.88387097 | GD6: 14.88387097 | GE6: 14.88387097 | GF6: 0 | GG6: 0.6672581958 | GH6: 0 | GL6: 1 | GM6: 1 | GN6: 3600 | GO6: 14.88387097 | GP6: 0 | GQ6: 0 | GR6: 3.153846154 | GS6: 0 | GT6: 0 | GU6: 11.17798861 | GV6: 14.88387097 | GW6: 14.88387097 | GX6: 14.88387097 | GY6: 14.88387097 | GZ6: 14.88387097 | HA6: 14.88387097 | HB6: 14.88387097 | HC6: 14.88387097 | HD6: 2 | HE6: 0.6672581958 | HF6: 0 | HJ6: 1 | HK6: 1 | HL6: 3600 | HM6: 14.88387097 | HN6: 0 | HO6: 0 | HP6: 3.153846154 | HQ6: 0 | HR6: 0 | HS6: 11.17798861 | HT6: 14.88387097 | HU6: 14.88387097 | HV6: 14.88387097 | HW6: 14.88387097 | HX6: 14.88387097 | HY6: 14.88387097 | HZ6: 14.88387097 | IA6: 14.88387097 | IB6: 0 | IC6: 0.6672581958 | ID6: 0
B7: Tmax Dia | C7: 2 | D7: 7200 | E7: 13.78064516 | F7: 0 | G7: 0 | H7: 3.153846154 | I7: 0 | J7: 0 | K7: 10.07476281 | L7: 13.78064516 | M7: 13.78064516 | N7: 13.78064516 | O7: 13.78064516 | P7: 13.78064516 | Q7: 13.78064516 | R7: 13.78064516 | S7: 13.78064516 | T7: 2 | U7: 0.6699760643 | V7: 0 | Z7: Tmax Dia | AA7: 2 | AB7: 7200 | AC7: 13.78064516 | AD7: 0 | AE7: 0 | AF7: 3.153846154 | AG7: 0 | AH7: 0 | AI7: 10.07476281 | AJ7: 13.78064516 | AK7: 13.78064516 | AL7: 13.78064516 | AM7: 13.78064516 | AN7: 13.78064516 | AO7: 13.78064516 | AP7: 13.78064516 | AQ7: 13.78064516 | AR7: 0 | AS7: 0.6699760643 | AT7: 0 | AX7: Tmax Dia | AY7: 2 | AZ7: 7200 | BA7: 13.78064516 | BB7: 0 | BC7: 0 | BD7: 3.153846154 | BE7: 0 | BF7: 0 | BG7: 10.07476281 | BH7: 13.78064516 | BI7: 13.78064516 | BJ7: 13.78064516 | BK7: 13.78064516 | BL7: 13.78064516 | BM7: 13.78064516 | BN7: 13.78064516 | BO7: 13.78064516 | BP7: 2 | BQ7: 0.6672581958 | BR7: 0 | BV7: Tmax Dia | BW7: 2 | BX7: 7200 | BY7: 13.78064516 | BZ7: 0 | CA7: 0 | CB7: 3.153846154 | CC7: 0 | CD7: 0 | CE7: 10.07476281 | CF7: 13.78064516 | CG7: 13.78064516 | CH7: 13.78064516 | CI7: 13.78064516 | CJ7: 13.78064516 | CK7: 13.78064516 | CL7: 13.78064516 | CM7: 13.78064516 | CN7: 0 | CO7: 0.6672581958 | CP7: 0 | CT7: Tmax Dia | CU7: 2 | CV7: 7200 | CW7: 13.78064516 | CX7: 0 | CY7: 0 | CZ7: 3.153846154 | DA7: 0 | DB7: 0 | DC7: 10.07476281 | DD7: 13.78064516 | DE7: 13.78064516 | DF7: 13.78064516 | DG7: 13.78064516 | DH7: 13.78064516 | DI7: 13.78064516 | DJ7: 13.78064516 | DK7: 13.78064516 | DL7: 2 | DM7: 0.6672581958 | DN7: 0 | DR7: Tmax Dia | DS7: 2 | DT7: 7200 | DU7: 13.78064516 | DV7: 0 | DW7: 0 | DX7: 3.153846154 | DY7: 0 | DZ7: 0 | EA7: 10.07476281 | EB7: 13.78064516 | EC7: 13.78064516 | ED7: 13.78064516 | EE7: 13.78064516 | EF7: 13.78064516 | EG7: 13.78064516 | EH7: 13.78064516 | EI7: 13.78064516 | EJ7: 0 | EK7: 0.6672581958 | EL7: 0 | EP7: Tmax Dia | EQ7: 2 | ER7: 7200 | ES7: 13.78064516 | ET7: 0 | EU7: 0 | EV7: 3.153846154 | EW7: 0 | EX7: 0 | EY7: 10.07476281 | EZ7: 13.78064516 | FA7: 13.78064516 | FB7: 13.78064516 | FC7: 13.78064516 | FD7: 13.78064516 | FE7: 13.78064516 | FF7: 13.78064516 | FG7: 13.78064516 | FH7: 2 | FI7: 0.6672581958 | FJ7: 0 | FN7: Tmax Dia | FO7: 2 | FP7: 7200 | FQ7: 13.78064516 | FR7: 0 | FS7: 0 | FT7: 3.153846154 | FU7: 0 | FV7: 0 | FW7: 10.07476281 | FX7: 13.78064516 | FY7: 13.78064516 | FZ7: 13.78064516 | GA7: 13.78064516 | GB7: 13.78064516 | GC7: 13.78064516 | GD7: 13.78064516 | GE7: 13.78064516 | GF7: 0 | GG7: 0.6672581958 | GH7: 0 | GL7: Tmax Dia | GM7: 2 | GN7: 7200 | GO7: 13.78064516 | GP7: 0 | GQ7: 0 | GR7: 3.153846154 | GS7: 0 | GT7: 0 | GU7: 10.07476281 | GV7: 13.78064516 | GW7: 13.78064516 | GX7: 13.78064516 | GY7: 13.78064516 | GZ7: 13.78064516 | HA7: 13.78064516 | HB7: 13.78064516 | HC7: 13.78064516 | HD7: 2 | HE7: 0.6672581958 | HF7: 0 | HJ7: Tmax Dia | HK7: 2 | HL7: 7200 | HM7: 13.78064516 | HN7: 0 | HO7: 0 | HP7: 3.153846154 | HQ7: 0 | HR7: 0 | HS7: 10.07476281 | HT7: 13.78064516 | HU7: 13.78064516 | HV7: 13.78064516 | HW7: 13.78064516 | HX7: 13.78064516 | HY7: 13.78064516 | HZ7: 13.78064516 | IA7: 13.78064516 | IB7: 0 | IC7: 0.6672581958 | ID7: 0
